Workbook

Sheet Changes After Oct 23
A1: Schedule of changes to PFI model since first issued on 3 April 2009 prior to update for IFRS 16 application
A3: Worksheet | B3: Change | C3: Reason | D3: Old formula | E3: New formula | F3: Approximate impact (scenario 1)
A4: Workings | B4: Workings added to facilitate liability maturity analysis on statements tab | C4: To aid completion of accounts disclosures | D4: n/a | E4: Refer to rows 152 to 171 | F4: None
A5: Semi Annual Statements | B5: Liability maturity analysis added for period ends post IFRS 16 transition | C5: To aid completion of accounts disclosures | D5: n/a | E5: Refer to rows 115 to 122 | F5: None
A6: Annual Statements | B6: Liability maturity analysis added for period ends post IFRS 16 transition | C6: To aid completion of accounts disclosures | D6: n/a | E6: Refer to rows 115 to 122 | F6: None

Sheet Changes after 3 Apr-IAS17 model
A1: Schedule of changes to PFI model since first issued on 3 April 2009 prior to update for IFRS 16 application
A3: Worksheet | B3: Change | C3: Reason | D3: Old formula | E3: New formula | F3: Approximate impact (scenario 1)
A4: Global Inputs | B4: Deletion of row 21 | C4: No dependent formulae | D4: N/A | E4: N/A | F4: None
B5: Addition of asset value input - insertion of rows 40-42 | C5: Reflect change in approach from cost to fair value for initial measurement of asset | D5: N/A | E5: N/A | F5: None
B6: Change input to formula | C6: Enable separate indicators for each scenario | D6: N/A | E6: CHOOSE($B$4,D51,E51,F51,G51,H51) | F6: None
A7: Operator Model Inputs | B7: Deletion of row 13 | C7: No dependent formulae | D7: N/A | E7: N/A | F7: None
B8: Correction to indexation formula | C8: Ensures index factors match to March year end | D8: G56 | E8: IF(MONTH(F29)=9,G56,E56) | F8: None
B9: Deletion of rows 46-106 | C9: Reflect change in approach from cost to fair value for initial measurement of asset | D9: N/A | E9: N/A | F9: None
A10: Asset inputs | B10: Call up from global inputs and deletion of call ups in row from Operator Model Inputs | C10: Reflect change in approach from cost to fair value for initial measurement of asset | D10: SUM(F31:CR31) | E10: 'Global Inputs'!B41 | F10: None
A11: Depreciation Calcs | B11: Correction to depreciation formulae | C11: Annual depreciation value fails to accumulate in years where no lifecycle occurs | D11: IF(F106=0,0,$D132*SUM(F106:OFFSET(F106,0,MAX(-COLUMNS($A130:E130),-$D106*2+1)))) | E11: IF(SUM($E106:F106)=0,0,$D132*SUM(F106:OFFSET(F106,0,MAX(-COLUMNS($A130:E130),-$D106*2+1)))) | F11: Depreciation charge increases from £34.4 m to £39.1 m
C12: Revaluations of assets before construction is fully complete are not caught correctly | D12: F$7*($C16*'Asset Inputs'!F$22-$D16-SUM($E29:E29)) | E12: F$7*($C16*'Asset Inputs'!F$22-$D16*SUM('Asset Inputs'!$E$30:F$30)-SUM($E29:E29))
C13: Bug in conditional logic returns negative number when total in row 51 is nil but total within row of formula is not nil | D13: IF(F41=0,0,($E16*SUM(F41:OFFSET(F41,0,MAX(-COLUMNS($A130:E130),-$B16*2+1))))-SUM($E53:E53)) | E13: IF(F$51=0,0,IF(F41=0,0,$E16*SUM(F41:OFFSET(F41,0,MAX(-COLUMNS($E130:E130),-$B16*2+1))))-SUM($E53:E53)) | F13: None
A14: Workings | B14: Asset release profile | C14: Row deleted because it is redundant | D14: N/A | E14: N/A | F14: None
B15: Capital contribution amortisation in off balance sheet | C15: Formula did not reference capital contribution release flag | D15: IF($D19=0,0,$C30*F$14/MIN($D$14,$D19)) | E15: IF($D19=0,0,$C29*F$14*F19/MIN($D$14,$D19)) | F15: None
A16: Accounting Calculations | B16: Correction of PDC calculations for on balance sheet | C16: Inconsistent with required calculation | D16: (Average fixed asset plus average WC movement less average long term liability)*3.5% | E16: (Average net asset less average cash)*3.5% | F16: PDC impact changes from £34m Cr to £13m Cr
B17: Correction of PDC calculations for off balance sheet | D17: Cumulative movements in residual interest, deferred assets and capital contributions balances | E17: Average of opening and closing balances for residual interest, deferred assets and capital contributions | F17: PDC impact changes from £37m Dr to £74m Dr
B18: Correction of PDC flag | C18: Needed for PDC changes above | D18: IF(MONTH(F24)=3,1,0) | E18: F29*IF(MONTH(F24)=3,1,0) | F18: None
B19: Flagging of part period indicators to service period | C19: Potentially needed for consistency | D19: IF('Asset Inputs'!F45=0,1,'Asset Inputs'!F45) | E19: IF('Asset Inputs'!F45=0,1,'Asset Inputs'!F45)*F29 | F19: None
B20: Correction lease interest calculation | C20: Included additions for opex and lifecycle | D20: (G64+SUM(G65:G67)*G44)*$C$17*G40 | E20: SUM(F64:F65)*$C$17*F44*F40 | F20: Nil over Term but changes in each year of up to £200k; implicit rate increases from 3.63% to 3.77% per semi annual period (pre refi)
D21: SUM(F78:F81)*$C$19*F40*F38 | E21: SUM(F78:F79)*$C$19*F44*F40*F38
B22: Correction of impairments calculation | C22: Where there is more than one impairment the balance is sometimes incorrectly accumulated | D22: IF(SUM($F$58:f58)<0,G58+SUM($F$58:F58),0)*f39 | E22: IF(SUM($E$58:F58)<0,F58+SUM($E$58:E58)-SUM($E$104:E104),0)*F39 | F22: None
A23: Semi Annual Statements | B23: Changes to first two period indicators | C23: Ensures period 1 ends in March | D23: D13+1 | E23: Numeric input | F23: None
D24: E13+1 | E24: IF(MONTH(G10)=9,2,1)
B25: Deletion of third party revenue to grantor row | C25: While there may be a third party revenue share to the grantor, the operator model will assume this is nil | D25: N/A | E25: N/A | F25: None
B26: Corrections to liabilities due in less than six months | C26: Incorrect at beginning of Term | D26: IF(F94<0,F94,0) | E26: F90+F91 | F26: None
B27: Effective interest rate calculations | C27: Calculation includes opex so not consistent | D27: IF(ROUND((F87+F88),2)=0,0,-F79/(F87+F88+sum(Workings!F68:F70))) | E27: IF(ROUND((F87+F88),2)=0,0,-F79/(F87+F88+Workings!F69)) | F27: None
D28: IF(ROUND((F87+F88),2)=0,0,(-F79-F80)/(F87+F88+sum(Workings!F68:F70))) | E28: IF(ROUND((F87+F88),2)=0,0,(-F79-F80)/(F87+F88+Workings!F69)) | F28: None
A29: Annual Statements | B29: Addition of period start | C29: Enables corrrection of service period flag | D29: None | E29: EDATE(F11,-12)+1 | F29: None
B30: Deletion of third party revenue to grantor row | C30: While there may be a third party revenue share to the grantor, the operator model will assume this is nil | D30: N/A | E30: N/A | F30: None
B31: Period indicator in annual statements | C31: Corrects calculation of service period flag | D31: IF(F10<='Global Inputs'!$C$22,1,0) | E31: IF(OR(F11<='Global Inputs'!$C$22,F10<'Global Inputs'!$C$22),1,0) | F31: None
B32: Total expenditure | C32: Fails to pick up income line | D32: F31+F26 | E32: F31+F26+F20 | F32: None
B33: Cash balance on annual balance sheet | C33: Service period flag correction results in errors at term end in cash and i/e balance | D33: HLOOKUP(F$11,'Semi Annual Statements'!$F$10:$CR50,41,FALSE) | E33: F85 | F33: None
B34: Income statement on annual balance sheet | C34: Service period flag correction results in errors at term end in cash and i/e balance | D34: HLOOKUP(F$11,'Semi Annual Statements'!$F$10:$CR61,52,FALSE) | E34: SUM($E$33:F33)*F12 | F34: None

Sheet Forward

Sheet Global Inputs
A1: IFRS Accounting for PPP/PFI for grantor
A3: Model scenarios
A4: Project scenario | B4: 1 | C4: =CHOOSE(B4,A7,A8,A9,A10,A11) -> Hypothetical large PFI Acute Hospital | E4: =IF(OR(ROUND(Controls!E6+Controls!E8,0)<0,ROUND(Controls!E6+Controls!E8,0)>0),"Please run macros on Controls Tab!!!","Model Run OK") -> Model Run OK
A6: Scenario name | B6: Scenario number
A7: Hypothetical large PFI Acute Hospital | B7: 1
A8: Hypothetical residences sale and lease back | B8: 2
A9: Not used | B9: 3
A10: Not used | B10: 4
A11: Not used | B11: 5
A13: Off balance sheet residual interest scenario | B13: 2 | C13: =CHOOSE(B13,"Straight line", "Accumulating balance") -> Accumulating balance
A15: Date and time inputs
A16: Scenario number | B16: =B4 -> 1 | D16: 1 | E16: 2 | F16: 3 | G16: 4 | H16: 5
A17: Operator model inflation base date | B17: =CHOOSE($B$4,D17,E17,F17,G17,H17) -> 2007-04-01 | D17: 2007-04-01
A18: First semiannual period end | B18: =CHOOSE($B$4,D18,E18,F18,G18,H18) -> 2007-09-30 | D18: 2007-09-30
A19: Construction start | B19: 2007-05-14 | D19: 2007-05-14
A20: End of construction | B20: 2011-03-31 | D20: 2011-03-31
A21: Services start date | B21: 2010-05-01 | D21: 2010-05-01
A22: Services end date | B22: 2042-03-31 | D22: 2042-03-31
A23: Semi annual service periods | B23: =ROUNDUP(YEARFRAC(B22,B21)*2,0) -> 64
A24: Deferred assets recognition date | B24: 2009-08-31 | D24: 2009-08-31
A25: Capital contribution release date 1 | B25: 2010-02-28 | D25: 2010-02-28
A26: Capital contribution release date 2 | B26: 2011-05-31 | D26: 2011-05-31
A27: Capital contribution release date 3 | B27: 00:00:00 | D27: 00:00:00
A28: Capital contribution 1 | B28: 10000 | D28: 10000
A29: Capital contribution 2 | B29: 5000 | D29: 5000
A30: Capital contribution 3 | B30: 0 | D30: 0
A32: Refinancing date | B32: 2012-01-15 | D32: 2012-01-15
A34: Asset release date phase 1 | B34: 2010-05-01 | D34: 2010-05-01
A35: Asset release date phase 2 | B35: 00:00:00 | D35: 00:00:00
A36: Asset release date phase 3 | B36: 00:00:00 | D36: 00:00:00
A37: Asset release date phase 4 | B37: 00:00:00 | D37: 00:00:00
A38: Asset release date phase 5 | B38: 00:00:00 | D38: 00:00:00
A40: New assets
A41: Asset fair value or construction cost | B41: =CHOOSE($B$4,D41,E41,F41,G41,H41) -> 350892.7095 | D41: 350892.7095
A43: Deferred assets
A44: Useful economic life of deferred assets | B44: =CHOOSE($B$4,D44,E44,F44,G44,H44) -> 45 | D44: 45
A45: Book value of deferred assets | B45: =CHOOSE($B$4,D45,E45,F45,G45,H45) -> 20000 | D45: 20000
A47: NHS cost of capital | B47: 0.035
A49: Global indexation assumptions
A50: Inflation indicator (1 = semi annual, 2 = annual) | B50: =CHOOSE($B$4,D50,E50,F50,G50,H50) -> 2 | D50: 2
A51: Operator model annual RPI indexation | B51: =CHOOSE($B$4,D51,E51,F51,G51,H51) -> 0.025 | D51: 0.025
A52: Operator model semiannual RPI indexation | B52: =SQRT(1+B51)-1 -> 0.01242283657

Sheet Operator Model Inputs
A1: IFRS Accounting for PPP/PFI for grantor
A3: Model scenarios
A4: Project scenario | B4: ='Global Inputs'!B4 -> 1 | C4: ='Global Inputs'!C4 -> Hypothetical large PFI Acute Hospital
A6: Call ups from Global Inputs
A8: ='Global Inputs'!A16 -> Scenario number | C8: ='Global Inputs'!B16 -> 1
A9: ='Global Inputs'!A17 -> Operator model inflation base date | C9: ='Global Inputs'!B17 -> 2007-04-01
A10: ='Global Inputs'!A18 -> First semiannual period end | C10: ='Global Inputs'!B18 -> 2007-09-30
A11: ='Global Inputs'!A19 -> Construction start | C11: ='Global Inputs'!B19 -> 2007-05-14
A12: ='Global Inputs'!A20 -> End of construction | C12: ='Global Inputs'!B20 -> 2011-03-31
A13: ='Global Inputs'!A21 -> Services start date | C13: ='Global Inputs'!B21 -> 2010-05-01
A14: ='Global Inputs'!A22 -> Services end date | C14: ='Global Inputs'!B22 -> 2042-03-31
A15: ='Global Inputs'!A23 -> Semi annual service periods | C15: =ROUNDUP(YEARFRAC(C14,C13)*2,0) -> 64
A16: ='Global Inputs'!A24 -> Deferred assets recognition date | C16: ='Global Inputs'!B24 -> 2009-08-31
A17: ='Global Inputs'!A25 -> Capital contribution release date 1 | C17: ='Global Inputs'!B25 -> 2010-02-28
A18: ='Global Inputs'!A26 -> Capital contribution release date 2 | C18: ='Global Inputs'!B26 -> 2011-05-31
A19: ='Global Inputs'!A27 -> Capital contribution release date 3 | C19: ='Global Inputs'!B27 -> 00:00:00
A20: ='Global Inputs'!A32 -> Refinancing date | C20: ='Global Inputs'!B32 -> 2012-01-15
A22: ='Global Inputs'!A50 -> Inflation indicator (1 = semi annual, 2 = annual) | C22: ='Global Inputs'!B50 -> 2
A23: ='Global Inputs'!A51 -> Operator model annual RPI indexation | C23: ='Global Inputs'!B51 -> 0.025
A24: ='Global Inputs'!A52 -> Operator model semiannual RPI indexation | C24: ='Global Inputs'!B52 -> 0.01242283657
A26: Dates and timing flags
A28: Period start | F28: =C9 -> 2007-04-01 | G28: =F29+1 -> 2007-10-01 | H28: =G29+1 -> 2008-04-01 | I28: 2008-10-01 | J28: 2009-04-01 | K28: 2009-10-01 | L28: 2010-04-01 | M28: 2010-10-01 | N28: 2011-04-01 | O28: 2011-10-01 | P28: 2012-04-01 | Q28: 2012-10-01 | R28: 2013-04-01 | S28: 2013-10-01 | T28: 2014-04-01 | U28: 2014-10-01 | V28: 2015-04-01 | W28: 2015-10-01 | X28: 2016-04-01 | Y28: 2016-10-01 | Z28: 2017-04-01 | AA28: 2017-10-01 | AB28: 2018-04-01 | AC28: 2018-10-01 | AD28: 2019-04-01 | AE28: 2019-10-01 | AF28: 2020-04-01 | AG28: 2020-10-01 | AH28: 2021-04-01 | AI28: 2021-10-01 | AJ28: 2022-04-01 | AK28: 2022-10-01 | AL28: 2023-04-01 | AM28: 2023-10-01 | AN28: 2024-04-01 | AO28: 2024-10-01 | AP28: 2025-04-01 | AQ28: 2025-10-01 | AR28: 2026-04-01 | AS28: 2026-10-01 | AT28: 2027-04-01 | AU28: 2027-10-01 | AV28: 2028-04-01 | AW28: 2028-10-01 | AX28: 2029-04-01 | AY28: 2029-10-01 | AZ28: 2030-04-01 | BA28: 2030-10-01 | BB28: 2031-04-01 | BC28: 2031-10-01 | BD28: 2032-04-01 | BE28: 2032-10-01 | BF28: 2033-04-01 | BG28: 2033-10-01 | BH28: 2034-04-01 | BI28: 2034-10-01 | BJ28: 2035-04-01 | BK28: 2035-10-01 | BL28: 2036-04-01 | BM28: 2036-10-01 | BN28: 2037-04-01 | BO28: 2037-10-01 | BP28: 2038-04-01 | BQ28: 2038-10-01 | BR28: 2039-04-01 | BS28: 2039-10-01 | BT28: =BS29+1 -> 2040-04-01 | BU28: 2040-10-01 | BV28: 2041-04-01 | BW28: 2041-10-01 | BX28: 2042-04-01 | BY28: 2042-10-01 | BZ28: 2043-04-01 | CA28: 2043-10-01 | CB28: 2044-04-01 | CC28: 2044-10-01 | CD28: 2045-04-01 | CE28: 2045-10-01 | CF28: 2046-04-01 | CG28: 2046-10-01 | CH28: 2047-04-01 | CI28: 2047-10-01 | CJ28: 2048-04-01 | CK28: 2048-10-01 | CL28: 2049-04-01 | CM28: 2049-10-01 | CN28: 2050-04-01 | CO28: 2050-10-01 | CP28: 2051-04-01 | CQ28: 2051-10-01 | CR28: 2052-04-01
A29: Period end | C29: Inputs check | F29: =C10 -> 2007-09-30 | G29: =EOMONTH(F29,6) -> 2008-03-31 | H29: 2008-09-30 | I29: 2009-03-31 | J29: 2009-09-30 | K29: 2010-03-31 | L29: 2010-09-30 | M29: 2011-03-31 | N29: 2011-09-30 | O29: 2012-03-31 | P29: 2012-09-30 | Q29: 2013-03-31 | R29: 2013-09-30 | S29: 2014-03-31 | T29: 2014-09-30 | U29: 2015-03-31 | V29: 2015-09-30 | W29: 2016-03-31 | X29: 2016-09-30 | Y29: 2017-03-31 | Z29: 2017-09-30 | AA29: 2018-03-31 | AB29: 2018-09-30 | AC29: 2019-03-31 | AD29: 2019-09-30 | AE29: 2020-03-31 | AF29: 2020-09-30 | AG29: 2021-03-31 | AH29: 2021-09-30 | AI29: 2022-03-31 | AJ29: 2022-09-30 | AK29: 2023-03-31 | AL29: 2023-09-30 | AM29: =EOMONTH(AL29,6) -> 2024-03-31 | AN29: 2024-09-30 | AO29: 2025-03-31 | AP29: 2025-09-30 | AQ29: 2026-03-31 | AR29: 2026-09-30 | AS29: 2027-03-31 | AT29: 2027-09-30 | AU29: 2028-03-31 | AV29: 2028-09-30 | AW29: 2029-03-31 | AX29: 2029-09-30 | AY29: 2030-03-31 | AZ29: 2030-09-30 | BA29: 2031-03-31 | BB29: 2031-09-30 | BC29: 2032-03-31 | BD29: 2032-09-30 | BE29: 2033-03-31 | BF29: 2033-09-30 | BG29: 2034-03-31 | BH29: 2034-09-30 | BI29: 2035-03-31 | BJ29: 2035-09-30 | BK29: 2036-03-31 | BL29: 2036-09-30 | BM29: 2037-03-31 | BN29: 2037-09-30 | BO29: 2038-03-31 | BP29: 2038-09-30 | BQ29: 2039-03-31 | BR29: 2039-09-30 | BS29: =EOMONTH(BR29,6) -> 2040-03-31 | BT29: 2040-09-30 | BU29: 2041-03-31 | BV29: 2041-09-30 | BW29: 2042-03-31 | BX29: 2042-09-30 | BY29: 2043-03-31 | BZ29: 2043-09-30 | CA29: 2044-03-31 | CB29: 2044-09-30 | CC29: 2045-03-31 | CD29: 2045-09-30 | CE29: 2046-03-31 | CF29: 2046-09-30 | CG29: 2047-03-31 | CH29: 2047-09-30 | CI29: 2048-03-31 | CJ29: 2048-09-30 | CK29: 2049-03-31 | CL29: 2049-09-30 | CM29: 2050-03-31 | CN29: 2050-09-30 | CO29: 2051-03-31 | CP29: 2051-09-30 | CQ29: 2052-03-31 | CR29: 2052-09-30
A30: Construction period flag | F30: =IF(AND(F29>=$C$11,F28<$C$12),1,0) -> 1 | G30: =IF(AND(G29>=$C$11,F29<$C$12),1,0) -> 1 | H30: 1 | I30: 1 | J30: 1 | K30: 1 | L30: 1 | M30: 1 | N30: 0 | O30: 0 | P30: 0 | Q30: 0 | R30: 0 | S30: 0 | T30: 0 | U30: 0 | V30: 0 | W30: 0 | X30: 0 | Y30: 0 | Z30: 0 | AA30: 0 | AB30: 0 | AC30: 0 | AD30: 0 | AE30: 0 | AF30: 0 | AG30: 0 | AH30: 0 | AI30: 0 | AJ30: 0 | AK30: 0 | AL30: =IF(AND(AL29>=$C$11,AK29<$C$12),1,0) -> 0 | AM30: 0 | AN30: 0 | AO30: 0 | AP30: 0 | AQ30: 0 | AR30: 0 | AS30: 0 | AT30: 0 | AU30: 0 | AV30: 0 | AW30: 0 | AX30: 0 | AY30: 0 | AZ30: 0 | BA30: 0 | BB30: 0 | BC30: 0 | BD30: 0 | BE30: 0 | BF30: 0 | BG30: 0 | BH30: 0 | BI30: 0 | BJ30: 0 | BK30: 0 | BL30: 0 | BM30: 0 | BN30: 0 | BO30: 0 | BP30: 0 | BQ30: 0 | BR30: =IF(AND(BR29>=$C$11,BQ29<$C$12),1,0) -> 0 | BS30: 0 | BT30: 0 | BU30: 0 | BV30: 0 | BW30: 0 | BX30: 0 | BY30: 0 | BZ30: 0 | CA30: 0 | CB30: 0 | CC30: 0 | CD30: 0 | CE30: 0 | CF30: 0 | CG30: 0 | CH30: 0 | CI30: 0 | CJ30: 0 | CK30: 0 | CL30: 0 | CM30: 0 | CN30: 0 | CO30: 0 | CP30: 0 | CQ30: 0 | CR30: 0
A31: Construction start flag | F31: =IF(SUM($F30:F$30)=1,1,0) -> 1 | G31: =IF(SUM($F30:G$30)=1,1,0) -> 0 | H31: =IF(SUM($F30:H$30)=1,1,0) -> 0 | I31: =IF(SUM($F30:I$30)=1,1,0) -> 0 | J31: =IF(SUM($F30:J$30)=1,1,0) -> 0 | K31: =IF(SUM($F30:K$30)=1,1,0) -> 0 | L31: =IF(SUM($F30:L$30)=1,1,0) -> 0 | M31: =IF(SUM($F30:M$30)=1,1,0) -> 0 | N31: =IF(SUM($F30:N$30)=1,1,0) -> 0 | O31: =IF(SUM($F30:O$30)=1,1,0) -> 0 | P31: =IF(SUM($F30:P$30)=1,1,0) -> 0 | Q31: =IF(SUM($F30:Q$30)=1,1,0) -> 0 | R31: =IF(SUM($F30:R$30)=1,1,0) -> 0 | S31: =IF(SUM($F30:S$30)=1,1,0) -> 0 | T31: =IF(SUM($F30:T$30)=1,1,0) -> 0 | U31: =IF(SUM($F30:U$30)=1,1,0) -> 0 | V31: =IF(SUM($F30:V$30)=1,1,0) -> 0 | W31: =IF(SUM($F30:W$30)=1,1,0) -> 0 | X31: =IF(SUM($F30:X$30)=1,1,0) -> 0 | Y31: =IF(SUM($F30:Y$30)=1,1,0) -> 0 | Z31: =IF(SUM($F30:Z$30)=1,1,0) -> 0 | AA31: =IF(SUM($F30:AA$30)=1,1,0) -> 0 | AB31: =IF(SUM($F30:AB$30)=1,1,0) -> 0 | AC31: =IF(SUM($F30:AC$30)=1,1,0) -> 0 | AD31: =IF(SUM($F30:AD$30)=1,1,0) -> 0 | AE31: =IF(SUM($F30:AE$30)=1,1,0) -> 0 | AF31: =IF(SUM($F30:AF$30)=1,1,0) -> 0 | AG31: =IF(SUM($F30:AG$30)=1,1,0) -> 0 | AH31: =IF(SUM($F30:AH$30)=1,1,0) -> 0 | AI31: =IF(SUM($F30:AI$30)=1,1,0) -> 0 | AJ31: =IF(SUM($F30:AJ$30)=1,1,0) -> 0 | AK31: =IF(SUM($F30:AK$30)=1,1,0) -> 0 | AL31: =IF(SUM($F30:AL$30)=1,1,0) -> 0 | AM31: =IF(SUM($F30:AM$30)=1,1,0) -> 0 | AN31: =IF(SUM($F30:AN$30)=1,1,0) -> 0 | AO31: =IF(SUM($F30:AO$30)=1,1,0) -> 0 | AP31: =IF(SUM($F30:AP$30)=1,1,0) -> 0 | AQ31: =IF(SUM($F30:AQ$30)=1,1,0) -> 0 | AR31: =IF(SUM($F30:AR$30)=1,1,0) -> 0 | AS31: =IF(SUM($F30:AS$30)=1,1,0) -> 0 | AT31: =IF(SUM($F30:AT$30)=1,1,0) -> 0 | AU31: =IF(SUM($F30:AU$30)=1,1,0) -> 0 | AV31: =IF(SUM($F30:AV$30)=1,1,0) -> 0 | AW31: =IF(SUM($F30:AW$30)=1,1,0) -> 0 | AX31: =IF(SUM($F30:AX$30)=1,1,0) -> 0 | AY31: =IF(SUM($F30:AY$30)=1,1,0) -> 0 | AZ31: =IF(SUM($F30:AZ$30)=1,1,0) -> 0 | BA31: =IF(SUM($F30:BA$30)=1,1,0) -> 0 | BB31: =IF(SUM($F30:BB$30)=1,1,0) -> 0 | BC31: =IF(SUM($F30:BC$30)=1,1,0) -> 0 | BD31: =IF(SUM($F30:BD$30)=1,1,0) -> 0 | BE31: =IF(SUM($F30:BE$30)=1,1,0) -> 0 | BF31: =IF(SUM($F30:BF$30)=1,1,0) -> 0 | BG31: =IF(SUM($F30:BG$30)=1,1,0) -> 0 | BH31: =IF(SUM($F30:BH$30)=1,1,0) -> 0 | BI31: =IF(SUM($F30:BI$30)=1,1,0) -> 0 | BJ31: =IF(SUM($F30:BJ$30)=1,1,0) -> 0 | BK31: =IF(SUM($F30:BK$30)=1,1,0) -> 0 | BL31: =IF(SUM($F30:BL$30)=1,1,0) -> 0 | BM31: =IF(SUM($F30:BM$30)=1,1,0) -> 0 | BN31: =IF(SUM($F30:BN$30)=1,1,0) -> 0 | BO31: =IF(SUM($F30:BO$30)=1,1,0) -> 0 | BP31: =IF(SUM($F30:BP$30)=1,1,0) -> 0 | BQ31: =IF(SUM($F30:BQ$30)=1,1,0) -> 0 | BR31: =IF(SUM($F30:BR$30)=1,1,0) -> 0 | BS31: =IF(SUM($F30:BS$30)=1,1,0) -> 0 | BT31: =IF(SUM($F30:BT$30)=1,1,0) -> 0 | BU31: =IF(SUM($F30:BU$30)=1,1,0) -> 0 | BV31: =IF(SUM($F30:BV$30)=1,1,0) -> 0 | BW31: =IF(SUM($F30:BW$30)=1,1,0) -> 0 | BX31: =IF(SUM($F30:BX$30)=1,1,0) -> 0 | BY31: =IF(SUM($F30:BY$30)=1,1,0) -> 0 | BZ31: =IF(SUM($F30:BZ$30)=1,1,0) -> 0 | CA31: =IF(SUM($F30:CA$30)=1,1,0) -> 0 | CB31: =IF(SUM($F30:CB$30)=1,1,0) -> 0 | CC31: =IF(SUM($F30:CC$30)=1,1,0) -> 0 | CD31: =IF(SUM($F30:CD$30)=1,1,0) -> 0 | CE31: =IF(SUM($F30:CE$30)=1,1,0) -> 0 | CF31: =IF(SUM($F30:CF$30)=1,1,0) -> 0 | CG31: =IF(SUM($F30:CG$30)=1,1,0) -> 0 | CH31: =IF(SUM($F30:CH$30)=1,1,0) -> 0 | CI31: =IF(SUM($F30:CI$30)=1,1,0) -> 0 | CJ31: =IF(SUM($F30:CJ$30)=1,1,0) -> 0 | CK31: =IF(SUM($F30:CK$30)=1,1,0) -> 0 | CL31: =IF(SUM($F30:CL$30)=1,1,0) -> 0 | CM31: =IF(SUM($F30:CM$30)=1,1,0) -> 0 | CN31: =IF(SUM($F30:CN$30)=1,1,0) -> 0 | CO31: =IF(SUM($F30:CO$30)=1,1,0) -> 0 | CP31: =IF(SUM($F30:CP$30)=1,1,0) -> 0 | CQ31: =IF(SUM($F30:CQ$30)=1,1,0) -> 0 | CR31: =IF(SUM($F30:CR$30)=1,1,0) -> 0
A32: Construction end flag | F32: =IF(AND(G30=0,F30=1),1,0) -> 0 | G32: 0 | H32: 0 | I32: 0 | J32: 0 | K32: 0 | L32: 0 | M32: 1 | N32: 0 | O32: 0 | P32: 0 | Q32: 0 | R32: 0 | S32: 0 | T32: 0 | U32: 0 | V32: 0 | W32: 0 | X32: 0 | Y32: 0 | Z32: 0 | AA32: 0 | AB32: 0 | AC32: 0 | AD32: 0 | AE32: 0 | AF32: 0 | AG32: 0 | AH32: 0 | AI32: 0 | AJ32: 0 | AK32: 0 | AL32: 0 | AM32: 0 | AN32: 0 | AO32: 0 | AP32: 0 | AQ32: 0 | AR32: 0 | AS32: 0 | AT32: 0 | AU32: 0 | AV32: 0 | AW32: 0 | AX32: 0 | AY32: 0 | AZ32: 0 | BA32: 0 | BB32: 0 | BC32: 0 | BD32: 0 | BE32: 0 | BF32: 0 | BG32: 0 | BH32: 0 | BI32: 0 | BJ32: 0 | BK32: 0 | BL32: 0 | BM32: 0 | BN32: 0 | BO32: 0 | BP32: 0 | BQ32: 0 | BR32: =IF(AND(BS30=0,BR30=1),1,0) -> 0 | BS32: 0 | BT32: 0 | BU32: 0 | BV32: 0 | BW32: 0 | BX32: 0 | BY32: 0 | BZ32: 0 | CA32: 0 | CB32: 0 | CC32: 0 | CD32: 0 | CE32: 0 | CF32: 0 | CG32: 0 | CH32: 0 | CI32: 0 | CJ32: 0 | CK32: 0 | CL32: 0 | CM32: 0 | CN32: 0 | CO32: 0 | CP32: 0 | CQ32: 0 | CR32: =IF(AND(CS30=0,CR30=1),1,0) -> 0
A33: Services term flag | C33: =IF(E225=0,"Operating cost inputs needed!!","OK") -> OK | F33: =IF(AND(F29>=$C$13,F28<$C$14),1,0) -> 0 | G33: =IF(AND(G29>=$C$13,F29<$C$14),1,0) -> 0 | H33: 0 | I33: 0 | J33: 0 | K33: 0 | L33: 1 | M33: 1 | N33: 1 | O33: 1 | P33: 1 | Q33: 1 | R33: 1 | S33: 1 | T33: 1 | U33: 1 | V33: 1 | W33: 1 | X33: 1 | Y33: 1 | Z33: 1 | AA33: 1 | AB33: 1 | AC33: 1 | AD33: 1 | AE33: 1 | AF33: 1 | AG33: 1 | AH33: 1 | AI33: 1 | AJ33: 1 | AK33: 1 | AL33: =IF(AND(AL29>=$C$13,AK29<$C$14),1,0) -> 1 | AM33: 1 | AN33: 1 | AO33: 1 | AP33: 1 | AQ33: 1 | AR33: 1 | AS33: 1 | AT33: 1 | AU33: 1 | AV33: 1 | AW33: 1 | AX33: 1 | AY33: 1 | AZ33: 1 | BA33: 1 | BB33: 1 | BC33: 1 | BD33: 1 | BE33: 1 | BF33: 1 | BG33: 1 | BH33: 1 | BI33: 1 | BJ33: 1 | BK33: 1 | BL33: 1 | BM33: 1 | BN33: 1 | BO33: 1 | BP33: 1 | BQ33: 1 | BR33: =IF(AND(BR29>=$C$13,BQ29<$C$14),1,0) -> 1 | BS33: 1 | BT33: 1 | BU33: 1 | BV33: 1 | BW33: 1 | BX33: 0 | BY33: 0 | BZ33: 0 | CA33: 0 | CB33: 0 | CC33: 0 | CD33: 0 | CE33: 0 | CF33: 0 | CG33: 0 | CH33: 0 | CI33: 0 | CJ33: 0 | CK33: 0 | CL33: 0 | CM33: 0 | CN33: 0 | CO33: 0 | CP33: 0 | CQ33: 0 | CR33: 0
A34: Services start flag | F34: =IF(SUM($F33:F$33)=1,1,0) -> 0 | G34: =IF(SUM($F33:G$33)=1,1,0) -> 0 | H34: =IF(SUM($F33:H$33)=1,1,0) -> 0 | I34: =IF(SUM($F33:I$33)=1,1,0) -> 0 | J34: =IF(SUM($F33:J$33)=1,1,0) -> 0 | K34: =IF(SUM($F33:K$33)=1,1,0) -> 0 | L34: =IF(SUM($F33:L$33)=1,1,0) -> 1 | M34: =IF(SUM($F33:M$33)=1,1,0) -> 0 | N34: =IF(SUM($F33:N$33)=1,1,0) -> 0 | O34: =IF(SUM($F33:O$33)=1,1,0) -> 0 | P34: =IF(SUM($F33:P$33)=1,1,0) -> 0 | Q34: =IF(SUM($F33:Q$33)=1,1,0) -> 0 | R34: =IF(SUM($F33:R$33)=1,1,0) -> 0 | S34: =IF(SUM($F33:S$33)=1,1,0) -> 0 | T34: =IF(SUM($F33:T$33)=1,1,0) -> 0 | U34: =IF(SUM($F33:U$33)=1,1,0) -> 0 | V34: =IF(SUM($F33:V$33)=1,1,0) -> 0 | W34: =IF(SUM($F33:W$33)=1,1,0) -> 0 | X34: =IF(SUM($F33:X$33)=1,1,0) -> 0 | Y34: =IF(SUM($F33:Y$33)=1,1,0) -> 0 | Z34: =IF(SUM($F33:Z$33)=1,1,0) -> 0 | AA34: =IF(SUM($F33:AA$33)=1,1,0) -> 0 | AB34: =IF(SUM($F33:AB$33)=1,1,0) -> 0 | AC34: =IF(SUM($F33:AC$33)=1,1,0) -> 0 | AD34: =IF(SUM($F33:AD$33)=1,1,0) -> 0 | AE34: =IF(SUM($F33:AE$33)=1,1,0) -> 0 | AF34: =IF(SUM($F33:AF$33)=1,1,0) -> 0 | AG34: =IF(SUM($F33:AG$33)=1,1,0) -> 0 | AH34: =IF(SUM($F33:AH$33)=1,1,0) -> 0 | AI34: =IF(SUM($F33:AI$33)=1,1,0) -> 0 | AJ34: =IF(SUM($F33:AJ$33)=1,1,0) -> 0 | AK34: =IF(SUM($F33:AK$33)=1,1,0) -> 0 | AL34: =IF(SUM($F33:AL$33)=1,1,0) -> 0 | AM34: =IF(SUM($F33:AM$33)=1,1,0) -> 0 | AN34: =IF(SUM($F33:AN$33)=1,1,0) -> 0 | AO34: =IF(SUM($F33:AO$33)=1,1,0) -> 0 | AP34: =IF(SUM($F33:AP$33)=1,1,0) -> 0 | AQ34: =IF(SUM($F33:AQ$33)=1,1,0) -> 0 | AR34: =IF(SUM($F33:AR$33)=1,1,0) -> 0 | AS34: =IF(SUM($F33:AS$33)=1,1,0) -> 0 | AT34: =IF(SUM($F33:AT$33)=1,1,0) -> 0 | AU34: =IF(SUM($F33:AU$33)=1,1,0) -> 0 | AV34: =IF(SUM($F33:AV$33)=1,1,0) -> 0 | AW34: =IF(SUM($F33:AW$33)=1,1,0) -> 0 | AX34: =IF(SUM($F33:AX$33)=1,1,0) -> 0 | AY34: =IF(SUM($F33:AY$33)=1,1,0) -> 0 | AZ34: =IF(SUM($F33:AZ$33)=1,1,0) -> 0 | BA34: =IF(SUM($F33:BA$33)=1,1,0) -> 0 | BB34: =IF(SUM($F33:BB$33)=1,1,0) -> 0 | BC34: =IF(SUM($F33:BC$33)=1,1,0) -> 0 | BD34: =IF(SUM($F33:BD$33)=1,1,0) -> 0 | BE34: =IF(SUM($F33:BE$33)=1,1,0) -> 0 | BF34: =IF(SUM($F33:BF$33)=1,1,0) -> 0 | BG34: =IF(SUM($F33:BG$33)=1,1,0) -> 0 | BH34: =IF(SUM($F33:BH$33)=1,1,0) -> 0 | BI34: =IF(SUM($F33:BI$33)=1,1,0) -> 0 | BJ34: =IF(SUM($F33:BJ$33)=1,1,0) -> 0 | BK34: =IF(SUM($F33:BK$33)=1,1,0) -> 0 | BL34: =IF(SUM($F33:BL$33)=1,1,0) -> 0 | BM34: =IF(SUM($F33:BM$33)=1,1,0) -> 0 | BN34: =IF(SUM($F33:BN$33)=1,1,0) -> 0 | BO34: =IF(SUM($F33:BO$33)=1,1,0) -> 0 | BP34: =IF(SUM($F33:BP$33)=1,1,0) -> 0 | BQ34: =IF(SUM($F33:BQ$33)=1,1,0) -> 0 | BR34: =IF(SUM($F33:BR$33)=1,1,0) -> 0 | BS34: =IF(SUM($F33:BS$33)=1,1,0) -> 0 | BT34: =IF(SUM($F33:BT$33)=1,1,0) -> 0 | BU34: =IF(SUM($F33:BU$33)=1,1,0) -> 0 | BV34: =IF(SUM($F33:BV$33)=1,1,0) -> 0 | BW34: =IF(SUM($F33:BW$33)=1,1,0) -> 0 | BX34: =IF(SUM($F33:BX$33)=1,1,0) -> 0 | BY34: =IF(SUM($F33:BY$33)=1,1,0) -> 0 | BZ34: =IF(SUM($F33:BZ$33)=1,1,0) -> 0 | CA34: =IF(SUM($F33:CA$33)=1,1,0) -> 0 | CB34: =IF(SUM($F33:CB$33)=1,1,0) -> 0 | CC34: =IF(SUM($F33:CC$33)=1,1,0) -> 0 | CD34: =IF(SUM($F33:CD$33)=1,1,0) -> 0 | CE34: =IF(SUM($F33:CE$33)=1,1,0) -> 0 | CF34: =IF(SUM($F33:CF$33)=1,1,0) -> 0 | CG34: =IF(SUM($F33:CG$33)=1,1,0) -> 0 | CH34: =IF(SUM($F33:CH$33)=1,1,0) -> 0 | CI34: =IF(SUM($F33:CI$33)=1,1,0) -> 0 | CJ34: =IF(SUM($F33:CJ$33)=1,1,0) -> 0 | CK34: =IF(SUM($F33:CK$33)=1,1,0) -> 0 | CL34: =IF(SUM($F33:CL$33)=1,1,0) -> 0 | CM34: =IF(SUM($F33:CM$33)=1,1,0) -> 0 | CN34: =IF(SUM($F33:CN$33)=1,1,0) -> 0 | CO34: =IF(SUM($F33:CO$33)=1,1,0) -> 0 | CP34: =IF(SUM($F33:CP$33)=1,1,0) -> 0 | CQ34: =IF(SUM($F33:CQ$33)=1,1,0) -> 0 | CR34: =IF(SUM($F33:CR$33)=1,1,0) -> 0
A35: Services end flag | F35: =IF(AND(G33=0,F33=1),1,0) -> 0 | G35: =IF(AND(H33=0,G33=1),1,0) -> 0 | H35: 0 | I35: 0 | J35: 0 | K35: 0 | L35: 0 | M35: 0 | N35: 0 | O35: 0 | P35: 0 | Q35: 0 | R35: 0 | S35: 0 | T35: 0 | U35: 0 | V35: 0 | W35: 0 | X35: 0 | Y35: 0 | Z35: 0 | AA35: 0 | AB35: 0 | AC35: 0 | AD35: 0 | AE35: 0 | AF35: 0 | AG35: 0 | AH35: 0 | AI35: 0 | AJ35: 0 | AK35: 0 | AL35: 0 | AM35: 0 | AN35: 0 | AO35: 0 | AP35: 0 | AQ35: 0 | AR35: 0 | AS35: 0 | AT35: 0 | AU35: 0 | AV35: 0 | AW35: 0 | AX35: 0 | AY35: 0 | AZ35: 0 | BA35: 0 | BB35: 0 | BC35: 0 | BD35: 0 | BE35: 0 | BF35: 0 | BG35: 0 | BH35: 0 | BI35: 0 | BJ35: 0 | BK35: 0 | BL35: 0 | BM35: 0 | BN35: 0 | BO35: 0 | BP35: 0 | BQ35: 0 | BR35: 0 | BS35: =IF(AND(BT33=0,BS33=1),1,0) -> 0 | BT35: 0 | BU35: 0 | BV35: 0 | BW35: 1 | BX35: 0 | BY35: 0 | BZ35: 0 | CA35: 0 | CB35: 0 | CC35: 0 | CD35: 0 | CE35: 0 | CF35: 0 | CG35: 0 | CH35: 0 | CI35: 0 | CJ35: 0 | CK35: 0 | CL35: 0 | CM35: 0 | CN35: 0 | CO35: 0 | CP35: 0 | CQ35: 0 | CR35: =IF(AND(CS33=0,CR33=1),1,0) -> 0
A36: Service concession period flag | F36: =IF(OR(F30=1,F33=1),1,0) -> 1 | G36: =IF(OR(G30=1,G33=1),1,0) -> 1 | H36: 1 | I36: 1 | J36: 1 | K36: 1 | L36: 1 | M36: 1 | N36: 1 | O36: 1 | P36: 1 | Q36: 1 | R36: 1 | S36: 1 | T36: 1 | U36: 1 | V36: 1 | W36: 1 | X36: 1 | Y36: 1 | Z36: 1 | AA36: 1 | AB36: 1 | AC36: 1 | AD36: 1 | AE36: 1 | AF36: 1 | AG36: 1 | AH36: 1 | AI36: 1 | AJ36: 1 | AK36: 1 | AL36: 1 | AM36: 1 | AN36: 1 | AO36: 1 | AP36: 1 | AQ36: 1 | AR36: 1 | AS36: 1 | AT36: 1 | AU36: 1 | AV36: 1 | AW36: 1 | AX36: 1 | AY36: 1 | AZ36: 1 | BA36: 1 | BB36: 1 | BC36: 1 | BD36: 1 | BE36: 1 | BF36: 1 | BG36: 1 | BH36: 1 | BI36: 1 | BJ36: 1 | BK36: 1 | BL36: 1 | BM36: 1 | BN36: 1 | BO36: 1 | BP36: 1 | BQ36: 1 | BR36: 1 | BS36: =IF(OR(BS30=1,BS33=1),1,0) -> 1 | BT36: 1 | BU36: 1 | BV36: 1 | BW36: 1 | BX36: 0 | BY36: 0 | BZ36: 0 | CA36: 0 | CB36: 0 | CC36: 0 | CD36: 0 | CE36: 0 | CF36: 0 | CG36: 0 | CH36: 0 | CI36: 0 | CJ36: 0 | CK36: 0 | CL36: 0 | CM36: 0 | CN36: 0 | CO36: 0 | CP36: 0 | CQ36: 0 | CR36: =IF(OR(CR30=1,CR33=1),1,0) -> 0
A37: Deferred assets flag | C37: =IF(AND(SUM(F37:CR37)>0,'Global Inputs'!B45=0),"Deferred asset values needed!!","OK") -> OK | F37: =IF(AND(F28<=$C$16,F29>$C$16),1,0) -> 0 | G37: =IF(AND(F29<=$C$16,G29>$C$16),1,0) -> 0 | H37: 0 | I37: 0 | J37: 1 | K37: 0 | L37: 0 | M37: 0 | N37: 0 | O37: 0 | P37: 0 | Q37: 0 | R37: 0 | S37: 0 | T37: 0 | U37: 0 | V37: 0 | W37: 0 | X37: 0 | Y37: 0 | Z37: 0 | AA37: 0 | AB37: 0 | AC37: 0 | AD37: 0 | AE37: 0 | AF37: 0 | AG37: 0 | AH37: 0 | AI37: 0 | AJ37: 0 | AK37: 0 | AL37: =IF(AND(AK29<=$C$16,AL29>$C$16),1,0) -> 0 | AM37: 0 | AN37: 0 | AO37: 0 | AP37: 0 | AQ37: 0 | AR37: 0 | AS37: 0 | AT37: 0 | AU37: 0 | AV37: 0 | AW37: 0 | AX37: 0 | AY37: 0 | AZ37: 0 | BA37: 0 | BB37: 0 | BC37: 0 | BD37: 0 | BE37: 0 | BF37: 0 | BG37: 0 | BH37: 0 | BI37: 0 | BJ37: 0 | BK37: 0 | BL37: 0 | BM37: 0 | BN37: 0 | BO37: 0 | BP37: 0 | BQ37: 0 | BR37: =IF(AND(BQ29<=$C$16,BR29>$C$16),1,0) -> 0 | BS37: 0 | BT37: 0 | BU37: 0 | BV37: 0 | BW37: 0 | BX37: 0 | BY37: 0 | BZ37: 0 | CA37: 0 | CB37: 0 | CC37: 0 | CD37: 0 | CE37: 0 | CF37: 0 | CG37: 0 | CH37: 0 | CI37: 0 | CJ37: 0 | CK37: 0 | CL37: 0 | CM37: 0 | CN37: 0 | CO37: 0 | CP37: 0 | CQ37: 0 | CR37: 0
A38: Capital contribution flag 1 | C38: =IF(AND(SUM(F38:CR38)>0,'Global Inputs'!B28=0),"Capital contribution values needed!!","OK") -> OK | F38: =IF(AND(F$28<=$C17,F$29>$C17),1,0) -> 0 | G38: =IF(AND(F$29<=$C17,G$29>$C17),1,0) -> 0 | H38: 0 | I38: 0 | J38: 0 | K38: 1 | L38: 0 | M38: 0 | N38: 0 | O38: 0 | P38: 0 | Q38: 0 | R38: 0 | S38: 0 | T38: 0 | U38: 0 | V38: 0 | W38: 0 | X38: 0 | Y38: 0 | Z38: 0 | AA38: 0 | AB38: 0 | AC38: 0 | AD38: 0 | AE38: 0 | AF38: 0 | AG38: 0 | AH38: 0 | AI38: 0 | AJ38: 0 | AK38: 0 | AL38: 0 | AM38: 0 | AN38: 0 | AO38: 0 | AP38: 0 | AQ38: 0 | AR38: 0 | AS38: 0 | AT38: 0 | AU38: 0 | AV38: 0 | AW38: 0 | AX38: 0 | AY38: 0 | AZ38: 0 | BA38: 0 | BB38: 0 | BC38: 0 | BD38: 0 | BE38: 0 | BF38: 0 | BG38: 0 | BH38: 0 | BI38: 0 | BJ38: 0 | BK38: 0 | BL38: 0 | BM38: 0 | BN38: 0 | BO38: 0 | BP38: 0 | BQ38: 0 | BR38: =IF(AND(BQ$29<=$C17,BR$29>$C17),1,0) -> 0 | BS38: 0 | BT38: 0 | BU38: 0 | BV38: 0 | BW38: 0 | BX38: 0 | BY38: 0 | BZ38: 0 | CA38: 0 | CB38: 0 | CC38: 0 | CD38: 0 | CE38: 0 | CF38: 0 | CG38: 0 | CH38: 0 | CI38: 0 | CJ38: 0 | CK38: 0 | CL38: 0 | CM38: 0 | CN38: 0 | CO38: 0 | CP38: 0 | CQ38: 0 | CR38: =IF(AND(CQ$29<=$C17,CR$29>$C17),1,0) -> 0
A39: Capital contribution flag 2 | F39: =IF(AND(F$28<=$C18,F$29>$C18),1,0) -> 0 | G39: =IF(AND(G$28<=$C18,G$29>$C18),1,0) -> 0 | H39: 0 | I39: 0 | J39: 0 | K39: 0 | L39: 0 | M39: 0 | N39: 1 | O39: 0 | P39: 0 | Q39: 0 | R39: 0 | S39: 0 | T39: 0 | U39: 0 | V39: 0 | W39: 0 | X39: 0 | Y39: 0 | Z39: 0 | AA39: 0 | AB39: 0 | AC39: 0 | AD39: 0 | AE39: 0 | AF39: 0 | AG39: 0 | AH39: 0 | AI39: 0 | AJ39: 0 | AK39: 0 | AL39: 0 | AM39: 0 | AN39: 0 | AO39: 0 | AP39: 0 | AQ39: 0 | AR39: 0 | AS39: 0 | AT39: 0 | AU39: 0 | AV39: 0 | AW39: 0 | AX39: 0 | AY39: 0 | AZ39: 0 | BA39: 0 | BB39: 0 | BC39: 0 | BD39: 0 | BE39: 0 | BF39: 0 | BG39: 0 | BH39: 0 | BI39: 0 | BJ39: 0 | BK39: 0 | BL39: 0 | BM39: 0 | BN39: 0 | BO39: 0 | BP39: 0 | BQ39: 0 | BR39: 0 | BS39: =IF(AND(BS$28<=$C18,BS$29>$C18),1,0) -> 0 | BT39: 0 | BU39: 0 | BV39: 0 | BW39: 0 | BX39: 0 | BY39: 0 | BZ39: 0 | CA39: 0 | CB39: 0 | CC39: 0 | CD39: 0 | CE39: 0 | CF39: 0 | CG39: 0 | CH39: 0 | CI39: 0 | CJ39: 0 | CK39: 0 | CL39: 0 | CM39: 0 | CN39: 0 | CO39: 0 | CP39: 0 | CQ39: 0 | CR39: 0
A40: Capital contribution flag 3 | F40: =IF(AND(F$28<=$C19,F$29>$C19),1,0) -> 0 | G40: =IF(AND(G$28<=$C19,G$29>$C19),1,0) -> 0 | H40: 0 | I40: 0 | J40: 0 | K40: 0 | L40: 0 | M40: 0 | N40: 0 | O40: 0 | P40: 0 | Q40: 0 | R40: 0 | S40: 0 | T40: 0 | U40: 0 | V40: 0 | W40: 0 | X40: 0 | Y40: 0 | Z40: 0 | AA40: 0 | AB40: 0 | AC40: 0 | AD40: 0 | AE40: 0 | AF40: 0 | AG40: 0 | AH40: 0 | AI40: 0 | AJ40: 0 | AK40: 0 | AL40: 0 | AM40: 0 | AN40: 0 | AO40: 0 | AP40: 0 | AQ40: 0 | AR40: 0 | AS40: 0 | AT40: 0 | AU40: 0 | AV40: 0 | AW40: 0 | AX40: 0 | AY40: 0 | AZ40: 0 | BA40: 0 | BB40: 0 | BC40: 0 | BD40: 0 | BE40: 0 | BF40: 0 | BG40: 0 | BH40: 0 | BI40: 0 | BJ40: 0 | BK40: 0 | BL40: 0 | BM40: 0 | BN40: 0 | BO40: 0 | BP40: 0 | BQ40: 0 | BR40: 0 | BS40: =IF(AND(BS$28<=$C19,BS$29>$C19),1,0) -> 0 | BT40: 0 | BU40: 0 | BV40: 0 | BW40: 0 | BX40: 0 | BY40: 0 | BZ40: 0 | CA40: 0 | CB40: 0 | CC40: 0 | CD40: 0 | CE40: 0 | CF40: 0 | CG40: 0 | CH40: 0 | CI40: 0 | CJ40: 0 | CK40: 0 | CL40: 0 | CM40: 0 | CN40: 0 | CO40: 0 | CP40: 0 | CQ40: 0 | CR40: 0
A41: Refinancing period flag | C41: =IF(AND(SUM(F41:CR41)=1,E102=0),"Refi UP inputs needed!!","OK") -> OK | F41: =IF(SUM($F42:F$42)=1,1,0) -> 0 | G41: =IF(SUM($F42:G$42)=1,1,0) -> 0 | H41: =IF(SUM($F42:H$42)=1,1,0) -> 0 | I41: =IF(SUM($F42:I$42)=1,1,0) -> 0 | J41: =IF(SUM($F42:J$42)=1,1,0) -> 0 | K41: =IF(SUM($F42:K$42)=1,1,0) -> 0 | L41: =IF(SUM($F42:L$42)=1,1,0) -> 0 | M41: =IF(SUM($F42:M$42)=1,1,0) -> 0 | N41: =IF(SUM($F42:N$42)=1,1,0) -> 0 | O41: =IF(SUM($F42:O$42)=1,1,0) -> 1 | P41: =IF(SUM($F42:P$42)=1,1,0) -> 0 | Q41: =IF(SUM($F42:Q$42)=1,1,0) -> 0 | R41: =IF(SUM($F42:R$42)=1,1,0) -> 0 | S41: =IF(SUM($F42:S$42)=1,1,0) -> 0 | T41: =IF(SUM($F42:T$42)=1,1,0) -> 0 | U41: =IF(SUM($F42:U$42)=1,1,0) -> 0 | V41: =IF(SUM($F42:V$42)=1,1,0) -> 0 | W41: =IF(SUM($F42:W$42)=1,1,0) -> 0 | X41: =IF(SUM($F42:X$42)=1,1,0) -> 0 | Y41: =IF(SUM($F42:Y$42)=1,1,0) -> 0 | Z41: =IF(SUM($F42:Z$42)=1,1,0) -> 0 | AA41: =IF(SUM($F42:AA$42)=1,1,0) -> 0 | AB41: =IF(SUM($F42:AB$42)=1,1,0) -> 0 | AC41: =IF(SUM($F42:AC$42)=1,1,0) -> 0 | AD41: =IF(SUM($F42:AD$42)=1,1,0) -> 0 | AE41: =IF(SUM($F42:AE$42)=1,1,0) -> 0 | AF41: =IF(SUM($F42:AF$42)=1,1,0) -> 0 | AG41: =IF(SUM($F42:AG$42)=1,1,0) -> 0 | AH41: =IF(SUM($F42:AH$42)=1,1,0) -> 0 | AI41: =IF(SUM($F42:AI$42)=1,1,0) -> 0 | AJ41: =IF(SUM($F42:AJ$42)=1,1,0) -> 0 | AK41: =IF(SUM($F42:AK$42)=1,1,0) -> 0 | AL41: =IF(SUM($F42:AL$42)=1,1,0) -> 0 | AM41: =IF(SUM($F42:AM$42)=1,1,0) -> 0 | AN41: =IF(SUM($F42:AN$42)=1,1,0) -> 0 | AO41: =IF(SUM($F42:AO$42)=1,1,0) -> 0 | AP41: =IF(SUM($F42:AP$42)=1,1,0) -> 0 | AQ41: =IF(SUM($F42:AQ$42)=1,1,0) -> 0 | AR41: =IF(SUM($F42:AR$42)=1,1,0) -> 0 | AS41: =IF(SUM($F42:AS$42)=1,1,0) -> 0 | AT41: =IF(SUM($F42:AT$42)=1,1,0) -> 0 | AU41: =IF(SUM($F42:AU$42)=1,1,0) -> 0 | AV41: =IF(SUM($F42:AV$42)=1,1,0) -> 0 | AW41: =IF(SUM($F42:AW$42)=1,1,0) -> 0 | AX41: =IF(SUM($F42:AX$42)=1,1,0) -> 0 | AY41: =IF(SUM($F42:AY$42)=1,1,0) -> 0 | AZ41: =IF(SUM($F42:AZ$42)=1,1,0) -> 0 | BA41: =IF(SUM($F42:BA$42)=1,1,0) -> 0 | BB41: =IF(SUM($F42:BB$42)=1,1,0) -> 0 | BC41: =IF(SUM($F42:BC$42)=1,1,0) -> 0 | BD41: =IF(SUM($F42:BD$42)=1,1,0) -> 0 | BE41: =IF(SUM($F42:BE$42)=1,1,0) -> 0 | BF41: =IF(SUM($F42:BF$42)=1,1,0) -> 0 | BG41: =IF(SUM($F42:BG$42)=1,1,0) -> 0 | BH41: =IF(SUM($F42:BH$42)=1,1,0) -> 0 | BI41: =IF(SUM($F42:BI$42)=1,1,0) -> 0 | BJ41: =IF(SUM($F42:BJ$42)=1,1,0) -> 0 | BK41: =IF(SUM($F42:BK$42)=1,1,0) -> 0 | BL41: =IF(SUM($F42:BL$42)=1,1,0) -> 0 | BM41: =IF(SUM($F42:BM$42)=1,1,0) -> 0 | BN41: =IF(SUM($F42:BN$42)=1,1,0) -> 0 | BO41: =IF(SUM($F42:BO$42)=1,1,0) -> 0 | BP41: =IF(SUM($F42:BP$42)=1,1,0) -> 0 | BQ41: =IF(SUM($F42:BQ$42)=1,1,0) -> 0 | BR41: =IF(SUM($F42:BR$42)=1,1,0) -> 0 | BS41: =IF(SUM($F42:BS$42)=1,1,0) -> 0 | BT41: =IF(SUM($F42:BT$42)=1,1,0) -> 0 | BU41: =IF(SUM($F42:BU$42)=1,1,0) -> 0 | BV41: =IF(SUM($F42:BV$42)=1,1,0) -> 0 | BW41: =IF(SUM($F42:BW$42)=1,1,0) -> 0 | BX41: =IF(SUM($F42:BX$42)=1,1,0) -> 0 | BY41: =IF(SUM($F42:BY$42)=1,1,0) -> 0 | BZ41: =IF(SUM($F42:BZ$42)=1,1,0) -> 0 | CA41: =IF(SUM($F42:CA$42)=1,1,0) -> 0 | CB41: =IF(SUM($F42:CB$42)=1,1,0) -> 0 | CC41: =IF(SUM($F42:CC$42)=1,1,0) -> 0 | CD41: =IF(SUM($F42:CD$42)=1,1,0) -> 0 | CE41: =IF(SUM($F42:CE$42)=1,1,0) -> 0 | CF41: =IF(SUM($F42:CF$42)=1,1,0) -> 0 | CG41: =IF(SUM($F42:CG$42)=1,1,0) -> 0 | CH41: =IF(SUM($F42:CH$42)=1,1,0) -> 0 | CI41: =IF(SUM($F42:CI$42)=1,1,0) -> 0 | CJ41: =IF(SUM($F42:CJ$42)=1,1,0) -> 0 | CK41: =IF(SUM($F42:CK$42)=1,1,0) -> 0 | CL41: =IF(SUM($F42:CL$42)=1,1,0) -> 0 | CM41: =IF(SUM($F42:CM$42)=1,1,0) -> 0 | CN41: =IF(SUM($F42:CN$42)=1,1,0) -> 0 | CO41: =IF(SUM($F42:CO$42)=1,1,0) -> 0 | CP41: =IF(SUM($F42:CP$42)=1,1,0) -> 0 | CQ41: =IF(SUM($F42:CQ$42)=1,1,0) -> 0 | CR41: =IF(SUM($F42:CR$42)=1,1,0) -> 0
A42: Term post refinancing flag | F42: =IF($C$20=0,0,IF(F$29>=$C20,1,0)*F36) -> 0 | G42: 0 | H42: 0 | I42: 0 | J42: 0 | K42: 0 | L42: 0 | M42: 0 | N42: 0 | O42: 1 | P42: 1 | Q42: 1 | R42: 1 | S42: 1 | T42: 1 | U42: 1 | V42: 1 | W42: 1 | X42: 1 | Y42: 1 | Z42: 1 | AA42: 1 | AB42: 1 | AC42: 1 | AD42: 1 | AE42: 1 | AF42: 1 | AG42: 1 | AH42: 1 | AI42: 1 | AJ42: 1 | AK42: 1 | AL42: 1 | AM42: 1 | AN42: 1 | AO42: 1 | AP42: 1 | AQ42: 1 | AR42: 1 | AS42: 1 | AT42: 1 | AU42: 1 | AV42: 1 | AW42: 1 | AX42: 1 | AY42: 1 | AZ42: 1 | BA42: 1 | BB42: 1 | BC42: 1 | BD42: 1 | BE42: 1 | BF42: 1 | BG42: 1 | BH42: 1 | BI42: 1 | BJ42: 1 | BK42: 1 | BL42: 1 | BM42: 1 | BN42: 1 | BO42: 1 | BP42: 1 | BQ42: 1 | BR42: =IF($C$20=0,0,IF(BR$29>=$C20,1,0)*BR36) -> 1 | BS42: 1 | BT42: 1 | BU42: 1 | BV42: 1 | BW42: 1 | BX42: 0 | BY42: 0 | BZ42: 0 | CA42: 0 | CB42: 0 | CC42: 0 | CD42: 0 | CE42: 0 | CF42: 0 | CG42: 0 | CH42: 0 | CI42: 0 | CJ42: 0 | CK42: 0 | CL42: 0 | CM42: 0 | CN42: 0 | CO42: 0 | CP42: 0 | CQ42: 0 | CR42: =IF($C$20=0,0,IF(CR$29>=$C20,1,0)*CR36) -> 0
A43: Asset revaluation flag | C43: =IF(AND(SUM(F43:CR43)>0,SUM('Asset Inputs'!F22:CR22)=0),"Revaluation inputs needed!!","OK") -> OK | F43: =IF('Asset Inputs'!F22=0,0,1) -> 0 | G43: =IF('Asset Inputs'!G22=0,0,1) -> 0 | H43: =IF('Asset Inputs'!H22=0,0,1) -> 0 | I43: =IF('Asset Inputs'!I22=0,0,1) -> 0 | J43: =IF('Asset Inputs'!J22=0,0,1) -> 0 | K43: =IF('Asset Inputs'!K22=0,0,1) -> 0 | L43: =IF('Asset Inputs'!L22=0,0,1) -> 0 | M43: =IF('Asset Inputs'!M22=0,0,1) -> 0 | N43: =IF('Asset Inputs'!N22=0,0,1) -> 0 | O43: =IF('Asset Inputs'!O22=0,0,1) -> 1 | P43: =IF('Asset Inputs'!P22=0,0,1) -> 0 | Q43: =IF('Asset Inputs'!Q22=0,0,1) -> 0 | R43: =IF('Asset Inputs'!R22=0,0,1) -> 1 | S43: =IF('Asset Inputs'!S22=0,0,1) -> 0 | T43: =IF('Asset Inputs'!T22=0,0,1) -> 0 | U43: =IF('Asset Inputs'!U22=0,0,1) -> 0 | V43: =IF('Asset Inputs'!V22=0,0,1) -> 0 | W43: =IF('Asset Inputs'!W22=0,0,1) -> 0 | X43: =IF('Asset Inputs'!X22=0,0,1) -> 0 | Y43: =IF('Asset Inputs'!Y22=0,0,1) -> 0 | Z43: =IF('Asset Inputs'!Z22=0,0,1) -> 0 | AA43: =IF('Asset Inputs'!AA22=0,0,1) -> 0 | AB43: =IF('Asset Inputs'!AB22=0,0,1) -> 0 | AC43: =IF('Asset Inputs'!AC22=0,0,1) -> 0 | AD43: =IF('Asset Inputs'!AD22=0,0,1) -> 0 | AE43: =IF('Asset Inputs'!AE22=0,0,1) -> 0 | AF43: =IF('Asset Inputs'!AF22=0,0,1) -> 0 | AG43: =IF('Asset Inputs'!AG22=0,0,1) -> 0 | AH43: =IF('Asset Inputs'!AH22=0,0,1) -> 0 | AI43: =IF('Asset Inputs'!AI22=0,0,1) -> 0 | AJ43: =IF('Asset Inputs'!AJ22=0,0,1) -> 0 | AK43: =IF('Asset Inputs'!AK22=0,0,1) -> 0 | AL43: =IF('Asset Inputs'!AL22=0,0,1) -> 0 | AM43: =IF('Asset Inputs'!AM22=0,0,1) -> 0 | AN43: =IF('Asset Inputs'!AN22=0,0,1) -> 0 | AO43: =IF('Asset Inputs'!AO22=0,0,1) -> 0 | AP43: =IF('Asset Inputs'!AP22=0,0,1) -> 0 | AQ43: =IF('Asset Inputs'!AQ22=0,0,1) -> 0 | AR43: =IF('Asset Inputs'!AR22=0,0,1) -> 0 | AS43: =IF('Asset Inputs'!AS22=0,0,1) -> 0 | AT43: =IF('Asset Inputs'!AT22=0,0,1) -> 0 | AU43: =IF('Asset Inputs'!AU22=0,0,1) -> 0 | AV43: =IF('Asset Inputs'!AV22=0,0,1) -> 0 | AW43: =IF('Asset Inputs'!AW22=0,0,1) -> 0 | AX43: =IF('Asset Inputs'!AX22=0,0,1) -> 0 | AY43: =IF('Asset Inputs'!AY22=0,0,1) -> 0 | AZ43: =IF('Asset Inputs'!AZ22=0,0,1) -> 0 | BA43: =IF('Asset Inputs'!BA22=0,0,1) -> 0 | BB43: =IF('Asset Inputs'!BB22=0,0,1) -> 0 | BC43: =IF('Asset Inputs'!BC22=0,0,1) -> 0 | BD43: =IF('Asset Inputs'!BD22=0,0,1) -> 0 | BE43: =IF('Asset Inputs'!BE22=0,0,1) -> 0 | BF43: =IF('Asset Inputs'!BF22=0,0,1) -> 0 | BG43: =IF('Asset Inputs'!BG22=0,0,1) -> 0 | BH43: =IF('Asset Inputs'!BH22=0,0,1) -> 0 | BI43: =IF('Asset Inputs'!BI22=0,0,1) -> 0 | BJ43: =IF('Asset Inputs'!BJ22=0,0,1) -> 0 | BK43: =IF('Asset Inputs'!BK22=0,0,1) -> 0 | BL43: =IF('Asset Inputs'!BL22=0,0,1) -> 0 | BM43: =IF('Asset Inputs'!BM22=0,0,1) -> 0 | BN43: =IF('Asset Inputs'!BN22=0,0,1) -> 0 | BO43: =IF('Asset Inputs'!BO22=0,0,1) -> 0 | BP43: =IF('Asset Inputs'!BP22=0,0,1) -> 0 | BQ43: =IF('Asset Inputs'!BQ22=0,0,1) -> 0 | BR43: =IF('Asset Inputs'!BR22=0,0,1) -> 0 | BS43: =IF('Asset Inputs'!BS22=0,0,1) -> 0 | BT43: =IF('Asset Inputs'!BT22=0,0,1) -> 0 | BU43: =IF('Asset Inputs'!BU22=0,0,1) -> 0 | BV43: =IF('Asset Inputs'!BV22=0,0,1) -> 0 | BW43: =IF('Asset Inputs'!BW22=0,0,1) -> 0 | BX43: =IF('Asset Inputs'!BX22=0,0,1) -> 0 | BY43: =IF('Asset Inputs'!BY22=0,0,1) -> 0 | BZ43: =IF('Asset Inputs'!BZ22=0,0,1) -> 0 | CA43: =IF('Asset Inputs'!CA22=0,0,1) -> 0 | CB43: =IF('Asset Inputs'!CB22=0,0,1) -> 0 | CC43: =IF('Asset Inputs'!CC22=0,0,1) -> 0 | CD43: =IF('Asset Inputs'!CD22=0,0,1) -> 0 | CE43: =IF('Asset Inputs'!CE22=0,0,1) -> 0 | CF43: =IF('Asset Inputs'!CF22=0,0,1) -> 0 | CG43: =IF('Asset Inputs'!CG22=0,0,1) -> 0 | CH43: =IF('Asset Inputs'!CH22=0,0,1) -> 0 | CI43: =IF('Asset Inputs'!CI22=0,0,1) -> 0 | CJ43: =IF('Asset Inputs'!CJ22=0,0,1) -> 0 | CK43: =IF('Asset Inputs'!CK22=0,0,1) -> 0 | CL43: =IF('Asset Inputs'!CL22=0,0,1) -> 0 | CM43: =IF('Asset Inputs'!CM22=0,0,1) -> 0 | CN43: =IF('Asset Inputs'!CN22=0,0,1) -> 0 | CO43: =IF('Asset Inputs'!CO22=0,0,1) -> 0 | CP43: =IF('Asset Inputs'!CP22=0,0,1) -> 0 | CQ43: =IF('Asset Inputs'!CQ22=0,0,1) -> 0 | CR43: =IF('Asset Inputs'!CR22=0,0,1) -> 0
A44: Part year factors | F44: =(YEARFRAC(F29,$C$13)*F34*2+(1-YEARFRAC(F29,$C$14))*F35) -> 0 | G44: 0 | H44: 0 | I44: 0 | J44: 0 | K44: 0 | L44: 0.8277777778 | M44: 0 | N44: 0 | O44: 0 | P44: 0 | Q44: 0 | R44: 0 | S44: 0 | T44: 0 | U44: 0 | V44: 0 | W44: 0 | X44: 0 | Y44: 0 | Z44: 0 | AA44: 0 | AB44: 0 | AC44: 0 | AD44: 0 | AE44: 0 | AF44: 0 | AG44: 0 | AH44: 0 | AI44: 0 | AJ44: 0 | AK44: 0 | AL44: =(YEARFRAC(AL29,$C$13)*AL34*2+(1-YEARFRAC(AL29,$C$14))*AL35) -> 0 | AM44: 0 | AN44: 0 | AO44: 0 | AP44: 0 | AQ44: 0 | AR44: 0 | AS44: 0 | AT44: 0 | AU44: 0 | AV44: 0 | AW44: 0 | AX44: 0 | AY44: 0 | AZ44: 0 | BA44: 0 | BB44: 0 | BC44: 0 | BD44: 0 | BE44: 0 | BF44: 0 | BG44: 0 | BH44: 0 | BI44: 0 | BJ44: 0 | BK44: 0 | BL44: 0 | BM44: 0 | BN44: 0 | BO44: 0 | BP44: 0 | BQ44: 0 | BR44: =(YEARFRAC(BR29,$C$13)*BR34*2+(1-YEARFRAC(BR29,$C$14))*BR35) -> 0 | BS44: 0 | BT44: 0 | BU44: 0 | BV44: 0 | BW44: 1 | BX44: 0 | BY44: 0 | BZ44: 0 | CA44: 0 | CB44: 0 | CC44: 0 | CD44: 0 | CE44: 0 | CF44: 0 | CG44: 0 | CH44: 0 | CI44: 0 | CJ44: 0 | CK44: 0 | CL44: 0 | CM44: 0 | CN44: 0 | CO44: 0 | CP44: 0 | CQ44: 0 | CR44: 0
A46: Indexation assumptions and calculations
A48: Actual RPI index in period - scenario 1 | F48: 0 | G48: 0 | H48: 0 | I48: 0 | J48: 0 | K48: 0 | L48: 0 | M48: 0 | N48: 0 | O48: 0.03 | P48: 0 | Q48: 0.03 | R48: 0 | S48: 0.03 | T48: 0 | U48: 0 | V48: 0 | W48: 0 | X48: 0 | Y48: 0 | Z48: 0 | AA48: 0 | AB48: 0 | AC48: 0 | AD48: 0 | AE48: 0 | AF48: 0 | AG48: 0 | AH48: 0 | AI48: 0 | AJ48: 0 | AK48: 0 | AL48: 0 | AM48: 0 | AN48: 0 | AO48: 0 | AP48: 0 | AQ48: 0 | AR48: 0 | AS48: 0 | AT48: 0 | AU48: 0 | AV48: 0 | AW48: 0 | AX48: 0 | AY48: 0 | AZ48: 0 | BA48: 0 | BB48: 0 | BC48: 0 | BD48: 0 | BE48: 0 | BF48: 0 | BG48: 0 | BH48: 0 | BI48: 0 | BJ48: 0 | BK48: 0 | BL48: 0 | BM48: 0 | BN48: 0 | BO48: 0 | BP48: 0 | BQ48: 0 | BR48: 0 | BS48: 0 | BT48: 0 | BU48: 0 | BV48: 0 | BW48: 0 | BX48: 0 | BY48: 0 | BZ48: 0 | CA48: 0 | CB48: 0 | CC48: 0 | CD48: 0 | CE48: 0 | CF48: 0 | CG48: 0 | CH48: 0 | CI48: 0 | CJ48: 0 | CK48: 0 | CL48: 0 | CM48: 0 | CN48: 0 | CO48: 0 | CP48: 0 | CQ48: 0 | CR48: 0
A49: Actual RPI index in period - scenario 2 | F49: 0 | G49: 0 | H49: 0 | I49: 0 | J49: 0 | K49: 0 | L49: 0 | M49: 0 | N49: 0 | O49: 0 | P49: 0 | Q49: 0 | R49: 0 | S49: 0 | T49: 0 | U49: 0 | V49: 0 | W49: 0 | X49: 0 | Y49: 0 | Z49: 0 | AA49: 0 | AB49: 0 | AC49: 0 | AD49: 0 | AE49: 0 | AF49: 0 | AG49: 0 | AH49: 0 | AI49: 0 | AJ49: 0 | AK49: 0 | AL49: 0 | AM49: 0 | AN49: 0 | AO49: 0 | AP49: 0 | AQ49: 0 | AR49: 0 | AS49: 0 | AT49: 0 | AU49: 0 | AV49: 0 | AW49: 0 | AX49: 0 | AY49: 0 | AZ49: 0 | BA49: 0 | BB49: 0 | BC49: 0 | BD49: 0 | BE49: 0 | BF49: 0 | BG49: 0 | BH49: 0 | BI49: 0 | BJ49: 0 | BK49: 0 | BL49: 0 | BM49: 0 | BN49: 0 | BO49: 0 | BP49: 0 | BQ49: 0 | BR49: 0 | BS49: 0 | BT49: 0 | BU49: 0 | BV49: 0 | BW49: 0 | BX49: 0 | BY49: 0 | BZ49: 0 | CA49: 0 | CB49: 0 | CC49: 0 | CD49: 0 | CE49: 0 | CF49: 0 | CG49: 0 | CH49: 0 | CI49: 0 | CJ49: 0 | CK49: 0 | CL49: 0 | CM49: 0 | CN49: 0 | CO49: 0 | CP49: 0 | CQ49: 0 | CR49: 0
A50: Actual RPI index in period - scenario 3 | F50: 0 | G50: 0 | H50: 0 | I50: 0 | J50: 0 | K50: 0 | L50: 0 | M50: 0 | N50: 0 | O50: 0 | P50: 0 | Q50: 0 | R50: 0 | S50: 0 | T50: 0 | U50: 0 | V50: 0 | W50: 0 | X50: 0 | Y50: 0 | Z50: 0 | AA50: 0 | AB50: 0 | AC50: 0 | AD50: 0 | AE50: 0 | AF50: 0 | AG50: 0 | AH50: 0 | AI50: 0 | AJ50: 0 | AK50: 0 | AL50: 0 | AM50: 0 | AN50: 0 | AO50: 0 | AP50: 0 | AQ50: 0 | AR50: 0 | AS50: 0 | AT50: 0 | AU50: 0 | AV50: 0 | AW50: 0 | AX50: 0 | AY50: 0 | AZ50: 0 | BA50: 0 | BB50: 0 | BC50: 0 | BD50: 0 | BE50: 0 | BF50: 0 | BG50: 0 | BH50: 0 | BI50: 0 | BJ50: 0 | BK50: 0 | BL50: 0 | BM50: 0 | BN50: 0 | BO50: 0 | BP50: 0 | BQ50: 0 | BR50: 0 | BS50: 0 | BT50: 0 | BU50: 0 | BV50: 0 | BW50: 0 | BX50: 0 | BY50: 0 | BZ50: 0 | CA50: 0 | CB50: 0 | CC50: 0 | CD50: 0 | CE50: 0 | CF50: 0 | CG50: 0 | CH50: 0 | CI50: 0 | CJ50: 0 | CK50: 0 | CL50: 0 | CM50: 0 | CN50: 0 | CO50: 0 | CP50: 0 | CQ50: 0 | CR50: 0
A51: Actual RPI index in period - scenario 4 | F51: 0 | G51: 0 | H51: 0 | I51: 0 | J51: 0 | K51: 0 | L51: 0 | M51: 0 | N51: 0 | O51: 0 | P51: 0 | Q51: 0 | R51: 0 | S51: 0 | T51: 0 | U51: 0 | V51: 0 | W51: 0 | X51: 0 | Y51: 0 | Z51: 0 | AA51: 0 | AB51: 0 | AC51: 0 | AD51: 0 | AE51: 0 | AF51: 0 | AG51: 0 | AH51: 0 | AI51: 0 | AJ51: 0 | AK51: 0 | AL51: 0 | AM51: 0 | AN51: 0 | AO51: 0 | AP51: 0 | AQ51: 0 | AR51: 0 | AS51: 0 | AT51: 0 | AU51: 0 | AV51: 0 | AW51: 0 | AX51: 0 | AY51: 0 | AZ51: 0 | BA51: 0 | BB51: 0 | BC51: 0 | BD51: 0 | BE51: 0 | BF51: 0 | BG51: 0 | BH51: 0 | BI51: 0 | BJ51: 0 | BK51: 0 | BL51: 0 | BM51: 0 | BN51: 0 | BO51: 0 | BP51: 0 | BQ51: 0 | BR51: 0 | BS51: 0 | BT51: 0 | BU51: 0 | BV51: 0 | BW51: 0 | BX51: 0 | BY51: 0 | BZ51: 0 | CA51: 0 | CB51: 0 | CC51: 0 | CD51: 0 | CE51: 0 | CF51: 0 | CG51: 0 | CH51: 0 | CI51: 0 | CJ51: 0 | CK51: 0 | CL51: 0 | CM51: 0 | CN51: 0 | CO51: 0 | CP51: 0 | CQ51: 0 | CR51: 0
A52: Actual RPI index in period - scenario 5 | F52: 0 | G52: 0 | H52: 0 | I52: 0 | J52: 0 | K52: 0 | L52: 0 | M52: 0 | N52: 0 | O52: 0 | P52: 0 | Q52: 0 | R52: 0 | S52: 0 | T52: 0 | U52: 0 | V52: 0 | W52: 0 | X52: 0 | Y52: 0 | Z52: 0 | AA52: 0 | AB52: 0 | AC52: 0 | AD52: 0 | AE52: 0 | AF52: 0 | AG52: 0 | AH52: 0 | AI52: 0 | AJ52: 0 | AK52: 0 | AL52: 0 | AM52: 0 | AN52: 0 | AO52: 0 | AP52: 0 | AQ52: 0 | AR52: 0 | AS52: 0 | AT52: 0 | AU52: 0 | AV52: 0 | AW52: 0 | AX52: 0 | AY52: 0 | AZ52: 0 | BA52: 0 | BB52: 0 | BC52: 0 | BD52: 0 | BE52: 0 | BF52: 0 | BG52: 0 | BH52: 0 | BI52: 0 | BJ52: 0 | BK52: 0 | BL52: 0 | BM52: 0 | BN52: 0 | BO52: 0 | BP52: 0 | BQ52: 0 | BR52: 0 | BS52: 0 | BT52: 0 | BU52: 0 | BV52: 0 | BW52: 0 | BX52: 0 | BY52: 0 | BZ52: 0 | CA52: 0 | CB52: 0 | CC52: 0 | CD52: 0 | CE52: 0 | CF52: 0 | CG52: 0 | CH52: 0 | CI52: 0 | CJ52: 0 | CK52: 0 | CL52: 0 | CM52: 0 | CN52: 0 | CO52: 0 | CP52: 0 | CQ52: 0 | CR52: 0
A54: Actual RPI index in period | F54: =CHOOSE($B$4,F48,F49,F50,F51,F52) -> 0 | G54: 0 | H54: 0 | I54: 0 | J54: 0 | K54: 0 | L54: 0 | M54: 0 | N54: 0 | O54: 0.03 | P54: 0 | Q54: 0.03 | R54: 0 | S54: 0.03 | T54: 0 | U54: 0 | V54: 0 | W54: 0 | X54: 0 | Y54: 0 | Z54: 0 | AA54: 0 | AB54: 0 | AC54: 0 | AD54: 0 | AE54: 0 | AF54: 0 | AG54: 0 | AH54: 0 | AI54: 0 | AJ54: 0 | AK54: 0 | AL54: =CHOOSE($B$4,AL48,AL49,AL50,AL51,AL52) -> 0 | AM54: 0 | AN54: 0 | AO54: 0 | AP54: 0 | AQ54: 0 | AR54: 0 | AS54: 0 | AT54: 0 | AU54: 0 | AV54: 0 | AW54: 0 | AX54: 0 | AY54: 0 | AZ54: 0 | BA54: 0 | BB54: 0 | BC54: 0 | BD54: 0 | BE54: 0 | BF54: 0 | BG54: 0 | BH54: 0 | BI54: 0 | BJ54: 0 | BK54: 0 | BL54: 0 | BM54: 0 | BN54: 0 | BO54: 0 | BP54: 0 | BQ54: 0 | BR54: =CHOOSE($B$4,BR48,BR49,BR50,BR51,BR52) -> 0 | BS54: 0 | BT54: 0 | BU54: 0 | BV54: 0 | BW54: 0 | BX54: 0 | BY54: 0 | BZ54: 0 | CA54: 0 | CB54: 0 | CC54: 0 | CD54: 0 | CE54: 0 | CF54: 0 | CG54: 0 | CH54: 0 | CI54: 0 | CJ54: 0 | CK54: 0 | CL54: 0 | CM54: 0 | CN54: 0 | CO54: 0 | CP54: 0 | CQ54: 0 | CR54: 0
A55: Cumulative model RPI index - semi annual unitary charge inflation | E55: =(1+$C$23)^YEARFRAC(F28,$C$9) -> 1 | F55: =E55*(1+$C$24) -> 1.012422837 | G55: =F55*(1+$C$24) -> 1.025 | H55: 1.037733407 | I55: 1.050625 | J55: 1.063676743 | K55: 1.076890625 | L55: 1.090268661 | M55: 1.103812891 | N55: 1.117525378 | O55: 1.131408213 | P55: 1.145463512 | Q55: 1.159693418 | R55: 1.1741001 | S55: 1.188685754 | T55: 1.203452603 | U55: 1.218402898 | V55: 1.233538918 | W55: 1.24886297 | X55: 1.264377391 | Y55: 1.280084544 | Z55: 1.295986825 | AA55: 1.312086658 | AB55: 1.328386496 | AC55: 1.344888824 | AD55: 1.361596158 | AE55: 1.378511045 | AF55: 1.395636062 | AG55: 1.412973821 | AH55: 1.430526964 | AI55: 1.448298166 | AJ55: 1.466290138 | AK55: 1.484505621 | AL55: =AK55*(1+$C$24) -> 1.502947391 | AM55: 1.521618261 | AN55: 1.540521076 | AO55: 1.559658718 | AP55: 1.579034103 | AQ55: 1.598650186 | AR55: 1.618509956 | AS55: 1.63861644 | AT55: 1.658972705 | AU55: 1.679581851 | AV55: 1.700447022 | AW55: 1.721571398 | AX55: 1.742958198 | AY55: 1.764610683 | AZ55: 1.786532153 | BA55: 1.80872595 | BB55: 1.831195456 | BC55: 1.853944098 | BD55: 1.876975343 | BE55: 1.900292701 | BF55: 1.923899726 | BG55: 1.947800018 | BH55: 1.97199722 | BI55: 1.996495019 | BJ55: 2.02129715 | BK55: 2.046407394 | BL55: 2.071829579 | BM55: 2.097567579 | BN55: 2.123625318 | BO55: 2.150006769 | BP55: 2.176715951 | BQ55: 2.203756938 | BR55: =BQ55*(1+$C$24) -> 2.23113385 | BS55: 2.258850861 | BT55: 2.286912196 | BU55: 2.315322133 | BV55: 2.344085001 | BW55: 2.373205186 | BX55: 2.402687126 | BY55: 2.432535316 | BZ55: 2.462754304 | CA55: 2.493348699 | CB55: 2.524323162 | CC55: 2.555682416 | CD55: 2.587431241 | CE55: 2.619574476 | CF55: 2.652117022 | CG55: 2.685063838 | CH55: 2.718419948 | CI55: 2.752190434 | CJ55: 2.786380446 | CK55: 2.820995195 | CL55: 2.856039957 | CM55: 2.891520075 | CN55: 2.927440956 | CO55: 2.963808077 | CP55: 3.00062698 | CQ55: 3.037903279 | CR55: 3.075642655
A56: Cumulative model RPI index - annual unitary charge inflation | E56: =E55 -> 1 | F56: =IF(MONTH(F29)=9,G56,E56) -> 1.025 | G56: =(1+C23)^YEARFRAC(G29,F28) -> 1.025 | H56: =IF(MONTH(H29)=9,G56*(1+$C$23),F56*(1+$C$23)) -> 1.050625 | I56: 1.050625 | J56: 1.076890625 | K56: 1.076890625 | L56: 1.103812891 | M56: 1.103812891 | N56: 1.131408213 | O56: 1.131408213 | P56: 1.159693418 | Q56: 1.159693418 | R56: 1.188685754 | S56: 1.188685754 | T56: 1.218402898 | U56: 1.218402898 | V56: 1.24886297 | W56: 1.24886297 | X56: 1.280084544 | Y56: 1.280084544 | Z56: 1.312086658 | AA56: 1.312086658 | AB56: 1.344888824 | AC56: 1.344888824 | AD56: 1.378511045 | AE56: 1.378511045 | AF56: 1.412973821 | AG56: 1.412973821 | AH56: 1.448298166 | AI56: 1.448298166 | AJ56: 1.484505621 | AK56: 1.484505621 | AL56: 1.521618261 | AM56: 1.521618261 | AN56: =IF(MONTH(AN29)=9,AM56*(1+$C$23),AL56*(1+$C$23)) -> 1.559658718 | AO56: 1.559658718 | AP56: 1.598650186 | AQ56: 1.598650186 | AR56: 1.63861644 | AS56: 1.63861644 | AT56: 1.679581851 | AU56: 1.679581851 | AV56: 1.721571398 | AW56: 1.721571398 | AX56: 1.764610683 | AY56: 1.764610683 | AZ56: 1.80872595 | BA56: 1.80872595 | BB56: 1.853944098 | BC56: 1.853944098 | BD56: 1.900292701 | BE56: 1.900292701 | BF56: 1.947800018 | BG56: 1.947800018 | BH56: 1.996495019 | BI56: 1.996495019 | BJ56: 2.046407394 | BK56: 2.046407394 | BL56: 2.097567579 | BM56: 2.097567579 | BN56: 2.150006769 | BO56: 2.150006769 | BP56: 2.203756938 | BQ56: 2.203756938 | BR56: 2.258850861 | BS56: 2.258850861 | BT56: =IF(MONTH(BT29)=9,BS56*(1+$C$23),BR56*(1+$C$23)) -> 2.315322133 | BU56: 2.315322133 | BV56: 2.373205186 | BW56: 2.373205186 | BX56: 2.432535316 | BY56: 2.432535316 | BZ56: 2.493348699 | CA56: 2.493348699 | CB56: 2.555682416 | CC56: 2.555682416 | CD56: 2.619574476 | CE56: 2.619574476 | CF56: 2.685063838 | CG56: 2.685063838 | CH56: 2.752190434 | CI56: 2.752190434 | CJ56: 2.820995195 | CK56: 2.820995195 | CL56: 2.891520075 | CM56: 2.891520075 | CN56: 2.963808077 | CO56: 2.963808077 | CP56: 3.037903279 | CQ56: 3.037903279 | CR56: 3.113850861
A57: Cumulative actual RPI index - semi annual unitary charge inflation | E57: =E55 -> 1 | F57: =IF(F54=0,E57*F55/E55,(E57)*(1+F54)) -> 1.012422837 | G57: =IF(G54=0,F57*G55/F55,(E57)*(1+G54)) -> 1.025 | H57: =IF(H54=0,G57*H55/G55,(F57)*(1+H54)) -> 1.037733407 | I57: 1.050625 | J57: 1.063676743 | K57: 1.076890625 | L57: 1.090268661 | M57: 1.103812891 | N57: 1.117525378 | O57: 1.136927277 | P57: 1.151051139 | Q57: 1.171035096 | R57: 1.185582673 | S57: 1.206166149 | T57: 1.221150153 | U57: 1.236320302 | V57: 1.251678907 | W57: 1.26722831 | X57: 1.28297088 | Y57: 1.298909018 | Z57: 1.315045152 | AA57: 1.331381743 | AB57: 1.347921281 | AC57: 1.364666287 | AD57: 1.381619313 | AE57: 1.398782944 | AF57: 1.416159796 | AG57: 1.433752517 | AH57: 1.451563791 | AI57: 1.46959633 | AJ57: 1.487852885 | AK57: 1.506336239 | AL57: 1.525049207 | AM57: =IF(AM54=0,AL57*AM55/AL55,(AK57)*(1+AM54)) -> 1.543994644 | AN57: 1.563175438 | AO57: 1.582594511 | AP57: 1.602254824 | AQ57: 1.622159373 | AR57: 1.642311194 | AS57: 1.662713358 | AT57: 1.683368974 | AU57: 1.704281192 | AV57: 1.725453198 | AW57: 1.746888221 | AX57: 1.768589528 | AY57: 1.790560427 | AZ57: 1.812804266 | BA57: 1.835324438 | BB57: 1.858124373 | BC57: 1.881207549 | BD57: 1.904577482 | BE57: 1.928237737 | BF57: 1.95219192 | BG57: 1.976443681 | BH57: 2.000996718 | BI57: 2.025854773 | BJ57: 2.051021635 | BK57: 2.076501142 | BL57: 2.102297176 | BM57: 2.128413671 | BN57: 2.154854606 | BO57: 2.181624012 | BP57: 2.208725971 | BQ57: 2.236164613 | BR57: 2.26394412 | BS57: =IF(BS54=0,BR57*BS55/BR55,(BQ57)*(1+BS54)) -> 2.292068728 | BT57: 2.320542723 | BU57: 2.349370446 | BV57: 2.378556291 | BW57: 2.408104707 | BX57: 2.438020199 | BY57: 2.468307325 | BZ57: 2.498970704 | CA57: 2.530015008 | CB57: 2.561444971 | CC57: 2.593265383 | CD57: 2.625481095 | CE57: 2.658097018 | CF57: 2.691118123 | CG57: 2.724549443 | CH57: 2.758396076 | CI57: 2.792663179 | CJ57: 2.827355978 | CK57: 2.862479759 | CL57: 2.898039877 | CM57: 2.934041753 | CN57: 2.970490874 | CO57: 3.007392797 | CP57: 3.044753146 | CQ57: 3.082577617 | CR57: 3.120871975
A58: Cumulative actual RPI index - annual unitary charge inflation | E58: =E56 -> 1 | F58: =IF((F54+G54)=0,E58*F56/E56,(D58)*(1+(F54+G54))) -> 1.025 | G58: 1.025 | H58: 1.050625 | I58: 1.050625 | J58: 1.076890625 | K58: 1.076890625 | L58: 1.103812891 | M58: 1.103812891 | N58: 1.136927277 | O58: 1.136927277 | P58: 1.171035096 | Q58: 1.171035096 | R58: 1.206166149 | S58: 1.206166149 | T58: 1.236320302 | U58: 1.236320302 | V58: 1.26722831 | W58: 1.26722831 | X58: 1.298909018 | Y58: 1.298909018 | Z58: 1.331381743 | AA58: 1.331381743 | AB58: 1.364666287 | AC58: 1.364666287 | AD58: 1.398782944 | AE58: 1.398782944 | AF58: 1.433752517 | AG58: 1.433752517 | AH58: 1.46959633 | AI58: 1.46959633 | AJ58: 1.506336239 | AK58: 1.506336239 | AL58: 1.543994644 | AM58: 1.543994644 | AN58: 1.582594511 | AO58: 1.582594511 | AP58: 1.622159373 | AQ58: 1.622159373 | AR58: 1.662713358 | AS58: 1.662713358 | AT58: 1.704281192 | AU58: 1.704281192 | AV58: 1.746888221 | AW58: 1.746888221 | AX58: 1.790560427 | AY58: 1.790560427 | AZ58: 1.835324438 | BA58: 1.835324438 | BB58: 1.881207549 | BC58: 1.881207549 | BD58: 1.928237737 | BE58: 1.928237737 | BF58: 1.976443681 | BG58: 1.976443681 | BH58: 2.025854773 | BI58: 2.025854773 | BJ58: 2.076501142 | BK58: 2.076501142 | BL58: 2.128413671 | BM58: 2.128413671 | BN58: 2.181624012 | BO58: 2.181624012 | BP58: 2.236164613 | BQ58: 2.236164613 | BR58: =IF((BR54+BS54)=0,BQ58*BR56/BQ56,(BP58)*(1+(BR54+BS54))) -> 2.292068728 | BS58: 2.292068728 | BT58: 2.349370446 | BU58: 2.349370446 | BV58: 2.408104707 | BW58: 2.408104707 | BX58: 2.468307325 | BY58: 2.468307325 | BZ58: 2.530015008 | CA58: 2.530015008 | CB58: 2.593265383 | CC58: 2.593265383 | CD58: 2.658097018 | CE58: 2.658097018 | CF58: 2.724549443 | CG58: 2.724549443 | CH58: 2.792663179 | CI58: 2.792663179 | CJ58: 2.862479759 | CK58: 2.862479759 | CL58: 2.934041753 | CM58: 2.934041753 | CN58: 3.007392797 | CO58: 3.007392797 | CP58: 3.082577617 | CQ58: 3.082577617 | CR58: =IF((CR54+CS54)=0,CQ58*CR56/CQ56,(CP58)*(1+(CR54+CS54))) -> 3.159642057
A59: Selected model unitary charge inflation factor | E59: =CHOOSE($C$22,E55,E56) -> 1 | F59: 1.025 | G59: 1.025 | H59: 1.050625 | I59: 1.050625 | J59: 1.076890625 | K59: 1.076890625 | L59: 1.103812891 | M59: 1.103812891 | N59: 1.131408213 | O59: 1.131408213 | P59: 1.159693418 | Q59: 1.159693418 | R59: 1.188685754 | S59: 1.188685754 | T59: 1.218402898 | U59: 1.218402898 | V59: 1.24886297 | W59: 1.24886297 | X59: 1.280084544 | Y59: 1.280084544 | Z59: 1.312086658 | AA59: 1.312086658 | AB59: 1.344888824 | AC59: 1.344888824 | AD59: 1.378511045 | AE59: 1.378511045 | AF59: 1.412973821 | AG59: 1.412973821 | AH59: 1.448298166 | AI59: 1.448298166 | AJ59: 1.484505621 | AK59: =CHOOSE($C$22,AK55,AK56) -> 1.484505621 | AL59: 1.521618261 | AM59: 1.521618261 | AN59: 1.559658718 | AO59: 1.559658718 | AP59: 1.598650186 | AQ59: 1.598650186 | AR59: 1.63861644 | AS59: 1.63861644 | AT59: 1.679581851 | AU59: 1.679581851 | AV59: 1.721571398 | AW59: 1.721571398 | AX59: 1.764610683 | AY59: 1.764610683 | AZ59: 1.80872595 | BA59: 1.80872595 | BB59: 1.853944098 | BC59: 1.853944098 | BD59: 1.900292701 | BE59: 1.900292701 | BF59: 1.947800018 | BG59: 1.947800018 | BH59: 1.996495019 | BI59: 1.996495019 | BJ59: 2.046407394 | BK59: 2.046407394 | BL59: 2.097567579 | BM59: 2.097567579 | BN59: 2.150006769 | BO59: 2.150006769 | BP59: 2.203756938 | BQ59: =CHOOSE($C$22,BQ55,BQ56) -> 2.203756938 | BR59: 2.258850861 | BS59: 2.258850861 | BT59: 2.315322133 | BU59: 2.315322133 | BV59: 2.373205186 | BW59: 2.373205186 | BX59: 2.432535316 | BY59: 2.432535316 | BZ59: 2.493348699 | CA59: 2.493348699 | CB59: 2.555682416 | CC59: 2.555682416 | CD59: 2.619574476 | CE59: 2.619574476 | CF59: 2.685063838 | CG59: 2.685063838 | CH59: 2.752190434 | CI59: 2.752190434 | CJ59: 2.820995195 | CK59: 2.820995195 | CL59: 2.891520075 | CM59: 2.891520075 | CN59: 2.963808077 | CO59: 2.963808077 | CP59: 3.037903279 | CQ59: 3.037903279 | CR59: 3.113850861
A60: Selected actual unitary charge inflation factor | E60: =CHOOSE($C$22,E57,E58) -> 1 | F60: =CHOOSE($C$22,F57,F58) -> 1.025 | G60: 1.025 | H60: 1.050625 | I60: 1.050625 | J60: 1.076890625 | K60: 1.076890625 | L60: 1.103812891 | M60: 1.103812891 | N60: 1.136927277 | O60: 1.136927277 | P60: 1.171035096 | Q60: 1.171035096 | R60: 1.206166149 | S60: 1.206166149 | T60: 1.236320302 | U60: 1.236320302 | V60: 1.26722831 | W60: 1.26722831 | X60: 1.298909018 | Y60: 1.298909018 | Z60: 1.331381743 | AA60: 1.331381743 | AB60: 1.364666287 | AC60: 1.364666287 | AD60: 1.398782944 | AE60: 1.398782944 | AF60: 1.433752517 | AG60: 1.433752517 | AH60: 1.46959633 | AI60: 1.46959633 | AJ60: 1.506336239 | AK60: =CHOOSE($C$22,AK57,AK58) -> 1.506336239 | AL60: 1.543994644 | AM60: 1.543994644 | AN60: 1.582594511 | AO60: 1.582594511 | AP60: 1.622159373 | AQ60: 1.622159373 | AR60: 1.662713358 | AS60: 1.662713358 | AT60: 1.704281192 | AU60: 1.704281192 | AV60: 1.746888221 | AW60: 1.746888221 | AX60: 1.790560427 | AY60: 1.790560427 | AZ60: 1.835324438 | BA60: 1.835324438 | BB60: 1.881207549 | BC60: 1.881207549 | BD60: 1.928237737 | BE60: 1.928237737 | BF60: 1.976443681 | BG60: 1.976443681 | BH60: 2.025854773 | BI60: 2.025854773 | BJ60: 2.076501142 | BK60: 2.076501142 | BL60: 2.128413671 | BM60: 2.128413671 | BN60: 2.181624012 | BO60: 2.181624012 | BP60: 2.236164613 | BQ60: =CHOOSE($C$22,BQ57,BQ58) -> 2.236164613 | BR60: 2.292068728 | BS60: 2.292068728 | BT60: 2.349370446 | BU60: 2.349370446 | BV60: 2.408104707 | BW60: 2.408104707 | BX60: 2.468307325 | BY60: 2.468307325 | BZ60: 2.530015008 | CA60: 2.530015008 | CB60: 2.593265383 | CC60: 2.593265383 | CD60: 2.658097018 | CE60: 2.658097018 | CF60: 2.724549443 | CG60: 2.724549443 | CH60: 2.792663179 | CI60: 2.792663179 | CJ60: 2.862479759 | CK60: 2.862479759 | CL60: 2.934041753 | CM60: 2.934041753 | CN60: 3.007392797 | CO60: 3.007392797 | CP60: 3.082577617 | CQ60: 3.082577617 | CR60: 3.159642057
A62: Cost Inputs from Operator model
A64: Real unitary payment before refinancing | B64: Period start | F64: =F28*F33 -> 00:00:00 | G64: =G28*G33 -> 00:00:00 | H64: 00:00:00 | I64: 00:00:00 | J64: 00:00:00 | K64: 00:00:00 | L64: 2010-04-01 | M64: 2010-10-01 | N64: 2011-04-01 | O64: 2011-10-01 | P64: 2012-04-01 | Q64: 2012-10-01 | R64: 2013-04-01 | S64: 2013-10-01 | T64: 2014-04-01 | U64: 2014-10-01 | V64: 2015-04-01 | W64: 2015-10-01 | X64: 2016-04-01 | Y64: 2016-10-01 | Z64: 2017-04-01 | AA64: 2017-10-01 | AB64: 2018-04-01 | AC64: 2018-10-01 | AD64: 2019-04-01 | AE64: 2019-10-01 | AF64: 2020-04-01 | AG64: 2020-10-01 | AH64: 2021-04-01 | AI64: 2021-10-01 | AJ64: 2022-04-01 | AK64: 2022-10-01 | AL64: 2023-04-01 | AM64: 2023-10-01 | AN64: 2024-04-01 | AO64: 2024-10-01 | AP64: 2025-04-01 | AQ64: 2025-10-01 | AR64: 2026-04-01 | AS64: 2026-10-01 | AT64: 2027-04-01 | AU64: 2027-10-01 | AV64: 2028-04-01 | AW64: 2028-10-01 | AX64: 2029-04-01 | AY64: 2029-10-01 | AZ64: 2030-04-01 | BA64: 2030-10-01 | BB64: 2031-04-01 | BC64: 2031-10-01 | BD64: 2032-04-01 | BE64: 2032-10-01 | BF64: 2033-04-01 | BG64: 2033-10-01 | BH64: 2034-04-01 | BI64: 2034-10-01 | BJ64: 2035-04-01 | BK64: 2035-10-01 | BL64: 2036-04-01 | BM64: 2036-10-01 | BN64: 2037-04-01 | BO64: 2037-10-01 | BP64: 2038-04-01 | BQ64: 2038-10-01 | BR64: 2039-04-01 | BS64: =BS28*BS33 -> 2039-10-01 | BT64: 2040-04-01 | BU64: 2040-10-01 | BV64: 2041-04-01 | BW64: 2041-10-01 | BX64: 00:00:00 | BY64: 00:00:00 | BZ64: 00:00:00 | CA64: 00:00:00 | CB64: 00:00:00 | CC64: 00:00:00 | CD64: 00:00:00 | CE64: 00:00:00 | CF64: 00:00:00 | CG64: 00:00:00 | CH64: 00:00:00 | CI64: 00:00:00 | CJ64: 00:00:00 | CK64: 00:00:00 | CL64: 00:00:00 | CM64: 00:00:00 | CN64: 00:00:00 | CO64: 00:00:00 | CP64: 00:00:00 | CQ64: 00:00:00 | CR64: 00:00:00
B65: Period end | F65: =F29*F33 -> 00:00:00 | G65: 00:00:00 | H65: 00:00:00 | I65: 00:00:00 | J65: 00:00:00 | K65: 00:00:00 | L65: 2010-09-30 | M65: 2011-03-31 | N65: 2011-09-30 | O65: 2012-03-31 | P65: 2012-09-30 | Q65: 2013-03-31 | R65: 2013-09-30 | S65: 2014-03-31 | T65: 2014-09-30 | U65: 2015-03-31 | V65: 2015-09-30 | W65: 2016-03-31 | X65: 2016-09-30 | Y65: 2017-03-31 | Z65: 2017-09-30 | AA65: 2018-03-31 | AB65: 2018-09-30 | AC65: 2019-03-31 | AD65: 2019-09-30 | AE65: 2020-03-31 | AF65: 2020-09-30 | AG65: 2021-03-31 | AH65: 2021-09-30 | AI65: 2022-03-31 | AJ65: 2022-09-30 | AK65: 2023-03-31 | AL65: =AL29*AL33 -> 2023-09-30 | AM65: 2024-03-31 | AN65: 2024-09-30 | AO65: 2025-03-31 | AP65: 2025-09-30 | AQ65: 2026-03-31 | AR65: 2026-09-30 | AS65: 2027-03-31 | AT65: 2027-09-30 | AU65: 2028-03-31 | AV65: 2028-09-30 | AW65: 2029-03-31 | AX65: 2029-09-30 | AY65: 2030-03-31 | AZ65: 2030-09-30 | BA65: 2031-03-31 | BB65: 2031-09-30 | BC65: 2032-03-31 | BD65: 2032-09-30 | BE65: 2033-03-31 | BF65: 2033-09-30 | BG65: 2034-03-31 | BH65: 2034-09-30 | BI65: 2035-03-31 | BJ65: 2035-09-30 | BK65: 2036-03-31 | BL65: 2036-09-30 | BM65: 2037-03-31 | BN65: 2037-09-30 | BO65: 2038-03-31 | BP65: 2038-09-30 | BQ65: 2039-03-31 | BR65: =BR29*BR33 -> 2039-09-30 | BS65: 2040-03-31 | BT65: 2040-09-30 | BU65: 2041-03-31 | BV65: 2041-09-30 | BW65: 2042-03-31 | BX65: 00:00:00 | BY65: 00:00:00 | BZ65: 00:00:00 | CA65: 00:00:00 | CB65: 00:00:00 | CC65: 00:00:00 | CD65: 00:00:00 | CE65: 00:00:00 | CF65: 00:00:00 | CG65: 00:00:00 | CH65: 00:00:00 | CI65: 00:00:00 | CJ65: 00:00:00 | CK65: 00:00:00 | CL65: 00:00:00 | CM65: 00:00:00 | CN65: 00:00:00 | CO65: 00:00:00 | CP65: 00:00:00 | CQ65: 00:00:00 | CR65: 00:00:00
A67: Scenario 1
A68: Unitary charge | E68: =SUM(F68:CR68) -> 1416297.724 | F68: 0 | G68: 0 | H68: 0 | I68: 0 | J68: 0 | K68: 0 | L68: 15198.01807 | M68: 19279.11612 | N68: 22287.42886 | O68: 22287.42886 | P68: 22287.42886 | Q68: 22287.42886 | R68: 22287.42886 | S68: 22287.42886 | T68: 22287.42886 | U68: 22287.42886 | V68: 22287.42886 | W68: 22287.42886 | X68: 22287.42886 | Y68: 22287.42886 | Z68: 22287.42886 | AA68: 22287.42886 | AB68: 22287.42886 | AC68: 22287.42886 | AD68: 22287.42886 | AE68: 22287.42886 | AF68: 22287.42886 | AG68: 22287.42886 | AH68: 22287.42886 | AI68: 22287.42886 | AJ68: 22287.42886 | AK68: 22287.42886 | AL68: 22287.42886 | AM68: 22287.42886 | AN68: 22287.42886 | AO68: 22287.42886 | AP68: 22287.42886 | AQ68: 22287.42886 | AR68: 22287.42886 | AS68: 22287.42886 | AT68: 22287.42886 | AU68: 22287.42886 | AV68: 22287.42886 | AW68: 22287.42886 | AX68: 22287.42886 | AY68: 22287.42886 | AZ68: 22287.42886 | BA68: 22287.42886 | BB68: 22287.42886 | BC68: 22287.42886 | BD68: 22287.42886 | BE68: 22287.42886 | BF68: 22287.42886 | BG68: 22287.42886 | BH68: 22287.42886 | BI68: 22287.42886 | BJ68: 22287.42886 | BK68: 22287.42886 | BL68: 22287.42886 | BM68: 22287.42886 | BN68: 22287.42886 | BO68: 22287.42886 | BP68: 22287.42886 | BQ68: 22287.42886 | BR68: 22287.42886 | BS68: 22287.42886 | BT68: 22287.42886 | BU68: 22287.42886 | BV68: 22287.42886 | BW68: 22287.42886 | BX68: 0 | BY68: 0 | BZ68: 0 | CA68: 0 | CB68: 0 | CC68: 0 | CD68: 0 | CE68: 0 | CF68: 0 | CG68: 0 | CH68: 0 | CI68: 0 | CJ68: 0 | CK68: 0 | CL68: 0 | CM68: 0 | CN68: 0 | CO68: 0 | CP68: 0 | CQ68: 0 | CR68: 0
E69: =SUM(F69:CR69) -> 0
E70: =SUM(F70:CR70) -> 0
E71: =SUM(F71:CR71) -> 0
E72: =SUM(F72:CR72) -> 0
A74: Scenario 2
E75: =SUM(F75:CR75) -> 0
E76: =SUM(F76:CR76) -> 0
E77: =SUM(F77:CR77) -> 0
E78: =SUM(F78:CR78) -> 0
E79: =SUM(F79:CR79) -> 0
A81: Scenario 3
E82: =SUM(F82:CR82) -> 0
E83: =SUM(F83:CR83) -> 0
E84: =SUM(F84:CR84) -> 0
E85: =SUM(F85:CR85) -> 0
E86: =SUM(F86:CR86) -> 0
A88: Scenario 4
E89: =SUM(F89:CR89) -> 0
E90: =SUM(F90:CR90) -> 0
E91: =SUM(F91:CR91) -> 0
E92: =SUM(F92:CR92) -> 0
E93: =SUM(F93:CR93) -> 0
A95: Scenario 5
E96: =SUM(F96:CR96) -> 0
E97: =SUM(F97:CR97) -> 0
E98: =SUM(F98:CR98) -> 0
E99: =SUM(F99:CR99) -> 0
E100: =SUM(F100:CR100) -> 0
A102: Total real unitary payment before refinancing | E102: =SUM(F102:CR102) -> 1416297.724 | F102: =CHOOSE($B$4,SUM(F68:F72),SUM(F75:F79),SUM(F82:F86),SUM(F89:F93),SUM(F96:F100)) -> 0 | G102: 0 | H102: 0 | I102: 0 | J102: 0 | K102: 0 | L102: 15198.01807 | M102: 19279.11612 | N102: 22287.42886 | O102: 22287.42886 | P102: 22287.42886 | Q102: 22287.42886 | R102: 22287.42886 | S102: 22287.42886 | T102: 22287.42886 | U102: 22287.42886 | V102: 22287.42886 | W102: 22287.42886 | X102: 22287.42886 | Y102: 22287.42886 | Z102: 22287.42886 | AA102: 22287.42886 | AB102: 22287.42886 | AC102: 22287.42886 | AD102: 22287.42886 | AE102: 22287.42886 | AF102: 22287.42886 | AG102: 22287.42886 | AH102: 22287.42886 | AI102: 22287.42886 | AJ102: 22287.42886 | AK102: 22287.42886 | AL102: 22287.42886 | AM102: 22287.42886 | AN102: 22287.42886 | AO102: 22287.42886 | AP102: 22287.42886 | AQ102: 22287.42886 | AR102: 22287.42886 | AS102: 22287.42886 | AT102: 22287.42886 | AU102: 22287.42886 | AV102: 22287.42886 | AW102: 22287.42886 | AX102: 22287.42886 | AY102: 22287.42886 | AZ102: 22287.42886 | BA102: 22287.42886 | BB102: 22287.42886 | BC102: 22287.42886 | BD102: 22287.42886 | BE102: 22287.42886 | BF102: 22287.42886 | BG102: 22287.42886 | BH102: 22287.42886 | BI102: 22287.42886 | BJ102: 22287.42886 | BK102: 22287.42886 | BL102: 22287.42886 | BM102: 22287.42886 | BN102: 22287.42886 | BO102: 22287.42886 | BP102: 22287.42886 | BQ102: 22287.42886 | BR102: =CHOOSE($B$4,SUM(BR68:BR72),SUM(BR75:BR79),SUM(BR82:BR86),SUM(BR89:BR93),SUM(BR96:BR100)) -> 22287.42886 | BS102: 22287.42886 | BT102: 22287.42886 | BU102: 22287.42886 | BV102: 22287.42886 | BW102: 22287.42886 | BX102: 0 | BY102: 0 | BZ102: 0 | CA102: 0 | CB102: 0 | CC102: 0 | CD102: 0 | CE102: 0 | CF102: 0 | CG102: 0 | CH102: 0 | CI102: 0 | CJ102: 0 | CK102: 0 | CL102: 0 | CM102: 0 | CN102: 0 | CO102: 0 | CP102: 0 | CQ102: 0 | CR102: 0
A105: Real unitary payment after refinancing | B105: Period start | F105: =F64 -> 00:00:00 | G105: =G64 -> 00:00:00 | H105: 00:00:00 | I105: 00:00:00 | J105: 00:00:00 | K105: 00:00:00 | L105: 2010-04-01 | M105: 2010-10-01 | N105: 2011-04-01 | O105: 2011-10-01 | P105: 2012-04-01 | Q105: 2012-10-01 | R105: 2013-04-01 | S105: 2013-10-01 | T105: 2014-04-01 | U105: 2014-10-01 | V105: 2015-04-01 | W105: 2015-10-01 | X105: 2016-04-01 | Y105: 2016-10-01 | Z105: 2017-04-01 | AA105: 2017-10-01 | AB105: 2018-04-01 | AC105: 2018-10-01 | AD105: 2019-04-01 | AE105: 2019-10-01 | AF105: 2020-04-01 | AG105: 2020-10-01 | AH105: 2021-04-01 | AI105: 2021-10-01 | AJ105: 2022-04-01 | AK105: 2022-10-01 | AL105: 2023-04-01 | AM105: 2023-10-01 | AN105: 2024-04-01 | AO105: 2024-10-01 | AP105: 2025-04-01 | AQ105: 2025-10-01 | AR105: 2026-04-01 | AS105: 2026-10-01 | AT105: 2027-04-01 | AU105: 2027-10-01 | AV105: 2028-04-01 | AW105: 2028-10-01 | AX105: 2029-04-01 | AY105: 2029-10-01 | AZ105: 2030-04-01 | BA105: 2030-10-01 | BB105: 2031-04-01 | BC105: 2031-10-01 | BD105: 2032-04-01 | BE105: 2032-10-01 | BF105: 2033-04-01 | BG105: 2033-10-01 | BH105: 2034-04-01 | BI105: 2034-10-01 | BJ105: 2035-04-01 | BK105: 2035-10-01 | BL105: 2036-04-01 | BM105: 2036-10-01 | BN105: 2037-04-01 | BO105: 2037-10-01 | BP105: 2038-04-01 | BQ105: 2038-10-01 | BR105: 2039-04-01 | BS105: =BS64 -> 2039-10-01 | BT105: 2040-04-01 | BU105: 2040-10-01 | BV105: 2041-04-01 | BW105: 2041-10-01 | BX105: 00:00:00 | BY105: 00:00:00 | BZ105: 00:00:00 | CA105: 00:00:00 | CB105: 00:00:00 | CC105: 00:00:00 | CD105: 00:00:00 | CE105: 00:00:00 | CF105: 00:00:00 | CG105: 00:00:00 | CH105: 00:00:00 | CI105: 00:00:00 | CJ105: 00:00:00 | CK105: 00:00:00 | CL105: 00:00:00 | CM105: 00:00:00 | CN105: 00:00:00 | CO105: 00:00:00 | CP105: 00:00:00 | CQ105: 00:00:00 | CR105: 00:00:00
B106: Period end | F106: =F65 -> 00:00:00 | G106: =G65 -> 00:00:00 | H106: 00:00:00 | I106: 00:00:00 | J106: 00:00:00 | K106: 00:00:00 | L106: 2010-09-30 | M106: 2011-03-31 | N106: 2011-09-30 | O106: 2012-03-31 | P106: 2012-09-30 | Q106: 2013-03-31 | R106: 2013-09-30 | S106: 2014-03-31 | T106: 2014-09-30 | U106: 2015-03-31 | V106: 2015-09-30 | W106: 2016-03-31 | X106: 2016-09-30 | Y106: 2017-03-31 | Z106: 2017-09-30 | AA106: 2018-03-31 | AB106: 2018-09-30 | AC106: 2019-03-31 | AD106: 2019-09-30 | AE106: 2020-03-31 | AF106: 2020-09-30 | AG106: 2021-03-31 | AH106: 2021-09-30 | AI106: 2022-03-31 | AJ106: 2022-09-30 | AK106: 2023-03-31 | AL106: 2023-09-30 | AM106: 2024-03-31 | AN106: 2024-09-30 | AO106: 2025-03-31 | AP106: 2025-09-30 | AQ106: 2026-03-31 | AR106: 2026-09-30 | AS106: 2027-03-31 | AT106: 2027-09-30 | AU106: 2028-03-31 | AV106: 2028-09-30 | AW106: 2029-03-31 | AX106: 2029-09-30 | AY106: 2030-03-31 | AZ106: 2030-09-30 | BA106: 2031-03-31 | BB106: 2031-09-30 | BC106: 2032-03-31 | BD106: 2032-09-30 | BE106: 2033-03-31 | BF106: 2033-09-30 | BG106: 2034-03-31 | BH106: 2034-09-30 | BI106: 2035-03-31 | BJ106: 2035-09-30 | BK106: 2036-03-31 | BL106: 2036-09-30 | BM106: 2037-03-31 | BN106: 2037-09-30 | BO106: 2038-03-31 | BP106: 2038-09-30 | BQ106: 2039-03-31 | BR106: 2039-09-30 | BS106: =BS65 -> 2040-03-31 | BT106: 2040-09-30 | BU106: 2041-03-31 | BV106: 2041-09-30 | BW106: 2042-03-31 | BX106: 00:00:00 | BY106: 00:00:00 | BZ106: 00:00:00 | CA106: 00:00:00 | CB106: 00:00:00 | CC106: 00:00:00 | CD106: 00:00:00 | CE106: 00:00:00 | CF106: 00:00:00 | CG106: 00:00:00 | CH106: 00:00:00 | CI106: 00:00:00 | CJ106: 00:00:00 | CK106: 00:00:00 | CL106: 00:00:00 | CM106: 00:00:00 | CN106: 00:00:00 | CO106: 00:00:00 | CP106: 00:00:00 | CQ106: 00:00:00 | CR106: 00:00:00
A108: Scenario 1
A109: Unitary charge | E109: =SUM(F109:CR109) -> 1341605.794 | F109: 0 | G109: 0 | H109: 0 | I109: 0 | J109: 0 | K109: 0 | L109: 14438.11717 | M109: 14438.11717 | N109: 21173.05742 | O109: 21173.05742 | P109: 21173.05742 | Q109: 21173.05742 | R109: 21173.05742 | S109: 21173.05742 | T109: 21173.05742 | U109: 21173.05742 | V109: 21173.05742 | W109: 21173.05742 | X109: 21173.05742 | Y109: 21173.05742 | Z109: 21173.05742 | AA109: 21173.05742 | AB109: 21173.05742 | AC109: 21173.05742 | AD109: 21173.05742 | AE109: 21173.05742 | AF109: 21173.05742 | AG109: 21173.05742 | AH109: 21173.05742 | AI109: 21173.05742 | AJ109: 21173.05742 | AK109: 21173.05742 | AL109: 21173.05742 | AM109: 21173.05742 | AN109: 21173.05742 | AO109: 21173.05742 | AP109: 21173.05742 | AQ109: 21173.05742 | AR109: 21173.05742 | AS109: 21173.05742 | AT109: 21173.05742 | AU109: 21173.05742 | AV109: 21173.05742 | AW109: 21173.05742 | AX109: 21173.05742 | AY109: 21173.05742 | AZ109: 21173.05742 | BA109: 21173.05742 | BB109: 21173.05742 | BC109: 21173.05742 | BD109: 21173.05742 | BE109: 21173.05742 | BF109: 21173.05742 | BG109: 21173.05742 | BH109: 21173.05742 | BI109: 21173.05742 | BJ109: 21173.05742 | BK109: 21173.05742 | BL109: 21173.05742 | BM109: 21173.05742 | BN109: 21173.05742 | BO109: 21173.05742 | BP109: 21173.05742 | BQ109: 21173.05742 | BR109: 21173.05742 | BS109: 21173.05742 | BT109: 21173.05742 | BU109: 21173.05742 | BV109: 21173.05742 | BW109: 21173.05742 | BX109: 0 | BY109: 0 | BZ109: 0 | CA109: 0 | CB109: 0 | CC109: 0 | CD109: 0 | CE109: 0 | CF109: 0 | CG109: 0 | CH109: 0 | CI109: 0 | CJ109: 0 | CK109: 0 | CL109: 0 | CM109: 0 | CN109: 0 | CO109: 0 | CP109: 0 | CQ109: 0 | CR109: 0
E110: =SUM(F110:CR110) -> 0
E111: =SUM(F111:CR111) -> 0
E112: =SUM(F112:CR112) -> 0
E113: =SUM(F113:CR113) -> 0
A115: Scenario 2
E116: =SUM(F116:CR116) -> 0
E117: =SUM(F117:CR117) -> 0
E118: =SUM(F118:CR118) -> 0
E119: =SUM(F119:CR119) -> 0
E120: =SUM(F120:CR120) -> 0
A122: Scenario 3
E123: =SUM(F123:CR123) -> 0
E124: =SUM(F124:CR124) -> 0
E125: =SUM(F125:CR125) -> 0
E126: =SUM(F126:CR126) -> 0
E127: =SUM(F127:CR127) -> 0
A129: Scenario 4
E130: =SUM(F130:CR130) -> 0
E131: =SUM(F131:CR131) -> 0
E132: =SUM(F132:CR132) -> 0
E133: =SUM(F133:CR133) -> 0
E134: =SUM(F134:CR134) -> 0
A136: Scenario 5
E137: =SUM(F137:CR137) -> 0
E138: =SUM(F138:CR138) -> 0
E139: =SUM(F139:CR139) -> 0
E140: =SUM(F140:CR140) -> 0
E141: =SUM(F141:CR141) -> 0
A143: Total real unitary charge after refinancing | E143: =SUM(F143:CR143) -> 1341605.794 | F143: =CHOOSE($B$4,SUM(F109:F113),SUM(F116:F120),SUM(F123:F127),SUM(F130:F134),SUM(F137:F141)) -> 0 | G143: 0 | H143: 0 | I143: 0 | J143: 0 | K143: 0 | L143: 14438.11717 | M143: 14438.11717 | N143: 21173.05742 | O143: 21173.05742 | P143: 21173.05742 | Q143: 21173.05742 | R143: 21173.05742 | S143: 21173.05742 | T143: 21173.05742 | U143: 21173.05742 | V143: 21173.05742 | W143: 21173.05742 | X143: 21173.05742 | Y143: 21173.05742 | Z143: 21173.05742 | AA143: 21173.05742 | AB143: 21173.05742 | AC143: 21173.05742 | AD143: 21173.05742 | AE143: 21173.05742 | AF143: 21173.05742 | AG143: 21173.05742 | AH143: 21173.05742 | AI143: 21173.05742 | AJ143: 21173.05742 | AK143: 21173.05742 | AL143: 21173.05742 | AM143: 21173.05742 | AN143: 21173.05742 | AO143: 21173.05742 | AP143: 21173.05742 | AQ143: 21173.05742 | AR143: 21173.05742 | AS143: 21173.05742 | AT143: 21173.05742 | AU143: 21173.05742 | AV143: 21173.05742 | AW143: 21173.05742 | AX143: 21173.05742 | AY143: 21173.05742 | AZ143: 21173.05742 | BA143: 21173.05742 | BB143: 21173.05742 | BC143: 21173.05742 | BD143: 21173.05742 | BE143: 21173.05742 | BF143: 21173.05742 | BG143: 21173.05742 | BH143: 21173.05742 | BI143: 21173.05742 | BJ143: 21173.05742 | BK143: 21173.05742 | BL143: 21173.05742 | BM143: 21173.05742 | BN143: 21173.05742 | BO143: 21173.05742 | BP143: 21173.05742 | BQ143: 21173.05742 | BR143: =CHOOSE($B$4,SUM(BR109:BR113),SUM(BR116:BR120),SUM(BR123:BR127),SUM(BR130:BR134),SUM(BR137:BR141)) -> 21173.05742 | BS143: 21173.05742 | BT143: 21173.05742 | BU143: 21173.05742 | BV143: 21173.05742 | BW143: 21173.05742 | BX143: 0 | BY143: 0 | BZ143: 0 | CA143: 0 | CB143: 0 | CC143: 0 | CD143: 0 | CE143: 0 | CF143: 0 | CG143: 0 | CH143: 0 | CI143: 0 | CJ143: 0 | CK143: 0 | CL143: 0 | CM143: 0 | CN143: 0 | CO143: 0 | CP143: 0 | CQ143: 0 | CR143: 0
A146: Real third party revenues | B146: Period start | F146: =F105 -> 00:00:00 | G146: =G105 -> 00:00:00 | H146: 00:00:00 | I146: 00:00:00 | J146: 00:00:00 | K146: 00:00:00 | L146: 2010-04-01 | M146: 2010-10-01 | N146: 2011-04-01 | O146: 2011-10-01 | P146: 2012-04-01 | Q146: 2012-10-01 | R146: 2013-04-01 | S146: 2013-10-01 | T146: 2014-04-01 | U146: 2014-10-01 | V146: 2015-04-01 | W146: 2015-10-01 | X146: 2016-04-01 | Y146: 2016-10-01 | Z146: 2017-04-01 | AA146: 2017-10-01 | AB146: 2018-04-01 | AC146: 2018-10-01 | AD146: 2019-04-01 | AE146: 2019-10-01 | AF146: 2020-04-01 | AG146: 2020-10-01 | AH146: 2021-04-01 | AI146: 2021-10-01 | AJ146: 2022-04-01 | AK146: 2022-10-01 | AL146: 2023-04-01 | AM146: 2023-10-01 | AN146: 2024-04-01 | AO146: 2024-10-01 | AP146: 2025-04-01 | AQ146: 2025-10-01 | AR146: 2026-04-01 | AS146: 2026-10-01 | AT146: 2027-04-01 | AU146: 2027-10-01 | AV146: 2028-04-01 | AW146: 2028-10-01 | AX146: 2029-04-01 | AY146: 2029-10-01 | AZ146: 2030-04-01 | BA146: 2030-10-01 | BB146: 2031-04-01 | BC146: 2031-10-01 | BD146: 2032-04-01 | BE146: 2032-10-01 | BF146: 2033-04-01 | BG146: 2033-10-01 | BH146: 2034-04-01 | BI146: 2034-10-01 | BJ146: 2035-04-01 | BK146: 2035-10-01 | BL146: 2036-04-01 | BM146: 2036-10-01 | BN146: 2037-04-01 | BO146: 2037-10-01 | BP146: 2038-04-01 | BQ146: 2038-10-01 | BR146: 2039-04-01 | BS146: =BS105 -> 2039-10-01 | BT146: 2040-04-01 | BU146: 2040-10-01 | BV146: 2041-04-01 | BW146: 2041-10-01 | BX146: 00:00:00 | BY146: 00:00:00 | BZ146: 00:00:00 | CA146: 00:00:00 | CB146: 00:00:00 | CC146: 00:00:00 | CD146: 00:00:00 | CE146: 00:00:00 | CF146: 00:00:00 | CG146: 00:00:00 | CH146: 00:00:00 | CI146: 00:00:00 | CJ146: 00:00:00 | CK146: 00:00:00 | CL146: 00:00:00 | CM146: 00:00:00 | CN146: 00:00:00 | CO146: 00:00:00 | CP146: 00:00:00 | CQ146: 00:00:00 | CR146: 00:00:00
B147: Period end | F147: =F106 -> 00:00:00 | G147: 00:00:00 | H147: 00:00:00 | I147: 00:00:00 | J147: 00:00:00 | K147: 00:00:00 | L147: 2010-09-30 | M147: 2011-03-31 | N147: 2011-09-30 | O147: 2012-03-31 | P147: 2012-09-30 | Q147: 2013-03-31 | R147: 2013-09-30 | S147: 2014-03-31 | T147: 2014-09-30 | U147: 2015-03-31 | V147: 2015-09-30 | W147: 2016-03-31 | X147: 2016-09-30 | Y147: 2017-03-31 | Z147: 2017-09-30 | AA147: 2018-03-31 | AB147: 2018-09-30 | AC147: 2019-03-31 | AD147: 2019-09-30 | AE147: 2020-03-31 | AF147: 2020-09-30 | AG147: 2021-03-31 | AH147: 2021-09-30 | AI147: 2022-03-31 | AJ147: 2022-09-30 | AK147: 2023-03-31 | AL147: 2023-09-30 | AM147: 2024-03-31 | AN147: 2024-09-30 | AO147: 2025-03-31 | AP147: 2025-09-30 | AQ147: 2026-03-31 | AR147: 2026-09-30 | AS147: 2027-03-31 | AT147: 2027-09-30 | AU147: 2028-03-31 | AV147: 2028-09-30 | AW147: 2029-03-31 | AX147: 2029-09-30 | AY147: 2030-03-31 | AZ147: 2030-09-30 | BA147: 2031-03-31 | BB147: 2031-09-30 | BC147: 2032-03-31 | BD147: 2032-09-30 | BE147: 2033-03-31 | BF147: 2033-09-30 | BG147: 2034-03-31 | BH147: 2034-09-30 | BI147: 2035-03-31 | BJ147: 2035-09-30 | BK147: 2036-03-31 | BL147: 2036-09-30 | BM147: 2037-03-31 | BN147: 2037-09-30 | BO147: 2038-03-31 | BP147: 2038-09-30 | BQ147: 2039-03-31 | BR147: 2039-09-30 | BS147: 2040-03-31 | BT147: 2040-09-30 | BU147: 2041-03-31 | BV147: 2041-09-30 | BW147: 2042-03-31 | BX147: 00:00:00 | BY147: 00:00:00 | BZ147: 00:00:00 | CA147: 00:00:00 | CB147: 00:00:00 | CC147: 00:00:00 | CD147: 00:00:00 | CE147: 00:00:00 | CF147: 00:00:00 | CG147: 00:00:00 | CH147: 00:00:00 | CI147: 00:00:00 | CJ147: 00:00:00 | CK147: 00:00:00 | CL147: 00:00:00 | CM147: 00:00:00 | CN147: 00:00:00 | CO147: 00:00:00 | CP147: 00:00:00 | CQ147: 00:00:00 | CR147: 00:00:00
A149: Scenario 1
E150: =SUM(F150:CR150) -> 0
E151: =SUM(F151:CR151) -> 0
E152: =SUM(F152:CR152) -> 0
E153: =SUM(F153:CR153) -> 0
E154: =SUM(F154:CR154) -> 0
A156: Scenario 2
A157: Variable rental | E157: =SUM(F157:CR157) -> 0
E158: =SUM(F158:CR158) -> 0
E159: =SUM(F159:CR159) -> 0
E160: =SUM(F160:CR160) -> 0
E161: =SUM(F161:CR161) -> 0
A163: Scenario 3
E164: =SUM(F164:CR164) -> 0
E165: =SUM(F165:CR165) -> 0
E166: =SUM(F166:CR166) -> 0
E167: =SUM(F167:CR167) -> 0
E168: =SUM(F168:CR168) -> 0
A170: Scenario 4
E171: =SUM(F171:CR171) -> 0
E172: =SUM(F172:CR172) -> 0
E173: =SUM(F173:CR173) -> 0
E174: =SUM(F174:CR174) -> 0
E175: =SUM(F175:CR175) -> 0
A177: Scenario 5
E178: =SUM(F178:CR178) -> 0
E179: =SUM(F179:CR179) -> 0
E180: =SUM(F180:CR180) -> 0
E181: =SUM(F181:CR181) -> 0
E182: =SUM(F182:CR182) -> 0
A184: Total real third party revenues | E184: =SUM(F184:CR184) -> 0 | F184: =CHOOSE($B$4,SUM(F150:F154),SUM(F157:F161),SUM(F164:F168),SUM(F171:F175),SUM(F178:F182)) -> 0 | G184: 0 | H184: 0 | I184: 0 | J184: 0 | K184: 0 | L184: 0 | M184: 0 | N184: 0 | O184: 0 | P184: 0 | Q184: 0 | R184: 0 | S184: 0 | T184: 0 | U184: 0 | V184: 0 | W184: 0 | X184: 0 | Y184: 0 | Z184: 0 | AA184: 0 | AB184: 0 | AC184: 0 | AD184: 0 | AE184: 0 | AF184: 0 | AG184: 0 | AH184: 0 | AI184: 0 | AJ184: 0 | AK184: 0 | AL184: 0 | AM184: 0 | AN184: 0 | AO184: 0 | AP184: 0 | AQ184: 0 | AR184: 0 | AS184: 0 | AT184: 0 | AU184: 0 | AV184: 0 | AW184: 0 | AX184: 0 | AY184: 0 | AZ184: 0 | BA184: 0 | BB184: 0 | BC184: 0 | BD184: 0 | BE184: 0 | BF184: 0 | BG184: 0 | BH184: 0 | BI184: 0 | BJ184: 0 | BK184: 0 | BL184: 0 | BM184: 0 | BN184: 0 | BO184: 0 | BP184: 0 | BQ184: 0 | BR184: =CHOOSE($B$4,SUM(BR150:BR154),SUM(BR157:BR161),SUM(BR164:BR168),SUM(BR171:BR175),SUM(BR178:BR182)) -> 0 | BS184: 0 | BT184: 0 | BU184: 0 | BV184: 0 | BW184: 0 | BX184: 0 | BY184: 0 | BZ184: 0 | CA184: 0 | CB184: 0 | CC184: 0 | CD184: 0 | CE184: 0 | CF184: 0 | CG184: 0 | CH184: 0 | CI184: 0 | CJ184: 0 | CK184: 0 | CL184: 0 | CM184: 0 | CN184: 0 | CO184: 0 | CP184: 0 | CQ184: 0 | CR184: 0
A187: Real operating costs | B187: Period start | F187: =F146 -> 00:00:00 | G187: 00:00:00 | H187: 00:00:00 | I187: 00:00:00 | J187: 00:00:00 | K187: 00:00:00 | L187: 2010-04-01 | M187: 2010-10-01 | N187: 2011-04-01 | O187: 2011-10-01 | P187: 2012-04-01 | Q187: 2012-10-01 | R187: 2013-04-01 | S187: 2013-10-01 | T187: 2014-04-01 | U187: 2014-10-01 | V187: 2015-04-01 | W187: 2015-10-01 | X187: 2016-04-01 | Y187: 2016-10-01 | Z187: 2017-04-01 | AA187: 2017-10-01 | AB187: 2018-04-01 | AC187: 2018-10-01 | AD187: 2019-04-01 | AE187: 2019-10-01 | AF187: 2020-04-01 | AG187: 2020-10-01 | AH187: 2021-04-01 | AI187: 2021-10-01 | AJ187: 2022-04-01 | AK187: 2022-10-01 | AL187: 2023-04-01 | AM187: 2023-10-01 | AN187: 2024-04-01 | AO187: 2024-10-01 | AP187: 2025-04-01 | AQ187: 2025-10-01 | AR187: 2026-04-01 | AS187: 2026-10-01 | AT187: 2027-04-01 | AU187: 2027-10-01 | AV187: 2028-04-01 | AW187: 2028-10-01 | AX187: 2029-04-01 | AY187: 2029-10-01 | AZ187: 2030-04-01 | BA187: 2030-10-01 | BB187: 2031-04-01 | BC187: 2031-10-01 | BD187: 2032-04-01 | BE187: 2032-10-01 | BF187: 2033-04-01 | BG187: 2033-10-01 | BH187: 2034-04-01 | BI187: 2034-10-01 | BJ187: 2035-04-01 | BK187: 2035-10-01 | BL187: 2036-04-01 | BM187: 2036-10-01 | BN187: 2037-04-01 | BO187: 2037-10-01 | BP187: 2038-04-01 | BQ187: 2038-10-01 | BR187: =BR146 -> 2039-04-01 | BS187: 2039-10-01 | BT187: 2040-04-01 | BU187: 2040-10-01 | BV187: 2041-04-01 | BW187: 2041-10-01 | BX187: 00:00:00 | BY187: 00:00:00 | BZ187: 00:00:00 | CA187: 00:00:00 | CB187: 00:00:00 | CC187: 00:00:00 | CD187: 00:00:00 | CE187: 00:00:00 | CF187: 00:00:00 | CG187: 00:00:00 | CH187: 00:00:00 | CI187: 00:00:00 | CJ187: 00:00:00 | CK187: 00:00:00 | CL187: 00:00:00 | CM187: 00:00:00 | CN187: 00:00:00 | CO187: 00:00:00 | CP187: 00:00:00 | CQ187: 00:00:00 | CR187: 00:00:00
B188: Period end | F188: =F147 -> 00:00:00 | G188: =G147 -> 00:00:00 | H188: 00:00:00 | I188: 00:00:00 | J188: 00:00:00 | K188: 00:00:00 | L188: 2010-09-30 | M188: 2011-03-31 | N188: 2011-09-30 | O188: 2012-03-31 | P188: 2012-09-30 | Q188: 2013-03-31 | R188: 2013-09-30 | S188: 2014-03-31 | T188: 2014-09-30 | U188: 2015-03-31 | V188: 2015-09-30 | W188: 2016-03-31 | X188: 2016-09-30 | Y188: 2017-03-31 | Z188: 2017-09-30 | AA188: 2018-03-31 | AB188: 2018-09-30 | AC188: 2019-03-31 | AD188: 2019-09-30 | AE188: 2020-03-31 | AF188: 2020-09-30 | AG188: 2021-03-31 | AH188: 2021-09-30 | AI188: 2022-03-31 | AJ188: 2022-09-30 | AK188: 2023-03-31 | AL188: 2023-09-30 | AM188: 2024-03-31 | AN188: 2024-09-30 | AO188: 2025-03-31 | AP188: 2025-09-30 | AQ188: 2026-03-31 | AR188: 2026-09-30 | AS188: 2027-03-31 | AT188: 2027-09-30 | AU188: 2028-03-31 | AV188: 2028-09-30 | AW188: 2029-03-31 | AX188: 2029-09-30 | AY188: 2030-03-31 | AZ188: 2030-09-30 | BA188: 2031-03-31 | BB188: 2031-09-30 | BC188: 2032-03-31 | BD188: 2032-09-30 | BE188: 2033-03-31 | BF188: 2033-09-30 | BG188: 2034-03-31 | BH188: 2034-09-30 | BI188: 2035-03-31 | BJ188: 2035-09-30 | BK188: 2036-03-31 | BL188: 2036-09-30 | BM188: 2037-03-31 | BN188: 2037-09-30 | BO188: 2038-03-31 | BP188: 2038-09-30 | BQ188: 2039-03-31 | BR188: 2039-09-30 | BS188: =BS147 -> 2040-03-31 | BT188: 2040-09-30 | BU188: 2041-03-31 | BV188: 2041-09-30 | BW188: 2042-03-31 | BX188: 00:00:00 | BY188: 00:00:00 | BZ188: 00:00:00 | CA188: 00:00:00 | CB188: 00:00:00 | CC188: 00:00:00 | CD188: 00:00:00 | CE188: 00:00:00 | CF188: 00:00:00 | CG188: 00:00:00 | CH188: 00:00:00 | CI188: 00:00:00 | CJ188: 00:00:00 | CK188: 00:00:00 | CL188: 00:00:00 | CM188: 00:00:00 | CN188: 00:00:00 | CO188: 00:00:00 | CP188: 00:00:00 | CQ188: 00:00:00 | CR188: 00:00:00
A190: Scenario 1
A191: Real costs and fees | E191: =SUM(F191:CR191) -> 48533.41298 | F191: 0 | G191: 0 | H191: 0 | I191: 0 | J191: 0 | K191: 0 | L191: 422.8845713 | M191: 617.2165199 | N191: 598.8677653 | O191: 771.5206499 | P191: 767.044771 | Q191: 771.255817 | R191: 766.7863974 | S191: 770.9974434 | T191: 766.5343257 | U191: 770.7453716 | V191: 766.288402 | W191: 770.4994479 | X191: 766.0484764 | Y191: 770.2595224 | Z191: 765.8144027 | AA191: 770.0254486 | AB191: 765.5860381 | AC191: 769.797084 | AD191: 765.3632433 | AE191: 769.5742893 | AF191: 765.1458826 | AG191: 769.3569286 | AH191: 764.9338234 | AI191: 769.1448694 | AJ191: 764.7269363 | AK191: 768.9379823 | AL191: 764.5250953 | AM191: 768.7361413 | AN191: 764.3281772 | AO191: 768.5392232 | AP191: 764.136062 | AQ191: 768.347108 | AR191: 763.9486326 | AS191: 768.1596785 | AT191: 763.7657746 | AU191: 767.9768205 | AV191: 763.5873765 | AW191: 767.7984225 | AX191: 763.4133296 | AY191: 767.6243756 | AZ191: 763.2435278 | BA191: 767.4545737 | BB191: 763.0778674 | BC191: 767.2889134 | BD191: 762.9162476 | BE191: 767.1272936 | BF191: 762.7585697 | BG191: 766.9696157 | BH191: 762.6047376 | BI191: 766.8157836 | BJ191: 762.4546575 | BK191: 766.6657035 | BL191: 762.3082379 | BM191: 766.5192839 | BN191: 762.1653895 | BO191: 766.3764355 | BP191: 762.0260253 | BQ191: 766.2370712 | BR191: 761.8900601 | BS191: 766.1011061 | BT191: 761.7574112 | BU191: 765.9684571 | BV191: 761.6279976 | BW191: 920.8153846 | BX191: 0 | BY191: 0 | BZ191: 0 | CA191: 0 | CB191: 0 | CC191: 0 | CD191: 0 | CE191: 0 | CF191: 0 | CG191: 0 | CH191: 0 | CI191: 0 | CJ191: 0 | CK191: 0 | CL191: 0 | CM191: 0 | CN191: 0 | CO191: 0 | CP191: 0 | CQ191: 0 | CR191: 0
A192: Operating costs | E192: =SUM(F192:CR192) -> 548866.8018 | F192: 0 | G192: 0 | H192: 0 | I192: 0 | J192: 0 | K192: 0 | L192: 2319.863092 | M192: 5095.229518 | N192: 7010.49135 | O192: 7836.945413 | P192: 7900.443561 | Q192: 7957.150149 | R192: 7976.911814 | S192: 8041.063364 | T192: 8043.884525 | U192: 8103.567922 | V192: 8204.019944 | W192: 8293.44995 | X192: 8226.357098 | Y192: 8266.913023 | Z192: 8304.886262 | AA192: 8376.767842 | AB192: 8453.140754 | AC192: 8537.346051 | AD192: 8388.785453 | AE192: 8406.685659 | AF192: 8809.534789 | AG192: 8991.901862 | AH192: 8597.405166 | AI192: 8544.850561 | AJ192: 8663.86925 | AK192: 8762.098154 | AL192: 8567.913442 | AM192: 8573.770942 | AN192: 8564.538208 | AO192: 8624.503297 | AP192: 8909.338145 | AQ192: 9057.894722 | AR192: 8942.735343 | AS192: 8974.464807 | AT192: 8710.47346 | AU192: 8696.942871 | AV192: 8949.768131 | AW192: 9089.251876 | AX192: 8749.637905 | AY192: 8714.260435 | AZ192: 9543.873931 | BA192: 9856.520861 | BB192: 9001.864601 | BC192: 8817.588607 | BD192: 9074.335592 | BE192: 9215.878629 | BF192: 8862.833338 | BG192: 8824.353009 | BH192: 9120.063112 | BI192: 9273.344579 | BJ192: 9125.539776 | BK192: 9149.052076 | BL192: 8943.083692 | BM192: 8948.23746 | BN192: 8831.07816 | BO192: 8861.405279 | BP192: 8769.538144 | BQ192: 8806.817555 | BR192: 8777.750511 | BS192: 8833.470526 | BT192: 9463.470394 | BU192: 9717.105505 | BV192: 8965.725423 | BW192: 10844.81498 | BX192: 0 | BY192: 0 | BZ192: 0 | CA192: 0 | CB192: 0 | CC192: 0 | CD192: 0 | CE192: 0 | CF192: 0 | CG192: 0 | CH192: 0 | CI192: 0 | CJ192: 0 | CK192: 0 | CL192: 0 | CM192: 0 | CN192: 0 | CO192: 0 | CP192: 0 | CQ192: 0 | CR192: 0
E193: =SUM(F193:CR193) -> 0
E194: =SUM(F194:CR194) -> 0
E195: =SUM(F195:CR195) -> 0
A197: Scenario 2
E198: =SUM(F198:CR198) -> 0 | BX198: 0 | BY198: 0 | BZ198: 0 | CA198: 0 | CB198: 0 | CC198: 0 | CD198: 0 | CE198: 0 | CF198: 0 | CG198: 0 | CH198: 0 | CI198: 0 | CJ198: 0 | CK198: 0 | CL198: 0 | CM198: 0 | CN198: 0 | CO198: 0 | CP198: 0 | CQ198: 0 | CR198: 0
E199: =SUM(F199:CR199) -> 0
E200: =SUM(F200:CR200) -> 0
E201: =SUM(F201:CR201) -> 0
E202: =SUM(F202:CR202) -> 0
A204: Scenario 3
E205: =SUM(F205:CR205) -> 0
E206: =SUM(F206:CR206) -> 0
E207: =SUM(F207:CR207) -> 0
E208: =SUM(F208:CR208) -> 0
E209: =SUM(F209:CR209) -> 0
A211: Scenario 4
E212: =SUM(F212:CR212) -> 0
E213: =SUM(F213:CR213) -> 0
E214: =SUM(F214:CR214) -> 0
E215: =SUM(F215:CR215) -> 0
E216: =SUM(F216:CR216) -> 0
A218: Scenario 5
E219: =SUM(F219:CR219) -> 0
E220: =SUM(F220:CR220) -> 0
E221: =SUM(F221:CR221) -> 0
E222: =SUM(F222:CR222) -> 0
E223: =SUM(F223:CR223) -> 0
A225: Total real operating costs | E225: =SUM(F225:CR225) -> 597400.2148 | F225: =CHOOSE($B$4,SUM(F191:F195),SUM(F198:F202),SUM(F205:F209),SUM(F212:F216),SUM(F219:F223)) -> 0 | G225: 0 | H225: 0 | I225: 0 | J225: 0 | K225: 0 | L225: 2742.747663 | M225: 5712.446038 | N225: 7609.359115 | O225: 8608.466063 | P225: 8667.488332 | Q225: 8728.405966 | R225: 8743.698212 | S225: 8812.060807 | T225: 8810.41885 | U225: 8874.313294 | V225: 8970.308346 | W225: 9063.949398 | X225: 8992.405575 | Y225: 9037.172545 | Z225: 9070.700665 | AA225: 9146.79329 | AB225: 9218.726792 | AC225: 9307.143135 | AD225: 9154.148696 | AE225: 9176.259948 | AF225: 9574.680671 | AG225: 9761.25879 | AH225: 9362.338989 | AI225: 9313.99543 | AJ225: 9428.596186 | AK225: 9531.036136 | AL225: 9332.438538 | AM225: 9342.507083 | AN225: 9328.866385 | AO225: 9393.04252 | AP225: 9673.474207 | AQ225: 9826.24183 | AR225: 9706.683975 | AS225: 9742.624486 | AT225: 9474.239234 | AU225: 9464.919692 | AV225: 9713.355507 | AW225: 9857.050298 | AX225: 9513.051234 | AY225: 9481.88481 | AZ225: 10307.11746 | BA225: 10623.97543 | BB225: 9764.942468 | BC225: 9584.87752 | BD225: 9837.25184 | BE225: 9983.005922 | BF225: 9625.591907 | BG225: 9591.322624 | BH225: 9882.667849 | BI225: 10040.16036 | BJ225: 9887.994434 | BK225: 9915.717779 | BL225: 9705.39193 | BM225: 9714.756744 | BN225: 9593.24355 | BO225: 9627.781714 | BP225: 9531.56417 | BQ225: 9573.054626 | BR225: =CHOOSE($B$4,SUM(BR191:BR195),SUM(BR198:BR202),SUM(BR205:BR209),SUM(BR212:BR216),SUM(BR219:BR223)) -> 9539.640571 | BS225: 9599.571632 | BT225: 10225.22781 | BU225: 10483.07396 | BV225: 9727.353421 | BW225: 11765.63036 | BX225: 0 | BY225: 0 | BZ225: 0 | CA225: 0 | CB225: 0 | CC225: 0 | CD225: 0 | CE225: 0 | CF225: 0 | CG225: 0 | CH225: 0 | CI225: 0 | CJ225: 0 | CK225: 0 | CL225: 0 | CM225: 0 | CN225: 0 | CO225: 0 | CP225: 0 | CQ225: 0 | CR225: 0
A228: Predicted real lifecycle profile | B228: Period start | F228: =F187 -> 00:00:00 | G228: =G187 -> 00:00:00 | H228: 00:00:00 | I228: 00:00:00 | J228: 00:00:00 | K228: 00:00:00 | L228: 2010-04-01 | M228: 2010-10-01 | N228: 2011-04-01 | O228: 2011-10-01 | P228: 2012-04-01 | Q228: 2012-10-01 | R228: 2013-04-01 | S228: 2013-10-01 | T228: 2014-04-01 | U228: 2014-10-01 | V228: 2015-04-01 | W228: 2015-10-01 | X228: 2016-04-01 | Y228: 2016-10-01 | Z228: 2017-04-01 | AA228: 2017-10-01 | AB228: 2018-04-01 | AC228: 2018-10-01 | AD228: 2019-04-01 | AE228: 2019-10-01 | AF228: 2020-04-01 | AG228: 2020-10-01 | AH228: 2021-04-01 | AI228: 2021-10-01 | AJ228: 2022-04-01 | AK228: 2022-10-01 | AL228: 2023-04-01 | AM228: 2023-10-01 | AN228: 2024-04-01 | AO228: 2024-10-01 | AP228: 2025-04-01 | AQ228: 2025-10-01 | AR228: 2026-04-01 | AS228: 2026-10-01 | AT228: 2027-04-01 | AU228: 2027-10-01 | AV228: 2028-04-01 | AW228: 2028-10-01 | AX228: 2029-04-01 | AY228: 2029-10-01 | AZ228: 2030-04-01 | BA228: 2030-10-01 | BB228: 2031-04-01 | BC228: 2031-10-01 | BD228: 2032-04-01 | BE228: 2032-10-01 | BF228: 2033-04-01 | BG228: 2033-10-01 | BH228: 2034-04-01 | BI228: 2034-10-01 | BJ228: 2035-04-01 | BK228: 2035-10-01 | BL228: 2036-04-01 | BM228: 2036-10-01 | BN228: 2037-04-01 | BO228: 2037-10-01 | BP228: 2038-04-01 | BQ228: 2038-10-01 | BR228: 2039-04-01 | BS228: =BS187 -> 2039-10-01 | BT228: 2040-04-01 | BU228: 2040-10-01 | BV228: 2041-04-01 | BW228: 2041-10-01 | BX228: 00:00:00 | BY228: 00:00:00 | BZ228: 00:00:00 | CA228: 00:00:00 | CB228: 00:00:00 | CC228: 00:00:00 | CD228: 00:00:00 | CE228: 00:00:00 | CF228: 00:00:00 | CG228: 00:00:00 | CH228: 00:00:00 | CI228: 00:00:00 | CJ228: 00:00:00 | CK228: 00:00:00 | CL228: 00:00:00 | CM228: 00:00:00 | CN228: 00:00:00 | CO228: 00:00:00 | CP228: 00:00:00 | CQ228: 00:00:00 | CR228: 00:00:00
B229: Period end | F229: =F188 -> 00:00:00 | G229: 00:00:00 | H229: 00:00:00 | I229: 00:00:00 | J229: 00:00:00 | K229: 00:00:00 | L229: 2010-09-30 | M229: 2011-03-31 | N229: 2011-09-30 | O229: 2012-03-31 | P229: 2012-09-30 | Q229: 2013-03-31 | R229: 2013-09-30 | S229: 2014-03-31 | T229: 2014-09-30 | U229: 2015-03-31 | V229: 2015-09-30 | W229: 2016-03-31 | X229: 2016-09-30 | Y229: 2017-03-31 | Z229: 2017-09-30 | AA229: 2018-03-31 | AB229: 2018-09-30 | AC229: 2019-03-31 | AD229: 2019-09-30 | AE229: 2020-03-31 | AF229: 2020-09-30 | AG229: 2021-03-31 | AH229: 2021-09-30 | AI229: 2022-03-31 | AJ229: 2022-09-30 | AK229: 2023-03-31 | AL229: 2023-09-30 | AM229: 2024-03-31 | AN229: 2024-09-30 | AO229: 2025-03-31 | AP229: 2025-09-30 | AQ229: 2026-03-31 | AR229: 2026-09-30 | AS229: 2027-03-31 | AT229: 2027-09-30 | AU229: 2028-03-31 | AV229: 2028-09-30 | AW229: 2029-03-31 | AX229: 2029-09-30 | AY229: 2030-03-31 | AZ229: 2030-09-30 | BA229: 2031-03-31 | BB229: 2031-09-30 | BC229: 2032-03-31 | BD229: 2032-09-30 | BE229: 2033-03-31 | BF229: 2033-09-30 | BG229: 2034-03-31 | BH229: 2034-09-30 | BI229: 2035-03-31 | BJ229: 2035-09-30 | BK229: 2036-03-31 | BL229: 2036-09-30 | BM229: 2037-03-31 | BN229: 2037-09-30 | BO229: 2038-03-31 | BP229: 2038-09-30 | BQ229: 2039-03-31 | BR229: 2039-09-30 | BS229: 2040-03-31 | BT229: 2040-09-30 | BU229: 2041-03-31 | BV229: 2041-09-30 | BW229: 2042-03-31 | BX229: 00:00:00 | BY229: 00:00:00 | BZ229: 00:00:00 | CA229: 00:00:00 | CB229: 00:00:00 | CC229: 00:00:00 | CD229: 00:00:00 | CE229: 00:00:00 | CF229: 00:00:00 | CG229: 00:00:00 | CH229: 00:00:00 | CI229: 00:00:00 | CJ229: 00:00:00 | CK229: 00:00:00 | CL229: 00:00:00 | CM229: 00:00:00 | CN229: 00:00:00 | CO229: 00:00:00 | CP229: 00:00:00 | CQ229: 00:00:00 | CR229: 00:00:00
A231: Scenario 1
A232: Predicted lifecycle profile - real | E232: =SUM(F232:CR232) -> 43135.83947 | F232: 0 | G232: 0 | H232: 0 | I232: 0 | J232: 0 | K232: 0 | L232: 0 | M232: 0 | N232: 0 | O232: 0 | P232: 0 | Q232: 0 | R232: 60.64911771 | S232: 60.64911771 | T232: 77.17388217 | U232: 77.17388217 | V232: 347.1306067 | W232: 347.1306067 | X232: 182.910305 | Y232: 182.910305 | Z232: 290.1180527 | AA232: 290.1180527 | AB232: 497.4006062 | AC232: 497.4006062 | AD232: 184.3777427 | AE232: 184.3777427 | AF232: 1323.922762 | AG232: 1323.922762 | AH232: 398.5560976 | AI232: 398.5560976 | AJ232: 801.4059521 | AK232: 801.4059521 | AL232: 392.7202791 | AM232: 392.7202791 | AN232: 461.7631131 | AO232: 461.7631131 | AP232: 1295.728699 | AQ232: 1295.728699 | AR232: 1095.651397 | AS232: 1095.651397 | AT232: 506.9849587 | AU232: 506.9849587 | AV232: 1257.570372 | AW232: 1257.570372 | AX232: 1153.838109 | AY232: 1153.838109 | AZ232: 1361.396496 | BA232: 1361.396496 | BB232: 1290.333795 | BC232: 1290.333795 | BD232: 1370.492251 | BE232: 1370.492251 | BF232: 551.282021 | BG232: 551.282021 | BH232: 1412.66521 | BI232: 1412.66521 | BJ232: 1127.033909 | BK232: 1127.033909 | BL232: 687.9065997 | BM232: 687.9065997 | BN232: 476.2868656 | BO232: 476.2868656 | BP232: 328.6931759 | BQ232: 328.6931759 | BR232: 343.1123613 | BS232: 343.1123613 | BT232: 2071.021333 | BU232: 2071.021333 | BV232: 219.7936667 | BW232: 219.7936667 | BX232: 0 | BY232: 0 | BZ232: 0 | CA232: 0 | CB232: 0 | CC232: 0 | CD232: 0 | CE232: 0 | CF232: 0 | CG232: 0 | CH232: 0 | CI232: 0 | CJ232: 0 | CK232: 0 | CL232: 0 | CM232: 0 | CN232: 0 | CO232: 0 | CP232: 0 | CQ232: 0 | CR232: 0
A234: Scenario 2
A235: Predicted lifecycle profile - real | E235: =SUM(F235:CR235) -> 0
A237: Scenario 3
A238: Predicted lifecycle profile - real | E238: =SUM(F238:CR238) -> 0
A240: Scenario 4
A241: Predicted lifecycle profile - real | E241: =SUM(F241:CR241) -> 0
A243: Scenario 5
A244: Predicted lifecycle profile - real | E244: =SUM(F244:CR244) -> 0
A246: Total predicted real lifecycle profile | E246: =SUM(F246:CR246) -> 43135.83947 | F246: =CHOOSE($B$4,F232,F235,F238,F241,F244) -> 0 | G246: 0 | H246: 0 | I246: 0 | J246: 0 | K246: 0 | L246: 0 | M246: 0 | N246: 0 | O246: 0 | P246: 0 | Q246: 0 | R246: 60.64911771 | S246: 60.64911771 | T246: 77.17388217 | U246: 77.17388217 | V246: 347.1306067 | W246: 347.1306067 | X246: 182.910305 | Y246: 182.910305 | Z246: 290.1180527 | AA246: 290.1180527 | AB246: 497.4006062 | AC246: 497.4006062 | AD246: 184.3777427 | AE246: 184.3777427 | AF246: 1323.922762 | AG246: 1323.922762 | AH246: 398.5560976 | AI246: 398.5560976 | AJ246: 801.4059521 | AK246: 801.4059521 | AL246: =CHOOSE($B$4,AL232,AL235,AL238,AL241,AL244) -> 392.7202791 | AM246: 392.7202791 | AN246: 461.7631131 | AO246: 461.7631131 | AP246: 1295.728699 | AQ246: 1295.728699 | AR246: 1095.651397 | AS246: 1095.651397 | AT246: 506.9849587 | AU246: 506.9849587 | AV246: 1257.570372 | AW246: 1257.570372 | AX246: 1153.838109 | AY246: 1153.838109 | AZ246: 1361.396496 | BA246: 1361.396496 | BB246: 1290.333795 | BC246: 1290.333795 | BD246: 1370.492251 | BE246: 1370.492251 | BF246: 551.282021 | BG246: 551.282021 | BH246: 1412.66521 | BI246: 1412.66521 | BJ246: 1127.033909 | BK246: 1127.033909 | BL246: 687.9065997 | BM246: 687.9065997 | BN246: 476.2868656 | BO246: 476.2868656 | BP246: 328.6931759 | BQ246: 328.6931759 | BR246: =CHOOSE($B$4,BR232,BR235,BR238,BR241,BR244) -> 343.1123613 | BS246: 343.1123613 | BT246: 2071.021333 | BU246: 2071.021333 | BV246: 219.7936667 | BW246: 219.7936667 | BX246: 0 | BY246: 0 | BZ246: 0 | CA246: 0 | CB246: 0 | CC246: 0 | CD246: 0 | CE246: 0 | CF246: 0 | CG246: 0 | CH246: 0 | CI246: 0 | CJ246: 0 | CK246: 0 | CL246: 0 | CM246: 0 | CN246: 0 | CO246: 0 | CP246: 0 | CQ246: 0 | CR246: 0

Sheet Asset Inputs
A1: IFRS Accounting for PPP/PFI for grantor
A3: Model scenarios
A4: Project scenario | B4: ='Global Inputs'!B4 -> 1 | C4: ='Global Inputs'!C4 -> Hypothetical large PFI Acute Hospital
A6: ='Operator Model Inputs'!A28 -> Period start | F6: ='Operator Model Inputs'!F28 -> 2007-04-01 | G6: ='Operator Model Inputs'!G28 -> 2007-10-01 | H6: ='Operator Model Inputs'!H28 -> 2008-04-01 | I6: ='Operator Model Inputs'!I28 -> 2008-10-01 | J6: ='Operator Model Inputs'!J28 -> 2009-04-01 | K6: ='Operator Model Inputs'!K28 -> 2009-10-01 | L6: ='Operator Model Inputs'!L28 -> 2010-04-01 | M6: ='Operator Model Inputs'!M28 -> 2010-10-01 | N6: ='Operator Model Inputs'!N28 -> 2011-04-01 | O6: ='Operator Model Inputs'!O28 -> 2011-10-01 | P6: ='Operator Model Inputs'!P28 -> 2012-04-01 | Q6: ='Operator Model Inputs'!Q28 -> 2012-10-01 | R6: ='Operator Model Inputs'!R28 -> 2013-04-01 | S6: ='Operator Model Inputs'!S28 -> 2013-10-01 | T6: ='Operator Model Inputs'!T28 -> 2014-04-01 | U6: ='Operator Model Inputs'!U28 -> 2014-10-01 | V6: ='Operator Model Inputs'!V28 -> 2015-04-01 | W6: ='Operator Model Inputs'!W28 -> 2015-10-01 | X6: ='Operator Model Inputs'!X28 -> 2016-04-01 | Y6: ='Operator Model Inputs'!Y28 -> 2016-10-01 | Z6: ='Operator Model Inputs'!Z28 -> 2017-04-01 | AA6: ='Operator Model Inputs'!AA28 -> 2017-10-01 | AB6: ='Operator Model Inputs'!AB28 -> 2018-04-01 | AC6: ='Operator Model Inputs'!AC28 -> 2018-10-01 | AD6: ='Operator Model Inputs'!AD28 -> 2019-04-01 | AE6: ='Operator Model Inputs'!AE28 -> 2019-10-01 | AF6: ='Operator Model Inputs'!AF28 -> 2020-04-01 | AG6: ='Operator Model Inputs'!AG28 -> 2020-10-01 | AH6: ='Operator Model Inputs'!AH28 -> 2021-04-01 | AI6: ='Operator Model Inputs'!AI28 -> 2021-10-01 | AJ6: ='Operator Model Inputs'!AJ28 -> 2022-04-01 | AK6: ='Operator Model Inputs'!AK28 -> 2022-10-01 | AL6: ='Operator Model Inputs'!AL28 -> 2023-04-01 | AM6: ='Operator Model Inputs'!AM28 -> 2023-10-01 | AN6: ='Operator Model Inputs'!AN28 -> 2024-04-01 | AO6: ='Operator Model Inputs'!AO28 -> 2024-10-01 | AP6: ='Operator Model Inputs'!AP28 -> 2025-04-01 | AQ6: ='Operator Model Inputs'!AQ28 -> 2025-10-01 | AR6: ='Operator Model Inputs'!AR28 -> 2026-04-01 | AS6: ='Operator Model Inputs'!AS28 -> 2026-10-01 | AT6: ='Operator Model Inputs'!AT28 -> 2027-04-01 | AU6: ='Operator Model Inputs'!AU28 -> 2027-10-01 | AV6: ='Operator Model Inputs'!AV28 -> 2028-04-01 | AW6: ='Operator Model Inputs'!AW28 -> 2028-10-01 | AX6: ='Operator Model Inputs'!AX28 -> 2029-04-01 | AY6: ='Operator Model Inputs'!AY28 -> 2029-10-01 | AZ6: ='Operator Model Inputs'!AZ28 -> 2030-04-01 | BA6: ='Operator Model Inputs'!BA28 -> 2030-10-01 | BB6: ='Operator Model Inputs'!BB28 -> 2031-04-01 | BC6: ='Operator Model Inputs'!BC28 -> 2031-10-01 | BD6: ='Operator Model Inputs'!BD28 -> 2032-04-01 | BE6: ='Operator Model Inputs'!BE28 -> 2032-10-01 | BF6: ='Operator Model Inputs'!BF28 -> 2033-04-01 | BG6: ='Operator Model Inputs'!BG28 -> 2033-10-01 | BH6: ='Operator Model Inputs'!BH28 -> 2034-04-01 | BI6: ='Operator Model Inputs'!BI28 -> 2034-10-01 | BJ6: ='Operator Model Inputs'!BJ28 -> 2035-04-01 | BK6: ='Operator Model Inputs'!BK28 -> 2035-10-01 | BL6: ='Operator Model Inputs'!BL28 -> 2036-04-01 | BM6: ='Operator Model Inputs'!BM28 -> 2036-10-01 | BN6: ='Operator Model Inputs'!BN28 -> 2037-04-01 | BO6: ='Operator Model Inputs'!BO28 -> 2037-10-01 | BP6: ='Operator Model Inputs'!BP28 -> 2038-04-01 | BQ6: ='Operator Model Inputs'!BQ28 -> 2038-10-01 | BR6: ='Operator Model Inputs'!BR28 -> 2039-04-01 | BS6: ='Operator Model Inputs'!BS28 -> 2039-10-01 | BT6: ='Operator Model Inputs'!BT28 -> 2040-04-01 | BU6: ='Operator Model Inputs'!BU28 -> 2040-10-01 | BV6: ='Operator Model Inputs'!BV28 -> 2041-04-01 | BW6: ='Operator Model Inputs'!BW28 -> 2041-10-01 | BX6: ='Operator Model Inputs'!BX28 -> 2042-04-01 | BY6: ='Operator Model Inputs'!BY28 -> 2042-10-01 | BZ6: ='Operator Model Inputs'!BZ28 -> 2043-04-01 | CA6: ='Operator Model Inputs'!CA28 -> 2043-10-01 | CB6: ='Operator Model Inputs'!CB28 -> 2044-04-01 | CC6: ='Operator Model Inputs'!CC28 -> 2044-10-01 | CD6: ='Operator Model Inputs'!CD28 -> 2045-04-01 | CE6: ='Operator Model Inputs'!CE28 -> 2045-10-01 | CF6: ='Operator Model Inputs'!CF28 -> 2046-04-01 | CG6: ='Operator Model Inputs'!CG28 -> 2046-10-01 | CH6: ='Operator Model Inputs'!CH28 -> 2047-04-01 | CI6: ='Operator Model Inputs'!CI28 -> 2047-10-01 | CJ6: ='Operator Model Inputs'!CJ28 -> 2048-04-01 | CK6: ='Operator Model Inputs'!CK28 -> 2048-10-01 | CL6: ='Operator Model Inputs'!CL28 -> 2049-04-01 | CM6: ='Operator Model Inputs'!CM28 -> 2049-10-01 | CN6: ='Operator Model Inputs'!CN28 -> 2050-04-01 | CO6: ='Operator Model Inputs'!CO28 -> 2050-10-01 | CP6: ='Operator Model Inputs'!CP28 -> 2051-04-01 | CQ6: ='Operator Model Inputs'!CQ28 -> 2051-10-01 | CR6: ='Operator Model Inputs'!CR28 -> 2052-04-01
A7: ='Operator Model Inputs'!A29 -> Period end | F7: ='Operator Model Inputs'!F29 -> 2007-09-30 | G7: ='Operator Model Inputs'!G29 -> 2008-03-31 | H7: ='Operator Model Inputs'!H29 -> 2008-09-30 | I7: ='Operator Model Inputs'!I29 -> 2009-03-31 | J7: ='Operator Model Inputs'!J29 -> 2009-09-30 | K7: ='Operator Model Inputs'!K29 -> 2010-03-31 | L7: ='Operator Model Inputs'!L29 -> 2010-09-30 | M7: ='Operator Model Inputs'!M29 -> 2011-03-31 | N7: ='Operator Model Inputs'!N29 -> 2011-09-30 | O7: ='Operator Model Inputs'!O29 -> 2012-03-31 | P7: ='Operator Model Inputs'!P29 -> 2012-09-30 | Q7: ='Operator Model Inputs'!Q29 -> 2013-03-31 | R7: ='Operator Model Inputs'!R29 -> 2013-09-30 | S7: ='Operator Model Inputs'!S29 -> 2014-03-31 | T7: ='Operator Model Inputs'!T29 -> 2014-09-30 | U7: ='Operator Model Inputs'!U29 -> 2015-03-31 | V7: ='Operator Model Inputs'!V29 -> 2015-09-30 | W7: ='Operator Model Inputs'!W29 -> 2016-03-31 | X7: ='Operator Model Inputs'!X29 -> 2016-09-30 | Y7: ='Operator Model Inputs'!Y29 -> 2017-03-31 | Z7: ='Operator Model Inputs'!Z29 -> 2017-09-30 | AA7: ='Operator Model Inputs'!AA29 -> 2018-03-31 | AB7: ='Operator Model Inputs'!AB29 -> 2018-09-30 | AC7: ='Operator Model Inputs'!AC29 -> 2019-03-31 | AD7: ='Operator Model Inputs'!AD29 -> 2019-09-30 | AE7: ='Operator Model Inputs'!AE29 -> 2020-03-31 | AF7: ='Operator Model Inputs'!AF29 -> 2020-09-30 | AG7: ='Operator Model Inputs'!AG29 -> 2021-03-31 | AH7: ='Operator Model Inputs'!AH29 -> 2021-09-30 | AI7: ='Operator Model Inputs'!AI29 -> 2022-03-31 | AJ7: ='Operator Model Inputs'!AJ29 -> 2022-09-30 | AK7: ='Operator Model Inputs'!AK29 -> 2023-03-31 | AL7: ='Operator Model Inputs'!AL29 -> 2023-09-30 | AM7: ='Operator Model Inputs'!AM29 -> 2024-03-31 | AN7: ='Operator Model Inputs'!AN29 -> 2024-09-30 | AO7: ='Operator Model Inputs'!AO29 -> 2025-03-31 | AP7: ='Operator Model Inputs'!AP29 -> 2025-09-30 | AQ7: ='Operator Model Inputs'!AQ29 -> 2026-03-31 | AR7: ='Operator Model Inputs'!AR29 -> 2026-09-30 | AS7: ='Operator Model Inputs'!AS29 -> 2027-03-31 | AT7: ='Operator Model Inputs'!AT29 -> 2027-09-30 | AU7: ='Operator Model Inputs'!AU29 -> 2028-03-31 | AV7: ='Operator Model Inputs'!AV29 -> 2028-09-30 | AW7: ='Operator Model Inputs'!AW29 -> 2029-03-31 | AX7: ='Operator Model Inputs'!AX29 -> 2029-09-30 | AY7: ='Operator Model Inputs'!AY29 -> 2030-03-31 | AZ7: ='Operator Model Inputs'!AZ29 -> 2030-09-30 | BA7: ='Operator Model Inputs'!BA29 -> 2031-03-31 | BB7: ='Operator Model Inputs'!BB29 -> 2031-09-30 | BC7: ='Operator Model Inputs'!BC29 -> 2032-03-31 | BD7: ='Operator Model Inputs'!BD29 -> 2032-09-30 | BE7: ='Operator Model Inputs'!BE29 -> 2033-03-31 | BF7: ='Operator Model Inputs'!BF29 -> 2033-09-30 | BG7: ='Operator Model Inputs'!BG29 -> 2034-03-31 | BH7: ='Operator Model Inputs'!BH29 -> 2034-09-30 | BI7: ='Operator Model Inputs'!BI29 -> 2035-03-31 | BJ7: ='Operator Model Inputs'!BJ29 -> 2035-09-30 | BK7: ='Operator Model Inputs'!BK29 -> 2036-03-31 | BL7: ='Operator Model Inputs'!BL29 -> 2036-09-30 | BM7: ='Operator Model Inputs'!BM29 -> 2037-03-31 | BN7: ='Operator Model Inputs'!BN29 -> 2037-09-30 | BO7: ='Operator Model Inputs'!BO29 -> 2038-03-31 | BP7: ='Operator Model Inputs'!BP29 -> 2038-09-30 | BQ7: ='Operator Model Inputs'!BQ29 -> 2039-03-31 | BR7: ='Operator Model Inputs'!BR29 -> 2039-09-30 | BS7: ='Operator Model Inputs'!BS29 -> 2040-03-31 | BT7: ='Operator Model Inputs'!BT29 -> 2040-09-30 | BU7: ='Operator Model Inputs'!BU29 -> 2041-03-31 | BV7: ='Operator Model Inputs'!BV29 -> 2041-09-30 | BW7: ='Operator Model Inputs'!BW29 -> 2042-03-31 | BX7: ='Operator Model Inputs'!BX29 -> 2042-09-30 | BY7: ='Operator Model Inputs'!BY29 -> 2043-03-31 | BZ7: ='Operator Model Inputs'!BZ29 -> 2043-09-30 | CA7: ='Operator Model Inputs'!CA29 -> 2044-03-31 | CB7: ='Operator Model Inputs'!CB29 -> 2044-09-30 | CC7: ='Operator Model Inputs'!CC29 -> 2045-03-31 | CD7: ='Operator Model Inputs'!CD29 -> 2045-09-30 | CE7: ='Operator Model Inputs'!CE29 -> 2046-03-31 | CF7: ='Operator Model Inputs'!CF29 -> 2046-09-30 | CG7: ='Operator Model Inputs'!CG29 -> 2047-03-31 | CH7: ='Operator Model Inputs'!CH29 -> 2047-09-30 | CI7: ='Operator Model Inputs'!CI29 -> 2048-03-31 | CJ7: ='Operator Model Inputs'!CJ29 -> 2048-09-30 | CK7: ='Operator Model Inputs'!CK29 -> 2049-03-31 | CL7: ='Operator Model Inputs'!CL29 -> 2049-09-30 | CM7: ='Operator Model Inputs'!CM29 -> 2050-03-31 | CN7: ='Operator Model Inputs'!CN29 -> 2050-09-30 | CO7: ='Operator Model Inputs'!CO29 -> 2051-03-31 | CP7: ='Operator Model Inputs'!CP29 -> 2051-09-30 | CQ7: ='Operator Model Inputs'!CQ29 -> 2052-03-31 | CR7: ='Operator Model Inputs'!CR29 -> 2052-09-30
A8: ='Operator Model Inputs'!A30 -> Construction period flag | F8: ='Operator Model Inputs'!F30 -> 1 | G8: ='Operator Model Inputs'!G30 -> 1 | H8: ='Operator Model Inputs'!H30 -> 1 | I8: ='Operator Model Inputs'!I30 -> 1 | J8: ='Operator Model Inputs'!J30 -> 1 | K8: ='Operator Model Inputs'!K30 -> 1 | L8: ='Operator Model Inputs'!L30 -> 1 | M8: ='Operator Model Inputs'!M30 -> 1 | N8: ='Operator Model Inputs'!N30 -> 0 | O8: ='Operator Model Inputs'!O30 -> 0 | P8: ='Operator Model Inputs'!P30 -> 0 | Q8: ='Operator Model Inputs'!Q30 -> 0 | R8: ='Operator Model Inputs'!R30 -> 0 | S8: ='Operator Model Inputs'!S30 -> 0 | T8: ='Operator Model Inputs'!T30 -> 0 | U8: ='Operator Model Inputs'!U30 -> 0 | V8: ='Operator Model Inputs'!V30 -> 0 | W8: ='Operator Model Inputs'!W30 -> 0 | X8: ='Operator Model Inputs'!X30 -> 0 | Y8: ='Operator Model Inputs'!Y30 -> 0 | Z8: ='Operator Model Inputs'!Z30 -> 0 | AA8: ='Operator Model Inputs'!AA30 -> 0 | AB8: ='Operator Model Inputs'!AB30 -> 0 | AC8: ='Operator Model Inputs'!AC30 -> 0 | AD8: ='Operator Model Inputs'!AD30 -> 0 | AE8: ='Operator Model Inputs'!AE30 -> 0 | AF8: ='Operator Model Inputs'!AF30 -> 0 | AG8: ='Operator Model Inputs'!AG30 -> 0 | AH8: ='Operator Model Inputs'!AH30 -> 0 | AI8: ='Operator Model Inputs'!AI30 -> 0 | AJ8: ='Operator Model Inputs'!AJ30 -> 0 | AK8: ='Operator Model Inputs'!AK30 -> 0 | AL8: ='Operator Model Inputs'!AL30 -> 0 | AM8: ='Operator Model Inputs'!AM30 -> 0 | AN8: ='Operator Model Inputs'!AN30 -> 0 | AO8: ='Operator Model Inputs'!AO30 -> 0 | AP8: ='Operator Model Inputs'!AP30 -> 0 | AQ8: ='Operator Model Inputs'!AQ30 -> 0 | AR8: ='Operator Model Inputs'!AR30 -> 0 | AS8: ='Operator Model Inputs'!AS30 -> 0 | AT8: ='Operator Model Inputs'!AT30 -> 0 | AU8: ='Operator Model Inputs'!AU30 -> 0 | AV8: ='Operator Model Inputs'!AV30 -> 0 | AW8: ='Operator Model Inputs'!AW30 -> 0 | AX8: ='Operator Model Inputs'!AX30 -> 0 | AY8: ='Operator Model Inputs'!AY30 -> 0 | AZ8: ='Operator Model Inputs'!AZ30 -> 0 | BA8: ='Operator Model Inputs'!BA30 -> 0 | BB8: ='Operator Model Inputs'!BB30 -> 0 | BC8: ='Operator Model Inputs'!BC30 -> 0 | BD8: ='Operator Model Inputs'!BD30 -> 0 | BE8: ='Operator Model Inputs'!BE30 -> 0 | BF8: ='Operator Model Inputs'!BF30 -> 0 | BG8: ='Operator Model Inputs'!BG30 -> 0 | BH8: ='Operator Model Inputs'!BH30 -> 0 | BI8: ='Operator Model Inputs'!BI30 -> 0 | BJ8: ='Operator Model Inputs'!BJ30 -> 0 | BK8: ='Operator Model Inputs'!BK30 -> 0 | BL8: ='Operator Model Inputs'!BL30 -> 0 | BM8: ='Operator Model Inputs'!BM30 -> 0 | BN8: ='Operator Model Inputs'!BN30 -> 0 | BO8: ='Operator Model Inputs'!BO30 -> 0 | BP8: ='Operator Model Inputs'!BP30 -> 0 | BQ8: ='Operator Model Inputs'!BQ30 -> 0 | BR8: ='Operator Model Inputs'!BR30 -> 0 | BS8: ='Operator Model Inputs'!BS30 -> 0 | BT8: ='Operator Model Inputs'!BT30 -> 0 | BU8: ='Operator Model Inputs'!BU30 -> 0 | BV8: ='Operator Model Inputs'!BV30 -> 0 | BW8: ='Operator Model Inputs'!BW30 -> 0 | BX8: ='Operator Model Inputs'!BX30 -> 0 | BY8: ='Operator Model Inputs'!BY30 -> 0 | BZ8: ='Operator Model Inputs'!BZ30 -> 0 | CA8: ='Operator Model Inputs'!CA30 -> 0 | CB8: ='Operator Model Inputs'!CB30 -> 0 | CC8: ='Operator Model Inputs'!CC30 -> 0 | CD8: ='Operator Model Inputs'!CD30 -> 0 | CE8: ='Operator Model Inputs'!CE30 -> 0 | CF8: ='Operator Model Inputs'!CF30 -> 0 | CG8: ='Operator Model Inputs'!CG30 -> 0 | CH8: ='Operator Model Inputs'!CH30 -> 0 | CI8: ='Operator Model Inputs'!CI30 -> 0 | CJ8: ='Operator Model Inputs'!CJ30 -> 0 | CK8: ='Operator Model Inputs'!CK30 -> 0 | CL8: ='Operator Model Inputs'!CL30 -> 0 | CM8: ='Operator Model Inputs'!CM30 -> 0 | CN8: ='Operator Model Inputs'!CN30 -> 0 | CO8: ='Operator Model Inputs'!CO30 -> 0 | CP8: ='Operator Model Inputs'!CP30 -> 0 | CQ8: ='Operator Model Inputs'!CQ30 -> 0 | CR8: ='Operator Model Inputs'!CR30 -> 0
A9: ='Operator Model Inputs'!A33 -> Services term flag | F9: ='Operator Model Inputs'!F33 -> 0 | G9: ='Operator Model Inputs'!G33 -> 0 | H9: ='Operator Model Inputs'!H33 -> 0 | I9: ='Operator Model Inputs'!I33 -> 0 | J9: ='Operator Model Inputs'!J33 -> 0 | K9: ='Operator Model Inputs'!K33 -> 0 | L9: ='Operator Model Inputs'!L33 -> 1 | M9: ='Operator Model Inputs'!M33 -> 1 | N9: ='Operator Model Inputs'!N33 -> 1 | O9: ='Operator Model Inputs'!O33 -> 1 | P9: ='Operator Model Inputs'!P33 -> 1 | Q9: ='Operator Model Inputs'!Q33 -> 1 | R9: ='Operator Model Inputs'!R33 -> 1 | S9: ='Operator Model Inputs'!S33 -> 1 | T9: ='Operator Model Inputs'!T33 -> 1 | U9: ='Operator Model Inputs'!U33 -> 1 | V9: ='Operator Model Inputs'!V33 -> 1 | W9: ='Operator Model Inputs'!W33 -> 1 | X9: ='Operator Model Inputs'!X33 -> 1 | Y9: ='Operator Model Inputs'!Y33 -> 1 | Z9: ='Operator Model Inputs'!Z33 -> 1 | AA9: ='Operator Model Inputs'!AA33 -> 1 | AB9: ='Operator Model Inputs'!AB33 -> 1 | AC9: ='Operator Model Inputs'!AC33 -> 1 | AD9: ='Operator Model Inputs'!AD33 -> 1 | AE9: ='Operator Model Inputs'!AE33 -> 1 | AF9: ='Operator Model Inputs'!AF33 -> 1 | AG9: ='Operator Model Inputs'!AG33 -> 1 | AH9: ='Operator Model Inputs'!AH33 -> 1 | AI9: ='Operator Model Inputs'!AI33 -> 1 | AJ9: ='Operator Model Inputs'!AJ33 -> 1 | AK9: ='Operator Model Inputs'!AK33 -> 1 | AL9: ='Operator Model Inputs'!AL33 -> 1 | AM9: ='Operator Model Inputs'!AM33 -> 1 | AN9: ='Operator Model Inputs'!AN33 -> 1 | AO9: ='Operator Model Inputs'!AO33 -> 1 | AP9: ='Operator Model Inputs'!AP33 -> 1 | AQ9: ='Operator Model Inputs'!AQ33 -> 1 | AR9: ='Operator Model Inputs'!AR33 -> 1 | AS9: ='Operator Model Inputs'!AS33 -> 1 | AT9: ='Operator Model Inputs'!AT33 -> 1 | AU9: ='Operator Model Inputs'!AU33 -> 1 | AV9: ='Operator Model Inputs'!AV33 -> 1 | AW9: ='Operator Model Inputs'!AW33 -> 1 | AX9: ='Operator Model Inputs'!AX33 -> 1 | AY9: ='Operator Model Inputs'!AY33 -> 1 | AZ9: ='Operator Model Inputs'!AZ33 -> 1 | BA9: ='Operator Model Inputs'!BA33 -> 1 | BB9: ='Operator Model Inputs'!BB33 -> 1 | BC9: ='Operator Model Inputs'!BC33 -> 1 | BD9: ='Operator Model Inputs'!BD33 -> 1 | BE9: ='Operator Model Inputs'!BE33 -> 1 | BF9: ='Operator Model Inputs'!BF33 -> 1 | BG9: ='Operator Model Inputs'!BG33 -> 1 | BH9: ='Operator Model Inputs'!BH33 -> 1 | BI9: ='Operator Model Inputs'!BI33 -> 1 | BJ9: ='Operator Model Inputs'!BJ33 -> 1 | BK9: ='Operator Model Inputs'!BK33 -> 1 | BL9: ='Operator Model Inputs'!BL33 -> 1 | BM9: ='Operator Model Inputs'!BM33 -> 1 | BN9: ='Operator Model Inputs'!BN33 -> 1 | BO9: ='Operator Model Inputs'!BO33 -> 1 | BP9: ='Operator Model Inputs'!BP33 -> 1 | BQ9: ='Operator Model Inputs'!BQ33 -> 1 | BR9: ='Operator Model Inputs'!BR33 -> 1 | BS9: ='Operator Model Inputs'!BS33 -> 1 | BT9: ='Operator Model Inputs'!BT33 -> 1 | BU9: ='Operator Model Inputs'!BU33 -> 1 | BV9: ='Operator Model Inputs'!BV33 -> 1 | BW9: ='Operator Model Inputs'!BW33 -> 1 | BX9: ='Operator Model Inputs'!BX33 -> 0 | BY9: ='Operator Model Inputs'!BY33 -> 0 | BZ9: ='Operator Model Inputs'!BZ33 -> 0 | CA9: ='Operator Model Inputs'!CA33 -> 0 | CB9: ='Operator Model Inputs'!CB33 -> 0 | CC9: ='Operator Model Inputs'!CC33 -> 0 | CD9: ='Operator Model Inputs'!CD33 -> 0 | CE9: ='Operator Model Inputs'!CE33 -> 0 | CF9: ='Operator Model Inputs'!CF33 -> 0 | CG9: ='Operator Model Inputs'!CG33 -> 0 | CH9: ='Operator Model Inputs'!CH33 -> 0 | CI9: ='Operator Model Inputs'!CI33 -> 0 | CJ9: ='Operator Model Inputs'!CJ33 -> 0 | CK9: ='Operator Model Inputs'!CK33 -> 0 | CL9: ='Operator Model Inputs'!CL33 -> 0 | CM9: ='Operator Model Inputs'!CM33 -> 0 | CN9: ='Operator Model Inputs'!CN33 -> 0 | CO9: ='Operator Model Inputs'!CO33 -> 0 | CP9: ='Operator Model Inputs'!CP33 -> 0 | CQ9: ='Operator Model Inputs'!CQ33 -> 0 | CR9: ='Operator Model Inputs'!CR33 -> 0
A10: ='Operator Model Inputs'!A59 -> Selected model unitary charge inflation factor | F10: ='Operator Model Inputs'!F59 -> 1.025 | G10: ='Operator Model Inputs'!G59 -> 1.025 | H10: ='Operator Model Inputs'!H59 -> 1.050625 | I10: ='Operator Model Inputs'!I59 -> 1.050625 | J10: ='Operator Model Inputs'!J59 -> 1.076890625 | K10: ='Operator Model Inputs'!K59 -> 1.076890625 | L10: ='Operator Model Inputs'!L59 -> 1.103812891 | M10: ='Operator Model Inputs'!M59 -> 1.103812891 | N10: ='Operator Model Inputs'!N59 -> 1.131408213 | O10: ='Operator Model Inputs'!O59 -> 1.131408213 | P10: ='Operator Model Inputs'!P59 -> 1.159693418 | Q10: ='Operator Model Inputs'!Q59 -> 1.159693418 | R10: ='Operator Model Inputs'!R59 -> 1.188685754 | S10: ='Operator Model Inputs'!S59 -> 1.188685754 | T10: ='Operator Model Inputs'!T59 -> 1.218402898 | U10: ='Operator Model Inputs'!U59 -> 1.218402898 | V10: ='Operator Model Inputs'!V59 -> 1.24886297 | W10: ='Operator Model Inputs'!W59 -> 1.24886297 | X10: ='Operator Model Inputs'!X59 -> 1.280084544 | Y10: ='Operator Model Inputs'!Y59 -> 1.280084544 | Z10: ='Operator Model Inputs'!Z59 -> 1.312086658 | AA10: ='Operator Model Inputs'!AA59 -> 1.312086658 | AB10: ='Operator Model Inputs'!AB59 -> 1.344888824 | AC10: ='Operator Model Inputs'!AC59 -> 1.344888824 | AD10: ='Operator Model Inputs'!AD59 -> 1.378511045 | AE10: ='Operator Model Inputs'!AE59 -> 1.378511045 | AF10: ='Operator Model Inputs'!AF59 -> 1.412973821 | AG10: ='Operator Model Inputs'!AG59 -> 1.412973821 | AH10: ='Operator Model Inputs'!AH59 -> 1.448298166 | AI10: ='Operator Model Inputs'!AI59 -> 1.448298166 | AJ10: ='Operator Model Inputs'!AJ59 -> 1.484505621 | AK10: ='Operator Model Inputs'!AK59 -> 1.484505621 | AL10: ='Operator Model Inputs'!AL59 -> 1.521618261 | AM10: ='Operator Model Inputs'!AM59 -> 1.521618261 | AN10: ='Operator Model Inputs'!AN59 -> 1.559658718 | AO10: ='Operator Model Inputs'!AO59 -> 1.559658718 | AP10: ='Operator Model Inputs'!AP59 -> 1.598650186 | AQ10: ='Operator Model Inputs'!AQ59 -> 1.598650186 | AR10: ='Operator Model Inputs'!AR59 -> 1.63861644 | AS10: ='Operator Model Inputs'!AS59 -> 1.63861644 | AT10: ='Operator Model Inputs'!AT59 -> 1.679581851 | AU10: ='Operator Model Inputs'!AU59 -> 1.679581851 | AV10: ='Operator Model Inputs'!AV59 -> 1.721571398 | AW10: ='Operator Model Inputs'!AW59 -> 1.721571398 | AX10: ='Operator Model Inputs'!AX59 -> 1.764610683 | AY10: ='Operator Model Inputs'!AY59 -> 1.764610683 | AZ10: ='Operator Model Inputs'!AZ59 -> 1.80872595 | BA10: ='Operator Model Inputs'!BA59 -> 1.80872595 | BB10: ='Operator Model Inputs'!BB59 -> 1.853944098 | BC10: ='Operator Model Inputs'!BC59 -> 1.853944098 | BD10: ='Operator Model Inputs'!BD59 -> 1.900292701 | BE10: ='Operator Model Inputs'!BE59 -> 1.900292701 | BF10: ='Operator Model Inputs'!BF59 -> 1.947800018 | BG10: ='Operator Model Inputs'!BG59 -> 1.947800018 | BH10: ='Operator Model Inputs'!BH59 -> 1.996495019 | BI10: ='Operator Model Inputs'!BI59 -> 1.996495019 | BJ10: ='Operator Model Inputs'!BJ59 -> 2.046407394 | BK10: ='Operator Model Inputs'!BK59 -> 2.046407394 | BL10: ='Operator Model Inputs'!BL59 -> 2.097567579 | BM10: ='Operator Model Inputs'!BM59 -> 2.097567579 | BN10: ='Operator Model Inputs'!BN59 -> 2.150006769 | BO10: ='Operator Model Inputs'!BO59 -> 2.150006769 | BP10: ='Operator Model Inputs'!BP59 -> 2.203756938 | BQ10: ='Operator Model Inputs'!BQ59 -> 2.203756938 | BR10: ='Operator Model Inputs'!BR59 -> 2.258850861 | BS10: ='Operator Model Inputs'!BS59 -> 2.258850861 | BT10: ='Operator Model Inputs'!BT59 -> 2.315322133 | BU10: ='Operator Model Inputs'!BU59 -> 2.315322133 | BV10: ='Operator Model Inputs'!BV59 -> 2.373205186 | BW10: ='Operator Model Inputs'!BW59 -> 2.373205186 | BX10: ='Operator Model Inputs'!BX59 -> 2.432535316 | BY10: ='Operator Model Inputs'!BY59 -> 2.432535316 | BZ10: ='Operator Model Inputs'!BZ59 -> 2.493348699 | CA10: ='Operator Model Inputs'!CA59 -> 2.493348699 | CB10: ='Operator Model Inputs'!CB59 -> 2.555682416 | CC10: ='Operator Model Inputs'!CC59 -> 2.555682416 | CD10: ='Operator Model Inputs'!CD59 -> 2.619574476 | CE10: ='Operator Model Inputs'!CE59 -> 2.619574476 | CF10: ='Operator Model Inputs'!CF59 -> 2.685063838 | CG10: ='Operator Model Inputs'!CG59 -> 2.685063838 | CH10: ='Operator Model Inputs'!CH59 -> 2.752190434 | CI10: ='Operator Model Inputs'!CI59 -> 2.752190434 | CJ10: ='Operator Model Inputs'!CJ59 -> 2.820995195 | CK10: ='Operator Model Inputs'!CK59 -> 2.820995195 | CL10: ='Operator Model Inputs'!CL59 -> 2.891520075 | CM10: ='Operator Model Inputs'!CM59 -> 2.891520075 | CN10: ='Operator Model Inputs'!CN59 -> 2.963808077 | CO10: ='Operator Model Inputs'!CO59 -> 2.963808077 | CP10: ='Operator Model Inputs'!CP59 -> 3.037903279 | CQ10: ='Operator Model Inputs'!CQ59 -> 3.037903279 | CR10: ='Operator Model Inputs'!CR59 -> 3.113850861
A11: ='Operator Model Inputs'!A60 -> Selected actual unitary charge inflation factor | F11: ='Operator Model Inputs'!F60 -> 1.025 | G11: ='Operator Model Inputs'!G60 -> 1.025 | H11: ='Operator Model Inputs'!H60 -> 1.050625 | I11: ='Operator Model Inputs'!I60 -> 1.050625 | J11: ='Operator Model Inputs'!J60 -> 1.076890625 | K11: ='Operator Model Inputs'!K60 -> 1.076890625 | L11: ='Operator Model Inputs'!L60 -> 1.103812891 | M11: ='Operator Model Inputs'!M60 -> 1.103812891 | N11: ='Operator Model Inputs'!N60 -> 1.136927277 | O11: ='Operator Model Inputs'!O60 -> 1.136927277 | P11: ='Operator Model Inputs'!P60 -> 1.171035096 | Q11: ='Operator Model Inputs'!Q60 -> 1.171035096 | R11: ='Operator Model Inputs'!R60 -> 1.206166149 | S11: ='Operator Model Inputs'!S60 -> 1.206166149 | T11: ='Operator Model Inputs'!T60 -> 1.236320302 | U11: ='Operator Model Inputs'!U60 -> 1.236320302 | V11: ='Operator Model Inputs'!V60 -> 1.26722831 | W11: ='Operator Model Inputs'!W60 -> 1.26722831 | X11: ='Operator Model Inputs'!X60 -> 1.298909018 | Y11: ='Operator Model Inputs'!Y60 -> 1.298909018 | Z11: ='Operator Model Inputs'!Z60 -> 1.331381743 | AA11: ='Operator Model Inputs'!AA60 -> 1.331381743 | AB11: ='Operator Model Inputs'!AB60 -> 1.364666287 | AC11: ='Operator Model Inputs'!AC60 -> 1.364666287 | AD11: ='Operator Model Inputs'!AD60 -> 1.398782944 | AE11: ='Operator Model Inputs'!AE60 -> 1.398782944 | AF11: ='Operator Model Inputs'!AF60 -> 1.433752517 | AG11: ='Operator Model Inputs'!AG60 -> 1.433752517 | AH11: ='Operator Model Inputs'!AH60 -> 1.46959633 | AI11: ='Operator Model Inputs'!AI60 -> 1.46959633 | AJ11: ='Operator Model Inputs'!AJ60 -> 1.506336239 | AK11: ='Operator Model Inputs'!AK60 -> 1.506336239 | AL11: ='Operator Model Inputs'!AL60 -> 1.543994644 | AM11: ='Operator Model Inputs'!AM60 -> 1.543994644 | AN11: ='Operator Model Inputs'!AN60 -> 1.582594511 | AO11: ='Operator Model Inputs'!AO60 -> 1.582594511 | AP11: ='Operator Model Inputs'!AP60 -> 1.622159373 | AQ11: ='Operator Model Inputs'!AQ60 -> 1.622159373 | AR11: ='Operator Model Inputs'!AR60 -> 1.662713358 | AS11: ='Operator Model Inputs'!AS60 -> 1.662713358 | AT11: ='Operator Model Inputs'!AT60 -> 1.704281192 | AU11: ='Operator Model Inputs'!AU60 -> 1.704281192 | AV11: ='Operator Model Inputs'!AV60 -> 1.746888221 | AW11: ='Operator Model Inputs'!AW60 -> 1.746888221 | AX11: ='Operator Model Inputs'!AX60 -> 1.790560427 | AY11: ='Operator Model Inputs'!AY60 -> 1.790560427 | AZ11: ='Operator Model Inputs'!AZ60 -> 1.835324438 | BA11: ='Operator Model Inputs'!BA60 -> 1.835324438 | BB11: ='Operator Model Inputs'!BB60 -> 1.881207549 | BC11: ='Operator Model Inputs'!BC60 -> 1.881207549 | BD11: ='Operator Model Inputs'!BD60 -> 1.928237737 | BE11: ='Operator Model Inputs'!BE60 -> 1.928237737 | BF11: ='Operator Model Inputs'!BF60 -> 1.976443681 | BG11: ='Operator Model Inputs'!BG60 -> 1.976443681 | BH11: ='Operator Model Inputs'!BH60 -> 2.025854773 | BI11: ='Operator Model Inputs'!BI60 -> 2.025854773 | BJ11: ='Operator Model Inputs'!BJ60 -> 2.076501142 | BK11: ='Operator Model Inputs'!BK60 -> 2.076501142 | BL11: ='Operator Model Inputs'!BL60 -> 2.128413671 | BM11: ='Operator Model Inputs'!BM60 -> 2.128413671 | BN11: ='Operator Model Inputs'!BN60 -> 2.181624012 | BO11: ='Operator Model Inputs'!BO60 -> 2.181624012 | BP11: ='Operator Model Inputs'!BP60 -> 2.236164613 | BQ11: ='Operator Model Inputs'!BQ60 -> 2.236164613 | BR11: ='Operator Model Inputs'!BR60 -> 2.292068728 | BS11: ='Operator Model Inputs'!BS60 -> 2.292068728 | BT11: ='Operator Model Inputs'!BT60 -> 2.349370446 | BU11: ='Operator Model Inputs'!BU60 -> 2.349370446 | BV11: ='Operator Model Inputs'!BV60 -> 2.408104707 | BW11: ='Operator Model Inputs'!BW60 -> 2.408104707 | BX11: ='Operator Model Inputs'!BX60 -> 2.468307325 | BY11: ='Operator Model Inputs'!BY60 -> 2.468307325 | BZ11: ='Operator Model Inputs'!BZ60 -> 2.530015008 | CA11: ='Operator Model Inputs'!CA60 -> 2.530015008 | CB11: ='Operator Model Inputs'!CB60 -> 2.593265383 | CC11: ='Operator Model Inputs'!CC60 -> 2.593265383 | CD11: ='Operator Model Inputs'!CD60 -> 2.658097018 | CE11: ='Operator Model Inputs'!CE60 -> 2.658097018 | CF11: ='Operator Model Inputs'!CF60 -> 2.724549443 | CG11: ='Operator Model Inputs'!CG60 -> 2.724549443 | CH11: ='Operator Model Inputs'!CH60 -> 2.792663179 | CI11: ='Operator Model Inputs'!CI60 -> 2.792663179 | CJ11: ='Operator Model Inputs'!CJ60 -> 2.862479759 | CK11: ='Operator Model Inputs'!CK60 -> 2.862479759 | CL11: ='Operator Model Inputs'!CL60 -> 2.934041753 | CM11: ='Operator Model Inputs'!CM60 -> 2.934041753 | CN11: ='Operator Model Inputs'!CN60 -> 3.007392797 | CO11: ='Operator Model Inputs'!CO60 -> 3.007392797 | CP11: ='Operator Model Inputs'!CP60 -> 3.082577617 | CQ11: ='Operator Model Inputs'!CQ60 -> 3.082577617 | CR11: ='Operator Model Inputs'!CR60 -> 3.159642057
A13: New asset inputs | B13: Period start | F13: =F6*F8 -> 2007-04-01 | G13: =G6*G8 -> 2007-10-01 | H13: 2008-04-01 | I13: 2008-10-01 | J13: 2009-04-01 | K13: 2009-10-01 | L13: 2010-04-01 | M13: 2010-10-01 | N13: 00:00:00 | O13: 00:00:00 | P13: 00:00:00 | Q13: 00:00:00 | R13: 00:00:00 | S13: 00:00:00 | T13: 00:00:00 | U13: 00:00:00 | V13: 00:00:00 | W13: 00:00:00 | X13: 00:00:00 | Y13: 00:00:00 | Z13: 00:00:00 | AA13: 00:00:00 | AB13: 00:00:00 | AC13: 00:00:00 | AD13: 00:00:00 | AE13: 00:00:00 | AF13: 00:00:00 | AG13: 00:00:00 | AH13: 00:00:00 | AI13: 00:00:00 | AJ13: 00:00:00 | AK13: 00:00:00 | AL13: 00:00:00 | AM13: 00:00:00 | AN13: 00:00:00 | AO13: 00:00:00 | AP13: 00:00:00 | AQ13: 00:00:00 | AR13: 00:00:00 | AS13: 00:00:00 | AT13: 00:00:00 | AU13: 00:00:00 | AV13: 00:00:00 | AW13: 00:00:00 | AX13: 00:00:00 | AY13: 00:00:00 | AZ13: 00:00:00 | BA13: 00:00:00 | BB13: 00:00:00 | BC13: 00:00:00 | BD13: 00:00:00 | BE13: 00:00:00 | BF13: 00:00:00 | BG13: 00:00:00 | BH13: 00:00:00 | BI13: 00:00:00 | BJ13: 00:00:00 | BK13: 00:00:00 | BL13: 00:00:00 | BM13: 00:00:00 | BN13: 00:00:00 | BO13: 00:00:00 | BP13: 00:00:00 | BQ13: 00:00:00 | BR13: 00:00:00 | BS13: =BS6*BS8 -> 00:00:00 | BT13: 00:00:00 | BU13: 00:00:00 | BV13: 00:00:00 | BW13: 00:00:00 | BX13: 00:00:00 | BY13: 00:00:00 | BZ13: 00:00:00 | CA13: 00:00:00 | CB13: 00:00:00 | CC13: 00:00:00 | CD13: 00:00:00 | CE13: 00:00:00 | CF13: 00:00:00 | CG13: 00:00:00 | CH13: 00:00:00 | CI13: 00:00:00 | CJ13: 00:00:00 | CK13: 00:00:00 | CL13: 00:00:00 | CM13: 00:00:00 | CN13: 00:00:00 | CO13: 00:00:00 | CP13: 00:00:00 | CQ13: 00:00:00 | CR13: 00:00:00
B14: Period end | F14: =F7*F8 -> 2007-09-30 | G14: =G7*G8 -> 2008-03-31 | H14: 2008-09-30 | I14: 2009-03-31 | J14: 2009-09-30 | K14: 2010-03-31 | L14: 2010-09-30 | M14: 2011-03-31 | N14: 00:00:00 | O14: 00:00:00 | P14: 00:00:00 | Q14: 00:00:00 | R14: 00:00:00 | S14: 00:00:00 | T14: 00:00:00 | U14: 00:00:00 | V14: 00:00:00 | W14: 00:00:00 | X14: 00:00:00 | Y14: 00:00:00 | Z14: 00:00:00 | AA14: 00:00:00 | AB14: 00:00:00 | AC14: 00:00:00 | AD14: 00:00:00 | AE14: 00:00:00 | AF14: 00:00:00 | AG14: 00:00:00 | AH14: 00:00:00 | AI14: 00:00:00 | AJ14: 00:00:00 | AK14: 00:00:00 | AL14: 00:00:00 | AM14: 00:00:00 | AN14: 00:00:00 | AO14: 00:00:00 | AP14: 00:00:00 | AQ14: 00:00:00 | AR14: 00:00:00 | AS14: 00:00:00 | AT14: 00:00:00 | AU14: 00:00:00 | AV14: 00:00:00 | AW14: 00:00:00 | AX14: 00:00:00 | AY14: 00:00:00 | AZ14: 00:00:00 | BA14: 00:00:00 | BB14: 00:00:00 | BC14: 00:00:00 | BD14: 00:00:00 | BE14: 00:00:00 | BF14: 00:00:00 | BG14: 00:00:00 | BH14: 00:00:00 | BI14: 00:00:00 | BJ14: 00:00:00 | BK14: 00:00:00 | BL14: 00:00:00 | BM14: 00:00:00 | BN14: 00:00:00 | BO14: 00:00:00 | BP14: 00:00:00 | BQ14: 00:00:00 | BR14: 00:00:00 | BS14: =BS7*BS8 -> 00:00:00 | BT14: 00:00:00 | BU14: 00:00:00 | BV14: 00:00:00 | BW14: 00:00:00 | BX14: 00:00:00 | BY14: 00:00:00 | BZ14: 00:00:00 | CA14: 00:00:00 | CB14: 00:00:00 | CC14: 00:00:00 | CD14: 00:00:00 | CE14: 00:00:00 | CF14: 00:00:00 | CG14: 00:00:00 | CH14: 00:00:00 | CI14: 00:00:00 | CJ14: 00:00:00 | CK14: 00:00:00 | CL14: 00:00:00 | CM14: 00:00:00 | CN14: 00:00:00 | CO14: 00:00:00 | CP14: 00:00:00 | CQ14: 00:00:00 | CR14: 00:00:00
A16: Asset revaluations
A17: Actual asset revaluations - scenario 1 | F17: 0 | G17: 0 | H17: 0 | I17: 0 | J17: 0 | K17: 0 | L17: 0 | M17: 0 | N17: 0 | O17: 340000 | P17: 0 | Q17: 0 | R17: 310000 | S17: 0 | T17: 0 | U17: 0 | V17: 0 | W17: 0 | X17: 0 | Y17: 0 | Z17: 0 | AA17: 0 | AB17: 0 | AC17: 0 | AD17: 0 | AE17: 0 | AF17: 0 | AG17: 0 | AH17: 0 | AI17: 0 | AJ17: 0 | AK17: 0 | AL17: 0 | AM17: 0 | AN17: 0 | AO17: 0 | AP17: 0 | AQ17: 0 | AR17: 0 | AS17: 0 | AT17: 0 | AU17: 0 | AV17: 0 | AW17: 0 | AX17: 0 | AY17: 0 | AZ17: 0 | BA17: 0 | BB17: 0 | BC17: 0 | BD17: 0 | BE17: 0 | BF17: 0 | BG17: 0 | BH17: 0 | BI17: 0 | BJ17: 0 | BK17: 0 | BL17: 0 | BM17: 0 | BN17: 0 | BO17: 0 | BP17: 0 | BQ17: 0 | BR17: 0 | BS17: 0 | BT17: 0 | BU17: 0 | BV17: 0 | BW17: 0 | BX17: 0 | BY17: 0 | BZ17: 0 | CA17: 0 | CB17: 0 | CC17: 0 | CD17: 0 | CE17: 0 | CF17: 0 | CG17: 0 | CH17: 0 | CI17: 0 | CJ17: 0 | CK17: 0 | CL17: 0 | CM17: 0 | CN17: 0 | CO17: 0 | CP17: 0 | CQ17: 0 | CR17: 0 | CS17: 0
A18: Actual asset revaluations - scenario 2
A19: Actual asset revaluations - scenario 3
A20: Actual asset revaluations - scenario 4
A21: Actual asset revaluations - scenario 5
A22: Actual asset revaluations | F22: =CHOOSE($B$4,F17,F18,F19,F20,F21) -> 0 | G22: =CHOOSE($B$4,G17,G18,G19,G20,G21) -> 0 | H22: 0 | I22: 0 | J22: 0 | K22: 0 | L22: 0 | M22: 0 | N22: 0 | O22: 340000 | P22: 0 | Q22: 0 | R22: 310000 | S22: 0 | T22: 0 | U22: 0 | V22: 0 | W22: 0 | X22: 0 | Y22: 0 | Z22: 0 | AA22: 0 | AB22: 0 | AC22: 0 | AD22: 0 | AE22: 0 | AF22: 0 | AG22: 0 | AH22: 0 | AI22: 0 | AJ22: 0 | AK22: 0 | AL22: 0 | AM22: 0 | AN22: 0 | AO22: 0 | AP22: 0 | AQ22: 0 | AR22: 0 | AS22: 0 | AT22: 0 | AU22: 0 | AV22: 0 | AW22: 0 | AX22: 0 | AY22: 0 | AZ22: 0 | BA22: 0 | BB22: 0 | BC22: 0 | BD22: 0 | BE22: 0 | BF22: 0 | BG22: 0 | BH22: 0 | BI22: 0 | BJ22: 0 | BK22: 0 | BL22: 0 | BM22: 0 | BN22: 0 | BO22: 0 | BP22: 0 | BQ22: 0 | BR22: 0 | BS22: =CHOOSE($B$4,BS17,BS18,BS19,BS20,BS21) -> 0 | BT22: 0 | BU22: 0 | BV22: 0 | BW22: 0 | BX22: 0 | BY22: 0 | BZ22: 0 | CA22: 0 | CB22: 0 | CC22: 0 | CD22: 0 | CE22: 0 | CF22: 0 | CG22: 0 | CH22: 0 | CI22: 0 | CJ22: 0 | CK22: 0 | CL22: 0 | CM22: 0 | CN22: 0 | CO22: 0 | CP22: 0 | CQ22: 0 | CR22: 0
A24: Asset release profiles
A25: Asset release profile - scenario 1 | F25: 0 | G25: 0 | H25: 0 | I25: 0 | J25: 0 | K25: 0 | L25: 0.7 | M25: 0.3 | N25: 0 | O25: 0 | P25: 0 | Q25: 0 | R25: 0 | S25: 0 | T25: 0 | U25: 0 | V25: 0 | W25: 0 | X25: 0 | Y25: 0 | Z25: 0 | AA25: 0 | AB25: 0 | AC25: 0 | AD25: 0 | AE25: 0 | AF25: 0 | AG25: 0 | AH25: 0 | AI25: 0 | AJ25: 0 | AK25: 0 | AL25: 0 | AM25: 0 | AN25: 0 | AO25: 0 | AP25: 0 | AQ25: 0 | AR25: 0 | AS25: 0 | AT25: 0 | AU25: 0 | AV25: 0 | AW25: 0 | AX25: 0 | AY25: 0 | AZ25: 0 | BA25: 0 | BB25: 0 | BC25: 0 | BD25: 0 | BE25: 0 | BF25: 0 | BG25: 0 | BH25: 0 | BI25: 0 | BJ25: 0 | BK25: 0 | BL25: 0 | BM25: 0 | BN25: 0 | BO25: 0 | BP25: 0 | BQ25: 0 | BR25: 0 | BS25: 0 | BT25: 0 | BU25: 0 | BV25: 0 | BW25: 0 | BX25: 0 | BY25: 0 | BZ25: 0 | CA25: 0 | CB25: 0 | CC25: 0 | CD25: 0 | CE25: 0 | CF25: 0 | CG25: 0 | CH25: 0 | CI25: 0 | CJ25: 0 | CK25: 0 | CL25: 0 | CM25: 0 | CN25: 0 | CO25: 0 | CP25: 0 | CQ25: 0 | CR25: 0
A26: Asset release profile - scenario 2
A27: Asset release profile - scenario 3
A28: Asset release profile - scenario 4
A29: Asset release profile - scenario 5
A30: Actual asset release profile and check | C30: =SUM(F30:CR30) -> 1 | F30: =CHOOSE($B$4,F25,F26,F27,F28,F29) -> 0 | G30: 0 | H30: 0 | I30: 0 | J30: 0 | K30: 0 | L30: 0.7 | M30: 0.3 | N30: 0 | O30: 0 | P30: 0 | Q30: 0 | R30: 0 | S30: 0 | T30: 0 | U30: 0 | V30: 0 | W30: 0 | X30: 0 | Y30: 0 | Z30: 0 | AA30: 0 | AB30: 0 | AC30: 0 | AD30: 0 | AE30: 0 | AF30: 0 | AG30: 0 | AH30: 0 | AI30: 0 | AJ30: 0 | AK30: 0 | AL30: =CHOOSE($B$4,AL25,AL26,AL27,AL28,AL29) -> 0 | AM30: 0 | AN30: 0 | AO30: 0 | AP30: 0 | AQ30: 0 | AR30: 0 | AS30: 0 | AT30: 0 | AU30: 0 | AV30: 0 | AW30: 0 | AX30: 0 | AY30: 0 | AZ30: 0 | BA30: 0 | BB30: 0 | BC30: 0 | BD30: 0 | BE30: 0 | BF30: 0 | BG30: 0 | BH30: 0 | BI30: 0 | BJ30: 0 | BK30: 0 | BL30: 0 | BM30: 0 | BN30: 0 | BO30: 0 | BP30: 0 | BQ30: 0 | BR30: =CHOOSE($B$4,BR25,BR26,BR27,BR28,BR29) -> 0 | BS30: 0 | BT30: 0 | BU30: 0 | BV30: 0 | BW30: 0 | BX30: 0 | BY30: 0 | BZ30: 0 | CA30: 0 | CB30: 0 | CC30: 0 | CD30: 0 | CE30: 0 | CF30: 0 | CG30: 0 | CH30: 0 | CI30: 0 | CJ30: 0 | CK30: 0 | CL30: 0 | CM30: 0 | CN30: 0 | CO30: 0 | CP30: 0 | CQ30: 0 | CR30: 0
A32: Total construction costs and check | D32: ='Global Inputs'!B41 -> 350892.7095
A34: Asset release flag phase 1 | F34: =IF(AND(F$13<='Global Inputs'!$B34,F$14>'Global Inputs'!$B34),1,0) -> 0 | G34: =IF(AND(G$13<='Global Inputs'!$B34,G$14>'Global Inputs'!$B34),1,0) -> 0 | H34: =IF(AND(H$13<='Global Inputs'!$B34,H$14>'Global Inputs'!$B34),1,0) -> 0 | I34: =IF(AND(I$13<='Global Inputs'!$B34,I$14>'Global Inputs'!$B34),1,0) -> 0 | J34: =IF(AND(J$13<='Global Inputs'!$B34,J$14>'Global Inputs'!$B34),1,0) -> 0 | K34: =IF(AND(K$13<='Global Inputs'!$B34,K$14>'Global Inputs'!$B34),1,0) -> 0 | L34: =IF(AND(L$13<='Global Inputs'!$B34,L$14>'Global Inputs'!$B34),1,0) -> 1 | M34: =IF(AND(M$13<='Global Inputs'!$B34,M$14>'Global Inputs'!$B34),1,0) -> 0 | N34: =IF(AND(N$13<='Global Inputs'!$B34,N$14>'Global Inputs'!$B34),1,0) -> 0 | O34: =IF(AND(O$13<='Global Inputs'!$B34,O$14>'Global Inputs'!$B34),1,0) -> 0 | P34: =IF(AND(P$13<='Global Inputs'!$B34,P$14>'Global Inputs'!$B34),1,0) -> 0 | Q34: =IF(AND(Q$13<='Global Inputs'!$B34,Q$14>'Global Inputs'!$B34),1,0) -> 0 | R34: =IF(AND(R$13<='Global Inputs'!$B34,R$14>'Global Inputs'!$B34),1,0) -> 0 | S34: =IF(AND(S$13<='Global Inputs'!$B34,S$14>'Global Inputs'!$B34),1,0) -> 0 | T34: =IF(AND(T$13<='Global Inputs'!$B34,T$14>'Global Inputs'!$B34),1,0) -> 0 | U34: =IF(AND(U$13<='Global Inputs'!$B34,U$14>'Global Inputs'!$B34),1,0) -> 0 | V34: =IF(AND(V$13<='Global Inputs'!$B34,V$14>'Global Inputs'!$B34),1,0) -> 0 | W34: =IF(AND(W$13<='Global Inputs'!$B34,W$14>'Global Inputs'!$B34),1,0) -> 0 | X34: =IF(AND(X$13<='Global Inputs'!$B34,X$14>'Global Inputs'!$B34),1,0) -> 0 | Y34: =IF(AND(Y$13<='Global Inputs'!$B34,Y$14>'Global Inputs'!$B34),1,0) -> 0 | Z34: =IF(AND(Z$13<='Global Inputs'!$B34,Z$14>'Global Inputs'!$B34),1,0) -> 0 | AA34: =IF(AND(AA$13<='Global Inputs'!$B34,AA$14>'Global Inputs'!$B34),1,0) -> 0 | AB34: =IF(AND(AB$13<='Global Inputs'!$B34,AB$14>'Global Inputs'!$B34),1,0) -> 0 | AC34: =IF(AND(AC$13<='Global Inputs'!$B34,AC$14>'Global Inputs'!$B34),1,0) -> 0 | AD34: =IF(AND(AD$13<='Global Inputs'!$B34,AD$14>'Global Inputs'!$B34),1,0) -> 0 | AE34: =IF(AND(AE$13<='Global Inputs'!$B34,AE$14>'Global Inputs'!$B34),1,0) -> 0 | AF34: =IF(AND(AF$13<='Global Inputs'!$B34,AF$14>'Global Inputs'!$B34),1,0) -> 0 | AG34: =IF(AND(AG$13<='Global Inputs'!$B34,AG$14>'Global Inputs'!$B34),1,0) -> 0 | AH34: =IF(AND(AH$13<='Global Inputs'!$B34,AH$14>'Global Inputs'!$B34),1,0) -> 0 | AI34: =IF(AND(AI$13<='Global Inputs'!$B34,AI$14>'Global Inputs'!$B34),1,0) -> 0 | AJ34: =IF(AND(AJ$13<='Global Inputs'!$B34,AJ$14>'Global Inputs'!$B34),1,0) -> 0 | AK34: =IF(AND(AK$13<='Global Inputs'!$B34,AK$14>'Global Inputs'!$B34),1,0) -> 0 | AL34: =IF(AND(AL$13<='Global Inputs'!$B34,AL$14>'Global Inputs'!$B34),1,0) -> 0 | AM34: =IF(AND(AM$13<='Global Inputs'!$B34,AM$14>'Global Inputs'!$B34),1,0) -> 0 | AN34: =IF(AND(AN$13<='Global Inputs'!$B34,AN$14>'Global Inputs'!$B34),1,0) -> 0 | AO34: =IF(AND(AO$13<='Global Inputs'!$B34,AO$14>'Global Inputs'!$B34),1,0) -> 0 | AP34: =IF(AND(AP$13<='Global Inputs'!$B34,AP$14>'Global Inputs'!$B34),1,0) -> 0 | AQ34: =IF(AND(AQ$13<='Global Inputs'!$B34,AQ$14>'Global Inputs'!$B34),1,0) -> 0 | AR34: =IF(AND(AR$13<='Global Inputs'!$B34,AR$14>'Global Inputs'!$B34),1,0) -> 0 | AS34: =IF(AND(AS$13<='Global Inputs'!$B34,AS$14>'Global Inputs'!$B34),1,0) -> 0 | AT34: =IF(AND(AT$13<='Global Inputs'!$B34,AT$14>'Global Inputs'!$B34),1,0) -> 0 | AU34: =IF(AND(AU$13<='Global Inputs'!$B34,AU$14>'Global Inputs'!$B34),1,0) -> 0 | AV34: =IF(AND(AV$13<='Global Inputs'!$B34,AV$14>'Global Inputs'!$B34),1,0) -> 0 | AW34: =IF(AND(AW$13<='Global Inputs'!$B34,AW$14>'Global Inputs'!$B34),1,0) -> 0 | AX34: =IF(AND(AX$13<='Global Inputs'!$B34,AX$14>'Global Inputs'!$B34),1,0) -> 0 | AY34: =IF(AND(AY$13<='Global Inputs'!$B34,AY$14>'Global Inputs'!$B34),1,0) -> 0 | AZ34: =IF(AND(AZ$13<='Global Inputs'!$B34,AZ$14>'Global Inputs'!$B34),1,0) -> 0 | BA34: =IF(AND(BA$13<='Global Inputs'!$B34,BA$14>'Global Inputs'!$B34),1,0) -> 0 | BB34: =IF(AND(BB$13<='Global Inputs'!$B34,BB$14>'Global Inputs'!$B34),1,0) -> 0 | BC34: =IF(AND(BC$13<='Global Inputs'!$B34,BC$14>'Global Inputs'!$B34),1,0) -> 0 | BD34: =IF(AND(BD$13<='Global Inputs'!$B34,BD$14>'Global Inputs'!$B34),1,0) -> 0 | BE34: =IF(AND(BE$13<='Global Inputs'!$B34,BE$14>'Global Inputs'!$B34),1,0) -> 0 | BF34: =IF(AND(BF$13<='Global Inputs'!$B34,BF$14>'Global Inputs'!$B34),1,0) -> 0 | BG34: =IF(AND(BG$13<='Global Inputs'!$B34,BG$14>'Global Inputs'!$B34),1,0) -> 0 | BH34: =IF(AND(BH$13<='Global Inputs'!$B34,BH$14>'Global Inputs'!$B34),1,0) -> 0 | BI34: =IF(AND(BI$13<='Global Inputs'!$B34,BI$14>'Global Inputs'!$B34),1,0) -> 0 | BJ34: =IF(AND(BJ$13<='Global Inputs'!$B34,BJ$14>'Global Inputs'!$B34),1,0) -> 0 | BK34: =IF(AND(BK$13<='Global Inputs'!$B34,BK$14>'Global Inputs'!$B34),1,0) -> 0 | BL34: =IF(AND(BL$13<='Global Inputs'!$B34,BL$14>'Global Inputs'!$B34),1,0) -> 0 | BM34: =IF(AND(BM$13<='Global Inputs'!$B34,BM$14>'Global Inputs'!$B34),1,0) -> 0 | BN34: =IF(AND(BN$13<='Global Inputs'!$B34,BN$14>'Global Inputs'!$B34),1,0) -> 0 | BO34: =IF(AND(BO$13<='Global Inputs'!$B34,BO$14>'Global Inputs'!$B34),1,0) -> 0 | BP34: =IF(AND(BP$13<='Global Inputs'!$B34,BP$14>'Global Inputs'!$B34),1,0) -> 0 | BQ34: =IF(AND(BQ$13<='Global Inputs'!$B34,BQ$14>'Global Inputs'!$B34),1,0) -> 0 | BR34: =IF(AND(BR$13<='Global Inputs'!$B34,BR$14>'Global Inputs'!$B34),1,0) -> 0 | BS34: =IF(AND(BS$13<='Global Inputs'!$B34,BS$14>'Global Inputs'!$B34),1,0) -> 0 | BT34: =IF(AND(BT$13<='Global Inputs'!$B34,BT$14>'Global Inputs'!$B34),1,0) -> 0 | BU34: =IF(AND(BU$13<='Global Inputs'!$B34,BU$14>'Global Inputs'!$B34),1,0) -> 0 | BV34: =IF(AND(BV$13<='Global Inputs'!$B34,BV$14>'Global Inputs'!$B34),1,0) -> 0 | BW34: =IF(AND(BW$13<='Global Inputs'!$B34,BW$14>'Global Inputs'!$B34),1,0) -> 0 | BX34: =IF(AND(BX$13<='Global Inputs'!$B34,BX$14>'Global Inputs'!$B34),1,0) -> 0 | BY34: =IF(AND(BY$13<='Global Inputs'!$B34,BY$14>'Global Inputs'!$B34),1,0) -> 0 | BZ34: =IF(AND(BZ$13<='Global Inputs'!$B34,BZ$14>'Global Inputs'!$B34),1,0) -> 0 | CA34: =IF(AND(CA$13<='Global Inputs'!$B34,CA$14>'Global Inputs'!$B34),1,0) -> 0 | CB34: =IF(AND(CB$13<='Global Inputs'!$B34,CB$14>'Global Inputs'!$B34),1,0) -> 0 | CC34: =IF(AND(CC$13<='Global Inputs'!$B34,CC$14>'Global Inputs'!$B34),1,0) -> 0 | CD34: =IF(AND(CD$13<='Global Inputs'!$B34,CD$14>'Global Inputs'!$B34),1,0) -> 0 | CE34: =IF(AND(CE$13<='Global Inputs'!$B34,CE$14>'Global Inputs'!$B34),1,0) -> 0 | CF34: =IF(AND(CF$13<='Global Inputs'!$B34,CF$14>'Global Inputs'!$B34),1,0) -> 0 | CG34: =IF(AND(CG$13<='Global Inputs'!$B34,CG$14>'Global Inputs'!$B34),1,0) -> 0 | CH34: =IF(AND(CH$13<='Global Inputs'!$B34,CH$14>'Global Inputs'!$B34),1,0) -> 0 | CI34: =IF(AND(CI$13<='Global Inputs'!$B34,CI$14>'Global Inputs'!$B34),1,0) -> 0 | CJ34: =IF(AND(CJ$13<='Global Inputs'!$B34,CJ$14>'Global Inputs'!$B34),1,0) -> 0 | CK34: =IF(AND(CK$13<='Global Inputs'!$B34,CK$14>'Global Inputs'!$B34),1,0) -> 0 | CL34: =IF(AND(CL$13<='Global Inputs'!$B34,CL$14>'Global Inputs'!$B34),1,0) -> 0 | CM34: =IF(AND(CM$13<='Global Inputs'!$B34,CM$14>'Global Inputs'!$B34),1,0) -> 0 | CN34: =IF(AND(CN$13<='Global Inputs'!$B34,CN$14>'Global Inputs'!$B34),1,0) -> 0 | CO34: =IF(AND(CO$13<='Global Inputs'!$B34,CO$14>'Global Inputs'!$B34),1,0) -> 0 | CP34: =IF(AND(CP$13<='Global Inputs'!$B34,CP$14>'Global Inputs'!$B34),1,0) -> 0 | CQ34: =IF(AND(CQ$13<='Global Inputs'!$B34,CQ$14>'Global Inputs'!$B34),1,0) -> 0 | CR34: =IF(AND(CR$13<='Global Inputs'!$B34,CR$14>'Global Inputs'!$B34),1,0) -> 0
A35: Asset release flag phase 2 | F35: =IF(AND(F$13<='Global Inputs'!$B35,F$14>'Global Inputs'!$B35),1,0) -> 0 | G35: =IF(AND(G$13<='Global Inputs'!$B35,G$14>'Global Inputs'!$B35),1,0) -> 0 | H35: =IF(AND(H$13<='Global Inputs'!$B35,H$14>'Global Inputs'!$B35),1,0) -> 0 | I35: =IF(AND(I$13<='Global Inputs'!$B35,I$14>'Global Inputs'!$B35),1,0) -> 0 | J35: =IF(AND(J$13<='Global Inputs'!$B35,J$14>'Global Inputs'!$B35),1,0) -> 0 | K35: =IF(AND(K$13<='Global Inputs'!$B35,K$14>'Global Inputs'!$B35),1,0) -> 0 | L35: =IF(AND(L$13<='Global Inputs'!$B35,L$14>'Global Inputs'!$B35),1,0) -> 0 | M35: =IF(AND(M$13<='Global Inputs'!$B35,M$14>'Global Inputs'!$B35),1,0) -> 0 | N35: =IF(AND(N$13<='Global Inputs'!$B35,N$14>'Global Inputs'!$B35),1,0) -> 0 | O35: =IF(AND(O$13<='Global Inputs'!$B35,O$14>'Global Inputs'!$B35),1,0) -> 0 | P35: =IF(AND(P$13<='Global Inputs'!$B35,P$14>'Global Inputs'!$B35),1,0) -> 0 | Q35: =IF(AND(Q$13<='Global Inputs'!$B35,Q$14>'Global Inputs'!$B35),1,0) -> 0 | R35: =IF(AND(R$13<='Global Inputs'!$B35,R$14>'Global Inputs'!$B35),1,0) -> 0 | S35: =IF(AND(S$13<='Global Inputs'!$B35,S$14>'Global Inputs'!$B35),1,0) -> 0 | T35: =IF(AND(T$13<='Global Inputs'!$B35,T$14>'Global Inputs'!$B35),1,0) -> 0 | U35: =IF(AND(U$13<='Global Inputs'!$B35,U$14>'Global Inputs'!$B35),1,0) -> 0 | V35: =IF(AND(V$13<='Global Inputs'!$B35,V$14>'Global Inputs'!$B35),1,0) -> 0 | W35: =IF(AND(W$13<='Global Inputs'!$B35,W$14>'Global Inputs'!$B35),1,0) -> 0 | X35: =IF(AND(X$13<='Global Inputs'!$B35,X$14>'Global Inputs'!$B35),1,0) -> 0 | Y35: =IF(AND(Y$13<='Global Inputs'!$B35,Y$14>'Global Inputs'!$B35),1,0) -> 0 | Z35: =IF(AND(Z$13<='Global Inputs'!$B35,Z$14>'Global Inputs'!$B35),1,0) -> 0 | AA35: =IF(AND(AA$13<='Global Inputs'!$B35,AA$14>'Global Inputs'!$B35),1,0) -> 0 | AB35: =IF(AND(AB$13<='Global Inputs'!$B35,AB$14>'Global Inputs'!$B35),1,0) -> 0 | AC35: =IF(AND(AC$13<='Global Inputs'!$B35,AC$14>'Global Inputs'!$B35),1,0) -> 0 | AD35: =IF(AND(AD$13<='Global Inputs'!$B35,AD$14>'Global Inputs'!$B35),1,0) -> 0 | AE35: =IF(AND(AE$13<='Global Inputs'!$B35,AE$14>'Global Inputs'!$B35),1,0) -> 0 | AF35: =IF(AND(AF$13<='Global Inputs'!$B35,AF$14>'Global Inputs'!$B35),1,0) -> 0 | AG35: =IF(AND(AG$13<='Global Inputs'!$B35,AG$14>'Global Inputs'!$B35),1,0) -> 0 | AH35: =IF(AND(AH$13<='Global Inputs'!$B35,AH$14>'Global Inputs'!$B35),1,0) -> 0 | AI35: =IF(AND(AI$13<='Global Inputs'!$B35,AI$14>'Global Inputs'!$B35),1,0) -> 0 | AJ35: =IF(AND(AJ$13<='Global Inputs'!$B35,AJ$14>'Global Inputs'!$B35),1,0) -> 0 | AK35: =IF(AND(AK$13<='Global Inputs'!$B35,AK$14>'Global Inputs'!$B35),1,0) -> 0 | AL35: =IF(AND(AL$13<='Global Inputs'!$B35,AL$14>'Global Inputs'!$B35),1,0) -> 0 | AM35: =IF(AND(AM$13<='Global Inputs'!$B35,AM$14>'Global Inputs'!$B35),1,0) -> 0 | AN35: =IF(AND(AN$13<='Global Inputs'!$B35,AN$14>'Global Inputs'!$B35),1,0) -> 0 | AO35: =IF(AND(AO$13<='Global Inputs'!$B35,AO$14>'Global Inputs'!$B35),1,0) -> 0 | AP35: =IF(AND(AP$13<='Global Inputs'!$B35,AP$14>'Global Inputs'!$B35),1,0) -> 0 | AQ35: =IF(AND(AQ$13<='Global Inputs'!$B35,AQ$14>'Global Inputs'!$B35),1,0) -> 0 | AR35: =IF(AND(AR$13<='Global Inputs'!$B35,AR$14>'Global Inputs'!$B35),1,0) -> 0 | AS35: =IF(AND(AS$13<='Global Inputs'!$B35,AS$14>'Global Inputs'!$B35),1,0) -> 0 | AT35: =IF(AND(AT$13<='Global Inputs'!$B35,AT$14>'Global Inputs'!$B35),1,0) -> 0 | AU35: =IF(AND(AU$13<='Global Inputs'!$B35,AU$14>'Global Inputs'!$B35),1,0) -> 0 | AV35: =IF(AND(AV$13<='Global Inputs'!$B35,AV$14>'Global Inputs'!$B35),1,0) -> 0 | AW35: =IF(AND(AW$13<='Global Inputs'!$B35,AW$14>'Global Inputs'!$B35),1,0) -> 0 | AX35: =IF(AND(AX$13<='Global Inputs'!$B35,AX$14>'Global Inputs'!$B35),1,0) -> 0 | AY35: =IF(AND(AY$13<='Global Inputs'!$B35,AY$14>'Global Inputs'!$B35),1,0) -> 0 | AZ35: =IF(AND(AZ$13<='Global Inputs'!$B35,AZ$14>'Global Inputs'!$B35),1,0) -> 0 | BA35: =IF(AND(BA$13<='Global Inputs'!$B35,BA$14>'Global Inputs'!$B35),1,0) -> 0 | BB35: =IF(AND(BB$13<='Global Inputs'!$B35,BB$14>'Global Inputs'!$B35),1,0) -> 0 | BC35: =IF(AND(BC$13<='Global Inputs'!$B35,BC$14>'Global Inputs'!$B35),1,0) -> 0 | BD35: =IF(AND(BD$13<='Global Inputs'!$B35,BD$14>'Global Inputs'!$B35),1,0) -> 0 | BE35: =IF(AND(BE$13<='Global Inputs'!$B35,BE$14>'Global Inputs'!$B35),1,0) -> 0 | BF35: =IF(AND(BF$13<='Global Inputs'!$B35,BF$14>'Global Inputs'!$B35),1,0) -> 0 | BG35: =IF(AND(BG$13<='Global Inputs'!$B35,BG$14>'Global Inputs'!$B35),1,0) -> 0 | BH35: =IF(AND(BH$13<='Global Inputs'!$B35,BH$14>'Global Inputs'!$B35),1,0) -> 0 | BI35: =IF(AND(BI$13<='Global Inputs'!$B35,BI$14>'Global Inputs'!$B35),1,0) -> 0 | BJ35: =IF(AND(BJ$13<='Global Inputs'!$B35,BJ$14>'Global Inputs'!$B35),1,0) -> 0 | BK35: =IF(AND(BK$13<='Global Inputs'!$B35,BK$14>'Global Inputs'!$B35),1,0) -> 0 | BL35: =IF(AND(BL$13<='Global Inputs'!$B35,BL$14>'Global Inputs'!$B35),1,0) -> 0 | BM35: =IF(AND(BM$13<='Global Inputs'!$B35,BM$14>'Global Inputs'!$B35),1,0) -> 0 | BN35: =IF(AND(BN$13<='Global Inputs'!$B35,BN$14>'Global Inputs'!$B35),1,0) -> 0 | BO35: =IF(AND(BO$13<='Global Inputs'!$B35,BO$14>'Global Inputs'!$B35),1,0) -> 0 | BP35: =IF(AND(BP$13<='Global Inputs'!$B35,BP$14>'Global Inputs'!$B35),1,0) -> 0 | BQ35: =IF(AND(BQ$13<='Global Inputs'!$B35,BQ$14>'Global Inputs'!$B35),1,0) -> 0 | BR35: =IF(AND(BR$13<='Global Inputs'!$B35,BR$14>'Global Inputs'!$B35),1,0) -> 0 | BS35: =IF(AND(BS$13<='Global Inputs'!$B35,BS$14>'Global Inputs'!$B35),1,0) -> 0 | BT35: =IF(AND(BT$13<='Global Inputs'!$B35,BT$14>'Global Inputs'!$B35),1,0) -> 0 | BU35: =IF(AND(BU$13<='Global Inputs'!$B35,BU$14>'Global Inputs'!$B35),1,0) -> 0 | BV35: =IF(AND(BV$13<='Global Inputs'!$B35,BV$14>'Global Inputs'!$B35),1,0) -> 0 | BW35: =IF(AND(BW$13<='Global Inputs'!$B35,BW$14>'Global Inputs'!$B35),1,0) -> 0 | BX35: =IF(AND(BX$13<='Global Inputs'!$B35,BX$14>'Global Inputs'!$B35),1,0) -> 0 | BY35: =IF(AND(BY$13<='Global Inputs'!$B35,BY$14>'Global Inputs'!$B35),1,0) -> 0 | BZ35: =IF(AND(BZ$13<='Global Inputs'!$B35,BZ$14>'Global Inputs'!$B35),1,0) -> 0 | CA35: =IF(AND(CA$13<='Global Inputs'!$B35,CA$14>'Global Inputs'!$B35),1,0) -> 0 | CB35: =IF(AND(CB$13<='Global Inputs'!$B35,CB$14>'Global Inputs'!$B35),1,0) -> 0 | CC35: =IF(AND(CC$13<='Global Inputs'!$B35,CC$14>'Global Inputs'!$B35),1,0) -> 0 | CD35: =IF(AND(CD$13<='Global Inputs'!$B35,CD$14>'Global Inputs'!$B35),1,0) -> 0 | CE35: =IF(AND(CE$13<='Global Inputs'!$B35,CE$14>'Global Inputs'!$B35),1,0) -> 0 | CF35: =IF(AND(CF$13<='Global Inputs'!$B35,CF$14>'Global Inputs'!$B35),1,0) -> 0 | CG35: =IF(AND(CG$13<='Global Inputs'!$B35,CG$14>'Global Inputs'!$B35),1,0) -> 0 | CH35: =IF(AND(CH$13<='Global Inputs'!$B35,CH$14>'Global Inputs'!$B35),1,0) -> 0 | CI35: =IF(AND(CI$13<='Global Inputs'!$B35,CI$14>'Global Inputs'!$B35),1,0) -> 0 | CJ35: =IF(AND(CJ$13<='Global Inputs'!$B35,CJ$14>'Global Inputs'!$B35),1,0) -> 0 | CK35: =IF(AND(CK$13<='Global Inputs'!$B35,CK$14>'Global Inputs'!$B35),1,0) -> 0 | CL35: =IF(AND(CL$13<='Global Inputs'!$B35,CL$14>'Global Inputs'!$B35),1,0) -> 0 | CM35: =IF(AND(CM$13<='Global Inputs'!$B35,CM$14>'Global Inputs'!$B35),1,0) -> 0 | CN35: =IF(AND(CN$13<='Global Inputs'!$B35,CN$14>'Global Inputs'!$B35),1,0) -> 0 | CO35: =IF(AND(CO$13<='Global Inputs'!$B35,CO$14>'Global Inputs'!$B35),1,0) -> 0 | CP35: =IF(AND(CP$13<='Global Inputs'!$B35,CP$14>'Global Inputs'!$B35),1,0) -> 0 | CQ35: =IF(AND(CQ$13<='Global Inputs'!$B35,CQ$14>'Global Inputs'!$B35),1,0) -> 0 | CR35: =IF(AND(CR$13<='Global Inputs'!$B35,CR$14>'Global Inputs'!$B35),1,0) -> 0
A36: Asset release flag phase 3 | F36: =IF(AND(F$13<='Global Inputs'!$B36,F$14>'Global Inputs'!$B36),1,0) -> 0 | G36: =IF(AND(G$13<='Global Inputs'!$B36,G$14>'Global Inputs'!$B36),1,0) -> 0 | H36: =IF(AND(H$13<='Global Inputs'!$B36,H$14>'Global Inputs'!$B36),1,0) -> 0 | I36: =IF(AND(I$13<='Global Inputs'!$B36,I$14>'Global Inputs'!$B36),1,0) -> 0 | J36: =IF(AND(J$13<='Global Inputs'!$B36,J$14>'Global Inputs'!$B36),1,0) -> 0 | K36: =IF(AND(K$13<='Global Inputs'!$B36,K$14>'Global Inputs'!$B36),1,0) -> 0 | L36: =IF(AND(L$13<='Global Inputs'!$B36,L$14>'Global Inputs'!$B36),1,0) -> 0 | M36: =IF(AND(M$13<='Global Inputs'!$B36,M$14>'Global Inputs'!$B36),1,0) -> 0 | N36: =IF(AND(N$13<='Global Inputs'!$B36,N$14>'Global Inputs'!$B36),1,0) -> 0 | O36: =IF(AND(O$13<='Global Inputs'!$B36,O$14>'Global Inputs'!$B36),1,0) -> 0 | P36: =IF(AND(P$13<='Global Inputs'!$B36,P$14>'Global Inputs'!$B36),1,0) -> 0 | Q36: =IF(AND(Q$13<='Global Inputs'!$B36,Q$14>'Global Inputs'!$B36),1,0) -> 0 | R36: =IF(AND(R$13<='Global Inputs'!$B36,R$14>'Global Inputs'!$B36),1,0) -> 0 | S36: =IF(AND(S$13<='Global Inputs'!$B36,S$14>'Global Inputs'!$B36),1,0) -> 0 | T36: =IF(AND(T$13<='Global Inputs'!$B36,T$14>'Global Inputs'!$B36),1,0) -> 0 | U36: =IF(AND(U$13<='Global Inputs'!$B36,U$14>'Global Inputs'!$B36),1,0) -> 0 | V36: =IF(AND(V$13<='Global Inputs'!$B36,V$14>'Global Inputs'!$B36),1,0) -> 0 | W36: =IF(AND(W$13<='Global Inputs'!$B36,W$14>'Global Inputs'!$B36),1,0) -> 0 | X36: =IF(AND(X$13<='Global Inputs'!$B36,X$14>'Global Inputs'!$B36),1,0) -> 0 | Y36: =IF(AND(Y$13<='Global Inputs'!$B36,Y$14>'Global Inputs'!$B36),1,0) -> 0 | Z36: =IF(AND(Z$13<='Global Inputs'!$B36,Z$14>'Global Inputs'!$B36),1,0) -> 0 | AA36: =IF(AND(AA$13<='Global Inputs'!$B36,AA$14>'Global Inputs'!$B36),1,0) -> 0 | AB36: =IF(AND(AB$13<='Global Inputs'!$B36,AB$14>'Global Inputs'!$B36),1,0) -> 0 | AC36: =IF(AND(AC$13<='Global Inputs'!$B36,AC$14>'Global Inputs'!$B36),1,0) -> 0 | AD36: =IF(AND(AD$13<='Global Inputs'!$B36,AD$14>'Global Inputs'!$B36),1,0) -> 0 | AE36: =IF(AND(AE$13<='Global Inputs'!$B36,AE$14>'Global Inputs'!$B36),1,0) -> 0 | AF36: =IF(AND(AF$13<='Global Inputs'!$B36,AF$14>'Global Inputs'!$B36),1,0) -> 0 | AG36: =IF(AND(AG$13<='Global Inputs'!$B36,AG$14>'Global Inputs'!$B36),1,0) -> 0 | AH36: =IF(AND(AH$13<='Global Inputs'!$B36,AH$14>'Global Inputs'!$B36),1,0) -> 0 | AI36: =IF(AND(AI$13<='Global Inputs'!$B36,AI$14>'Global Inputs'!$B36),1,0) -> 0 | AJ36: =IF(AND(AJ$13<='Global Inputs'!$B36,AJ$14>'Global Inputs'!$B36),1,0) -> 0 | AK36: =IF(AND(AK$13<='Global Inputs'!$B36,AK$14>'Global Inputs'!$B36),1,0) -> 0 | AL36: =IF(AND(AL$13<='Global Inputs'!$B36,AL$14>'Global Inputs'!$B36),1,0) -> 0 | AM36: =IF(AND(AM$13<='Global Inputs'!$B36,AM$14>'Global Inputs'!$B36),1,0) -> 0 | AN36: =IF(AND(AN$13<='Global Inputs'!$B36,AN$14>'Global Inputs'!$B36),1,0) -> 0 | AO36: =IF(AND(AO$13<='Global Inputs'!$B36,AO$14>'Global Inputs'!$B36),1,0) -> 0 | AP36: =IF(AND(AP$13<='Global Inputs'!$B36,AP$14>'Global Inputs'!$B36),1,0) -> 0 | AQ36: =IF(AND(AQ$13<='Global Inputs'!$B36,AQ$14>'Global Inputs'!$B36),1,0) -> 0 | AR36: =IF(AND(AR$13<='Global Inputs'!$B36,AR$14>'Global Inputs'!$B36),1,0) -> 0 | AS36: =IF(AND(AS$13<='Global Inputs'!$B36,AS$14>'Global Inputs'!$B36),1,0) -> 0 | AT36: =IF(AND(AT$13<='Global Inputs'!$B36,AT$14>'Global Inputs'!$B36),1,0) -> 0 | AU36: =IF(AND(AU$13<='Global Inputs'!$B36,AU$14>'Global Inputs'!$B36),1,0) -> 0 | AV36: =IF(AND(AV$13<='Global Inputs'!$B36,AV$14>'Global Inputs'!$B36),1,0) -> 0 | AW36: =IF(AND(AW$13<='Global Inputs'!$B36,AW$14>'Global Inputs'!$B36),1,0) -> 0 | AX36: =IF(AND(AX$13<='Global Inputs'!$B36,AX$14>'Global Inputs'!$B36),1,0) -> 0 | AY36: =IF(AND(AY$13<='Global Inputs'!$B36,AY$14>'Global Inputs'!$B36),1,0) -> 0 | AZ36: =IF(AND(AZ$13<='Global Inputs'!$B36,AZ$14>'Global Inputs'!$B36),1,0) -> 0 | BA36: =IF(AND(BA$13<='Global Inputs'!$B36,BA$14>'Global Inputs'!$B36),1,0) -> 0 | BB36: =IF(AND(BB$13<='Global Inputs'!$B36,BB$14>'Global Inputs'!$B36),1,0) -> 0 | BC36: =IF(AND(BC$13<='Global Inputs'!$B36,BC$14>'Global Inputs'!$B36),1,0) -> 0 | BD36: =IF(AND(BD$13<='Global Inputs'!$B36,BD$14>'Global Inputs'!$B36),1,0) -> 0 | BE36: =IF(AND(BE$13<='Global Inputs'!$B36,BE$14>'Global Inputs'!$B36),1,0) -> 0 | BF36: =IF(AND(BF$13<='Global Inputs'!$B36,BF$14>'Global Inputs'!$B36),1,0) -> 0 | BG36: =IF(AND(BG$13<='Global Inputs'!$B36,BG$14>'Global Inputs'!$B36),1,0) -> 0 | BH36: =IF(AND(BH$13<='Global Inputs'!$B36,BH$14>'Global Inputs'!$B36),1,0) -> 0 | BI36: =IF(AND(BI$13<='Global Inputs'!$B36,BI$14>'Global Inputs'!$B36),1,0) -> 0 | BJ36: =IF(AND(BJ$13<='Global Inputs'!$B36,BJ$14>'Global Inputs'!$B36),1,0) -> 0 | BK36: =IF(AND(BK$13<='Global Inputs'!$B36,BK$14>'Global Inputs'!$B36),1,0) -> 0 | BL36: =IF(AND(BL$13<='Global Inputs'!$B36,BL$14>'Global Inputs'!$B36),1,0) -> 0 | BM36: =IF(AND(BM$13<='Global Inputs'!$B36,BM$14>'Global Inputs'!$B36),1,0) -> 0 | BN36: =IF(AND(BN$13<='Global Inputs'!$B36,BN$14>'Global Inputs'!$B36),1,0) -> 0 | BO36: =IF(AND(BO$13<='Global Inputs'!$B36,BO$14>'Global Inputs'!$B36),1,0) -> 0 | BP36: =IF(AND(BP$13<='Global Inputs'!$B36,BP$14>'Global Inputs'!$B36),1,0) -> 0 | BQ36: =IF(AND(BQ$13<='Global Inputs'!$B36,BQ$14>'Global Inputs'!$B36),1,0) -> 0 | BR36: =IF(AND(BR$13<='Global Inputs'!$B36,BR$14>'Global Inputs'!$B36),1,0) -> 0 | BS36: =IF(AND(BS$13<='Global Inputs'!$B36,BS$14>'Global Inputs'!$B36),1,0) -> 0 | BT36: =IF(AND(BT$13<='Global Inputs'!$B36,BT$14>'Global Inputs'!$B36),1,0) -> 0 | BU36: =IF(AND(BU$13<='Global Inputs'!$B36,BU$14>'Global Inputs'!$B36),1,0) -> 0 | BV36: =IF(AND(BV$13<='Global Inputs'!$B36,BV$14>'Global Inputs'!$B36),1,0) -> 0 | BW36: =IF(AND(BW$13<='Global Inputs'!$B36,BW$14>'Global Inputs'!$B36),1,0) -> 0 | BX36: =IF(AND(BX$13<='Global Inputs'!$B36,BX$14>'Global Inputs'!$B36),1,0) -> 0 | BY36: =IF(AND(BY$13<='Global Inputs'!$B36,BY$14>'Global Inputs'!$B36),1,0) -> 0 | BZ36: =IF(AND(BZ$13<='Global Inputs'!$B36,BZ$14>'Global Inputs'!$B36),1,0) -> 0 | CA36: =IF(AND(CA$13<='Global Inputs'!$B36,CA$14>'Global Inputs'!$B36),1,0) -> 0 | CB36: =IF(AND(CB$13<='Global Inputs'!$B36,CB$14>'Global Inputs'!$B36),1,0) -> 0 | CC36: =IF(AND(CC$13<='Global Inputs'!$B36,CC$14>'Global Inputs'!$B36),1,0) -> 0 | CD36: =IF(AND(CD$13<='Global Inputs'!$B36,CD$14>'Global Inputs'!$B36),1,0) -> 0 | CE36: =IF(AND(CE$13<='Global Inputs'!$B36,CE$14>'Global Inputs'!$B36),1,0) -> 0 | CF36: =IF(AND(CF$13<='Global Inputs'!$B36,CF$14>'Global Inputs'!$B36),1,0) -> 0 | CG36: =IF(AND(CG$13<='Global Inputs'!$B36,CG$14>'Global Inputs'!$B36),1,0) -> 0 | CH36: =IF(AND(CH$13<='Global Inputs'!$B36,CH$14>'Global Inputs'!$B36),1,0) -> 0 | CI36: =IF(AND(CI$13<='Global Inputs'!$B36,CI$14>'Global Inputs'!$B36),1,0) -> 0 | CJ36: =IF(AND(CJ$13<='Global Inputs'!$B36,CJ$14>'Global Inputs'!$B36),1,0) -> 0 | CK36: =IF(AND(CK$13<='Global Inputs'!$B36,CK$14>'Global Inputs'!$B36),1,0) -> 0 | CL36: =IF(AND(CL$13<='Global Inputs'!$B36,CL$14>'Global Inputs'!$B36),1,0) -> 0 | CM36: =IF(AND(CM$13<='Global Inputs'!$B36,CM$14>'Global Inputs'!$B36),1,0) -> 0 | CN36: =IF(AND(CN$13<='Global Inputs'!$B36,CN$14>'Global Inputs'!$B36),1,0) -> 0 | CO36: =IF(AND(CO$13<='Global Inputs'!$B36,CO$14>'Global Inputs'!$B36),1,0) -> 0 | CP36: =IF(AND(CP$13<='Global Inputs'!$B36,CP$14>'Global Inputs'!$B36),1,0) -> 0 | CQ36: =IF(AND(CQ$13<='Global Inputs'!$B36,CQ$14>'Global Inputs'!$B36),1,0) -> 0 | CR36: =IF(AND(CR$13<='Global Inputs'!$B36,CR$14>'Global Inputs'!$B36),1,0) -> 0
A37: Asset release flag phase 4 | F37: =IF(AND(F$13<='Global Inputs'!$B37,F$14>'Global Inputs'!$B37),1,0) -> 0 | G37: =IF(AND(G$13<='Global Inputs'!$B37,G$14>'Global Inputs'!$B37),1,0) -> 0 | H37: =IF(AND(H$13<='Global Inputs'!$B37,H$14>'Global Inputs'!$B37),1,0) -> 0 | I37: =IF(AND(I$13<='Global Inputs'!$B37,I$14>'Global Inputs'!$B37),1,0) -> 0 | J37: =IF(AND(J$13<='Global Inputs'!$B37,J$14>'Global Inputs'!$B37),1,0) -> 0 | K37: =IF(AND(K$13<='Global Inputs'!$B37,K$14>'Global Inputs'!$B37),1,0) -> 0 | L37: =IF(AND(L$13<='Global Inputs'!$B37,L$14>'Global Inputs'!$B37),1,0) -> 0 | M37: =IF(AND(M$13<='Global Inputs'!$B37,M$14>'Global Inputs'!$B37),1,0) -> 0 | N37: =IF(AND(N$13<='Global Inputs'!$B37,N$14>'Global Inputs'!$B37),1,0) -> 0 | O37: =IF(AND(O$13<='Global Inputs'!$B37,O$14>'Global Inputs'!$B37),1,0) -> 0 | P37: =IF(AND(P$13<='Global Inputs'!$B37,P$14>'Global Inputs'!$B37),1,0) -> 0 | Q37: =IF(AND(Q$13<='Global Inputs'!$B37,Q$14>'Global Inputs'!$B37),1,0) -> 0 | R37: =IF(AND(R$13<='Global Inputs'!$B37,R$14>'Global Inputs'!$B37),1,0) -> 0 | S37: =IF(AND(S$13<='Global Inputs'!$B37,S$14>'Global Inputs'!$B37),1,0) -> 0 | T37: =IF(AND(T$13<='Global Inputs'!$B37,T$14>'Global Inputs'!$B37),1,0) -> 0 | U37: =IF(AND(U$13<='Global Inputs'!$B37,U$14>'Global Inputs'!$B37),1,0) -> 0 | V37: =IF(AND(V$13<='Global Inputs'!$B37,V$14>'Global Inputs'!$B37),1,0) -> 0 | W37: =IF(AND(W$13<='Global Inputs'!$B37,W$14>'Global Inputs'!$B37),1,0) -> 0 | X37: =IF(AND(X$13<='Global Inputs'!$B37,X$14>'Global Inputs'!$B37),1,0) -> 0 | Y37: =IF(AND(Y$13<='Global Inputs'!$B37,Y$14>'Global Inputs'!$B37),1,0) -> 0 | Z37: =IF(AND(Z$13<='Global Inputs'!$B37,Z$14>'Global Inputs'!$B37),1,0) -> 0 | AA37: =IF(AND(AA$13<='Global Inputs'!$B37,AA$14>'Global Inputs'!$B37),1,0) -> 0 | AB37: =IF(AND(AB$13<='Global Inputs'!$B37,AB$14>'Global Inputs'!$B37),1,0) -> 0 | AC37: =IF(AND(AC$13<='Global Inputs'!$B37,AC$14>'Global Inputs'!$B37),1,0) -> 0 | AD37: =IF(AND(AD$13<='Global Inputs'!$B37,AD$14>'Global Inputs'!$B37),1,0) -> 0 | AE37: =IF(AND(AE$13<='Global Inputs'!$B37,AE$14>'Global Inputs'!$B37),1,0) -> 0 | AF37: =IF(AND(AF$13<='Global Inputs'!$B37,AF$14>'Global Inputs'!$B37),1,0) -> 0 | AG37: =IF(AND(AG$13<='Global Inputs'!$B37,AG$14>'Global Inputs'!$B37),1,0) -> 0 | AH37: =IF(AND(AH$13<='Global Inputs'!$B37,AH$14>'Global Inputs'!$B37),1,0) -> 0 | AI37: =IF(AND(AI$13<='Global Inputs'!$B37,AI$14>'Global Inputs'!$B37),1,0) -> 0 | AJ37: =IF(AND(AJ$13<='Global Inputs'!$B37,AJ$14>'Global Inputs'!$B37),1,0) -> 0 | AK37: =IF(AND(AK$13<='Global Inputs'!$B37,AK$14>'Global Inputs'!$B37),1,0) -> 0 | AL37: =IF(AND(AL$13<='Global Inputs'!$B37,AL$14>'Global Inputs'!$B37),1,0) -> 0 | AM37: =IF(AND(AM$13<='Global Inputs'!$B37,AM$14>'Global Inputs'!$B37),1,0) -> 0 | AN37: =IF(AND(AN$13<='Global Inputs'!$B37,AN$14>'Global Inputs'!$B37),1,0) -> 0 | AO37: =IF(AND(AO$13<='Global Inputs'!$B37,AO$14>'Global Inputs'!$B37),1,0) -> 0 | AP37: =IF(AND(AP$13<='Global Inputs'!$B37,AP$14>'Global Inputs'!$B37),1,0) -> 0 | AQ37: =IF(AND(AQ$13<='Global Inputs'!$B37,AQ$14>'Global Inputs'!$B37),1,0) -> 0 | AR37: =IF(AND(AR$13<='Global Inputs'!$B37,AR$14>'Global Inputs'!$B37),1,0) -> 0 | AS37: =IF(AND(AS$13<='Global Inputs'!$B37,AS$14>'Global Inputs'!$B37),1,0) -> 0 | AT37: =IF(AND(AT$13<='Global Inputs'!$B37,AT$14>'Global Inputs'!$B37),1,0) -> 0 | AU37: =IF(AND(AU$13<='Global Inputs'!$B37,AU$14>'Global Inputs'!$B37),1,0) -> 0 | AV37: =IF(AND(AV$13<='Global Inputs'!$B37,AV$14>'Global Inputs'!$B37),1,0) -> 0 | AW37: =IF(AND(AW$13<='Global Inputs'!$B37,AW$14>'Global Inputs'!$B37),1,0) -> 0 | AX37: =IF(AND(AX$13<='Global Inputs'!$B37,AX$14>'Global Inputs'!$B37),1,0) -> 0 | AY37: =IF(AND(AY$13<='Global Inputs'!$B37,AY$14>'Global Inputs'!$B37),1,0) -> 0 | AZ37: =IF(AND(AZ$13<='Global Inputs'!$B37,AZ$14>'Global Inputs'!$B37),1,0) -> 0 | BA37: =IF(AND(BA$13<='Global Inputs'!$B37,BA$14>'Global Inputs'!$B37),1,0) -> 0 | BB37: =IF(AND(BB$13<='Global Inputs'!$B37,BB$14>'Global Inputs'!$B37),1,0) -> 0 | BC37: =IF(AND(BC$13<='Global Inputs'!$B37,BC$14>'Global Inputs'!$B37),1,0) -> 0 | BD37: =IF(AND(BD$13<='Global Inputs'!$B37,BD$14>'Global Inputs'!$B37),1,0) -> 0 | BE37: =IF(AND(BE$13<='Global Inputs'!$B37,BE$14>'Global Inputs'!$B37),1,0) -> 0 | BF37: =IF(AND(BF$13<='Global Inputs'!$B37,BF$14>'Global Inputs'!$B37),1,0) -> 0 | BG37: =IF(AND(BG$13<='Global Inputs'!$B37,BG$14>'Global Inputs'!$B37),1,0) -> 0 | BH37: =IF(AND(BH$13<='Global Inputs'!$B37,BH$14>'Global Inputs'!$B37),1,0) -> 0 | BI37: =IF(AND(BI$13<='Global Inputs'!$B37,BI$14>'Global Inputs'!$B37),1,0) -> 0 | BJ37: =IF(AND(BJ$13<='Global Inputs'!$B37,BJ$14>'Global Inputs'!$B37),1,0) -> 0 | BK37: =IF(AND(BK$13<='Global Inputs'!$B37,BK$14>'Global Inputs'!$B37),1,0) -> 0 | BL37: =IF(AND(BL$13<='Global Inputs'!$B37,BL$14>'Global Inputs'!$B37),1,0) -> 0 | BM37: =IF(AND(BM$13<='Global Inputs'!$B37,BM$14>'Global Inputs'!$B37),1,0) -> 0 | BN37: =IF(AND(BN$13<='Global Inputs'!$B37,BN$14>'Global Inputs'!$B37),1,0) -> 0 | BO37: =IF(AND(BO$13<='Global Inputs'!$B37,BO$14>'Global Inputs'!$B37),1,0) -> 0 | BP37: =IF(AND(BP$13<='Global Inputs'!$B37,BP$14>'Global Inputs'!$B37),1,0) -> 0 | BQ37: =IF(AND(BQ$13<='Global Inputs'!$B37,BQ$14>'Global Inputs'!$B37),1,0) -> 0 | BR37: =IF(AND(BR$13<='Global Inputs'!$B37,BR$14>'Global Inputs'!$B37),1,0) -> 0 | BS37: =IF(AND(BS$13<='Global Inputs'!$B37,BS$14>'Global Inputs'!$B37),1,0) -> 0 | BT37: =IF(AND(BT$13<='Global Inputs'!$B37,BT$14>'Global Inputs'!$B37),1,0) -> 0 | BU37: =IF(AND(BU$13<='Global Inputs'!$B37,BU$14>'Global Inputs'!$B37),1,0) -> 0 | BV37: =IF(AND(BV$13<='Global Inputs'!$B37,BV$14>'Global Inputs'!$B37),1,0) -> 0 | BW37: =IF(AND(BW$13<='Global Inputs'!$B37,BW$14>'Global Inputs'!$B37),1,0) -> 0 | BX37: =IF(AND(BX$13<='Global Inputs'!$B37,BX$14>'Global Inputs'!$B37),1,0) -> 0 | BY37: =IF(AND(BY$13<='Global Inputs'!$B37,BY$14>'Global Inputs'!$B37),1,0) -> 0 | BZ37: =IF(AND(BZ$13<='Global Inputs'!$B37,BZ$14>'Global Inputs'!$B37),1,0) -> 0 | CA37: =IF(AND(CA$13<='Global Inputs'!$B37,CA$14>'Global Inputs'!$B37),1,0) -> 0 | CB37: =IF(AND(CB$13<='Global Inputs'!$B37,CB$14>'Global Inputs'!$B37),1,0) -> 0 | CC37: =IF(AND(CC$13<='Global Inputs'!$B37,CC$14>'Global Inputs'!$B37),1,0) -> 0 | CD37: =IF(AND(CD$13<='Global Inputs'!$B37,CD$14>'Global Inputs'!$B37),1,0) -> 0 | CE37: =IF(AND(CE$13<='Global Inputs'!$B37,CE$14>'Global Inputs'!$B37),1,0) -> 0 | CF37: =IF(AND(CF$13<='Global Inputs'!$B37,CF$14>'Global Inputs'!$B37),1,0) -> 0 | CG37: =IF(AND(CG$13<='Global Inputs'!$B37,CG$14>'Global Inputs'!$B37),1,0) -> 0 | CH37: =IF(AND(CH$13<='Global Inputs'!$B37,CH$14>'Global Inputs'!$B37),1,0) -> 0 | CI37: =IF(AND(CI$13<='Global Inputs'!$B37,CI$14>'Global Inputs'!$B37),1,0) -> 0 | CJ37: =IF(AND(CJ$13<='Global Inputs'!$B37,CJ$14>'Global Inputs'!$B37),1,0) -> 0 | CK37: =IF(AND(CK$13<='Global Inputs'!$B37,CK$14>'Global Inputs'!$B37),1,0) -> 0 | CL37: =IF(AND(CL$13<='Global Inputs'!$B37,CL$14>'Global Inputs'!$B37),1,0) -> 0 | CM37: =IF(AND(CM$13<='Global Inputs'!$B37,CM$14>'Global Inputs'!$B37),1,0) -> 0 | CN37: =IF(AND(CN$13<='Global Inputs'!$B37,CN$14>'Global Inputs'!$B37),1,0) -> 0 | CO37: =IF(AND(CO$13<='Global Inputs'!$B37,CO$14>'Global Inputs'!$B37),1,0) -> 0 | CP37: =IF(AND(CP$13<='Global Inputs'!$B37,CP$14>'Global Inputs'!$B37),1,0) -> 0 | CQ37: =IF(AND(CQ$13<='Global Inputs'!$B37,CQ$14>'Global Inputs'!$B37),1,0) -> 0 | CR37: =IF(AND(CR$13<='Global Inputs'!$B37,CR$14>'Global Inputs'!$B37),1,0) -> 0
A38: Asset release flag phase 5 | F38: =IF(AND(F$13<='Global Inputs'!$B38,F$14>'Global Inputs'!$B38),1,0) -> 0 | G38: =IF(AND(G$13<='Global Inputs'!$B38,G$14>'Global Inputs'!$B38),1,0) -> 0 | H38: =IF(AND(H$13<='Global Inputs'!$B38,H$14>'Global Inputs'!$B38),1,0) -> 0 | I38: =IF(AND(I$13<='Global Inputs'!$B38,I$14>'Global Inputs'!$B38),1,0) -> 0 | J38: =IF(AND(J$13<='Global Inputs'!$B38,J$14>'Global Inputs'!$B38),1,0) -> 0 | K38: =IF(AND(K$13<='Global Inputs'!$B38,K$14>'Global Inputs'!$B38),1,0) -> 0 | L38: =IF(AND(L$13<='Global Inputs'!$B38,L$14>'Global Inputs'!$B38),1,0) -> 0 | M38: =IF(AND(M$13<='Global Inputs'!$B38,M$14>'Global Inputs'!$B38),1,0) -> 0 | N38: =IF(AND(N$13<='Global Inputs'!$B38,N$14>'Global Inputs'!$B38),1,0) -> 0 | O38: =IF(AND(O$13<='Global Inputs'!$B38,O$14>'Global Inputs'!$B38),1,0) -> 0 | P38: =IF(AND(P$13<='Global Inputs'!$B38,P$14>'Global Inputs'!$B38),1,0) -> 0 | Q38: =IF(AND(Q$13<='Global Inputs'!$B38,Q$14>'Global Inputs'!$B38),1,0) -> 0 | R38: =IF(AND(R$13<='Global Inputs'!$B38,R$14>'Global Inputs'!$B38),1,0) -> 0 | S38: =IF(AND(S$13<='Global Inputs'!$B38,S$14>'Global Inputs'!$B38),1,0) -> 0 | T38: =IF(AND(T$13<='Global Inputs'!$B38,T$14>'Global Inputs'!$B38),1,0) -> 0 | U38: =IF(AND(U$13<='Global Inputs'!$B38,U$14>'Global Inputs'!$B38),1,0) -> 0 | V38: =IF(AND(V$13<='Global Inputs'!$B38,V$14>'Global Inputs'!$B38),1,0) -> 0 | W38: =IF(AND(W$13<='Global Inputs'!$B38,W$14>'Global Inputs'!$B38),1,0) -> 0 | X38: =IF(AND(X$13<='Global Inputs'!$B38,X$14>'Global Inputs'!$B38),1,0) -> 0 | Y38: =IF(AND(Y$13<='Global Inputs'!$B38,Y$14>'Global Inputs'!$B38),1,0) -> 0 | Z38: =IF(AND(Z$13<='Global Inputs'!$B38,Z$14>'Global Inputs'!$B38),1,0) -> 0 | AA38: =IF(AND(AA$13<='Global Inputs'!$B38,AA$14>'Global Inputs'!$B38),1,0) -> 0 | AB38: =IF(AND(AB$13<='Global Inputs'!$B38,AB$14>'Global Inputs'!$B38),1,0) -> 0 | AC38: =IF(AND(AC$13<='Global Inputs'!$B38,AC$14>'Global Inputs'!$B38),1,0) -> 0 | AD38: =IF(AND(AD$13<='Global Inputs'!$B38,AD$14>'Global Inputs'!$B38),1,0) -> 0 | AE38: =IF(AND(AE$13<='Global Inputs'!$B38,AE$14>'Global Inputs'!$B38),1,0) -> 0 | AF38: =IF(AND(AF$13<='Global Inputs'!$B38,AF$14>'Global Inputs'!$B38),1,0) -> 0 | AG38: =IF(AND(AG$13<='Global Inputs'!$B38,AG$14>'Global Inputs'!$B38),1,0) -> 0 | AH38: =IF(AND(AH$13<='Global Inputs'!$B38,AH$14>'Global Inputs'!$B38),1,0) -> 0 | AI38: =IF(AND(AI$13<='Global Inputs'!$B38,AI$14>'Global Inputs'!$B38),1,0) -> 0 | AJ38: =IF(AND(AJ$13<='Global Inputs'!$B38,AJ$14>'Global Inputs'!$B38),1,0) -> 0 | AK38: =IF(AND(AK$13<='Global Inputs'!$B38,AK$14>'Global Inputs'!$B38),1,0) -> 0 | AL38: =IF(AND(AL$13<='Global Inputs'!$B38,AL$14>'Global Inputs'!$B38),1,0) -> 0 | AM38: =IF(AND(AM$13<='Global Inputs'!$B38,AM$14>'Global Inputs'!$B38),1,0) -> 0 | AN38: =IF(AND(AN$13<='Global Inputs'!$B38,AN$14>'Global Inputs'!$B38),1,0) -> 0 | AO38: =IF(AND(AO$13<='Global Inputs'!$B38,AO$14>'Global Inputs'!$B38),1,0) -> 0 | AP38: =IF(AND(AP$13<='Global Inputs'!$B38,AP$14>'Global Inputs'!$B38),1,0) -> 0 | AQ38: =IF(AND(AQ$13<='Global Inputs'!$B38,AQ$14>'Global Inputs'!$B38),1,0) -> 0 | AR38: =IF(AND(AR$13<='Global Inputs'!$B38,AR$14>'Global Inputs'!$B38),1,0) -> 0 | AS38: =IF(AND(AS$13<='Global Inputs'!$B38,AS$14>'Global Inputs'!$B38),1,0) -> 0 | AT38: =IF(AND(AT$13<='Global Inputs'!$B38,AT$14>'Global Inputs'!$B38),1,0) -> 0 | AU38: =IF(AND(AU$13<='Global Inputs'!$B38,AU$14>'Global Inputs'!$B38),1,0) -> 0 | AV38: =IF(AND(AV$13<='Global Inputs'!$B38,AV$14>'Global Inputs'!$B38),1,0) -> 0 | AW38: =IF(AND(AW$13<='Global Inputs'!$B38,AW$14>'Global Inputs'!$B38),1,0) -> 0 | AX38: =IF(AND(AX$13<='Global Inputs'!$B38,AX$14>'Global Inputs'!$B38),1,0) -> 0 | AY38: =IF(AND(AY$13<='Global Inputs'!$B38,AY$14>'Global Inputs'!$B38),1,0) -> 0 | AZ38: =IF(AND(AZ$13<='Global Inputs'!$B38,AZ$14>'Global Inputs'!$B38),1,0) -> 0 | BA38: =IF(AND(BA$13<='Global Inputs'!$B38,BA$14>'Global Inputs'!$B38),1,0) -> 0 | BB38: =IF(AND(BB$13<='Global Inputs'!$B38,BB$14>'Global Inputs'!$B38),1,0) -> 0 | BC38: =IF(AND(BC$13<='Global Inputs'!$B38,BC$14>'Global Inputs'!$B38),1,0) -> 0 | BD38: =IF(AND(BD$13<='Global Inputs'!$B38,BD$14>'Global Inputs'!$B38),1,0) -> 0 | BE38: =IF(AND(BE$13<='Global Inputs'!$B38,BE$14>'Global Inputs'!$B38),1,0) -> 0 | BF38: =IF(AND(BF$13<='Global Inputs'!$B38,BF$14>'Global Inputs'!$B38),1,0) -> 0 | BG38: =IF(AND(BG$13<='Global Inputs'!$B38,BG$14>'Global Inputs'!$B38),1,0) -> 0 | BH38: =IF(AND(BH$13<='Global Inputs'!$B38,BH$14>'Global Inputs'!$B38),1,0) -> 0 | BI38: =IF(AND(BI$13<='Global Inputs'!$B38,BI$14>'Global Inputs'!$B38),1,0) -> 0 | BJ38: =IF(AND(BJ$13<='Global Inputs'!$B38,BJ$14>'Global Inputs'!$B38),1,0) -> 0 | BK38: =IF(AND(BK$13<='Global Inputs'!$B38,BK$14>'Global Inputs'!$B38),1,0) -> 0 | BL38: =IF(AND(BL$13<='Global Inputs'!$B38,BL$14>'Global Inputs'!$B38),1,0) -> 0 | BM38: =IF(AND(BM$13<='Global Inputs'!$B38,BM$14>'Global Inputs'!$B38),1,0) -> 0 | BN38: =IF(AND(BN$13<='Global Inputs'!$B38,BN$14>'Global Inputs'!$B38),1,0) -> 0 | BO38: =IF(AND(BO$13<='Global Inputs'!$B38,BO$14>'Global Inputs'!$B38),1,0) -> 0 | BP38: =IF(AND(BP$13<='Global Inputs'!$B38,BP$14>'Global Inputs'!$B38),1,0) -> 0 | BQ38: =IF(AND(BQ$13<='Global Inputs'!$B38,BQ$14>'Global Inputs'!$B38),1,0) -> 0 | BR38: =IF(AND(BR$13<='Global Inputs'!$B38,BR$14>'Global Inputs'!$B38),1,0) -> 0 | BS38: =IF(AND(BS$13<='Global Inputs'!$B38,BS$14>'Global Inputs'!$B38),1,0) -> 0 | BT38: =IF(AND(BT$13<='Global Inputs'!$B38,BT$14>'Global Inputs'!$B38),1,0) -> 0 | BU38: =IF(AND(BU$13<='Global Inputs'!$B38,BU$14>'Global Inputs'!$B38),1,0) -> 0 | BV38: =IF(AND(BV$13<='Global Inputs'!$B38,BV$14>'Global Inputs'!$B38),1,0) -> 0 | BW38: =IF(AND(BW$13<='Global Inputs'!$B38,BW$14>'Global Inputs'!$B38),1,0) -> 0 | BX38: =IF(AND(BX$13<='Global Inputs'!$B38,BX$14>'Global Inputs'!$B38),1,0) -> 0 | BY38: =IF(AND(BY$13<='Global Inputs'!$B38,BY$14>'Global Inputs'!$B38),1,0) -> 0 | BZ38: =IF(AND(BZ$13<='Global Inputs'!$B38,BZ$14>'Global Inputs'!$B38),1,0) -> 0 | CA38: =IF(AND(CA$13<='Global Inputs'!$B38,CA$14>'Global Inputs'!$B38),1,0) -> 0 | CB38: =IF(AND(CB$13<='Global Inputs'!$B38,CB$14>'Global Inputs'!$B38),1,0) -> 0 | CC38: =IF(AND(CC$13<='Global Inputs'!$B38,CC$14>'Global Inputs'!$B38),1,0) -> 0 | CD38: =IF(AND(CD$13<='Global Inputs'!$B38,CD$14>'Global Inputs'!$B38),1,0) -> 0 | CE38: =IF(AND(CE$13<='Global Inputs'!$B38,CE$14>'Global Inputs'!$B38),1,0) -> 0 | CF38: =IF(AND(CF$13<='Global Inputs'!$B38,CF$14>'Global Inputs'!$B38),1,0) -> 0 | CG38: =IF(AND(CG$13<='Global Inputs'!$B38,CG$14>'Global Inputs'!$B38),1,0) -> 0 | CH38: =IF(AND(CH$13<='Global Inputs'!$B38,CH$14>'Global Inputs'!$B38),1,0) -> 0 | CI38: =IF(AND(CI$13<='Global Inputs'!$B38,CI$14>'Global Inputs'!$B38),1,0) -> 0 | CJ38: =IF(AND(CJ$13<='Global Inputs'!$B38,CJ$14>'Global Inputs'!$B38),1,0) -> 0 | CK38: =IF(AND(CK$13<='Global Inputs'!$B38,CK$14>'Global Inputs'!$B38),1,0) -> 0 | CL38: =IF(AND(CL$13<='Global Inputs'!$B38,CL$14>'Global Inputs'!$B38),1,0) -> 0 | CM38: =IF(AND(CM$13<='Global Inputs'!$B38,CM$14>'Global Inputs'!$B38),1,0) -> 0 | CN38: =IF(AND(CN$13<='Global Inputs'!$B38,CN$14>'Global Inputs'!$B38),1,0) -> 0 | CO38: =IF(AND(CO$13<='Global Inputs'!$B38,CO$14>'Global Inputs'!$B38),1,0) -> 0 | CP38: =IF(AND(CP$13<='Global Inputs'!$B38,CP$14>'Global Inputs'!$B38),1,0) -> 0 | CQ38: =IF(AND(CQ$13<='Global Inputs'!$B38,CQ$14>'Global Inputs'!$B38),1,0) -> 0 | CR38: =IF(AND(CR$13<='Global Inputs'!$B38,CR$14>'Global Inputs'!$B38),1,0) -> 0
A40: Asset release phase 1 | F40: =F34*YEARFRAC(F$14,'Global Inputs'!$B34)*2 -> 0 | G40: =G34*YEARFRAC(G$14,'Global Inputs'!$B34)*2 -> 0 | H40: =H34*YEARFRAC(H$14,'Global Inputs'!$B34)*2 -> 0 | I40: =I34*YEARFRAC(I$14,'Global Inputs'!$B34)*2 -> 0 | J40: =J34*YEARFRAC(J$14,'Global Inputs'!$B34)*2 -> 0 | K40: =K34*YEARFRAC(K$14,'Global Inputs'!$B34)*2 -> 0 | L40: =L34*YEARFRAC(L$14,'Global Inputs'!$B34)*2 -> 0.8277777778 | M40: =M34*YEARFRAC(M$14,'Global Inputs'!$B34)*2 -> 0 | N40: =N34*YEARFRAC(N$14,'Global Inputs'!$B34)*2 -> 0 | O40: =O34*YEARFRAC(O$14,'Global Inputs'!$B34)*2 -> 0 | P40: =P34*YEARFRAC(P$14,'Global Inputs'!$B34)*2 -> 0 | Q40: =Q34*YEARFRAC(Q$14,'Global Inputs'!$B34)*2 -> 0 | R40: =R34*YEARFRAC(R$14,'Global Inputs'!$B34)*2 -> 0 | S40: =S34*YEARFRAC(S$14,'Global Inputs'!$B34)*2 -> 0 | T40: =T34*YEARFRAC(T$14,'Global Inputs'!$B34)*2 -> 0 | U40: =U34*YEARFRAC(U$14,'Global Inputs'!$B34)*2 -> 0 | V40: =V34*YEARFRAC(V$14,'Global Inputs'!$B34)*2 -> 0 | W40: =W34*YEARFRAC(W$14,'Global Inputs'!$B34)*2 -> 0 | X40: =X34*YEARFRAC(X$14,'Global Inputs'!$B34)*2 -> 0 | Y40: =Y34*YEARFRAC(Y$14,'Global Inputs'!$B34)*2 -> 0 | Z40: =Z34*YEARFRAC(Z$14,'Global Inputs'!$B34)*2 -> 0 | AA40: =AA34*YEARFRAC(AA$14,'Global Inputs'!$B34)*2 -> 0 | AB40: =AB34*YEARFRAC(AB$14,'Global Inputs'!$B34)*2 -> 0 | AC40: =AC34*YEARFRAC(AC$14,'Global Inputs'!$B34)*2 -> 0 | AD40: =AD34*YEARFRAC(AD$14,'Global Inputs'!$B34)*2 -> 0 | AE40: =AE34*YEARFRAC(AE$14,'Global Inputs'!$B34)*2 -> 0 | AF40: =AF34*YEARFRAC(AF$14,'Global Inputs'!$B34)*2 -> 0 | AG40: =AG34*YEARFRAC(AG$14,'Global Inputs'!$B34)*2 -> 0 | AH40: =AH34*YEARFRAC(AH$14,'Global Inputs'!$B34)*2 -> 0 | AI40: =AI34*YEARFRAC(AI$14,'Global Inputs'!$B34)*2 -> 0 | AJ40: =AJ34*YEARFRAC(AJ$14,'Global Inputs'!$B34)*2 -> 0 | AK40: =AK34*YEARFRAC(AK$14,'Global Inputs'!$B34)*2 -> 0 | AL40: =AL34*YEARFRAC(AL$14,'Global Inputs'!$B34)*2 -> 0 | AM40: =AM34*YEARFRAC(AM$14,'Global Inputs'!$B34)*2 -> 0 | AN40: =AN34*YEARFRAC(AN$14,'Global Inputs'!$B34)*2 -> 0 | AO40: =AO34*YEARFRAC(AO$14,'Global Inputs'!$B34)*2 -> 0 | AP40: =AP34*YEARFRAC(AP$14,'Global Inputs'!$B34)*2 -> 0 | AQ40: =AQ34*YEARFRAC(AQ$14,'Global Inputs'!$B34)*2 -> 0 | AR40: =AR34*YEARFRAC(AR$14,'Global Inputs'!$B34)*2 -> 0 | AS40: =AS34*YEARFRAC(AS$14,'Global Inputs'!$B34)*2 -> 0 | AT40: =AT34*YEARFRAC(AT$14,'Global Inputs'!$B34)*2 -> 0 | AU40: =AU34*YEARFRAC(AU$14,'Global Inputs'!$B34)*2 -> 0 | AV40: =AV34*YEARFRAC(AV$14,'Global Inputs'!$B34)*2 -> 0 | AW40: =AW34*YEARFRAC(AW$14,'Global Inputs'!$B34)*2 -> 0 | AX40: =AX34*YEARFRAC(AX$14,'Global Inputs'!$B34)*2 -> 0 | AY40: =AY34*YEARFRAC(AY$14,'Global Inputs'!$B34)*2 -> 0 | AZ40: =AZ34*YEARFRAC(AZ$14,'Global Inputs'!$B34)*2 -> 0 | BA40: =BA34*YEARFRAC(BA$14,'Global Inputs'!$B34)*2 -> 0 | BB40: =BB34*YEARFRAC(BB$14,'Global Inputs'!$B34)*2 -> 0 | BC40: =BC34*YEARFRAC(BC$14,'Global Inputs'!$B34)*2 -> 0 | BD40: =BD34*YEARFRAC(BD$14,'Global Inputs'!$B34)*2 -> 0 | BE40: =BE34*YEARFRAC(BE$14,'Global Inputs'!$B34)*2 -> 0 | BF40: =BF34*YEARFRAC(BF$14,'Global Inputs'!$B34)*2 -> 0 | BG40: =BG34*YEARFRAC(BG$14,'Global Inputs'!$B34)*2 -> 0 | BH40: =BH34*YEARFRAC(BH$14,'Global Inputs'!$B34)*2 -> 0 | BI40: =BI34*YEARFRAC(BI$14,'Global Inputs'!$B34)*2 -> 0 | BJ40: =BJ34*YEARFRAC(BJ$14,'Global Inputs'!$B34)*2 -> 0 | BK40: =BK34*YEARFRAC(BK$14,'Global Inputs'!$B34)*2 -> 0 | BL40: =BL34*YEARFRAC(BL$14,'Global Inputs'!$B34)*2 -> 0 | BM40: =BM34*YEARFRAC(BM$14,'Global Inputs'!$B34)*2 -> 0 | BN40: =BN34*YEARFRAC(BN$14,'Global Inputs'!$B34)*2 -> 0 | BO40: =BO34*YEARFRAC(BO$14,'Global Inputs'!$B34)*2 -> 0 | BP40: =BP34*YEARFRAC(BP$14,'Global Inputs'!$B34)*2 -> 0 | BQ40: =BQ34*YEARFRAC(BQ$14,'Global Inputs'!$B34)*2 -> 0 | BR40: =BR34*YEARFRAC(BR$14,'Global Inputs'!$B34)*2 -> 0 | BS40: =BS34*YEARFRAC(BS$14,'Global Inputs'!$B34)*2 -> 0 | BT40: =BT34*YEARFRAC(BT$14,'Global Inputs'!$B34)*2 -> 0 | BU40: =BU34*YEARFRAC(BU$14,'Global Inputs'!$B34)*2 -> 0 | BV40: =BV34*YEARFRAC(BV$14,'Global Inputs'!$B34)*2 -> 0 | BW40: =BW34*YEARFRAC(BW$14,'Global Inputs'!$B34)*2 -> 0 | BX40: =BX34*YEARFRAC(BX$14,'Global Inputs'!$B34)*2 -> 0 | BY40: =BY34*YEARFRAC(BY$14,'Global Inputs'!$B34)*2 -> 0 | BZ40: =BZ34*YEARFRAC(BZ$14,'Global Inputs'!$B34)*2 -> 0 | CA40: =CA34*YEARFRAC(CA$14,'Global Inputs'!$B34)*2 -> 0 | CB40: =CB34*YEARFRAC(CB$14,'Global Inputs'!$B34)*2 -> 0 | CC40: =CC34*YEARFRAC(CC$14,'Global Inputs'!$B34)*2 -> 0 | CD40: =CD34*YEARFRAC(CD$14,'Global Inputs'!$B34)*2 -> 0 | CE40: =CE34*YEARFRAC(CE$14,'Global Inputs'!$B34)*2 -> 0 | CF40: =CF34*YEARFRAC(CF$14,'Global Inputs'!$B34)*2 -> 0 | CG40: =CG34*YEARFRAC(CG$14,'Global Inputs'!$B34)*2 -> 0 | CH40: =CH34*YEARFRAC(CH$14,'Global Inputs'!$B34)*2 -> 0 | CI40: =CI34*YEARFRAC(CI$14,'Global Inputs'!$B34)*2 -> 0 | CJ40: =CJ34*YEARFRAC(CJ$14,'Global Inputs'!$B34)*2 -> 0 | CK40: =CK34*YEARFRAC(CK$14,'Global Inputs'!$B34)*2 -> 0 | CL40: =CL34*YEARFRAC(CL$14,'Global Inputs'!$B34)*2 -> 0 | CM40: =CM34*YEARFRAC(CM$14,'Global Inputs'!$B34)*2 -> 0 | CN40: =CN34*YEARFRAC(CN$14,'Global Inputs'!$B34)*2 -> 0 | CO40: =CO34*YEARFRAC(CO$14,'Global Inputs'!$B34)*2 -> 0 | CP40: =CP34*YEARFRAC(CP$14,'Global Inputs'!$B34)*2 -> 0 | CQ40: =CQ34*YEARFRAC(CQ$14,'Global Inputs'!$B34)*2 -> 0 | CR40: =CR34*YEARFRAC(CR$14,'Global Inputs'!$B34)*2 -> 0
A41: Asset release phase 2 | F41: =F35*YEARFRAC(F$14,'Global Inputs'!$B35)*2 -> 0 | G41: =G35*YEARFRAC(G$14,'Global Inputs'!$B35)*2 -> 0 | H41: =H35*YEARFRAC(H$14,'Global Inputs'!$B35)*2 -> 0 | I41: =I35*YEARFRAC(I$14,'Global Inputs'!$B35)*2 -> 0 | J41: =J35*YEARFRAC(J$14,'Global Inputs'!$B35)*2 -> 0 | K41: =K35*YEARFRAC(K$14,'Global Inputs'!$B35)*2 -> 0 | L41: =L35*YEARFRAC(L$14,'Global Inputs'!$B35)*2 -> 0 | M41: =M35*YEARFRAC(M$14,'Global Inputs'!$B35)*2 -> 0 | N41: =N35*YEARFRAC(N$14,'Global Inputs'!$B35)*2 -> 0 | O41: =O35*YEARFRAC(O$14,'Global Inputs'!$B35)*2 -> 0 | P41: =P35*YEARFRAC(P$14,'Global Inputs'!$B35)*2 -> 0 | Q41: =Q35*YEARFRAC(Q$14,'Global Inputs'!$B35)*2 -> 0 | R41: =R35*YEARFRAC(R$14,'Global Inputs'!$B35)*2 -> 0 | S41: =S35*YEARFRAC(S$14,'Global Inputs'!$B35)*2 -> 0 | T41: =T35*YEARFRAC(T$14,'Global Inputs'!$B35)*2 -> 0 | U41: =U35*YEARFRAC(U$14,'Global Inputs'!$B35)*2 -> 0 | V41: =V35*YEARFRAC(V$14,'Global Inputs'!$B35)*2 -> 0 | W41: =W35*YEARFRAC(W$14,'Global Inputs'!$B35)*2 -> 0 | X41: =X35*YEARFRAC(X$14,'Global Inputs'!$B35)*2 -> 0 | Y41: =Y35*YEARFRAC(Y$14,'Global Inputs'!$B35)*2 -> 0 | Z41: =Z35*YEARFRAC(Z$14,'Global Inputs'!$B35)*2 -> 0 | AA41: =AA35*YEARFRAC(AA$14,'Global Inputs'!$B35)*2 -> 0 | AB41: =AB35*YEARFRAC(AB$14,'Global Inputs'!$B35)*2 -> 0 | AC41: =AC35*YEARFRAC(AC$14,'Global Inputs'!$B35)*2 -> 0 | AD41: =AD35*YEARFRAC(AD$14,'Global Inputs'!$B35)*2 -> 0 | AE41: =AE35*YEARFRAC(AE$14,'Global Inputs'!$B35)*2 -> 0 | AF41: =AF35*YEARFRAC(AF$14,'Global Inputs'!$B35)*2 -> 0 | AG41: =AG35*YEARFRAC(AG$14,'Global Inputs'!$B35)*2 -> 0 | AH41: =AH35*YEARFRAC(AH$14,'Global Inputs'!$B35)*2 -> 0 | AI41: =AI35*YEARFRAC(AI$14,'Global Inputs'!$B35)*2 -> 0 | AJ41: =AJ35*YEARFRAC(AJ$14,'Global Inputs'!$B35)*2 -> 0 | AK41: =AK35*YEARFRAC(AK$14,'Global Inputs'!$B35)*2 -> 0 | AL41: =AL35*YEARFRAC(AL$14,'Global Inputs'!$B35)*2 -> 0 | AM41: =AM35*YEARFRAC(AM$14,'Global Inputs'!$B35)*2 -> 0 | AN41: =AN35*YEARFRAC(AN$14,'Global Inputs'!$B35)*2 -> 0 | AO41: =AO35*YEARFRAC(AO$14,'Global Inputs'!$B35)*2 -> 0 | AP41: =AP35*YEARFRAC(AP$14,'Global Inputs'!$B35)*2 -> 0 | AQ41: =AQ35*YEARFRAC(AQ$14,'Global Inputs'!$B35)*2 -> 0 | AR41: =AR35*YEARFRAC(AR$14,'Global Inputs'!$B35)*2 -> 0 | AS41: =AS35*YEARFRAC(AS$14,'Global Inputs'!$B35)*2 -> 0 | AT41: =AT35*YEARFRAC(AT$14,'Global Inputs'!$B35)*2 -> 0 | AU41: =AU35*YEARFRAC(AU$14,'Global Inputs'!$B35)*2 -> 0 | AV41: =AV35*YEARFRAC(AV$14,'Global Inputs'!$B35)*2 -> 0 | AW41: =AW35*YEARFRAC(AW$14,'Global Inputs'!$B35)*2 -> 0 | AX41: =AX35*YEARFRAC(AX$14,'Global Inputs'!$B35)*2 -> 0 | AY41: =AY35*YEARFRAC(AY$14,'Global Inputs'!$B35)*2 -> 0 | AZ41: =AZ35*YEARFRAC(AZ$14,'Global Inputs'!$B35)*2 -> 0 | BA41: =BA35*YEARFRAC(BA$14,'Global Inputs'!$B35)*2 -> 0 | BB41: =BB35*YEARFRAC(BB$14,'Global Inputs'!$B35)*2 -> 0 | BC41: =BC35*YEARFRAC(BC$14,'Global Inputs'!$B35)*2 -> 0 | BD41: =BD35*YEARFRAC(BD$14,'Global Inputs'!$B35)*2 -> 0 | BE41: =BE35*YEARFRAC(BE$14,'Global Inputs'!$B35)*2 -> 0 | BF41: =BF35*YEARFRAC(BF$14,'Global Inputs'!$B35)*2 -> 0 | BG41: =BG35*YEARFRAC(BG$14,'Global Inputs'!$B35)*2 -> 0 | BH41: =BH35*YEARFRAC(BH$14,'Global Inputs'!$B35)*2 -> 0 | BI41: =BI35*YEARFRAC(BI$14,'Global Inputs'!$B35)*2 -> 0 | BJ41: =BJ35*YEARFRAC(BJ$14,'Global Inputs'!$B35)*2 -> 0 | BK41: =BK35*YEARFRAC(BK$14,'Global Inputs'!$B35)*2 -> 0 | BL41: =BL35*YEARFRAC(BL$14,'Global Inputs'!$B35)*2 -> 0 | BM41: =BM35*YEARFRAC(BM$14,'Global Inputs'!$B35)*2 -> 0 | BN41: =BN35*YEARFRAC(BN$14,'Global Inputs'!$B35)*2 -> 0 | BO41: =BO35*YEARFRAC(BO$14,'Global Inputs'!$B35)*2 -> 0 | BP41: =BP35*YEARFRAC(BP$14,'Global Inputs'!$B35)*2 -> 0 | BQ41: =BQ35*YEARFRAC(BQ$14,'Global Inputs'!$B35)*2 -> 0 | BR41: =BR35*YEARFRAC(BR$14,'Global Inputs'!$B35)*2 -> 0 | BS41: =BS35*YEARFRAC(BS$14,'Global Inputs'!$B35)*2 -> 0 | BT41: =BT35*YEARFRAC(BT$14,'Global Inputs'!$B35)*2 -> 0 | BU41: =BU35*YEARFRAC(BU$14,'Global Inputs'!$B35)*2 -> 0 | BV41: =BV35*YEARFRAC(BV$14,'Global Inputs'!$B35)*2 -> 0 | BW41: =BW35*YEARFRAC(BW$14,'Global Inputs'!$B35)*2 -> 0 | BX41: =BX35*YEARFRAC(BX$14,'Global Inputs'!$B35)*2 -> 0 | BY41: =BY35*YEARFRAC(BY$14,'Global Inputs'!$B35)*2 -> 0 | BZ41: =BZ35*YEARFRAC(BZ$14,'Global Inputs'!$B35)*2 -> 0 | CA41: =CA35*YEARFRAC(CA$14,'Global Inputs'!$B35)*2 -> 0 | CB41: =CB35*YEARFRAC(CB$14,'Global Inputs'!$B35)*2 -> 0 | CC41: =CC35*YEARFRAC(CC$14,'Global Inputs'!$B35)*2 -> 0 | CD41: =CD35*YEARFRAC(CD$14,'Global Inputs'!$B35)*2 -> 0 | CE41: =CE35*YEARFRAC(CE$14,'Global Inputs'!$B35)*2 -> 0 | CF41: =CF35*YEARFRAC(CF$14,'Global Inputs'!$B35)*2 -> 0 | CG41: =CG35*YEARFRAC(CG$14,'Global Inputs'!$B35)*2 -> 0 | CH41: =CH35*YEARFRAC(CH$14,'Global Inputs'!$B35)*2 -> 0 | CI41: =CI35*YEARFRAC(CI$14,'Global Inputs'!$B35)*2 -> 0 | CJ41: =CJ35*YEARFRAC(CJ$14,'Global Inputs'!$B35)*2 -> 0 | CK41: =CK35*YEARFRAC(CK$14,'Global Inputs'!$B35)*2 -> 0 | CL41: =CL35*YEARFRAC(CL$14,'Global Inputs'!$B35)*2 -> 0 | CM41: =CM35*YEARFRAC(CM$14,'Global Inputs'!$B35)*2 -> 0 | CN41: =CN35*YEARFRAC(CN$14,'Global Inputs'!$B35)*2 -> 0 | CO41: =CO35*YEARFRAC(CO$14,'Global Inputs'!$B35)*2 -> 0 | CP41: =CP35*YEARFRAC(CP$14,'Global Inputs'!$B35)*2 -> 0 | CQ41: =CQ35*YEARFRAC(CQ$14,'Global Inputs'!$B35)*2 -> 0 | CR41: =CR35*YEARFRAC(CR$14,'Global Inputs'!$B35)*2 -> 0
A42: Asset release phase 3 | F42: =F36*YEARFRAC(F$14,'Global Inputs'!$B36)*2 -> 0 | G42: =G36*YEARFRAC(G$14,'Global Inputs'!$B36)*2 -> 0 | H42: =H36*YEARFRAC(H$14,'Global Inputs'!$B36)*2 -> 0 | I42: =I36*YEARFRAC(I$14,'Global Inputs'!$B36)*2 -> 0 | J42: =J36*YEARFRAC(J$14,'Global Inputs'!$B36)*2 -> 0 | K42: =K36*YEARFRAC(K$14,'Global Inputs'!$B36)*2 -> 0 | L42: =L36*YEARFRAC(L$14,'Global Inputs'!$B36)*2 -> 0 | M42: =M36*YEARFRAC(M$14,'Global Inputs'!$B36)*2 -> 0 | N42: =N36*YEARFRAC(N$14,'Global Inputs'!$B36)*2 -> 0 | O42: =O36*YEARFRAC(O$14,'Global Inputs'!$B36)*2 -> 0 | P42: =P36*YEARFRAC(P$14,'Global Inputs'!$B36)*2 -> 0 | Q42: =Q36*YEARFRAC(Q$14,'Global Inputs'!$B36)*2 -> 0 | R42: =R36*YEARFRAC(R$14,'Global Inputs'!$B36)*2 -> 0 | S42: =S36*YEARFRAC(S$14,'Global Inputs'!$B36)*2 -> 0 | T42: =T36*YEARFRAC(T$14,'Global Inputs'!$B36)*2 -> 0 | U42: =U36*YEARFRAC(U$14,'Global Inputs'!$B36)*2 -> 0 | V42: =V36*YEARFRAC(V$14,'Global Inputs'!$B36)*2 -> 0 | W42: =W36*YEARFRAC(W$14,'Global Inputs'!$B36)*2 -> 0 | X42: =X36*YEARFRAC(X$14,'Global Inputs'!$B36)*2 -> 0 | Y42: =Y36*YEARFRAC(Y$14,'Global Inputs'!$B36)*2 -> 0 | Z42: =Z36*YEARFRAC(Z$14,'Global Inputs'!$B36)*2 -> 0 | AA42: =AA36*YEARFRAC(AA$14,'Global Inputs'!$B36)*2 -> 0 | AB42: =AB36*YEARFRAC(AB$14,'Global Inputs'!$B36)*2 -> 0 | AC42: =AC36*YEARFRAC(AC$14,'Global Inputs'!$B36)*2 -> 0 | AD42: =AD36*YEARFRAC(AD$14,'Global Inputs'!$B36)*2 -> 0 | AE42: =AE36*YEARFRAC(AE$14,'Global Inputs'!$B36)*2 -> 0 | AF42: =AF36*YEARFRAC(AF$14,'Global Inputs'!$B36)*2 -> 0 | AG42: =AG36*YEARFRAC(AG$14,'Global Inputs'!$B36)*2 -> 0 | AH42: =AH36*YEARFRAC(AH$14,'Global Inputs'!$B36)*2 -> 0 | AI42: =AI36*YEARFRAC(AI$14,'Global Inputs'!$B36)*2 -> 0 | AJ42: =AJ36*YEARFRAC(AJ$14,'Global Inputs'!$B36)*2 -> 0 | AK42: =AK36*YEARFRAC(AK$14,'Global Inputs'!$B36)*2 -> 0 | AL42: =AL36*YEARFRAC(AL$14,'Global Inputs'!$B36)*2 -> 0 | AM42: =AM36*YEARFRAC(AM$14,'Global Inputs'!$B36)*2 -> 0 | AN42: =AN36*YEARFRAC(AN$14,'Global Inputs'!$B36)*2 -> 0 | AO42: =AO36*YEARFRAC(AO$14,'Global Inputs'!$B36)*2 -> 0 | AP42: =AP36*YEARFRAC(AP$14,'Global Inputs'!$B36)*2 -> 0 | AQ42: =AQ36*YEARFRAC(AQ$14,'Global Inputs'!$B36)*2 -> 0 | AR42: =AR36*YEARFRAC(AR$14,'Global Inputs'!$B36)*2 -> 0 | AS42: =AS36*YEARFRAC(AS$14,'Global Inputs'!$B36)*2 -> 0 | AT42: =AT36*YEARFRAC(AT$14,'Global Inputs'!$B36)*2 -> 0 | AU42: =AU36*YEARFRAC(AU$14,'Global Inputs'!$B36)*2 -> 0 | AV42: =AV36*YEARFRAC(AV$14,'Global Inputs'!$B36)*2 -> 0 | AW42: =AW36*YEARFRAC(AW$14,'Global Inputs'!$B36)*2 -> 0 | AX42: =AX36*YEARFRAC(AX$14,'Global Inputs'!$B36)*2 -> 0 | AY42: =AY36*YEARFRAC(AY$14,'Global Inputs'!$B36)*2 -> 0 | AZ42: =AZ36*YEARFRAC(AZ$14,'Global Inputs'!$B36)*2 -> 0 | BA42: =BA36*YEARFRAC(BA$14,'Global Inputs'!$B36)*2 -> 0 | BB42: =BB36*YEARFRAC(BB$14,'Global Inputs'!$B36)*2 -> 0 | BC42: =BC36*YEARFRAC(BC$14,'Global Inputs'!$B36)*2 -> 0 | BD42: =BD36*YEARFRAC(BD$14,'Global Inputs'!$B36)*2 -> 0 | BE42: =BE36*YEARFRAC(BE$14,'Global Inputs'!$B36)*2 -> 0 | BF42: =BF36*YEARFRAC(BF$14,'Global Inputs'!$B36)*2 -> 0 | BG42: =BG36*YEARFRAC(BG$14,'Global Inputs'!$B36)*2 -> 0 | BH42: =BH36*YEARFRAC(BH$14,'Global Inputs'!$B36)*2 -> 0 | BI42: =BI36*YEARFRAC(BI$14,'Global Inputs'!$B36)*2 -> 0 | BJ42: =BJ36*YEARFRAC(BJ$14,'Global Inputs'!$B36)*2 -> 0 | BK42: =BK36*YEARFRAC(BK$14,'Global Inputs'!$B36)*2 -> 0 | BL42: =BL36*YEARFRAC(BL$14,'Global Inputs'!$B36)*2 -> 0 | BM42: =BM36*YEARFRAC(BM$14,'Global Inputs'!$B36)*2 -> 0 | BN42: =BN36*YEARFRAC(BN$14,'Global Inputs'!$B36)*2 -> 0 | BO42: =BO36*YEARFRAC(BO$14,'Global Inputs'!$B36)*2 -> 0 | BP42: =BP36*YEARFRAC(BP$14,'Global Inputs'!$B36)*2 -> 0 | BQ42: =BQ36*YEARFRAC(BQ$14,'Global Inputs'!$B36)*2 -> 0 | BR42: =BR36*YEARFRAC(BR$14,'Global Inputs'!$B36)*2 -> 0 | BS42: =BS36*YEARFRAC(BS$14,'Global Inputs'!$B36)*2 -> 0 | BT42: =BT36*YEARFRAC(BT$14,'Global Inputs'!$B36)*2 -> 0 | BU42: =BU36*YEARFRAC(BU$14,'Global Inputs'!$B36)*2 -> 0 | BV42: =BV36*YEARFRAC(BV$14,'Global Inputs'!$B36)*2 -> 0 | BW42: =BW36*YEARFRAC(BW$14,'Global Inputs'!$B36)*2 -> 0 | BX42: =BX36*YEARFRAC(BX$14,'Global Inputs'!$B36)*2 -> 0 | BY42: =BY36*YEARFRAC(BY$14,'Global Inputs'!$B36)*2 -> 0 | BZ42: =BZ36*YEARFRAC(BZ$14,'Global Inputs'!$B36)*2 -> 0 | CA42: =CA36*YEARFRAC(CA$14,'Global Inputs'!$B36)*2 -> 0 | CB42: =CB36*YEARFRAC(CB$14,'Global Inputs'!$B36)*2 -> 0 | CC42: =CC36*YEARFRAC(CC$14,'Global Inputs'!$B36)*2 -> 0 | CD42: =CD36*YEARFRAC(CD$14,'Global Inputs'!$B36)*2 -> 0 | CE42: =CE36*YEARFRAC(CE$14,'Global Inputs'!$B36)*2 -> 0 | CF42: =CF36*YEARFRAC(CF$14,'Global Inputs'!$B36)*2 -> 0 | CG42: =CG36*YEARFRAC(CG$14,'Global Inputs'!$B36)*2 -> 0 | CH42: =CH36*YEARFRAC(CH$14,'Global Inputs'!$B36)*2 -> 0 | CI42: =CI36*YEARFRAC(CI$14,'Global Inputs'!$B36)*2 -> 0 | CJ42: =CJ36*YEARFRAC(CJ$14,'Global Inputs'!$B36)*2 -> 0 | CK42: =CK36*YEARFRAC(CK$14,'Global Inputs'!$B36)*2 -> 0 | CL42: =CL36*YEARFRAC(CL$14,'Global Inputs'!$B36)*2 -> 0 | CM42: =CM36*YEARFRAC(CM$14,'Global Inputs'!$B36)*2 -> 0 | CN42: =CN36*YEARFRAC(CN$14,'Global Inputs'!$B36)*2 -> 0 | CO42: =CO36*YEARFRAC(CO$14,'Global Inputs'!$B36)*2 -> 0 | CP42: =CP36*YEARFRAC(CP$14,'Global Inputs'!$B36)*2 -> 0 | CQ42: =CQ36*YEARFRAC(CQ$14,'Global Inputs'!$B36)*2 -> 0 | CR42: =CR36*YEARFRAC(CR$14,'Global Inputs'!$B36)*2 -> 0
A43: Asset release phase 4 | F43: =F37*YEARFRAC(F$14,'Global Inputs'!$B37)*2 -> 0 | G43: =G37*YEARFRAC(G$14,'Global Inputs'!$B37)*2 -> 0 | H43: =H37*YEARFRAC(H$14,'Global Inputs'!$B37)*2 -> 0 | I43: =I37*YEARFRAC(I$14,'Global Inputs'!$B37)*2 -> 0 | J43: =J37*YEARFRAC(J$14,'Global Inputs'!$B37)*2 -> 0 | K43: =K37*YEARFRAC(K$14,'Global Inputs'!$B37)*2 -> 0 | L43: =L37*YEARFRAC(L$14,'Global Inputs'!$B37)*2 -> 0 | M43: =M37*YEARFRAC(M$14,'Global Inputs'!$B37)*2 -> 0 | N43: =N37*YEARFRAC(N$14,'Global Inputs'!$B37)*2 -> 0 | O43: =O37*YEARFRAC(O$14,'Global Inputs'!$B37)*2 -> 0 | P43: =P37*YEARFRAC(P$14,'Global Inputs'!$B37)*2 -> 0 | Q43: =Q37*YEARFRAC(Q$14,'Global Inputs'!$B37)*2 -> 0 | R43: =R37*YEARFRAC(R$14,'Global Inputs'!$B37)*2 -> 0 | S43: =S37*YEARFRAC(S$14,'Global Inputs'!$B37)*2 -> 0 | T43: =T37*YEARFRAC(T$14,'Global Inputs'!$B37)*2 -> 0 | U43: =U37*YEARFRAC(U$14,'Global Inputs'!$B37)*2 -> 0 | V43: =V37*YEARFRAC(V$14,'Global Inputs'!$B37)*2 -> 0 | W43: =W37*YEARFRAC(W$14,'Global Inputs'!$B37)*2 -> 0 | X43: =X37*YEARFRAC(X$14,'Global Inputs'!$B37)*2 -> 0 | Y43: =Y37*YEARFRAC(Y$14,'Global Inputs'!$B37)*2 -> 0 | Z43: =Z37*YEARFRAC(Z$14,'Global Inputs'!$B37)*2 -> 0 | AA43: =AA37*YEARFRAC(AA$14,'Global Inputs'!$B37)*2 -> 0 | AB43: =AB37*YEARFRAC(AB$14,'Global Inputs'!$B37)*2 -> 0 | AC43: =AC37*YEARFRAC(AC$14,'Global Inputs'!$B37)*2 -> 0 | AD43: =AD37*YEARFRAC(AD$14,'Global Inputs'!$B37)*2 -> 0 | AE43: =AE37*YEARFRAC(AE$14,'Global Inputs'!$B37)*2 -> 0 | AF43: =AF37*YEARFRAC(AF$14,'Global Inputs'!$B37)*2 -> 0 | AG43: =AG37*YEARFRAC(AG$14,'Global Inputs'!$B37)*2 -> 0 | AH43: =AH37*YEARFRAC(AH$14,'Global Inputs'!$B37)*2 -> 0 | AI43: =AI37*YEARFRAC(AI$14,'Global Inputs'!$B37)*2 -> 0 | AJ43: =AJ37*YEARFRAC(AJ$14,'Global Inputs'!$B37)*2 -> 0 | AK43: =AK37*YEARFRAC(AK$14,'Global Inputs'!$B37)*2 -> 0 | AL43: =AL37*YEARFRAC(AL$14,'Global Inputs'!$B37)*2 -> 0 | AM43: =AM37*YEARFRAC(AM$14,'Global Inputs'!$B37)*2 -> 0 | AN43: =AN37*YEARFRAC(AN$14,'Global Inputs'!$B37)*2 -> 0 | AO43: =AO37*YEARFRAC(AO$14,'Global Inputs'!$B37)*2 -> 0 | AP43: =AP37*YEARFRAC(AP$14,'Global Inputs'!$B37)*2 -> 0 | AQ43: =AQ37*YEARFRAC(AQ$14,'Global Inputs'!$B37)*2 -> 0 | AR43: =AR37*YEARFRAC(AR$14,'Global Inputs'!$B37)*2 -> 0 | AS43: =AS37*YEARFRAC(AS$14,'Global Inputs'!$B37)*2 -> 0 | AT43: =AT37*YEARFRAC(AT$14,'Global Inputs'!$B37)*2 -> 0 | AU43: =AU37*YEARFRAC(AU$14,'Global Inputs'!$B37)*2 -> 0 | AV43: =AV37*YEARFRAC(AV$14,'Global Inputs'!$B37)*2 -> 0 | AW43: =AW37*YEARFRAC(AW$14,'Global Inputs'!$B37)*2 -> 0 | AX43: =AX37*YEARFRAC(AX$14,'Global Inputs'!$B37)*2 -> 0 | AY43: =AY37*YEARFRAC(AY$14,'Global Inputs'!$B37)*2 -> 0 | AZ43: =AZ37*YEARFRAC(AZ$14,'Global Inputs'!$B37)*2 -> 0 | BA43: =BA37*YEARFRAC(BA$14,'Global Inputs'!$B37)*2 -> 0 | BB43: =BB37*YEARFRAC(BB$14,'Global Inputs'!$B37)*2 -> 0 | BC43: =BC37*YEARFRAC(BC$14,'Global Inputs'!$B37)*2 -> 0 | BD43: =BD37*YEARFRAC(BD$14,'Global Inputs'!$B37)*2 -> 0 | BE43: =BE37*YEARFRAC(BE$14,'Global Inputs'!$B37)*2 -> 0 | BF43: =BF37*YEARFRAC(BF$14,'Global Inputs'!$B37)*2 -> 0 | BG43: =BG37*YEARFRAC(BG$14,'Global Inputs'!$B37)*2 -> 0 | BH43: =BH37*YEARFRAC(BH$14,'Global Inputs'!$B37)*2 -> 0 | BI43: =BI37*YEARFRAC(BI$14,'Global Inputs'!$B37)*2 -> 0 | BJ43: =BJ37*YEARFRAC(BJ$14,'Global Inputs'!$B37)*2 -> 0 | BK43: =BK37*YEARFRAC(BK$14,'Global Inputs'!$B37)*2 -> 0 | BL43: =BL37*YEARFRAC(BL$14,'Global Inputs'!$B37)*2 -> 0 | BM43: =BM37*YEARFRAC(BM$14,'Global Inputs'!$B37)*2 -> 0 | BN43: =BN37*YEARFRAC(BN$14,'Global Inputs'!$B37)*2 -> 0 | BO43: =BO37*YEARFRAC(BO$14,'Global Inputs'!$B37)*2 -> 0 | BP43: =BP37*YEARFRAC(BP$14,'Global Inputs'!$B37)*2 -> 0 | BQ43: =BQ37*YEARFRAC(BQ$14,'Global Inputs'!$B37)*2 -> 0 | BR43: =BR37*YEARFRAC(BR$14,'Global Inputs'!$B37)*2 -> 0 | BS43: =BS37*YEARFRAC(BS$14,'Global Inputs'!$B37)*2 -> 0 | BT43: =BT37*YEARFRAC(BT$14,'Global Inputs'!$B37)*2 -> 0 | BU43: =BU37*YEARFRAC(BU$14,'Global Inputs'!$B37)*2 -> 0 | BV43: =BV37*YEARFRAC(BV$14,'Global Inputs'!$B37)*2 -> 0 | BW43: =BW37*YEARFRAC(BW$14,'Global Inputs'!$B37)*2 -> 0 | BX43: =BX37*YEARFRAC(BX$14,'Global Inputs'!$B37)*2 -> 0 | BY43: =BY37*YEARFRAC(BY$14,'Global Inputs'!$B37)*2 -> 0 | BZ43: =BZ37*YEARFRAC(BZ$14,'Global Inputs'!$B37)*2 -> 0 | CA43: =CA37*YEARFRAC(CA$14,'Global Inputs'!$B37)*2 -> 0 | CB43: =CB37*YEARFRAC(CB$14,'Global Inputs'!$B37)*2 -> 0 | CC43: =CC37*YEARFRAC(CC$14,'Global Inputs'!$B37)*2 -> 0 | CD43: =CD37*YEARFRAC(CD$14,'Global Inputs'!$B37)*2 -> 0 | CE43: =CE37*YEARFRAC(CE$14,'Global Inputs'!$B37)*2 -> 0 | CF43: =CF37*YEARFRAC(CF$14,'Global Inputs'!$B37)*2 -> 0 | CG43: =CG37*YEARFRAC(CG$14,'Global Inputs'!$B37)*2 -> 0 | CH43: =CH37*YEARFRAC(CH$14,'Global Inputs'!$B37)*2 -> 0 | CI43: =CI37*YEARFRAC(CI$14,'Global Inputs'!$B37)*2 -> 0 | CJ43: =CJ37*YEARFRAC(CJ$14,'Global Inputs'!$B37)*2 -> 0 | CK43: =CK37*YEARFRAC(CK$14,'Global Inputs'!$B37)*2 -> 0 | CL43: =CL37*YEARFRAC(CL$14,'Global Inputs'!$B37)*2 -> 0 | CM43: =CM37*YEARFRAC(CM$14,'Global Inputs'!$B37)*2 -> 0 | CN43: =CN37*YEARFRAC(CN$14,'Global Inputs'!$B37)*2 -> 0 | CO43: =CO37*YEARFRAC(CO$14,'Global Inputs'!$B37)*2 -> 0 | CP43: =CP37*YEARFRAC(CP$14,'Global Inputs'!$B37)*2 -> 0 | CQ43: =CQ37*YEARFRAC(CQ$14,'Global Inputs'!$B37)*2 -> 0 | CR43: =CR37*YEARFRAC(CR$14,'Global Inputs'!$B37)*2 -> 0
A44: Asset release phase 5 | F44: =F38*YEARFRAC(F$14,'Global Inputs'!$B38)*2 -> 0 | G44: =G38*YEARFRAC(G$14,'Global Inputs'!$B38)*2 -> 0 | H44: =H38*YEARFRAC(H$14,'Global Inputs'!$B38)*2 -> 0 | I44: =I38*YEARFRAC(I$14,'Global Inputs'!$B38)*2 -> 0 | J44: =J38*YEARFRAC(J$14,'Global Inputs'!$B38)*2 -> 0 | K44: =K38*YEARFRAC(K$14,'Global Inputs'!$B38)*2 -> 0 | L44: =L38*YEARFRAC(L$14,'Global Inputs'!$B38)*2 -> 0 | M44: =M38*YEARFRAC(M$14,'Global Inputs'!$B38)*2 -> 0 | N44: =N38*YEARFRAC(N$14,'Global Inputs'!$B38)*2 -> 0 | O44: =O38*YEARFRAC(O$14,'Global Inputs'!$B38)*2 -> 0 | P44: =P38*YEARFRAC(P$14,'Global Inputs'!$B38)*2 -> 0 | Q44: =Q38*YEARFRAC(Q$14,'Global Inputs'!$B38)*2 -> 0 | R44: =R38*YEARFRAC(R$14,'Global Inputs'!$B38)*2 -> 0 | S44: =S38*YEARFRAC(S$14,'Global Inputs'!$B38)*2 -> 0 | T44: =T38*YEARFRAC(T$14,'Global Inputs'!$B38)*2 -> 0 | U44: =U38*YEARFRAC(U$14,'Global Inputs'!$B38)*2 -> 0 | V44: =V38*YEARFRAC(V$14,'Global Inputs'!$B38)*2 -> 0 | W44: =W38*YEARFRAC(W$14,'Global Inputs'!$B38)*2 -> 0 | X44: =X38*YEARFRAC(X$14,'Global Inputs'!$B38)*2 -> 0 | Y44: =Y38*YEARFRAC(Y$14,'Global Inputs'!$B38)*2 -> 0 | Z44: =Z38*YEARFRAC(Z$14,'Global Inputs'!$B38)*2 -> 0 | AA44: =AA38*YEARFRAC(AA$14,'Global Inputs'!$B38)*2 -> 0 | AB44: =AB38*YEARFRAC(AB$14,'Global Inputs'!$B38)*2 -> 0 | AC44: =AC38*YEARFRAC(AC$14,'Global Inputs'!$B38)*2 -> 0 | AD44: =AD38*YEARFRAC(AD$14,'Global Inputs'!$B38)*2 -> 0 | AE44: =AE38*YEARFRAC(AE$14,'Global Inputs'!$B38)*2 -> 0 | AF44: =AF38*YEARFRAC(AF$14,'Global Inputs'!$B38)*2 -> 0 | AG44: =AG38*YEARFRAC(AG$14,'Global Inputs'!$B38)*2 -> 0 | AH44: =AH38*YEARFRAC(AH$14,'Global Inputs'!$B38)*2 -> 0 | AI44: =AI38*YEARFRAC(AI$14,'Global Inputs'!$B38)*2 -> 0 | AJ44: =AJ38*YEARFRAC(AJ$14,'Global Inputs'!$B38)*2 -> 0 | AK44: =AK38*YEARFRAC(AK$14,'Global Inputs'!$B38)*2 -> 0 | AL44: =AL38*YEARFRAC(AL$14,'Global Inputs'!$B38)*2 -> 0 | AM44: =AM38*YEARFRAC(AM$14,'Global Inputs'!$B38)*2 -> 0 | AN44: =AN38*YEARFRAC(AN$14,'Global Inputs'!$B38)*2 -> 0 | AO44: =AO38*YEARFRAC(AO$14,'Global Inputs'!$B38)*2 -> 0 | AP44: =AP38*YEARFRAC(AP$14,'Global Inputs'!$B38)*2 -> 0 | AQ44: =AQ38*YEARFRAC(AQ$14,'Global Inputs'!$B38)*2 -> 0 | AR44: =AR38*YEARFRAC(AR$14,'Global Inputs'!$B38)*2 -> 0 | AS44: =AS38*YEARFRAC(AS$14,'Global Inputs'!$B38)*2 -> 0 | AT44: =AT38*YEARFRAC(AT$14,'Global Inputs'!$B38)*2 -> 0 | AU44: =AU38*YEARFRAC(AU$14,'Global Inputs'!$B38)*2 -> 0 | AV44: =AV38*YEARFRAC(AV$14,'Global Inputs'!$B38)*2 -> 0 | AW44: =AW38*YEARFRAC(AW$14,'Global Inputs'!$B38)*2 -> 0 | AX44: =AX38*YEARFRAC(AX$14,'Global Inputs'!$B38)*2 -> 0 | AY44: =AY38*YEARFRAC(AY$14,'Global Inputs'!$B38)*2 -> 0 | AZ44: =AZ38*YEARFRAC(AZ$14,'Global Inputs'!$B38)*2 -> 0 | BA44: =BA38*YEARFRAC(BA$14,'Global Inputs'!$B38)*2 -> 0 | BB44: =BB38*YEARFRAC(BB$14,'Global Inputs'!$B38)*2 -> 0 | BC44: =BC38*YEARFRAC(BC$14,'Global Inputs'!$B38)*2 -> 0 | BD44: =BD38*YEARFRAC(BD$14,'Global Inputs'!$B38)*2 -> 0 | BE44: =BE38*YEARFRAC(BE$14,'Global Inputs'!$B38)*2 -> 0 | BF44: =BF38*YEARFRAC(BF$14,'Global Inputs'!$B38)*2 -> 0 | BG44: =BG38*YEARFRAC(BG$14,'Global Inputs'!$B38)*2 -> 0 | BH44: =BH38*YEARFRAC(BH$14,'Global Inputs'!$B38)*2 -> 0 | BI44: =BI38*YEARFRAC(BI$14,'Global Inputs'!$B38)*2 -> 0 | BJ44: =BJ38*YEARFRAC(BJ$14,'Global Inputs'!$B38)*2 -> 0 | BK44: =BK38*YEARFRAC(BK$14,'Global Inputs'!$B38)*2 -> 0 | BL44: =BL38*YEARFRAC(BL$14,'Global Inputs'!$B38)*2 -> 0 | BM44: =BM38*YEARFRAC(BM$14,'Global Inputs'!$B38)*2 -> 0 | BN44: =BN38*YEARFRAC(BN$14,'Global Inputs'!$B38)*2 -> 0 | BO44: =BO38*YEARFRAC(BO$14,'Global Inputs'!$B38)*2 -> 0 | BP44: =BP38*YEARFRAC(BP$14,'Global Inputs'!$B38)*2 -> 0 | BQ44: =BQ38*YEARFRAC(BQ$14,'Global Inputs'!$B38)*2 -> 0 | BR44: =BR38*YEARFRAC(BR$14,'Global Inputs'!$B38)*2 -> 0 | BS44: =BS38*YEARFRAC(BS$14,'Global Inputs'!$B38)*2 -> 0 | BT44: =BT38*YEARFRAC(BT$14,'Global Inputs'!$B38)*2 -> 0 | BU44: =BU38*YEARFRAC(BU$14,'Global Inputs'!$B38)*2 -> 0 | BV44: =BV38*YEARFRAC(BV$14,'Global Inputs'!$B38)*2 -> 0 | BW44: =BW38*YEARFRAC(BW$14,'Global Inputs'!$B38)*2 -> 0 | BX44: =BX38*YEARFRAC(BX$14,'Global Inputs'!$B38)*2 -> 0 | BY44: =BY38*YEARFRAC(BY$14,'Global Inputs'!$B38)*2 -> 0 | BZ44: =BZ38*YEARFRAC(BZ$14,'Global Inputs'!$B38)*2 -> 0 | CA44: =CA38*YEARFRAC(CA$14,'Global Inputs'!$B38)*2 -> 0 | CB44: =CB38*YEARFRAC(CB$14,'Global Inputs'!$B38)*2 -> 0 | CC44: =CC38*YEARFRAC(CC$14,'Global Inputs'!$B38)*2 -> 0 | CD44: =CD38*YEARFRAC(CD$14,'Global Inputs'!$B38)*2 -> 0 | CE44: =CE38*YEARFRAC(CE$14,'Global Inputs'!$B38)*2 -> 0 | CF44: =CF38*YEARFRAC(CF$14,'Global Inputs'!$B38)*2 -> 0 | CG44: =CG38*YEARFRAC(CG$14,'Global Inputs'!$B38)*2 -> 0 | CH44: =CH38*YEARFRAC(CH$14,'Global Inputs'!$B38)*2 -> 0 | CI44: =CI38*YEARFRAC(CI$14,'Global Inputs'!$B38)*2 -> 0 | CJ44: =CJ38*YEARFRAC(CJ$14,'Global Inputs'!$B38)*2 -> 0 | CK44: =CK38*YEARFRAC(CK$14,'Global Inputs'!$B38)*2 -> 0 | CL44: =CL38*YEARFRAC(CL$14,'Global Inputs'!$B38)*2 -> 0 | CM44: =CM38*YEARFRAC(CM$14,'Global Inputs'!$B38)*2 -> 0 | CN44: =CN38*YEARFRAC(CN$14,'Global Inputs'!$B38)*2 -> 0 | CO44: =CO38*YEARFRAC(CO$14,'Global Inputs'!$B38)*2 -> 0 | CP44: =CP38*YEARFRAC(CP$14,'Global Inputs'!$B38)*2 -> 0 | CQ44: =CQ38*YEARFRAC(CQ$14,'Global Inputs'!$B38)*2 -> 0 | CR44: =CR38*YEARFRAC(CR$14,'Global Inputs'!$B38)*2 -> 0
A45: Proportion of period for which assets are released | F45: =SUM(F40:F44) -> 0 | G45: =SUM(G40:G44) -> 0 | H45: 0 | I45: 0 | J45: 0 | K45: 0 | L45: 0.8277777778 | M45: 0 | N45: 0 | O45: 0 | P45: 0 | Q45: 0 | R45: 0 | S45: 0 | T45: 0 | U45: 0 | V45: 0 | W45: 0 | X45: 0 | Y45: 0 | Z45: 0 | AA45: 0 | AB45: 0 | AC45: 0 | AD45: 0 | AE45: 0 | AF45: 0 | AG45: 0 | AH45: 0 | AI45: 0 | AJ45: 0 | AK45: 0 | AL45: 0 | AM45: 0 | AN45: 0 | AO45: 0 | AP45: 0 | AQ45: 0 | AR45: 0 | AS45: 0 | AT45: 0 | AU45: 0 | AV45: 0 | AW45: 0 | AX45: 0 | AY45: 0 | AZ45: 0 | BA45: 0 | BB45: 0 | BC45: 0 | BD45: 0 | BE45: 0 | BF45: 0 | BG45: 0 | BH45: 0 | BI45: 0 | BJ45: 0 | BK45: 0 | BL45: 0 | BM45: 0 | BN45: 0 | BO45: 0 | BP45: 0 | BQ45: 0 | BR45: 0 | BS45: =SUM(BS40:BS44) -> 0 | BT45: 0 | BU45: 0 | BV45: 0 | BW45: 0 | BX45: 0 | BY45: 0 | BZ45: 0 | CA45: 0 | CB45: 0 | CC45: 0 | CD45: 0 | CE45: 0 | CF45: 0 | CG45: 0 | CH45: 0 | CI45: 0 | CJ45: 0 | CK45: 0 | CL45: 0 | CM45: 0 | CN45: 0 | CO45: 0 | CP45: 0 | CQ45: 0 | CR45: 0
A47: Asset release profile | D47: =SUM(F47:CR47) -> 350892.7095 | F47: =$D$32*F30 -> 0 | G47: 0 | H47: 0 | I47: 0 | J47: 0 | K47: 0 | L47: 245624.8967 | M47: 105267.8129 | N47: 0 | O47: 0 | P47: 0 | Q47: 0 | R47: 0 | S47: 0 | T47: 0 | U47: 0 | V47: 0 | W47: 0 | X47: 0 | Y47: 0 | Z47: 0 | AA47: 0 | AB47: 0 | AC47: 0 | AD47: 0 | AE47: 0 | AF47: 0 | AG47: 0 | AH47: 0 | AI47: 0 | AJ47: 0 | AK47: 0 | AL47: =$D$32*AL30 -> 0 | AM47: 0 | AN47: 0 | AO47: 0 | AP47: 0 | AQ47: 0 | AR47: 0 | AS47: 0 | AT47: 0 | AU47: 0 | AV47: 0 | AW47: 0 | AX47: 0 | AY47: 0 | AZ47: 0 | BA47: 0 | BB47: 0 | BC47: 0 | BD47: 0 | BE47: 0 | BF47: 0 | BG47: 0 | BH47: 0 | BI47: 0 | BJ47: 0 | BK47: 0 | BL47: 0 | BM47: 0 | BN47: 0 | BO47: 0 | BP47: 0 | BQ47: 0 | BR47: =$D$32*BR30 -> 0 | BS47: 0 | BT47: 0 | BU47: 0 | BV47: 0 | BW47: 0 | BX47: 0 | BY47: 0 | BZ47: 0 | CA47: 0 | CB47: 0 | CC47: 0 | CD47: 0 | CE47: 0 | CF47: 0 | CG47: 0 | CH47: 0 | CI47: 0 | CJ47: 0 | CK47: 0 | CL47: 0 | CM47: 0 | CN47: 0 | CO47: 0 | CP47: 0 | CQ47: 0 | CR47: 0
A49: Asset release profile and components check | C49: =IF(D49=0,"OK","No") -> OK | D49: =SUM(F49:CR49) -> 0 | F49: =F47-F118 -> 0 | G49: 0 | H49: 0 | I49: 0 | J49: 0 | K49: 0 | L49: 0 | M49: 0 | N49: 0 | O49: 0 | P49: 0 | Q49: 0 | R49: 0 | S49: 0 | T49: 0 | U49: 0 | V49: 0 | W49: 0 | X49: 0 | Y49: 0 | Z49: 0 | AA49: 0 | AB49: 0 | AC49: 0 | AD49: 0 | AE49: 0 | AF49: 0 | AG49: 0 | AH49: 0 | AI49: 0 | AJ49: 0 | AK49: 0 | AL49: =AL47-AL118 -> 0 | AM49: 0 | AN49: 0 | AO49: 0 | AP49: 0 | AQ49: 0 | AR49: 0 | AS49: 0 | AT49: 0 | AU49: 0 | AV49: 0 | AW49: 0 | AX49: 0 | AY49: 0 | AZ49: 0 | BA49: 0 | BB49: 0 | BC49: 0 | BD49: 0 | BE49: 0 | BF49: 0 | BG49: 0 | BH49: 0 | BI49: 0 | BJ49: 0 | BK49: 0 | BL49: 0 | BM49: 0 | BN49: 0 | BO49: 0 | BP49: 0 | BQ49: 0 | BR49: =BR47-BR118 -> 0 | BS49: 0 | BT49: 0 | BU49: 0 | BV49: 0 | BW49: 0 | BX49: 0 | BY49: 0 | BZ49: 0 | CA49: 0 | CB49: 0 | CC49: 0 | CD49: 0 | CE49: 0 | CF49: 0 | CG49: 0 | CH49: 0 | CI49: 0 | CJ49: 0 | CK49: 0 | CL49: 0 | CM49: 0 | CN49: 0 | CO49: 0 | CP49: 0 | CQ49: 0 | CR49: 0
A51: New asset class UELs and proportions
A53: Scenario 1 | C53: UELs | D53: Proportions
C54: 10 | D54: 0.1 | F54: =IF($B$4=1,$D54*F$47,0) -> 0 | G54: 0 | H54: 0 | I54: 0 | J54: 0 | K54: 0 | L54: 24562.48967 | M54: 10526.78129 | N54: 0 | O54: 0 | P54: =IF($B$4=1,$D54*P$47,0) -> 0 | Q54: 0 | R54: 0 | S54: 0 | T54: 0 | U54: 0 | V54: 0 | W54: 0 | X54: 0 | Y54: 0 | Z54: =IF($B$4=1,$D54*Z$47,0) -> 0 | AA54: 0 | AB54: 0 | AC54: 0 | AD54: 0 | AE54: 0 | AF54: 0 | AG54: 0 | AH54: 0 | AI54: 0 | AJ54: =IF($B$4=1,$D54*AJ$47,0) -> 0 | AK54: 0 | AL54: 0 | AM54: 0 | AN54: 0 | AO54: 0 | AP54: 0 | AQ54: 0 | AR54: 0 | AS54: 0 | AT54: =IF($B$4=1,$D54*AT$47,0) -> 0 | AU54: 0 | AV54: 0 | AW54: 0 | AX54: 0 | AY54: 0 | AZ54: 0 | BA54: 0 | BB54: 0 | BC54: 0 | BD54: =IF($B$4=1,$D54*BD$47,0) -> 0 | BE54: 0 | BF54: 0 | BG54: 0 | BH54: 0 | BI54: 0 | BJ54: 0 | BK54: 0 | BL54: 0 | BM54: 0 | BN54: =IF($B$4=1,$D54*BN$47,0) -> 0 | BO54: 0 | BP54: 0 | BQ54: 0 | BR54: 0 | BS54: 0 | BT54: 0 | BU54: 0 | BV54: 0 | BW54: 0 | BX54: =IF($B$4=1,$D54*BX$47,0) -> 0 | BY54: 0 | BZ54: 0 | CA54: 0 | CB54: 0 | CC54: 0 | CD54: 0 | CE54: 0 | CF54: 0 | CG54: 0 | CH54: =IF($B$4=1,$D54*CH$47,0) -> 0 | CI54: 0 | CJ54: 0 | CK54: 0 | CL54: 0 | CM54: 0 | CN54: 0 | CO54: 0 | CP54: 0 | CQ54: 0 | CR54: 0
C55: 15 | D55: 0.1 | F55: 0 | G55: 0 | H55: 0 | I55: 0 | J55: 0 | K55: 0 | L55: 24562.48967 | M55: 10526.78129 | N55: 0 | O55: 0 | P55: 0 | Q55: 0 | R55: 0 | S55: 0 | T55: 0 | U55: 0 | V55: 0 | W55: 0 | X55: 0 | Y55: 0 | Z55: 0 | AA55: 0 | AB55: 0 | AC55: 0 | AD55: 0 | AE55: 0 | AF55: 0 | AG55: 0 | AH55: 0 | AI55: 0 | AJ55: 0 | AK55: 0 | AL55: 0 | AM55: 0 | AN55: 0 | AO55: 0 | AP55: 0 | AQ55: 0 | AR55: 0 | AS55: 0 | AT55: 0 | AU55: 0 | AV55: 0 | AW55: 0 | AX55: 0 | AY55: 0 | AZ55: 0 | BA55: 0 | BB55: 0 | BC55: 0 | BD55: 0 | BE55: 0 | BF55: 0 | BG55: 0 | BH55: 0 | BI55: 0 | BJ55: 0 | BK55: 0 | BL55: 0 | BM55: 0 | BN55: 0 | BO55: 0 | BP55: 0 | BQ55: 0 | BR55: 0 | BS55: 0 | BT55: 0 | BU55: 0 | BV55: 0 | BW55: 0 | BX55: 0 | BY55: 0 | BZ55: 0 | CA55: 0 | CB55: 0 | CC55: 0 | CD55: 0 | CE55: 0 | CF55: 0 | CG55: 0 | CH55: 0 | CI55: 0 | CJ55: 0 | CK55: 0 | CL55: 0 | CM55: 0 | CN55: 0 | CO55: 0 | CP55: 0 | CQ55: 0 | CR55: 0
C56: 20 | D56: 0.1 | F56: 0 | G56: 0 | H56: 0 | I56: 0 | J56: 0 | K56: 0 | L56: 24562.48967 | M56: 10526.78129 | N56: 0 | O56: 0 | P56: 0 | Q56: 0 | R56: 0 | S56: 0 | T56: 0 | U56: 0 | V56: 0 | W56: 0 | X56: 0 | Y56: 0 | Z56: 0 | AA56: 0 | AB56: 0 | AC56: 0 | AD56: 0 | AE56: 0 | AF56: 0 | AG56: 0 | AH56: 0 | AI56: 0 | AJ56: 0 | AK56: 0 | AL56: 0 | AM56: 0 | AN56: 0 | AO56: 0 | AP56: 0 | AQ56: 0 | AR56: 0 | AS56: 0 | AT56: 0 | AU56: 0 | AV56: 0 | AW56: 0 | AX56: 0 | AY56: 0 | AZ56: 0 | BA56: 0 | BB56: 0 | BC56: 0 | BD56: 0 | BE56: 0 | BF56: 0 | BG56: 0 | BH56: 0 | BI56: 0 | BJ56: 0 | BK56: 0 | BL56: 0 | BM56: 0 | BN56: 0 | BO56: 0 | BP56: 0 | BQ56: 0 | BR56: 0 | BS56: 0 | BT56: 0 | BU56: 0 | BV56: 0 | BW56: 0 | BX56: 0 | BY56: 0 | BZ56: 0 | CA56: 0 | CB56: 0 | CC56: 0 | CD56: 0 | CE56: 0 | CF56: 0 | CG56: 0 | CH56: 0 | CI56: 0 | CJ56: 0 | CK56: 0 | CL56: 0 | CM56: 0 | CN56: 0 | CO56: 0 | CP56: 0 | CQ56: 0 | CR56: 0
C57: 25 | D57: 0.2 | F57: 0 | G57: 0 | H57: 0 | I57: 0 | J57: 0 | K57: 0 | L57: 49124.97934 | M57: 21053.56257 | N57: 0 | O57: 0 | P57: 0 | Q57: 0 | R57: 0 | S57: 0 | T57: 0 | U57: 0 | V57: 0 | W57: 0 | X57: 0 | Y57: 0 | Z57: 0 | AA57: 0 | AB57: 0 | AC57: 0 | AD57: 0 | AE57: 0 | AF57: 0 | AG57: 0 | AH57: 0 | AI57: 0 | AJ57: 0 | AK57: 0 | AL57: 0 | AM57: 0 | AN57: 0 | AO57: 0 | AP57: 0 | AQ57: 0 | AR57: 0 | AS57: 0 | AT57: 0 | AU57: 0 | AV57: 0 | AW57: 0 | AX57: 0 | AY57: 0 | AZ57: 0 | BA57: 0 | BB57: 0 | BC57: 0 | BD57: 0 | BE57: 0 | BF57: 0 | BG57: 0 | BH57: 0 | BI57: 0 | BJ57: 0 | BK57: 0 | BL57: 0 | BM57: 0 | BN57: 0 | BO57: 0 | BP57: 0 | BQ57: 0 | BR57: 0 | BS57: 0 | BT57: 0 | BU57: 0 | BV57: 0 | BW57: 0 | BX57: 0 | BY57: 0 | BZ57: 0 | CA57: 0 | CB57: 0 | CC57: 0 | CD57: 0 | CE57: 0 | CF57: 0 | CG57: 0 | CH57: 0 | CI57: 0 | CJ57: 0 | CK57: 0 | CL57: 0 | CM57: 0 | CN57: 0 | CO57: 0 | CP57: 0 | CQ57: 0 | CR57: 0
C58: 30 | D58: 0 | F58: 0 | G58: 0 | H58: 0 | I58: 0 | J58: 0 | K58: 0 | L58: 0 | M58: 0 | N58: 0 | O58: 0 | P58: 0 | Q58: 0 | R58: 0 | S58: 0 | T58: 0 | U58: 0 | V58: 0 | W58: 0 | X58: 0 | Y58: 0 | Z58: 0 | AA58: 0 | AB58: 0 | AC58: 0 | AD58: 0 | AE58: 0 | AF58: 0 | AG58: 0 | AH58: 0 | AI58: 0 | AJ58: 0 | AK58: 0 | AL58: 0 | AM58: 0 | AN58: 0 | AO58: 0 | AP58: 0 | AQ58: 0 | AR58: 0 | AS58: 0 | AT58: 0 | AU58: 0 | AV58: 0 | AW58: 0 | AX58: 0 | AY58: 0 | AZ58: 0 | BA58: 0 | BB58: 0 | BC58: 0 | BD58: 0 | BE58: 0 | BF58: 0 | BG58: 0 | BH58: 0 | BI58: 0 | BJ58: 0 | BK58: 0 | BL58: 0 | BM58: 0 | BN58: 0 | BO58: 0 | BP58: 0 | BQ58: 0 | BR58: 0 | BS58: 0 | BT58: 0 | BU58: 0 | BV58: 0 | BW58: 0 | BX58: 0 | BY58: 0 | BZ58: 0 | CA58: 0 | CB58: 0 | CC58: 0 | CD58: 0 | CE58: 0 | CF58: 0 | CG58: 0 | CH58: 0 | CI58: 0 | CJ58: 0 | CK58: 0 | CL58: 0 | CM58: 0 | CN58: 0 | CO58: 0 | CP58: 0 | CQ58: 0 | CR58: 0
C59: 40 | D59: 0 | F59: 0 | G59: 0 | H59: 0 | I59: 0 | J59: 0 | K59: 0 | L59: 0 | M59: 0 | N59: 0 | O59: 0 | P59: 0 | Q59: 0 | R59: 0 | S59: 0 | T59: 0 | U59: 0 | V59: 0 | W59: 0 | X59: 0 | Y59: 0 | Z59: 0 | AA59: 0 | AB59: 0 | AC59: 0 | AD59: 0 | AE59: 0 | AF59: 0 | AG59: 0 | AH59: 0 | AI59: 0 | AJ59: 0 | AK59: 0 | AL59: 0 | AM59: 0 | AN59: 0 | AO59: 0 | AP59: 0 | AQ59: 0 | AR59: 0 | AS59: 0 | AT59: 0 | AU59: 0 | AV59: 0 | AW59: 0 | AX59: 0 | AY59: 0 | AZ59: 0 | BA59: 0 | BB59: 0 | BC59: 0 | BD59: 0 | BE59: 0 | BF59: 0 | BG59: 0 | BH59: 0 | BI59: 0 | BJ59: 0 | BK59: 0 | BL59: 0 | BM59: 0 | BN59: 0 | BO59: 0 | BP59: 0 | BQ59: 0 | BR59: 0 | BS59: 0 | BT59: 0 | BU59: 0 | BV59: 0 | BW59: 0 | BX59: 0 | BY59: 0 | BZ59: 0 | CA59: 0 | CB59: 0 | CC59: 0 | CD59: 0 | CE59: 0 | CF59: 0 | CG59: 0 | CH59: 0 | CI59: 0 | CJ59: 0 | CK59: 0 | CL59: 0 | CM59: 0 | CN59: 0 | CO59: 0 | CP59: 0 | CQ59: 0 | CR59: 0
C60: 50 | D60: 0 | F60: 0 | G60: 0 | H60: 0 | I60: 0 | J60: 0 | K60: 0 | L60: 0 | M60: 0 | N60: 0 | O60: 0 | P60: 0 | Q60: 0 | R60: 0 | S60: 0 | T60: 0 | U60: 0 | V60: 0 | W60: 0 | X60: 0 | Y60: 0 | Z60: 0 | AA60: 0 | AB60: 0 | AC60: 0 | AD60: 0 | AE60: 0 | AF60: 0 | AG60: 0 | AH60: 0 | AI60: 0 | AJ60: 0 | AK60: 0 | AL60: 0 | AM60: 0 | AN60: 0 | AO60: 0 | AP60: 0 | AQ60: 0 | AR60: 0 | AS60: 0 | AT60: 0 | AU60: 0 | AV60: 0 | AW60: 0 | AX60: 0 | AY60: 0 | AZ60: 0 | BA60: 0 | BB60: 0 | BC60: 0 | BD60: 0 | BE60: 0 | BF60: 0 | BG60: 0 | BH60: 0 | BI60: 0 | BJ60: 0 | BK60: 0 | BL60: 0 | BM60: 0 | BN60: 0 | BO60: 0 | BP60: 0 | BQ60: 0 | BR60: 0 | BS60: 0 | BT60: 0 | BU60: 0 | BV60: 0 | BW60: 0 | BX60: 0 | BY60: 0 | BZ60: 0 | CA60: 0 | CB60: 0 | CC60: 0 | CD60: 0 | CE60: 0 | CF60: 0 | CG60: 0 | CH60: 0 | CI60: 0 | CJ60: 0 | CK60: 0 | CL60: 0 | CM60: 0 | CN60: 0 | CO60: 0 | CP60: 0 | CQ60: 0 | CR60: 0
C61: 60 | D61: 0.5 | F61: 0 | G61: 0 | H61: 0 | I61: 0 | J61: 0 | K61: 0 | L61: 122812.4483 | M61: 52633.90643 | N61: 0 | O61: 0 | P61: 0 | Q61: 0 | R61: 0 | S61: 0 | T61: 0 | U61: 0 | V61: 0 | W61: 0 | X61: 0 | Y61: 0 | Z61: 0 | AA61: 0 | AB61: 0 | AC61: 0 | AD61: 0 | AE61: 0 | AF61: 0 | AG61: 0 | AH61: 0 | AI61: 0 | AJ61: 0 | AK61: 0 | AL61: 0 | AM61: 0 | AN61: 0 | AO61: 0 | AP61: 0 | AQ61: 0 | AR61: 0 | AS61: 0 | AT61: 0 | AU61: 0 | AV61: 0 | AW61: 0 | AX61: 0 | AY61: 0 | AZ61: 0 | BA61: 0 | BB61: 0 | BC61: 0 | BD61: 0 | BE61: 0 | BF61: 0 | BG61: 0 | BH61: 0 | BI61: 0 | BJ61: 0 | BK61: 0 | BL61: 0 | BM61: 0 | BN61: 0 | BO61: 0 | BP61: 0 | BQ61: 0 | BR61: 0 | BS61: 0 | BT61: 0 | BU61: 0 | BV61: 0 | BW61: 0 | BX61: 0 | BY61: 0 | BZ61: 0 | CA61: 0 | CB61: 0 | CC61: 0 | CD61: 0 | CE61: 0 | CF61: 0 | CG61: 0 | CH61: 0 | CI61: 0 | CJ61: 0 | CK61: 0 | CL61: 0 | CM61: 0 | CN61: 0 | CO61: 0 | CP61: 0 | CQ61: 0 | CR61: 0
C62: 70 | D62: 0 | F62: 0 | G62: 0 | H62: 0 | I62: 0 | J62: 0 | K62: 0 | L62: 0 | M62: 0 | N62: 0 | O62: 0 | P62: 0 | Q62: 0 | R62: 0 | S62: 0 | T62: 0 | U62: 0 | V62: 0 | W62: 0 | X62: 0 | Y62: 0 | Z62: 0 | AA62: 0 | AB62: 0 | AC62: 0 | AD62: 0 | AE62: 0 | AF62: 0 | AG62: 0 | AH62: 0 | AI62: 0 | AJ62: 0 | AK62: 0 | AL62: 0 | AM62: 0 | AN62: 0 | AO62: 0 | AP62: 0 | AQ62: 0 | AR62: 0 | AS62: 0 | AT62: 0 | AU62: 0 | AV62: 0 | AW62: 0 | AX62: 0 | AY62: 0 | AZ62: 0 | BA62: 0 | BB62: 0 | BC62: 0 | BD62: 0 | BE62: 0 | BF62: 0 | BG62: 0 | BH62: 0 | BI62: 0 | BJ62: 0 | BK62: 0 | BL62: 0 | BM62: 0 | BN62: 0 | BO62: 0 | BP62: 0 | BQ62: 0 | BR62: 0 | BS62: 0 | BT62: 0 | BU62: 0 | BV62: 0 | BW62: 0 | BX62: 0 | BY62: 0 | BZ62: 0 | CA62: 0 | CB62: 0 | CC62: 0 | CD62: 0 | CE62: 0 | CF62: 0 | CG62: 0 | CH62: 0 | CI62: 0 | CJ62: 0 | CK62: 0 | CL62: 0 | CM62: 0 | CN62: 0 | CO62: 0 | CP62: 0 | CQ62: 0 | CR62: 0
C63: 80 | D63: 0 | F63: 0 | G63: 0 | H63: 0 | I63: 0 | J63: 0 | K63: 0 | L63: 0 | M63: 0 | N63: 0 | O63: 0 | P63: 0 | Q63: 0 | R63: 0 | S63: 0 | T63: 0 | U63: 0 | V63: 0 | W63: 0 | X63: 0 | Y63: 0 | Z63: 0 | AA63: 0 | AB63: 0 | AC63: 0 | AD63: 0 | AE63: 0 | AF63: 0 | AG63: 0 | AH63: 0 | AI63: 0 | AJ63: 0 | AK63: 0 | AL63: 0 | AM63: 0 | AN63: 0 | AO63: 0 | AP63: 0 | AQ63: 0 | AR63: 0 | AS63: 0 | AT63: 0 | AU63: 0 | AV63: 0 | AW63: 0 | AX63: 0 | AY63: 0 | AZ63: 0 | BA63: 0 | BB63: 0 | BC63: 0 | BD63: 0 | BE63: 0 | BF63: 0 | BG63: 0 | BH63: 0 | BI63: 0 | BJ63: 0 | BK63: 0 | BL63: 0 | BM63: 0 | BN63: 0 | BO63: 0 | BP63: 0 | BQ63: 0 | BR63: 0 | BS63: 0 | BT63: 0 | BU63: 0 | BV63: 0 | BW63: 0 | BX63: 0 | BY63: 0 | BZ63: 0 | CA63: 0 | CB63: 0 | CC63: 0 | CD63: 0 | CE63: 0 | CF63: 0 | CG63: 0 | CH63: 0 | CI63: 0 | CJ63: 0 | CK63: 0 | CL63: 0 | CM63: 0 | CN63: 0 | CO63: 0 | CP63: 0 | CQ63: 0 | CR63: 0
F64: =SUM(F54:F63) -> 0 | G64: =SUM(G54:G63) -> 0 | H64: 0 | I64: 0 | J64: 0 | K64: 0 | L64: 245624.8967 | M64: 105267.8129 | N64: 0 | O64: 0 | P64: 0 | Q64: 0 | R64: 0 | S64: 0 | T64: 0 | U64: 0 | V64: 0 | W64: 0 | X64: 0 | Y64: 0 | Z64: 0 | AA64: 0 | AB64: 0 | AC64: 0 | AD64: 0 | AE64: 0 | AF64: 0 | AG64: 0 | AH64: 0 | AI64: 0 | AJ64: 0 | AK64: 0 | AL64: 0 | AM64: 0 | AN64: 0 | AO64: 0 | AP64: 0 | AQ64: 0 | AR64: 0 | AS64: 0 | AT64: 0 | AU64: 0 | AV64: 0 | AW64: 0 | AX64: 0 | AY64: 0 | AZ64: 0 | BA64: 0 | BB64: 0 | BC64: 0 | BD64: 0 | BE64: 0 | BF64: 0 | BG64: 0 | BH64: 0 | BI64: 0 | BJ64: 0 | BK64: 0 | BL64: 0 | BM64: 0 | BN64: 0 | BO64: 0 | BP64: 0 | BQ64: 0 | BR64: 0 | BS64: =SUM(BS54:BS63) -> 0 | BT64: 0 | BU64: 0 | BV64: 0 | BW64: 0 | BX64: 0 | BY64: 0 | BZ64: 0 | CA64: 0 | CB64: 0 | CC64: 0 | CD64: 0 | CE64: 0 | CF64: 0 | CG64: 0 | CH64: 0 | CI64: 0 | CJ64: 0 | CK64: 0 | CL64: 0 | CM64: 0 | CN64: 0 | CO64: 0 | CP64: 0 | CQ64: 0 | CR64: 0
A66: Scenario 2
F67: =IF($B$4=2,$D67*F$47,0) -> 0 | G67: 0 | H67: 0 | I67: 0 | J67: 0 | K67: 0 | L67: 0 | M67: 0 | N67: 0 | O67: 0 | P67: =IF($B$4=2,$D67*P$47,0) -> 0 | Q67: 0 | R67: 0 | S67: 0 | T67: 0 | U67: 0 | V67: 0 | W67: 0 | X67: 0 | Y67: 0 | Z67: =IF($B$4=2,$D67*Z$47,0) -> 0 | AA67: 0 | AB67: 0 | AC67: 0 | AD67: 0 | AE67: 0 | AF67: 0 | AG67: 0 | AH67: 0 | AI67: 0 | AJ67: =IF($B$4=2,$D67*AJ$47,0) -> 0 | AK67: 0 | AL67: 0 | AM67: 0 | AN67: 0 | AO67: 0 | AP67: 0 | AQ67: 0 | AR67: 0 | AS67: 0 | AT67: =IF($B$4=2,$D67*AT$47,0) -> 0 | AU67: 0 | AV67: 0 | AW67: 0 | AX67: 0 | AY67: 0 | AZ67: 0 | BA67: 0 | BB67: 0 | BC67: 0 | BD67: =IF($B$4=2,$D67*BD$47,0) -> 0 | BE67: 0 | BF67: 0 | BG67: 0 | BH67: 0 | BI67: 0 | BJ67: 0 | BK67: 0 | BL67: 0 | BM67: 0 | BN67: =IF($B$4=2,$D67*BN$47,0) -> 0 | BO67: 0 | BP67: 0 | BQ67: 0 | BR67: 0 | BS67: 0 | BT67: 0 | BU67: 0 | BV67: 0 | BW67: 0 | BX67: =IF($B$4=2,$D67*BX$47,0) -> 0 | BY67: 0 | BZ67: 0 | CA67: 0 | CB67: 0 | CC67: 0 | CD67: 0 | CE67: 0 | CF67: 0 | CG67: 0 | CH67: =IF($B$4=2,$D67*CH$47,0) -> 0 | CI67: 0 | CJ67: 0 | CK67: 0 | CL67: 0 | CM67: 0 | CN67: 0 | CO67: 0 | CP67: 0 | CQ67: 0 | CR67: 0
F68: 0 | G68: 0 | H68: 0 | I68: 0 | J68: 0 | K68: 0 | L68: 0 | M68: 0 | N68: 0 | O68: 0 | P68: 0 | Q68: 0 | R68: 0 | S68: 0 | T68: 0 | U68: 0 | V68: 0 | W68: 0 | X68: 0 | Y68: 0 | Z68: 0 | AA68: 0 | AB68: 0 | AC68: 0 | AD68: 0 | AE68: 0 | AF68: 0 | AG68: 0 | AH68: 0 | AI68: 0 | AJ68: 0 | AK68: 0 | AL68: 0 | AM68: 0 | AN68: 0 | AO68: 0 | AP68: 0 | AQ68: 0 | AR68: 0 | AS68: 0 | AT68: 0 | AU68: 0 | AV68: 0 | AW68: 0 | AX68: 0 | AY68: 0 | AZ68: 0 | BA68: 0 | BB68: 0 | BC68: 0 | BD68: 0 | BE68: 0 | BF68: 0 | BG68: 0 | BH68: 0 | BI68: 0 | BJ68: 0 | BK68: 0 | BL68: 0 | BM68: 0 | BN68: 0 | BO68: 0 | BP68: 0 | BQ68: 0 | BR68: 0 | BS68: 0 | BT68: 0 | BU68: 0 | BV68: 0 | BW68: 0 | BX68: 0 | BY68: 0 | BZ68: 0 | CA68: 0 | CB68: 0 | CC68: 0 | CD68: 0 | CE68: 0 | CF68: 0 | CG68: 0 | CH68: 0 | CI68: 0 | CJ68: 0 | CK68: 0 | CL68: 0 | CM68: 0 | CN68: 0 | CO68: 0 | CP68: 0 | CQ68: 0 | CR68: 0
F69: 0 | G69: 0 | H69: 0 | I69: 0 | J69: 0 | K69: 0 | L69: 0 | M69: 0 | N69: 0 | O69: 0 | P69: 0 | Q69: 0 | R69: 0 | S69: 0 | T69: 0 | U69: 0 | V69: 0 | W69: 0 | X69: 0 | Y69: 0 | Z69: 0 | AA69: 0 | AB69: 0 | AC69: 0 | AD69: 0 | AE69: 0 | AF69: 0 | AG69: 0 | AH69: 0 | AI69: 0 | AJ69: 0 | AK69: 0 | AL69: 0 | AM69: 0 | AN69: 0 | AO69: 0 | AP69: 0 | AQ69: 0 | AR69: 0 | AS69: 0 | AT69: 0 | AU69: 0 | AV69: 0 | AW69: 0 | AX69: 0 | AY69: 0 | AZ69: 0 | BA69: 0 | BB69: 0 | BC69: 0 | BD69: 0 | BE69: 0 | BF69: 0 | BG69: 0 | BH69: 0 | BI69: 0 | BJ69: 0 | BK69: 0 | BL69: 0 | BM69: 0 | BN69: 0 | BO69: 0 | BP69: 0 | BQ69: 0 | BR69: 0 | BS69: 0 | BT69: 0 | BU69: 0 | BV69: 0 | BW69: 0 | BX69: 0 | BY69: 0 | BZ69: 0 | CA69: 0 | CB69: 0 | CC69: 0 | CD69: 0 | CE69: 0 | CF69: 0 | CG69: 0 | CH69: 0 | CI69: 0 | CJ69: 0 | CK69: 0 | CL69: 0 | CM69: 0 | CN69: 0 | CO69: 0 | CP69: 0 | CQ69: 0 | CR69: 0
F70: 0 | G70: 0 | H70: 0 | I70: 0 | J70: 0 | K70: 0 | L70: 0 | M70: 0 | N70: 0 | O70: 0 | P70: 0 | Q70: 0 | R70: 0 | S70: 0 | T70: 0 | U70: 0 | V70: 0 | W70: 0 | X70: 0 | Y70: 0 | Z70: 0 | AA70: 0 | AB70: 0 | AC70: 0 | AD70: 0 | AE70: 0 | AF70: 0 | AG70: 0 | AH70: 0 | AI70: 0 | AJ70: 0 | AK70: 0 | AL70: 0 | AM70: 0 | AN70: 0 | AO70: 0 | AP70: 0 | AQ70: 0 | AR70: 0 | AS70: 0 | AT70: 0 | AU70: 0 | AV70: 0 | AW70: 0 | AX70: 0 | AY70: 0 | AZ70: 0 | BA70: 0 | BB70: 0 | BC70: 0 | BD70: 0 | BE70: 0 | BF70: 0 | BG70: 0 | BH70: 0 | BI70: 0 | BJ70: 0 | BK70: 0 | BL70: 0 | BM70: 0 | BN70: 0 | BO70: 0 | BP70: 0 | BQ70: 0 | BR70: 0 | BS70: 0 | BT70: 0 | BU70: 0 | BV70: 0 | BW70: 0 | BX70: 0 | BY70: 0 | BZ70: 0 | CA70: 0 | CB70: 0 | CC70: 0 | CD70: 0 | CE70: 0 | CF70: 0 | CG70: 0 | CH70: 0 | CI70: 0 | CJ70: 0 | CK70: 0 | CL70: 0 | CM70: 0 | CN70: 0 | CO70: 0 | CP70: 0 | CQ70: 0 | CR70: 0
F71: 0 | G71: 0 | H71: 0 | I71: 0 | J71: 0 | K71: 0 | L71: 0 | M71: 0 | N71: 0 | O71: 0 | P71: 0 | Q71: 0 | R71: 0 | S71: 0 | T71: 0 | U71: 0 | V71: 0 | W71: 0 | X71: 0 | Y71: 0 | Z71: 0 | AA71: 0 | AB71: 0 | AC71: 0 | AD71: 0 | AE71: 0 | AF71: 0 | AG71: 0 | AH71: 0 | AI71: 0 | AJ71: 0 | AK71: 0 | AL71: 0 | AM71: 0 | AN71: 0 | AO71: 0 | AP71: 0 | AQ71: 0 | AR71: 0 | AS71: 0 | AT71: 0 | AU71: 0 | AV71: 0 | AW71: 0 | AX71: 0 | AY71: 0 | AZ71: 0 | BA71: 0 | BB71: 0 | BC71: 0 | BD71: 0 | BE71: 0 | BF71: 0 | BG71: 0 | BH71: 0 | BI71: 0 | BJ71: 0 | BK71: 0 | BL71: 0 | BM71: 0 | BN71: 0 | BO71: 0 | BP71: 0 | BQ71: 0 | BR71: 0 | BS71: 0 | BT71: 0 | BU71: 0 | BV71: 0 | BW71: 0 | BX71: 0 | BY71: 0 | BZ71: 0 | CA71: 0 | CB71: 0 | CC71: 0 | CD71: 0 | CE71: 0 | CF71: 0 | CG71: 0 | CH71: 0 | CI71: 0 | CJ71: 0 | CK71: 0 | CL71: 0 | CM71: 0 | CN71: 0 | CO71: 0 | CP71: 0 | CQ71: 0 | CR71: 0
F72: 0 | G72: 0 | H72: 0 | I72: 0 | J72: 0 | K72: 0 | L72: 0 | M72: 0 | N72: 0 | O72: 0 | P72: 0 | Q72: 0 | R72: 0 | S72: 0 | T72: 0 | U72: 0 | V72: 0 | W72: 0 | X72: 0 | Y72: 0 | Z72: 0 | AA72: 0 | AB72: 0 | AC72: 0 | AD72: 0 | AE72: 0 | AF72: 0 | AG72: 0 | AH72: 0 | AI72: 0 | AJ72: 0 | AK72: 0 | AL72: 0 | AM72: 0 | AN72: 0 | AO72: 0 | AP72: 0 | AQ72: 0 | AR72: 0 | AS72: 0 | AT72: 0 | AU72: 0 | AV72: 0 | AW72: 0 | AX72: 0 | AY72: 0 | AZ72: 0 | BA72: 0 | BB72: 0 | BC72: 0 | BD72: 0 | BE72: 0 | BF72: 0 | BG72: 0 | BH72: 0 | BI72: 0 | BJ72: 0 | BK72: 0 | BL72: 0 | BM72: 0 | BN72: 0 | BO72: 0 | BP72: 0 | BQ72: 0 | BR72: 0 | BS72: 0 | BT72: 0 | BU72: 0 | BV72: 0 | BW72: 0 | BX72: 0 | BY72: 0 | BZ72: 0 | CA72: 0 | CB72: 0 | CC72: 0 | CD72: 0 | CE72: 0 | CF72: 0 | CG72: 0 | CH72: 0 | CI72: 0 | CJ72: 0 | CK72: 0 | CL72: 0 | CM72: 0 | CN72: 0 | CO72: 0 | CP72: 0 | CQ72: 0 | CR72: 0
F73: 0 | G73: 0 | H73: 0 | I73: 0 | J73: 0 | K73: 0 | L73: 0 | M73: 0 | N73: 0 | O73: 0 | P73: 0 | Q73: 0 | R73: 0 | S73: 0 | T73: 0 | U73: 0 | V73: 0 | W73: 0 | X73: 0 | Y73: 0 | Z73: 0 | AA73: 0 | AB73: 0 | AC73: 0 | AD73: 0 | AE73: 0 | AF73: 0 | AG73: 0 | AH73: 0 | AI73: 0 | AJ73: 0 | AK73: 0 | AL73: 0 | AM73: 0 | AN73: 0 | AO73: 0 | AP73: 0 | AQ73: 0 | AR73: 0 | AS73: 0 | AT73: 0 | AU73: 0 | AV73: 0 | AW73: 0 | AX73: 0 | AY73: 0 | AZ73: 0 | BA73: 0 | BB73: 0 | BC73: 0 | BD73: 0 | BE73: 0 | BF73: 0 | BG73: 0 | BH73: 0 | BI73: 0 | BJ73: 0 | BK73: 0 | BL73: 0 | BM73: 0 | BN73: 0 | BO73: 0 | BP73: 0 | BQ73: 0 | BR73: 0 | BS73: 0 | BT73: 0 | BU73: 0 | BV73: 0 | BW73: 0 | BX73: 0 | BY73: 0 | BZ73: 0 | CA73: 0 | CB73: 0 | CC73: 0 | CD73: 0 | CE73: 0 | CF73: 0 | CG73: 0 | CH73: 0 | CI73: 0 | CJ73: 0 | CK73: 0 | CL73: 0 | CM73: 0 | CN73: 0 | CO73: 0 | CP73: 0 | CQ73: 0 | CR73: 0
F74: 0 | G74: 0 | H74: 0 | I74: 0 | J74: 0 | K74: 0 | L74: 0 | M74: 0 | N74: 0 | O74: 0 | P74: 0 | Q74: 0 | R74: 0 | S74: 0 | T74: 0 | U74: 0 | V74: 0 | W74: 0 | X74: 0 | Y74: 0 | Z74: 0 | AA74: 0 | AB74: 0 | AC74: 0 | AD74: 0 | AE74: 0 | AF74: 0 | AG74: 0 | AH74: 0 | AI74: 0 | AJ74: 0 | AK74: 0 | AL74: 0 | AM74: 0 | AN74: 0 | AO74: 0 | AP74: 0 | AQ74: 0 | AR74: 0 | AS74: 0 | AT74: 0 | AU74: 0 | AV74: 0 | AW74: 0 | AX74: 0 | AY74: 0 | AZ74: 0 | BA74: 0 | BB74: 0 | BC74: 0 | BD74: 0 | BE74: 0 | BF74: 0 | BG74: 0 | BH74: 0 | BI74: 0 | BJ74: 0 | BK74: 0 | BL74: 0 | BM74: 0 | BN74: 0 | BO74: 0 | BP74: 0 | BQ74: 0 | BR74: 0 | BS74: 0 | BT74: 0 | BU74: 0 | BV74: 0 | BW74: 0 | BX74: 0 | BY74: 0 | BZ74: 0 | CA74: 0 | CB74: 0 | CC74: 0 | CD74: 0 | CE74: 0 | CF74: 0 | CG74: 0 | CH74: 0 | CI74: 0 | CJ74: 0 | CK74: 0 | CL74: 0 | CM74: 0 | CN74: 0 | CO74: 0 | CP74: 0 | CQ74: 0 | CR74: 0
F75: 0 | G75: 0 | H75: 0 | I75: 0 | J75: 0 | K75: 0 | L75: 0 | M75: 0 | N75: 0 | O75: 0 | P75: 0 | Q75: 0 | R75: 0 | S75: 0 | T75: 0 | U75: 0 | V75: 0 | W75: 0 | X75: 0 | Y75: 0 | Z75: 0 | AA75: 0 | AB75: 0 | AC75: 0 | AD75: 0 | AE75: 0 | AF75: 0 | AG75: 0 | AH75: 0 | AI75: 0 | AJ75: 0 | AK75: 0 | AL75: 0 | AM75: 0 | AN75: 0 | AO75: 0 | AP75: 0 | AQ75: 0 | AR75: 0 | AS75: 0 | AT75: 0 | AU75: 0 | AV75: 0 | AW75: 0 | AX75: 0 | AY75: 0 | AZ75: 0 | BA75: 0 | BB75: 0 | BC75: 0 | BD75: 0 | BE75: 0 | BF75: 0 | BG75: 0 | BH75: 0 | BI75: 0 | BJ75: 0 | BK75: 0 | BL75: 0 | BM75: 0 | BN75: 0 | BO75: 0 | BP75: 0 | BQ75: 0 | BR75: 0 | BS75: 0 | BT75: 0 | BU75: 0 | BV75: 0 | BW75: 0 | BX75: 0 | BY75: 0 | BZ75: 0 | CA75: 0 | CB75: 0 | CC75: 0 | CD75: 0 | CE75: 0 | CF75: 0 | CG75: 0 | CH75: 0 | CI75: 0 | CJ75: 0 | CK75: 0 | CL75: 0 | CM75: 0 | CN75: 0 | CO75: 0 | CP75: 0 | CQ75: 0 | CR75: 0
F76: 0 | G76: 0 | H76: 0 | I76: 0 | J76: 0 | K76: 0 | L76: 0 | M76: 0 | N76: 0 | O76: 0 | P76: 0 | Q76: 0 | R76: 0 | S76: 0 | T76: 0 | U76: 0 | V76: 0 | W76: 0 | X76: 0 | Y76: 0 | Z76: 0 | AA76: 0 | AB76: 0 | AC76: 0 | AD76: 0 | AE76: 0 | AF76: 0 | AG76: 0 | AH76: 0 | AI76: 0 | AJ76: 0 | AK76: 0 | AL76: 0 | AM76: 0 | AN76: 0 | AO76: 0 | AP76: 0 | AQ76: 0 | AR76: 0 | AS76: 0 | AT76: 0 | AU76: 0 | AV76: 0 | AW76: 0 | AX76: 0 | AY76: 0 | AZ76: 0 | BA76: 0 | BB76: 0 | BC76: 0 | BD76: 0 | BE76: 0 | BF76: 0 | BG76: 0 | BH76: 0 | BI76: 0 | BJ76: 0 | BK76: 0 | BL76: 0 | BM76: 0 | BN76: 0 | BO76: 0 | BP76: 0 | BQ76: 0 | BR76: 0 | BS76: 0 | BT76: 0 | BU76: 0 | BV76: 0 | BW76: 0 | BX76: 0 | BY76: 0 | BZ76: 0 | CA76: 0 | CB76: 0 | CC76: 0 | CD76: 0 | CE76: 0 | CF76: 0 | CG76: 0 | CH76: 0 | CI76: 0 | CJ76: 0 | CK76: 0 | CL76: 0 | CM76: 0 | CN76: 0 | CO76: 0 | CP76: 0 | CQ76: 0 | CR76: 0
F77: =SUM(F67:F76) -> 0 | G77: 0 | H77: 0 | I77: 0 | J77: 0 | K77: 0 | L77: 0 | M77: 0 | N77: 0 | O77: 0 | P77: 0 | Q77: 0 | R77: 0 | S77: 0 | T77: 0 | U77: 0 | V77: 0 | W77: 0 | X77: 0 | Y77: 0 | Z77: 0 | AA77: 0 | AB77: 0 | AC77: 0 | AD77: 0 | AE77: 0 | AF77: 0 | AG77: 0 | AH77: 0 | AI77: 0 | AJ77: 0 | AK77: 0 | AL77: 0 | AM77: 0 | AN77: 0 | AO77: 0 | AP77: 0 | AQ77: 0 | AR77: 0 | AS77: 0 | AT77: 0 | AU77: 0 | AV77: 0 | AW77: 0 | AX77: 0 | AY77: 0 | AZ77: 0 | BA77: 0 | BB77: 0 | BC77: 0 | BD77: 0 | BE77: 0 | BF77: 0 | BG77: 0 | BH77: 0 | BI77: 0 | BJ77: 0 | BK77: 0 | BL77: 0 | BM77: 0 | BN77: 0 | BO77: 0 | BP77: 0 | BQ77: 0 | BR77: =SUM(BR67:BR76) -> 0 | BS77: 0 | BT77: 0 | BU77: 0 | BV77: 0 | BW77: 0 | BX77: 0 | BY77: 0 | BZ77: 0 | CA77: 0 | CB77: 0 | CC77: 0 | CD77: 0 | CE77: 0 | CF77: 0 | CG77: 0 | CH77: 0 | CI77: 0 | CJ77: 0 | CK77: 0 | CL77: 0 | CM77: 0 | CN77: 0 | CO77: 0 | CP77: 0 | CQ77: 0 | CR77: 0
A79: Scenario 3
F80: =IF($B$4=3,$D80*F$47,0) -> 0 | G80: 0 | H80: 0 | I80: 0 | J80: 0 | K80: 0 | L80: 0 | M80: 0 | N80: 0 | O80: 0 | P80: =IF($B$4=3,$D80*P$47,0) -> 0 | Q80: 0 | R80: 0 | S80: 0 | T80: 0 | U80: 0 | V80: 0 | W80: 0 | X80: 0 | Y80: 0 | Z80: =IF($B$4=3,$D80*Z$47,0) -> 0 | AA80: 0 | AB80: 0 | AC80: 0 | AD80: 0 | AE80: 0 | AF80: 0 | AG80: 0 | AH80: 0 | AI80: 0 | AJ80: =IF($B$4=3,$D80*AJ$47,0) -> 0 | AK80: 0 | AL80: 0 | AM80: 0 | AN80: 0 | AO80: 0 | AP80: 0 | AQ80: 0 | AR80: 0 | AS80: 0 | AT80: =IF($B$4=3,$D80*AT$47,0) -> 0 | AU80: 0 | AV80: 0 | AW80: 0 | AX80: 0 | AY80: 0 | AZ80: 0 | BA80: 0 | BB80: 0 | BC80: 0 | BD80: =IF($B$4=3,$D80*BD$47,0) -> 0 | BE80: 0 | BF80: 0 | BG80: 0 | BH80: 0 | BI80: 0 | BJ80: 0 | BK80: 0 | BL80: 0 | BM80: 0 | BN80: =IF($B$4=3,$D80*BN$47,0) -> 0 | BO80: 0 | BP80: 0 | BQ80: 0 | BR80: 0 | BS80: 0 | BT80: 0 | BU80: 0 | BV80: 0 | BW80: 0 | BX80: =IF($B$4=3,$D80*BX$47,0) -> 0 | BY80: 0 | BZ80: 0 | CA80: 0 | CB80: 0 | CC80: 0 | CD80: 0 | CE80: 0 | CF80: 0 | CG80: 0 | CH80: =IF($B$4=3,$D80*CH$47,0) -> 0 | CI80: 0 | CJ80: 0 | CK80: 0 | CL80: 0 | CM80: 0 | CN80: 0 | CO80: 0 | CP80: 0 | CQ80: 0 | CR80: 0
F81: 0 | G81: 0 | H81: 0 | I81: 0 | J81: 0 | K81: 0 | L81: 0 | M81: 0 | N81: 0 | O81: 0 | P81: 0 | Q81: 0 | R81: 0 | S81: 0 | T81: 0 | U81: 0 | V81: 0 | W81: 0 | X81: 0 | Y81: 0 | Z81: 0 | AA81: 0 | AB81: 0 | AC81: 0 | AD81: 0 | AE81: 0 | AF81: 0 | AG81: 0 | AH81: 0 | AI81: 0 | AJ81: 0 | AK81: 0 | AL81: 0 | AM81: 0 | AN81: 0 | AO81: 0 | AP81: 0 | AQ81: 0 | AR81: 0 | AS81: 0 | AT81: 0 | AU81: 0 | AV81: 0 | AW81: 0 | AX81: 0 | AY81: 0 | AZ81: 0 | BA81: 0 | BB81: 0 | BC81: 0 | BD81: 0 | BE81: 0 | BF81: 0 | BG81: 0 | BH81: 0 | BI81: 0 | BJ81: 0 | BK81: 0 | BL81: 0 | BM81: 0 | BN81: 0 | BO81: 0 | BP81: 0 | BQ81: 0 | BR81: 0 | BS81: 0 | BT81: 0 | BU81: 0 | BV81: 0 | BW81: 0 | BX81: 0 | BY81: 0 | BZ81: 0 | CA81: 0 | CB81: 0 | CC81: 0 | CD81: 0 | CE81: 0 | CF81: 0 | CG81: 0 | CH81: 0 | CI81: 0 | CJ81: 0 | CK81: 0 | CL81: 0 | CM81: 0 | CN81: 0 | CO81: 0 | CP81: 0 | CQ81: 0 | CR81: 0
F82: 0 | G82: 0 | H82: 0 | I82: 0 | J82: 0 | K82: 0 | L82: 0 | M82: 0 | N82: 0 | O82: 0 | P82: 0 | Q82: 0 | R82: 0 | S82: 0 | T82: 0 | U82: 0 | V82: 0 | W82: 0 | X82: 0 | Y82: 0 | Z82: 0 | AA82: 0 | AB82: 0 | AC82: 0 | AD82: 0 | AE82: 0 | AF82: 0 | AG82: 0 | AH82: 0 | AI82: 0 | AJ82: 0 | AK82: 0 | AL82: 0 | AM82: 0 | AN82: 0 | AO82: 0 | AP82: 0 | AQ82: 0 | AR82: 0 | AS82: 0 | AT82: 0 | AU82: 0 | AV82: 0 | AW82: 0 | AX82: 0 | AY82: 0 | AZ82: 0 | BA82: 0 | BB82: 0 | BC82: 0 | BD82: 0 | BE82: 0 | BF82: 0 | BG82: 0 | BH82: 0 | BI82: 0 | BJ82: 0 | BK82: 0 | BL82: 0 | BM82: 0 | BN82: 0 | BO82: 0 | BP82: 0 | BQ82: 0 | BR82: 0 | BS82: 0 | BT82: 0 | BU82: 0 | BV82: 0 | BW82: 0 | BX82: 0 | BY82: 0 | BZ82: 0 | CA82: 0 | CB82: 0 | CC82: 0 | CD82: 0 | CE82: 0 | CF82: 0 | CG82: 0 | CH82: 0 | CI82: 0 | CJ82: 0 | CK82: 0 | CL82: 0 | CM82: 0 | CN82: 0 | CO82: 0 | CP82: 0 | CQ82: 0 | CR82: 0
F83: 0 | G83: 0 | H83: 0 | I83: 0 | J83: 0 | K83: 0 | L83: 0 | M83: 0 | N83: 0 | O83: 0 | P83: 0 | Q83: 0 | R83: 0 | S83: 0 | T83: 0 | U83: 0 | V83: 0 | W83: 0 | X83: 0 | Y83: 0 | Z83: 0 | AA83: 0 | AB83: 0 | AC83: 0 | AD83: 0 | AE83: 0 | AF83: 0 | AG83: 0 | AH83: 0 | AI83: 0 | AJ83: 0 | AK83: 0 | AL83: 0 | AM83: 0 | AN83: 0 | AO83: 0 | AP83: 0 | AQ83: 0 | AR83: 0 | AS83: 0 | AT83: 0 | AU83: 0 | AV83: 0 | AW83: 0 | AX83: 0 | AY83: 0 | AZ83: 0 | BA83: 0 | BB83: 0 | BC83: 0 | BD83: 0 | BE83: 0 | BF83: 0 | BG83: 0 | BH83: 0 | BI83: 0 | BJ83: 0 | BK83: 0 | BL83: 0 | BM83: 0 | BN83: 0 | BO83: 0 | BP83: 0 | BQ83: 0 | BR83: 0 | BS83: 0 | BT83: 0 | BU83: 0 | BV83: 0 | BW83: 0 | BX83: 0 | BY83: 0 | BZ83: 0 | CA83: 0 | CB83: 0 | CC83: 0 | CD83: 0 | CE83: 0 | CF83: 0 | CG83: 0 | CH83: 0 | CI83: 0 | CJ83: 0 | CK83: 0 | CL83: 0 | CM83: 0 | CN83: 0 | CO83: 0 | CP83: 0 | CQ83: 0 | CR83: 0
F84: 0 | G84: 0 | H84: 0 | I84: 0 | J84: 0 | K84: 0 | L84: 0 | M84: 0 | N84: 0 | O84: 0 | P84: 0 | Q84: 0 | R84: 0 | S84: 0 | T84: 0 | U84: 0 | V84: 0 | W84: 0 | X84: 0 | Y84: 0 | Z84: 0 | AA84: 0 | AB84: 0 | AC84: 0 | AD84: 0 | AE84: 0 | AF84: 0 | AG84: 0 | AH84: 0 | AI84: 0 | AJ84: 0 | AK84: 0 | AL84: 0 | AM84: 0 | AN84: 0 | AO84: 0 | AP84: 0 | AQ84: 0 | AR84: 0 | AS84: 0 | AT84: 0 | AU84: 0 | AV84: 0 | AW84: 0 | AX84: 0 | AY84: 0 | AZ84: 0 | BA84: 0 | BB84: 0 | BC84: 0 | BD84: 0 | BE84: 0 | BF84: 0 | BG84: 0 | BH84: 0 | BI84: 0 | BJ84: 0 | BK84: 0 | BL84: 0 | BM84: 0 | BN84: 0 | BO84: 0 | BP84: 0 | BQ84: 0 | BR84: 0 | BS84: 0 | BT84: 0 | BU84: 0 | BV84: 0 | BW84: 0 | BX84: 0 | BY84: 0 | BZ84: 0 | CA84: 0 | CB84: 0 | CC84: 0 | CD84: 0 | CE84: 0 | CF84: 0 | CG84: 0 | CH84: 0 | CI84: 0 | CJ84: 0 | CK84: 0 | CL84: 0 | CM84: 0 | CN84: 0 | CO84: 0 | CP84: 0 | CQ84: 0 | CR84: 0
F85: 0 | G85: 0 | H85: 0 | I85: 0 | J85: 0 | K85: 0 | L85: 0 | M85: 0 | N85: 0 | O85: 0 | P85: 0 | Q85: 0 | R85: 0 | S85: 0 | T85: 0 | U85: 0 | V85: 0 | W85: 0 | X85: 0 | Y85: 0 | Z85: 0 | AA85: 0 | AB85: 0 | AC85: 0 | AD85: 0 | AE85: 0 | AF85: 0 | AG85: 0 | AH85: 0 | AI85: 0 | AJ85: 0 | AK85: 0 | AL85: 0 | AM85: 0 | AN85: 0 | AO85: 0 | AP85: 0 | AQ85: 0 | AR85: 0 | AS85: 0 | AT85: 0 | AU85: 0 | AV85: 0 | AW85: 0 | AX85: 0 | AY85: 0 | AZ85: 0 | BA85: 0 | BB85: 0 | BC85: 0 | BD85: 0 | BE85: 0 | BF85: 0 | BG85: 0 | BH85: 0 | BI85: 0 | BJ85: 0 | BK85: 0 | BL85: 0 | BM85: 0 | BN85: 0 | BO85: 0 | BP85: 0 | BQ85: 0 | BR85: 0 | BS85: 0 | BT85: 0 | BU85: 0 | BV85: 0 | BW85: 0 | BX85: 0 | BY85: 0 | BZ85: 0 | CA85: 0 | CB85: 0 | CC85: 0 | CD85: 0 | CE85: 0 | CF85: 0 | CG85: 0 | CH85: 0 | CI85: 0 | CJ85: 0 | CK85: 0 | CL85: 0 | CM85: 0 | CN85: 0 | CO85: 0 | CP85: 0 | CQ85: 0 | CR85: 0
F86: 0 | G86: 0 | H86: 0 | I86: 0 | J86: 0 | K86: 0 | L86: 0 | M86: 0 | N86: 0 | O86: 0 | P86: 0 | Q86: 0 | R86: 0 | S86: 0 | T86: 0 | U86: 0 | V86: 0 | W86: 0 | X86: 0 | Y86: 0 | Z86: 0 | AA86: 0 | AB86: 0 | AC86: 0 | AD86: 0 | AE86: 0 | AF86: 0 | AG86: 0 | AH86: 0 | AI86: 0 | AJ86: 0 | AK86: 0 | AL86: 0 | AM86: 0 | AN86: 0 | AO86: 0 | AP86: 0 | AQ86: 0 | AR86: 0 | AS86: 0 | AT86: 0 | AU86: 0 | AV86: 0 | AW86: 0 | AX86: 0 | AY86: 0 | AZ86: 0 | BA86: 0 | BB86: 0 | BC86: 0 | BD86: 0 | BE86: 0 | BF86: 0 | BG86: 0 | BH86: 0 | BI86: 0 | BJ86: 0 | BK86: 0 | BL86: 0 | BM86: 0 | BN86: 0 | BO86: 0 | BP86: 0 | BQ86: 0 | BR86: 0 | BS86: 0 | BT86: 0 | BU86: 0 | BV86: 0 | BW86: 0 | BX86: 0 | BY86: 0 | BZ86: 0 | CA86: 0 | CB86: 0 | CC86: 0 | CD86: 0 | CE86: 0 | CF86: 0 | CG86: 0 | CH86: 0 | CI86: 0 | CJ86: 0 | CK86: 0 | CL86: 0 | CM86: 0 | CN86: 0 | CO86: 0 | CP86: 0 | CQ86: 0 | CR86: 0
F87: 0 | G87: 0 | H87: 0 | I87: 0 | J87: 0 | K87: 0 | L87: 0 | M87: 0 | N87: 0 | O87: 0 | P87: 0 | Q87: 0 | R87: 0 | S87: 0 | T87: 0 | U87: 0 | V87: 0 | W87: 0 | X87: 0 | Y87: 0 | Z87: 0 | AA87: 0 | AB87: 0 | AC87: 0 | AD87: 0 | AE87: 0 | AF87: 0 | AG87: 0 | AH87: 0 | AI87: 0 | AJ87: 0 | AK87: 0 | AL87: 0 | AM87: 0 | AN87: 0 | AO87: 0 | AP87: 0 | AQ87: 0 | AR87: 0 | AS87: 0 | AT87: 0 | AU87: 0 | AV87: 0 | AW87: 0 | AX87: 0 | AY87: 0 | AZ87: 0 | BA87: 0 | BB87: 0 | BC87: 0 | BD87: 0 | BE87: 0 | BF87: 0 | BG87: 0 | BH87: 0 | BI87: 0 | BJ87: 0 | BK87: 0 | BL87: 0 | BM87: 0 | BN87: 0 | BO87: 0 | BP87: 0 | BQ87: 0 | BR87: 0 | BS87: 0 | BT87: 0 | BU87: 0 | BV87: 0 | BW87: 0 | BX87: 0 | BY87: 0 | BZ87: 0 | CA87: 0 | CB87: 0 | CC87: 0 | CD87: 0 | CE87: 0 | CF87: 0 | CG87: 0 | CH87: 0 | CI87: 0 | CJ87: 0 | CK87: 0 | CL87: 0 | CM87: 0 | CN87: 0 | CO87: 0 | CP87: 0 | CQ87: 0 | CR87: 0
F88: 0 | G88: 0 | H88: 0 | I88: 0 | J88: 0 | K88: 0 | L88: 0 | M88: 0 | N88: 0 | O88: 0 | P88: 0 | Q88: 0 | R88: 0 | S88: 0 | T88: 0 | U88: 0 | V88: 0 | W88: 0 | X88: 0 | Y88: 0 | Z88: 0 | AA88: 0 | AB88: 0 | AC88: 0 | AD88: 0 | AE88: 0 | AF88: 0 | AG88: 0 | AH88: 0 | AI88: 0 | AJ88: 0 | AK88: 0 | AL88: 0 | AM88: 0 | AN88: 0 | AO88: 0 | AP88: 0 | AQ88: 0 | AR88: 0 | AS88: 0 | AT88: 0 | AU88: 0 | AV88: 0 | AW88: 0 | AX88: 0 | AY88: 0 | AZ88: 0 | BA88: 0 | BB88: 0 | BC88: 0 | BD88: 0 | BE88: 0 | BF88: 0 | BG88: 0 | BH88: 0 | BI88: 0 | BJ88: 0 | BK88: 0 | BL88: 0 | BM88: 0 | BN88: 0 | BO88: 0 | BP88: 0 | BQ88: 0 | BR88: 0 | BS88: 0 | BT88: 0 | BU88: 0 | BV88: 0 | BW88: 0 | BX88: 0 | BY88: 0 | BZ88: 0 | CA88: 0 | CB88: 0 | CC88: 0 | CD88: 0 | CE88: 0 | CF88: 0 | CG88: 0 | CH88: 0 | CI88: 0 | CJ88: 0 | CK88: 0 | CL88: 0 | CM88: 0 | CN88: 0 | CO88: 0 | CP88: 0 | CQ88: 0 | CR88: 0
F89: 0 | G89: 0 | H89: 0 | I89: 0 | J89: 0 | K89: 0 | L89: 0 | M89: 0 | N89: 0 | O89: 0 | P89: 0 | Q89: 0 | R89: 0 | S89: 0 | T89: 0 | U89: 0 | V89: 0 | W89: 0 | X89: 0 | Y89: 0 | Z89: 0 | AA89: 0 | AB89: 0 | AC89: 0 | AD89: 0 | AE89: 0 | AF89: 0 | AG89: 0 | AH89: 0 | AI89: 0 | AJ89: 0 | AK89: 0 | AL89: 0 | AM89: 0 | AN89: 0 | AO89: 0 | AP89: 0 | AQ89: 0 | AR89: 0 | AS89: 0 | AT89: 0 | AU89: 0 | AV89: 0 | AW89: 0 | AX89: 0 | AY89: 0 | AZ89: 0 | BA89: 0 | BB89: 0 | BC89: 0 | BD89: 0 | BE89: 0 | BF89: 0 | BG89: 0 | BH89: 0 | BI89: 0 | BJ89: 0 | BK89: 0 | BL89: 0 | BM89: 0 | BN89: 0 | BO89: 0 | BP89: 0 | BQ89: 0 | BR89: 0 | BS89: 0 | BT89: 0 | BU89: 0 | BV89: 0 | BW89: 0 | BX89: 0 | BY89: 0 | BZ89: 0 | CA89: 0 | CB89: 0 | CC89: 0 | CD89: 0 | CE89: 0 | CF89: 0 | CG89: 0 | CH89: 0 | CI89: 0 | CJ89: 0 | CK89: 0 | CL89: 0 | CM89: 0 | CN89: 0 | CO89: 0 | CP89: 0 | CQ89: 0 | CR89: 0
F90: =SUM(F80:F89) -> 0 | G90: 0 | H90: 0 | I90: 0 | J90: 0 | K90: 0 | L90: 0 | M90: 0 | N90: 0 | O90: 0 | P90: 0 | Q90: 0 | R90: 0 | S90: 0 | T90: 0 | U90: 0 | V90: 0 | W90: 0 | X90: 0 | Y90: 0 | Z90: 0 | AA90: 0 | AB90: 0 | AC90: 0 | AD90: 0 | AE90: 0 | AF90: 0 | AG90: 0 | AH90: 0 | AI90: 0 | AJ90: 0 | AK90: 0 | AL90: =SUM(AL80:AL89) -> 0 | AM90: 0 | AN90: 0 | AO90: 0 | AP90: 0 | AQ90: 0 | AR90: 0 | AS90: 0 | AT90: 0 | AU90: 0 | AV90: 0 | AW90: 0 | AX90: 0 | AY90: 0 | AZ90: 0 | BA90: 0 | BB90: 0 | BC90: 0 | BD90: 0 | BE90: 0 | BF90: 0 | BG90: 0 | BH90: 0 | BI90: 0 | BJ90: 0 | BK90: 0 | BL90: 0 | BM90: 0 | BN90: 0 | BO90: 0 | BP90: 0 | BQ90: 0 | BR90: =SUM(BR80:BR89) -> 0 | BS90: 0 | BT90: 0 | BU90: 0 | BV90: 0 | BW90: 0 | BX90: 0 | BY90: 0 | BZ90: 0 | CA90: 0 | CB90: 0 | CC90: 0 | CD90: 0 | CE90: 0 | CF90: 0 | CG90: 0 | CH90: 0 | CI90: 0 | CJ90: 0 | CK90: 0 | CL90: 0 | CM90: 0 | CN90: 0 | CO90: 0 | CP90: 0 | CQ90: 0 | CR90: 0
A92: Scenario 4
F93: =IF($B$4=4,$D93*F$47,0) -> 0 | G93: 0 | H93: 0 | I93: 0 | J93: 0 | K93: 0 | L93: 0 | M93: 0 | N93: 0 | O93: 0 | P93: =IF($B$4=4,$D93*P$47,0) -> 0 | Q93: 0 | R93: 0 | S93: 0 | T93: 0 | U93: 0 | V93: 0 | W93: 0 | X93: 0 | Y93: 0 | Z93: =IF($B$4=4,$D93*Z$47,0) -> 0 | AA93: 0 | AB93: 0 | AC93: 0 | AD93: 0 | AE93: 0 | AF93: 0 | AG93: 0 | AH93: 0 | AI93: 0 | AJ93: =IF($B$4=4,$D93*AJ$47,0) -> 0 | AK93: 0 | AL93: 0 | AM93: 0 | AN93: 0 | AO93: 0 | AP93: 0 | AQ93: 0 | AR93: 0 | AS93: 0 | AT93: =IF($B$4=4,$D93*AT$47,0) -> 0 | AU93: 0 | AV93: 0 | AW93: 0 | AX93: 0 | AY93: 0 | AZ93: 0 | BA93: 0 | BB93: 0 | BC93: 0 | BD93: =IF($B$4=4,$D93*BD$47,0) -> 0 | BE93: 0 | BF93: 0 | BG93: 0 | BH93: 0 | BI93: 0 | BJ93: 0 | BK93: 0 | BL93: 0 | BM93: 0 | BN93: =IF($B$4=4,$D93*BN$47,0) -> 0 | BO93: 0 | BP93: 0 | BQ93: 0 | BR93: 0 | BS93: 0 | BT93: 0 | BU93: 0 | BV93: 0 | BW93: 0 | BX93: =IF($B$4=4,$D93*BX$47,0) -> 0 | BY93: 0 | BZ93: 0 | CA93: 0 | CB93: 0 | CC93: 0 | CD93: 0 | CE93: 0 | CF93: 0 | CG93: 0 | CH93: =IF($B$4=4,$D93*CH$47,0) -> 0 | CI93: 0 | CJ93: 0 | CK93: 0 | CL93: 0 | CM93: 0 | CN93: 0 | CO93: 0 | CP93: 0 | CQ93: 0 | CR93: 0
F94: 0 | G94: 0 | H94: 0 | I94: 0 | J94: 0 | K94: 0 | L94: 0 | M94: 0 | N94: 0 | O94: 0 | P94: 0 | Q94: 0 | R94: 0 | S94: 0 | T94: 0 | U94: 0 | V94: 0 | W94: 0 | X94: 0 | Y94: 0 | Z94: 0 | AA94: 0 | AB94: 0 | AC94: 0 | AD94: 0 | AE94: 0 | AF94: 0 | AG94: 0 | AH94: 0 | AI94: 0 | AJ94: 0 | AK94: 0 | AL94: 0 | AM94: 0 | AN94: 0 | AO94: 0 | AP94: 0 | AQ94: 0 | AR94: 0 | AS94: 0 | AT94: 0 | AU94: 0 | AV94: 0 | AW94: 0 | AX94: 0 | AY94: 0 | AZ94: 0 | BA94: 0 | BB94: 0 | BC94: 0 | BD94: 0 | BE94: 0 | BF94: 0 | BG94: 0 | BH94: 0 | BI94: 0 | BJ94: 0 | BK94: 0 | BL94: 0 | BM94: 0 | BN94: 0 | BO94: 0 | BP94: 0 | BQ94: 0 | BR94: 0 | BS94: 0 | BT94: 0 | BU94: 0 | BV94: 0 | BW94: 0 | BX94: 0 | BY94: 0 | BZ94: 0 | CA94: 0 | CB94: 0 | CC94: 0 | CD94: 0 | CE94: 0 | CF94: 0 | CG94: 0 | CH94: 0 | CI94: 0 | CJ94: 0 | CK94: 0 | CL94: 0 | CM94: 0 | CN94: 0 | CO94: 0 | CP94: 0 | CQ94: 0 | CR94: 0
F95: 0 | G95: 0 | H95: 0 | I95: 0 | J95: 0 | K95: 0 | L95: 0 | M95: 0 | N95: 0 | O95: 0 | P95: 0 | Q95: 0 | R95: 0 | S95: 0 | T95: 0 | U95: 0 | V95: 0 | W95: 0 | X95: 0 | Y95: 0 | Z95: 0 | AA95: 0 | AB95: 0 | AC95: 0 | AD95: 0 | AE95: 0 | AF95: 0 | AG95: 0 | AH95: 0 | AI95: 0 | AJ95: 0 | AK95: 0 | AL95: 0 | AM95: 0 | AN95: 0 | AO95: 0 | AP95: 0 | AQ95: 0 | AR95: 0 | AS95: 0 | AT95: 0 | AU95: 0 | AV95: 0 | AW95: 0 | AX95: 0 | AY95: 0 | AZ95: 0 | BA95: 0 | BB95: 0 | BC95: 0 | BD95: 0 | BE95: 0 | BF95: 0 | BG95: 0 | BH95: 0 | BI95: 0 | BJ95: 0 | BK95: 0 | BL95: 0 | BM95: 0 | BN95: 0 | BO95: 0 | BP95: 0 | BQ95: 0 | BR95: 0 | BS95: 0 | BT95: 0 | BU95: 0 | BV95: 0 | BW95: 0 | BX95: 0 | BY95: 0 | BZ95: 0 | CA95: 0 | CB95: 0 | CC95: 0 | CD95: 0 | CE95: 0 | CF95: 0 | CG95: 0 | CH95: 0 | CI95: 0 | CJ95: 0 | CK95: 0 | CL95: 0 | CM95: 0 | CN95: 0 | CO95: 0 | CP95: 0 | CQ95: 0 | CR95: 0
F96: 0 | G96: 0 | H96: 0 | I96: 0 | J96: 0 | K96: 0 | L96: 0 | M96: 0 | N96: 0 | O96: 0 | P96: 0 | Q96: 0 | R96: 0 | S96: 0 | T96: 0 | U96: 0 | V96: 0 | W96: 0 | X96: 0 | Y96: 0 | Z96: 0 | AA96: 0 | AB96: 0 | AC96: 0 | AD96: 0 | AE96: 0 | AF96: 0 | AG96: 0 | AH96: 0 | AI96: 0 | AJ96: 0 | AK96: 0 | AL96: 0 | AM96: 0 | AN96: 0 | AO96: 0 | AP96: 0 | AQ96: 0 | AR96: 0 | AS96: 0 | AT96: 0 | AU96: 0 | AV96: 0 | AW96: 0 | AX96: 0 | AY96: 0 | AZ96: 0 | BA96: 0 | BB96: 0 | BC96: 0 | BD96: 0 | BE96: 0 | BF96: 0 | BG96: 0 | BH96: 0 | BI96: 0 | BJ96: 0 | BK96: 0 | BL96: 0 | BM96: 0 | BN96: 0 | BO96: 0 | BP96: 0 | BQ96: 0 | BR96: 0 | BS96: 0 | BT96: 0 | BU96: 0 | BV96: 0 | BW96: 0 | BX96: 0 | BY96: 0 | BZ96: 0 | CA96: 0 | CB96: 0 | CC96: 0 | CD96: 0 | CE96: 0 | CF96: 0 | CG96: 0 | CH96: 0 | CI96: 0 | CJ96: 0 | CK96: 0 | CL96: 0 | CM96: 0 | CN96: 0 | CO96: 0 | CP96: 0 | CQ96: 0 | CR96: 0
F97: 0 | G97: 0 | H97: 0 | I97: 0 | J97: 0 | K97: 0 | L97: 0 | M97: 0 | N97: 0 | O97: 0 | P97: 0 | Q97: 0 | R97: 0 | S97: 0 | T97: 0 | U97: 0 | V97: 0 | W97: 0 | X97: 0 | Y97: 0 | Z97: 0 | AA97: 0 | AB97: 0 | AC97: 0 | AD97: 0 | AE97: 0 | AF97: 0 | AG97: 0 | AH97: 0 | AI97: 0 | AJ97: 0 | AK97: 0 | AL97: 0 | AM97: 0 | AN97: 0 | AO97: 0 | AP97: 0 | AQ97: 0 | AR97: 0 | AS97: 0 | AT97: 0 | AU97: 0 | AV97: 0 | AW97: 0 | AX97: 0 | AY97: 0 | AZ97: 0 | BA97: 0 | BB97: 0 | BC97: 0 | BD97: 0 | BE97: 0 | BF97: 0 | BG97: 0 | BH97: 0 | BI97: 0 | BJ97: 0 | BK97: 0 | BL97: 0 | BM97: 0 | BN97: 0 | BO97: 0 | BP97: 0 | BQ97: 0 | BR97: 0 | BS97: 0 | BT97: 0 | BU97: 0 | BV97: 0 | BW97: 0 | BX97: 0 | BY97: 0 | BZ97: 0 | CA97: 0 | CB97: 0 | CC97: 0 | CD97: 0 | CE97: 0 | CF97: 0 | CG97: 0 | CH97: 0 | CI97: 0 | CJ97: 0 | CK97: 0 | CL97: 0 | CM97: 0 | CN97: 0 | CO97: 0 | CP97: 0 | CQ97: 0 | CR97: 0
F98: 0 | G98: 0 | H98: 0 | I98: 0 | J98: 0 | K98: 0 | L98: 0 | M98: 0 | N98: 0 | O98: 0 | P98: 0 | Q98: 0 | R98: 0 | S98: 0 | T98: 0 | U98: 0 | V98: 0 | W98: 0 | X98: 0 | Y98: 0 | Z98: 0 | AA98: 0 | AB98: 0 | AC98: 0 | AD98: 0 | AE98: 0 | AF98: 0 | AG98: 0 | AH98: 0 | AI98: 0 | AJ98: 0 | AK98: 0 | AL98: 0 | AM98: 0 | AN98: 0 | AO98: 0 | AP98: 0 | AQ98: 0 | AR98: 0 | AS98: 0 | AT98: 0 | AU98: 0 | AV98: 0 | AW98: 0 | AX98: 0 | AY98: 0 | AZ98: 0 | BA98: 0 | BB98: 0 | BC98: 0 | BD98: 0 | BE98: 0 | BF98: 0 | BG98: 0 | BH98: 0 | BI98: 0 | BJ98: 0 | BK98: 0 | BL98: 0 | BM98: 0 | BN98: 0 | BO98: 0 | BP98: 0 | BQ98: 0 | BR98: 0 | BS98: 0 | BT98: 0 | BU98: 0 | BV98: 0 | BW98: 0 | BX98: 0 | BY98: 0 | BZ98: 0 | CA98: 0 | CB98: 0 | CC98: 0 | CD98: 0 | CE98: 0 | CF98: 0 | CG98: 0 | CH98: 0 | CI98: 0 | CJ98: 0 | CK98: 0 | CL98: 0 | CM98: 0 | CN98: 0 | CO98: 0 | CP98: 0 | CQ98: 0 | CR98: 0
F99: 0 | G99: 0 | H99: 0 | I99: 0 | J99: 0 | K99: 0 | L99: 0 | M99: 0 | N99: 0 | O99: 0 | P99: 0 | Q99: 0 | R99: 0 | S99: 0 | T99: 0 | U99: 0 | V99: 0 | W99: 0 | X99: 0 | Y99: 0 | Z99: 0 | AA99: 0 | AB99: 0 | AC99: 0 | AD99: 0 | AE99: 0 | AF99: 0 | AG99: 0 | AH99: 0 | AI99: 0 | AJ99: 0 | AK99: 0 | AL99: 0 | AM99: 0 | AN99: 0 | AO99: 0 | AP99: 0 | AQ99: 0 | AR99: 0 | AS99: 0 | AT99: 0 | AU99: 0 | AV99: 0 | AW99: 0 | AX99: 0 | AY99: 0 | AZ99: 0 | BA99: 0 | BB99: 0 | BC99: 0 | BD99: 0 | BE99: 0 | BF99: 0 | BG99: 0 | BH99: 0 | BI99: 0 | BJ99: 0 | BK99: 0 | BL99: 0 | BM99: 0 | BN99: 0 | BO99: 0 | BP99: 0 | BQ99: 0 | BR99: 0 | BS99: 0 | BT99: 0 | BU99: 0 | BV99: 0 | BW99: 0 | BX99: 0 | BY99: 0 | BZ99: 0 | CA99: 0 | CB99: 0 | CC99: 0 | CD99: 0 | CE99: 0 | CF99: 0 | CG99: 0 | CH99: 0 | CI99: 0 | CJ99: 0 | CK99: 0 | CL99: 0 | CM99: 0 | CN99: 0 | CO99: 0 | CP99: 0 | CQ99: 0 | CR99: 0
F100: 0 | G100: 0 | H100: 0 | I100: 0 | J100: 0 | K100: 0 | L100: 0 | M100: 0 | N100: 0 | O100: 0 | P100: 0 | Q100: 0 | R100: 0 | S100: 0 | T100: 0 | U100: 0 | V100: 0 | W100: 0 | X100: 0 | Y100: 0 | Z100: 0 | AA100: 0 | AB100: 0 | AC100: 0 | AD100: 0 | AE100: 0 | AF100: 0 | AG100: 0 | AH100: 0 | AI100: 0 | AJ100: 0 | AK100: 0 | AL100: 0 | AM100: 0 | AN100: 0 | AO100: 0 | AP100: 0 | AQ100: 0 | AR100: 0 | AS100: 0 | AT100: 0 | AU100: 0 | AV100: 0 | AW100: 0 | AX100: 0 | AY100: 0 | AZ100: 0 | BA100: 0 | BB100: 0 | BC100: 0 | BD100: 0 | BE100: 0 | BF100: 0 | BG100: 0 | BH100: 0 | BI100: 0 | BJ100: 0 | BK100: 0 | BL100: 0 | BM100: 0 | BN100: 0 | BO100: 0 | BP100: 0 | BQ100: 0 | BR100: 0 | BS100: 0 | BT100: 0 | BU100: 0 | BV100: 0 | BW100: 0 | BX100: 0 | BY100: 0 | BZ100: 0 | CA100: 0 | CB100: 0 | CC100: 0 | CD100: 0 | CE100: 0 | CF100: 0 | CG100: 0 | CH100: 0 | CI100: 0 | CJ100: 0 | CK100: 0 | CL100: 0 | CM100: 0 | CN100: 0 | CO100: 0 | CP100: 0 | CQ100: 0 | CR100: 0
F101: 0 | G101: 0 | H101: 0 | I101: 0 | J101: 0 | K101: 0 | L101: 0 | M101: 0 | N101: 0 | O101: 0 | P101: 0 | Q101: 0 | R101: 0 | S101: 0 | T101: 0 | U101: 0 | V101: 0 | W101: 0 | X101: 0 | Y101: 0 | Z101: 0 | AA101: 0 | AB101: 0 | AC101: 0 | AD101: 0 | AE101: 0 | AF101: 0 | AG101: 0 | AH101: 0 | AI101: 0 | AJ101: 0 | AK101: 0 | AL101: 0 | AM101: 0 | AN101: 0 | AO101: 0 | AP101: 0 | AQ101: 0 | AR101: 0 | AS101: 0 | AT101: 0 | AU101: 0 | AV101: 0 | AW101: 0 | AX101: 0 | AY101: 0 | AZ101: 0 | BA101: 0 | BB101: 0 | BC101: 0 | BD101: 0 | BE101: 0 | BF101: 0 | BG101: 0 | BH101: 0 | BI101: 0 | BJ101: 0 | BK101: 0 | BL101: 0 | BM101: 0 | BN101: 0 | BO101: 0 | BP101: 0 | BQ101: 0 | BR101: 0 | BS101: 0 | BT101: 0 | BU101: 0 | BV101: 0 | BW101: 0 | BX101: 0 | BY101: 0 | BZ101: 0 | CA101: 0 | CB101: 0 | CC101: 0 | CD101: 0 | CE101: 0 | CF101: 0 | CG101: 0 | CH101: 0 | CI101: 0 | CJ101: 0 | CK101: 0 | CL101: 0 | CM101: 0 | CN101: 0 | CO101: 0 | CP101: 0 | CQ101: 0 | CR101: 0
F102: 0 | G102: 0 | H102: 0 | I102: 0 | J102: 0 | K102: 0 | L102: 0 | M102: 0 | N102: 0 | O102: 0 | P102: 0 | Q102: 0 | R102: 0 | S102: 0 | T102: 0 | U102: 0 | V102: 0 | W102: 0 | X102: 0 | Y102: 0 | Z102: 0 | AA102: 0 | AB102: 0 | AC102: 0 | AD102: 0 | AE102: 0 | AF102: 0 | AG102: 0 | AH102: 0 | AI102: 0 | AJ102: 0 | AK102: 0 | AL102: 0 | AM102: 0 | AN102: 0 | AO102: 0 | AP102: 0 | AQ102: 0 | AR102: 0 | AS102: 0 | AT102: 0 | AU102: 0 | AV102: 0 | AW102: 0 | AX102: 0 | AY102: 0 | AZ102: 0 | BA102: 0 | BB102: 0 | BC102: 0 | BD102: 0 | BE102: 0 | BF102: 0 | BG102: 0 | BH102: 0 | BI102: 0 | BJ102: 0 | BK102: 0 | BL102: 0 | BM102: 0 | BN102: 0 | BO102: 0 | BP102: 0 | BQ102: 0 | BR102: 0 | BS102: 0 | BT102: 0 | BU102: 0 | BV102: 0 | BW102: 0 | BX102: 0 | BY102: 0 | BZ102: 0 | CA102: 0 | CB102: 0 | CC102: 0 | CD102: 0 | CE102: 0 | CF102: 0 | CG102: 0 | CH102: 0 | CI102: 0 | CJ102: 0 | CK102: 0 | CL102: 0 | CM102: 0 | CN102: 0 | CO102: 0 | CP102: 0 | CQ102: 0 | CR102: 0
F103: =SUM(F93:F102) -> 0 | G103: 0 | H103: 0 | I103: 0 | J103: 0 | K103: 0 | L103: 0 | M103: 0 | N103: 0 | O103: 0 | P103: 0 | Q103: 0 | R103: 0 | S103: 0 | T103: 0 | U103: 0 | V103: 0 | W103: 0 | X103: 0 | Y103: 0 | Z103: 0 | AA103: 0 | AB103: 0 | AC103: 0 | AD103: 0 | AE103: 0 | AF103: 0 | AG103: 0 | AH103: 0 | AI103: 0 | AJ103: 0 | AK103: 0 | AL103: =SUM(AL93:AL102) -> 0 | AM103: 0 | AN103: 0 | AO103: 0 | AP103: 0 | AQ103: 0 | AR103: 0 | AS103: 0 | AT103: 0 | AU103: 0 | AV103: 0 | AW103: 0 | AX103: 0 | AY103: 0 | AZ103: 0 | BA103: 0 | BB103: 0 | BC103: 0 | BD103: 0 | BE103: 0 | BF103: 0 | BG103: 0 | BH103: 0 | BI103: 0 | BJ103: 0 | BK103: 0 | BL103: 0 | BM103: 0 | BN103: 0 | BO103: 0 | BP103: 0 | BQ103: 0 | BR103: =SUM(BR93:BR102) -> 0 | BS103: 0 | BT103: 0 | BU103: 0 | BV103: 0 | BW103: 0 | BX103: 0 | BY103: 0 | BZ103: 0 | CA103: 0 | CB103: 0 | CC103: 0 | CD103: 0 | CE103: 0 | CF103: 0 | CG103: 0 | CH103: 0 | CI103: 0 | CJ103: 0 | CK103: 0 | CL103: 0 | CM103: 0 | CN103: 0 | CO103: 0 | CP103: 0 | CQ103: 0 | CR103: 0
A105: Scenario 5
F106: =IF($B$4=5,$D106*F$47,0) -> 0 | G106: 0 | H106: 0 | I106: 0 | J106: 0 | K106: 0 | L106: 0 | M106: 0 | N106: 0 | O106: 0 | P106: =IF($B$4=5,$D106*P$47,0) -> 0 | Q106: 0 | R106: 0 | S106: 0 | T106: 0 | U106: 0 | V106: 0 | W106: 0 | X106: 0 | Y106: 0 | Z106: =IF($B$4=5,$D106*Z$47,0) -> 0 | AA106: 0 | AB106: 0 | AC106: 0 | AD106: 0 | AE106: 0 | AF106: 0 | AG106: 0 | AH106: 0 | AI106: 0 | AJ106: =IF($B$4=5,$D106*AJ$47,0) -> 0 | AK106: 0 | AL106: 0 | AM106: 0 | AN106: 0 | AO106: 0 | AP106: 0 | AQ106: 0 | AR106: 0 | AS106: 0 | AT106: =IF($B$4=5,$D106*AT$47,0) -> 0 | AU106: 0 | AV106: 0 | AW106: 0 | AX106: 0 | AY106: 0 | AZ106: 0 | BA106: 0 | BB106: 0 | BC106: 0 | BD106: =IF($B$4=5,$D106*BD$47,0) -> 0 | BE106: 0 | BF106: 0 | BG106: 0 | BH106: 0 | BI106: 0 | BJ106: 0 | BK106: 0 | BL106: 0 | BM106: 0 | BN106: =IF($B$4=5,$D106*BN$47,0) -> 0 | BO106: 0 | BP106: 0 | BQ106: 0 | BR106: 0 | BS106: 0 | BT106: 0 | BU106: 0 | BV106: 0 | BW106: 0 | BX106: =IF($B$4=5,$D106*BX$47,0) -> 0 | BY106: 0 | BZ106: 0 | CA106: 0 | CB106: 0 | CC106: 0 | CD106: 0 | CE106: 0 | CF106: 0 | CG106: 0 | CH106: =IF($B$4=5,$D106*CH$47,0) -> 0 | CI106: 0 | CJ106: 0 | CK106: 0 | CL106: 0 | CM106: 0 | CN106: 0 | CO106: 0 | CP106: 0 | CQ106: 0 | CR106: 0
F107: 0 | G107: 0 | H107: 0 | I107: 0 | J107: 0 | K107: 0 | L107: 0 | M107: 0 | N107: 0 | O107: 0 | P107: 0 | Q107: 0 | R107: 0 | S107: 0 | T107: 0 | U107: 0 | V107: 0 | W107: 0 | X107: 0 | Y107: 0 | Z107: 0 | AA107: 0 | AB107: 0 | AC107: 0 | AD107: 0 | AE107: 0 | AF107: 0 | AG107: 0 | AH107: 0 | AI107: 0 | AJ107: 0 | AK107: 0 | AL107: 0 | AM107: 0 | AN107: 0 | AO107: 0 | AP107: 0 | AQ107: 0 | AR107: 0 | AS107: 0 | AT107: 0 | AU107: 0 | AV107: 0 | AW107: 0 | AX107: 0 | AY107: 0 | AZ107: 0 | BA107: 0 | BB107: 0 | BC107: 0 | BD107: 0 | BE107: 0 | BF107: 0 | BG107: 0 | BH107: 0 | BI107: 0 | BJ107: 0 | BK107: 0 | BL107: 0 | BM107: 0 | BN107: 0 | BO107: 0 | BP107: 0 | BQ107: 0 | BR107: 0 | BS107: 0 | BT107: 0 | BU107: 0 | BV107: 0 | BW107: 0 | BX107: 0 | BY107: 0 | BZ107: 0 | CA107: 0 | CB107: 0 | CC107: 0 | CD107: 0 | CE107: 0 | CF107: 0 | CG107: 0 | CH107: 0 | CI107: 0 | CJ107: 0 | CK107: 0 | CL107: 0 | CM107: 0 | CN107: 0 | CO107: 0 | CP107: 0 | CQ107: 0 | CR107: 0
F108: 0 | G108: 0 | H108: 0 | I108: 0 | J108: 0 | K108: 0 | L108: 0 | M108: 0 | N108: 0 | O108: 0 | P108: 0 | Q108: 0 | R108: 0 | S108: 0 | T108: 0 | U108: 0 | V108: 0 | W108: 0 | X108: 0 | Y108: 0 | Z108: 0 | AA108: 0 | AB108: 0 | AC108: 0 | AD108: 0 | AE108: 0 | AF108: 0 | AG108: 0 | AH108: 0 | AI108: 0 | AJ108: 0 | AK108: 0 | AL108: 0 | AM108: 0 | AN108: 0 | AO108: 0 | AP108: 0 | AQ108: 0 | AR108: 0 | AS108: 0 | AT108: 0 | AU108: 0 | AV108: 0 | AW108: 0 | AX108: 0 | AY108: 0 | AZ108: 0 | BA108: 0 | BB108: 0 | BC108: 0 | BD108: 0 | BE108: 0 | BF108: 0 | BG108: 0 | BH108: 0 | BI108: 0 | BJ108: 0 | BK108: 0 | BL108: 0 | BM108: 0 | BN108: 0 | BO108: 0 | BP108: 0 | BQ108: 0 | BR108: 0 | BS108: 0 | BT108: 0 | BU108: 0 | BV108: 0 | BW108: 0 | BX108: 0 | BY108: 0 | BZ108: 0 | CA108: 0 | CB108: 0 | CC108: 0 | CD108: 0 | CE108: 0 | CF108: 0 | CG108: 0 | CH108: 0 | CI108: 0 | CJ108: 0 | CK108: 0 | CL108: 0 | CM108: 0 | CN108: 0 | CO108: 0 | CP108: 0 | CQ108: 0 | CR108: 0
F109: 0 | G109: 0 | H109: 0 | I109: 0 | J109: 0 | K109: 0 | L109: 0 | M109: 0 | N109: 0 | O109: 0 | P109: 0 | Q109: 0 | R109: 0 | S109: 0 | T109: 0 | U109: 0 | V109: 0 | W109: 0 | X109: 0 | Y109: 0 | Z109: 0 | AA109: 0 | AB109: 0 | AC109: 0 | AD109: 0 | AE109: 0 | AF109: 0 | AG109: 0 | AH109: 0 | AI109: 0 | AJ109: 0 | AK109: 0 | AL109: 0 | AM109: 0 | AN109: 0 | AO109: 0 | AP109: 0 | AQ109: 0 | AR109: 0 | AS109: 0 | AT109: 0 | AU109: 0 | AV109: 0 | AW109: 0 | AX109: 0 | AY109: 0 | AZ109: 0 | BA109: 0 | BB109: 0 | BC109: 0 | BD109: 0 | BE109: 0 | BF109: 0 | BG109: 0 | BH109: 0 | BI109: 0 | BJ109: 0 | BK109: 0 | BL109: 0 | BM109: 0 | BN109: 0 | BO109: 0 | BP109: 0 | BQ109: 0 | BR109: 0 | BS109: 0 | BT109: 0 | BU109: 0 | BV109: 0 | BW109: 0 | BX109: 0 | BY109: 0 | BZ109: 0 | CA109: 0 | CB109: 0 | CC109: 0 | CD109: 0 | CE109: 0 | CF109: 0 | CG109: 0 | CH109: 0 | CI109: 0 | CJ109: 0 | CK109: 0 | CL109: 0 | CM109: 0 | CN109: 0 | CO109: 0 | CP109: 0 | CQ109: 0 | CR109: 0
F110: 0 | G110: 0 | H110: 0 | I110: 0 | J110: 0 | K110: 0 | L110: 0 | M110: 0 | N110: 0 | O110: 0 | P110: 0 | Q110: 0 | R110: 0 | S110: 0 | T110: 0 | U110: 0 | V110: 0 | W110: 0 | X110: 0 | Y110: 0 | Z110: 0 | AA110: 0 | AB110: 0 | AC110: 0 | AD110: 0 | AE110: 0 | AF110: 0 | AG110: 0 | AH110: 0 | AI110: 0 | AJ110: 0 | AK110: 0 | AL110: 0 | AM110: 0 | AN110: 0 | AO110: 0 | AP110: 0 | AQ110: 0 | AR110: 0 | AS110: 0 | AT110: 0 | AU110: 0 | AV110: 0 | AW110: 0 | AX110: 0 | AY110: 0 | AZ110: 0 | BA110: 0 | BB110: 0 | BC110: 0 | BD110: 0 | BE110: 0 | BF110: 0 | BG110: 0 | BH110: 0 | BI110: 0 | BJ110: 0 | BK110: 0 | BL110: 0 | BM110: 0 | BN110: 0 | BO110: 0 | BP110: 0 | BQ110: 0 | BR110: 0 | BS110: 0 | BT110: 0 | BU110: 0 | BV110: 0 | BW110: 0 | BX110: 0 | BY110: 0 | BZ110: 0 | CA110: 0 | CB110: 0 | CC110: 0 | CD110: 0 | CE110: 0 | CF110: 0 | CG110: 0 | CH110: 0 | CI110: 0 | CJ110: 0 | CK110: 0 | CL110: 0 | CM110: 0 | CN110: 0 | CO110: 0 | CP110: 0 | CQ110: 0 | CR110: 0
F111: 0 | G111: 0 | H111: 0 | I111: 0 | J111: 0 | K111: 0 | L111: 0 | M111: 0 | N111: 0 | O111: 0 | P111: 0 | Q111: 0 | R111: 0 | S111: 0 | T111: 0 | U111: 0 | V111: 0 | W111: 0 | X111: 0 | Y111: 0 | Z111: 0 | AA111: 0 | AB111: 0 | AC111: 0 | AD111: 0 | AE111: 0 | AF111: 0 | AG111: 0 | AH111: 0 | AI111: 0 | AJ111: 0 | AK111: 0 | AL111: 0 | AM111: 0 | AN111: 0 | AO111: 0 | AP111: 0 | AQ111: 0 | AR111: 0 | AS111: 0 | AT111: 0 | AU111: 0 | AV111: 0 | AW111: 0 | AX111: 0 | AY111: 0 | AZ111: 0 | BA111: 0 | BB111: 0 | BC111: 0 | BD111: 0 | BE111: 0 | BF111: 0 | BG111: 0 | BH111: 0 | BI111: 0 | BJ111: 0 | BK111: 0 | BL111: 0 | BM111: 0 | BN111: 0 | BO111: 0 | BP111: 0 | BQ111: 0 | BR111: 0 | BS111: 0 | BT111: 0 | BU111: 0 | BV111: 0 | BW111: 0 | BX111: 0 | BY111: 0 | BZ111: 0 | CA111: 0 | CB111: 0 | CC111: 0 | CD111: 0 | CE111: 0 | CF111: 0 | CG111: 0 | CH111: 0 | CI111: 0 | CJ111: 0 | CK111: 0 | CL111: 0 | CM111: 0 | CN111: 0 | CO111: 0 | CP111: 0 | CQ111: 0 | CR111: 0
F112: 0 | G112: 0 | H112: 0 | I112: 0 | J112: 0 | K112: 0 | L112: 0 | M112: 0 | N112: 0 | O112: 0 | P112: 0 | Q112: 0 | R112: 0 | S112: 0 | T112: 0 | U112: 0 | V112: 0 | W112: 0 | X112: 0 | Y112: 0 | Z112: 0 | AA112: 0 | AB112: 0 | AC112: 0 | AD112: 0 | AE112: 0 | AF112: 0 | AG112: 0 | AH112: 0 | AI112: 0 | AJ112: 0 | AK112: 0 | AL112: 0 | AM112: 0 | AN112: 0 | AO112: 0 | AP112: 0 | AQ112: 0 | AR112: 0 | AS112: 0 | AT112: 0 | AU112: 0 | AV112: 0 | AW112: 0 | AX112: 0 | AY112: 0 | AZ112: 0 | BA112: 0 | BB112: 0 | BC112: 0 | BD112: 0 | BE112: 0 | BF112: 0 | BG112: 0 | BH112: 0 | BI112: 0 | BJ112: 0 | BK112: 0 | BL112: 0 | BM112: 0 | BN112: 0 | BO112: 0 | BP112: 0 | BQ112: 0 | BR112: 0 | BS112: 0 | BT112: 0 | BU112: 0 | BV112: 0 | BW112: 0 | BX112: 0 | BY112: 0 | BZ112: 0 | CA112: 0 | CB112: 0 | CC112: 0 | CD112: 0 | CE112: 0 | CF112: 0 | CG112: 0 | CH112: 0 | CI112: 0 | CJ112: 0 | CK112: 0 | CL112: 0 | CM112: 0 | CN112: 0 | CO112: 0 | CP112: 0 | CQ112: 0 | CR112: 0
F113: 0 | G113: 0 | H113: 0 | I113: 0 | J113: 0 | K113: 0 | L113: 0 | M113: 0 | N113: 0 | O113: 0 | P113: 0 | Q113: 0 | R113: 0 | S113: 0 | T113: 0 | U113: 0 | V113: 0 | W113: 0 | X113: 0 | Y113: 0 | Z113: 0 | AA113: 0 | AB113: 0 | AC113: 0 | AD113: 0 | AE113: 0 | AF113: 0 | AG113: 0 | AH113: 0 | AI113: 0 | AJ113: 0 | AK113: 0 | AL113: 0 | AM113: 0 | AN113: 0 | AO113: 0 | AP113: 0 | AQ113: 0 | AR113: 0 | AS113: 0 | AT113: 0 | AU113: 0 | AV113: 0 | AW113: 0 | AX113: 0 | AY113: 0 | AZ113: 0 | BA113: 0 | BB113: 0 | BC113: 0 | BD113: 0 | BE113: 0 | BF113: 0 | BG113: 0 | BH113: 0 | BI113: 0 | BJ113: 0 | BK113: 0 | BL113: 0 | BM113: 0 | BN113: 0 | BO113: 0 | BP113: 0 | BQ113: 0 | BR113: 0 | BS113: 0 | BT113: 0 | BU113: 0 | BV113: 0 | BW113: 0 | BX113: 0 | BY113: 0 | BZ113: 0 | CA113: 0 | CB113: 0 | CC113: 0 | CD113: 0 | CE113: 0 | CF113: 0 | CG113: 0 | CH113: 0 | CI113: 0 | CJ113: 0 | CK113: 0 | CL113: 0 | CM113: 0 | CN113: 0 | CO113: 0 | CP113: 0 | CQ113: 0 | CR113: 0
F114: 0 | G114: 0 | H114: 0 | I114: 0 | J114: 0 | K114: 0 | L114: 0 | M114: 0 | N114: 0 | O114: 0 | P114: 0 | Q114: 0 | R114: 0 | S114: 0 | T114: 0 | U114: 0 | V114: 0 | W114: 0 | X114: 0 | Y114: 0 | Z114: 0 | AA114: 0 | AB114: 0 | AC114: 0 | AD114: 0 | AE114: 0 | AF114: 0 | AG114: 0 | AH114: 0 | AI114: 0 | AJ114: 0 | AK114: 0 | AL114: 0 | AM114: 0 | AN114: 0 | AO114: 0 | AP114: 0 | AQ114: 0 | AR114: 0 | AS114: 0 | AT114: 0 | AU114: 0 | AV114: 0 | AW114: 0 | AX114: 0 | AY114: 0 | AZ114: 0 | BA114: 0 | BB114: 0 | BC114: 0 | BD114: 0 | BE114: 0 | BF114: 0 | BG114: 0 | BH114: 0 | BI114: 0 | BJ114: 0 | BK114: 0 | BL114: 0 | BM114: 0 | BN114: 0 | BO114: 0 | BP114: 0 | BQ114: 0 | BR114: 0 | BS114: 0 | BT114: 0 | BU114: 0 | BV114: 0 | BW114: 0 | BX114: 0 | BY114: 0 | BZ114: 0 | CA114: 0 | CB114: 0 | CC114: 0 | CD114: 0 | CE114: 0 | CF114: 0 | CG114: 0 | CH114: 0 | CI114: 0 | CJ114: 0 | CK114: 0 | CL114: 0 | CM114: 0 | CN114: 0 | CO114: 0 | CP114: 0 | CQ114: 0 | CR114: 0
F115: 0 | G115: 0 | H115: 0 | I115: 0 | J115: 0 | K115: 0 | L115: 0 | M115: 0 | N115: 0 | O115: 0 | P115: 0 | Q115: 0 | R115: 0 | S115: 0 | T115: 0 | U115: 0 | V115: 0 | W115: 0 | X115: 0 | Y115: 0 | Z115: 0 | AA115: 0 | AB115: 0 | AC115: 0 | AD115: 0 | AE115: 0 | AF115: 0 | AG115: 0 | AH115: 0 | AI115: 0 | AJ115: 0 | AK115: 0 | AL115: 0 | AM115: 0 | AN115: 0 | AO115: 0 | AP115: 0 | AQ115: 0 | AR115: 0 | AS115: 0 | AT115: 0 | AU115: 0 | AV115: 0 | AW115: 0 | AX115: 0 | AY115: 0 | AZ115: 0 | BA115: 0 | BB115: 0 | BC115: 0 | BD115: 0 | BE115: 0 | BF115: 0 | BG115: 0 | BH115: 0 | BI115: 0 | BJ115: 0 | BK115: 0 | BL115: 0 | BM115: 0 | BN115: 0 | BO115: 0 | BP115: 0 | BQ115: 0 | BR115: 0 | BS115: 0 | BT115: 0 | BU115: 0 | BV115: 0 | BW115: 0 | BX115: 0 | BY115: 0 | BZ115: 0 | CA115: 0 | CB115: 0 | CC115: 0 | CD115: 0 | CE115: 0 | CF115: 0 | CG115: 0 | CH115: 0 | CI115: 0 | CJ115: 0 | CK115: 0 | CL115: 0 | CM115: 0 | CN115: 0 | CO115: 0 | CP115: 0 | CQ115: 0 | CR115: 0
F116: =SUM(F106:F115) -> 0 | G116: 0 | H116: 0 | I116: 0 | J116: 0 | K116: 0 | L116: 0 | M116: 0 | N116: 0 | O116: 0 | P116: 0 | Q116: 0 | R116: 0 | S116: 0 | T116: 0 | U116: 0 | V116: 0 | W116: 0 | X116: 0 | Y116: 0 | Z116: 0 | AA116: 0 | AB116: 0 | AC116: 0 | AD116: 0 | AE116: 0 | AF116: 0 | AG116: 0 | AH116: 0 | AI116: 0 | AJ116: 0 | AK116: 0 | AL116: =SUM(AL106:AL115) -> 0 | AM116: 0 | AN116: 0 | AO116: 0 | AP116: 0 | AQ116: 0 | AR116: 0 | AS116: 0 | AT116: 0 | AU116: 0 | AV116: 0 | AW116: 0 | AX116: 0 | AY116: 0 | AZ116: 0 | BA116: 0 | BB116: 0 | BC116: 0 | BD116: 0 | BE116: 0 | BF116: 0 | BG116: 0 | BH116: 0 | BI116: 0 | BJ116: 0 | BK116: 0 | BL116: 0 | BM116: 0 | BN116: 0 | BO116: 0 | BP116: 0 | BQ116: 0 | BR116: =SUM(BR106:BR115) -> 0 | BS116: 0 | BT116: 0 | BU116: 0 | BV116: 0 | BW116: 0 | BX116: 0 | BY116: 0 | BZ116: 0 | CA116: 0 | CB116: 0 | CC116: 0 | CD116: 0 | CE116: 0 | CF116: 0 | CG116: 0 | CH116: 0 | CI116: 0 | CJ116: 0 | CK116: 0 | CL116: 0 | CM116: 0 | CN116: 0 | CO116: 0 | CP116: 0 | CQ116: 0 | CR116: 0
D118: =SUM(F118:CR118) -> 350892.7095 | F118: =CHOOSE($B$4,F64,F77,F90,F103,F116) -> 0 | G118: =CHOOSE($B$4,G64,G77,G90,G103,G116) -> 0 | H118: 0 | I118: 0 | J118: 0 | K118: 0 | L118: 245624.8967 | M118: 105267.8129 | N118: 0 | O118: 0 | P118: 0 | Q118: 0 | R118: 0 | S118: 0 | T118: 0 | U118: 0 | V118: 0 | W118: 0 | X118: 0 | Y118: 0 | Z118: 0 | AA118: 0 | AB118: 0 | AC118: 0 | AD118: 0 | AE118: 0 | AF118: 0 | AG118: 0 | AH118: 0 | AI118: 0 | AJ118: 0 | AK118: 0 | AL118: 0 | AM118: 0 | AN118: 0 | AO118: 0 | AP118: 0 | AQ118: 0 | AR118: 0 | AS118: 0 | AT118: 0 | AU118: 0 | AV118: 0 | AW118: 0 | AX118: 0 | AY118: 0 | AZ118: 0 | BA118: 0 | BB118: 0 | BC118: 0 | BD118: 0 | BE118: 0 | BF118: 0 | BG118: 0 | BH118: 0 | BI118: 0 | BJ118: 0 | BK118: 0 | BL118: 0 | BM118: 0 | BN118: 0 | BO118: 0 | BP118: 0 | BQ118: 0 | BR118: 0 | BS118: =CHOOSE($B$4,BS64,BS77,BS90,BS103,BS116) -> 0 | BT118: 0 | BU118: 0 | BV118: 0 | BW118: 0 | BX118: 0 | BY118: 0 | BZ118: 0 | CA118: 0 | CB118: 0 | CC118: 0 | CD118: 0 | CE118: 0 | CF118: 0 | CG118: 0 | CH118: 0 | CI118: 0 | CJ118: 0 | CK118: 0 | CL118: 0 | CM118: 0 | CN118: 0 | CO118: 0 | CP118: 0 | CQ118: 0 | CR118: 0
A120: Lifecycle inputs | B120: Period start | F120: ='Operator Model Inputs'!F228 -> 00:00:00 | G120: ='Operator Model Inputs'!G228 -> 00:00:00 | H120: ='Operator Model Inputs'!H228 -> 00:00:00 | I120: ='Operator Model Inputs'!I228 -> 00:00:00 | J120: ='Operator Model Inputs'!J228 -> 00:00:00 | K120: ='Operator Model Inputs'!K228 -> 00:00:00 | L120: ='Operator Model Inputs'!L228 -> 2010-04-01 | M120: ='Operator Model Inputs'!M228 -> 2010-10-01 | N120: ='Operator Model Inputs'!N228 -> 2011-04-01 | O120: ='Operator Model Inputs'!O228 -> 2011-10-01 | P120: ='Operator Model Inputs'!P228 -> 2012-04-01 | Q120: ='Operator Model Inputs'!Q228 -> 2012-10-01 | R120: ='Operator Model Inputs'!R228 -> 2013-04-01 | S120: ='Operator Model Inputs'!S228 -> 2013-10-01 | T120: ='Operator Model Inputs'!T228 -> 2014-04-01 | U120: ='Operator Model Inputs'!U228 -> 2014-10-01 | V120: ='Operator Model Inputs'!V228 -> 2015-04-01 | W120: ='Operator Model Inputs'!W228 -> 2015-10-01 | X120: ='Operator Model Inputs'!X228 -> 2016-04-01 | Y120: ='Operator Model Inputs'!Y228 -> 2016-10-01 | Z120: ='Operator Model Inputs'!Z228 -> 2017-04-01 | AA120: ='Operator Model Inputs'!AA228 -> 2017-10-01 | AB120: ='Operator Model Inputs'!AB228 -> 2018-04-01 | AC120: ='Operator Model Inputs'!AC228 -> 2018-10-01 | AD120: ='Operator Model Inputs'!AD228 -> 2019-04-01 | AE120: ='Operator Model Inputs'!AE228 -> 2019-10-01 | AF120: ='Operator Model Inputs'!AF228 -> 2020-04-01 | AG120: ='Operator Model Inputs'!AG228 -> 2020-10-01 | AH120: ='Operator Model Inputs'!AH228 -> 2021-04-01 | AI120: ='Operator Model Inputs'!AI228 -> 2021-10-01 | AJ120: ='Operator Model Inputs'!AJ228 -> 2022-04-01 | AK120: ='Operator Model Inputs'!AK228 -> 2022-10-01 | AL120: ='Operator Model Inputs'!AL228 -> 2023-04-01 | AM120: ='Operator Model Inputs'!AM228 -> 2023-10-01 | AN120: ='Operator Model Inputs'!AN228 -> 2024-04-01 | AO120: ='Operator Model Inputs'!AO228 -> 2024-10-01 | AP120: ='Operator Model Inputs'!AP228 -> 2025-04-01 | AQ120: ='Operator Model Inputs'!AQ228 -> 2025-10-01 | AR120: ='Operator Model Inputs'!AR228 -> 2026-04-01 | AS120: ='Operator Model Inputs'!AS228 -> 2026-10-01 | AT120: ='Operator Model Inputs'!AT228 -> 2027-04-01 | AU120: ='Operator Model Inputs'!AU228 -> 2027-10-01 | AV120: ='Operator Model Inputs'!AV228 -> 2028-04-01 | AW120: ='Operator Model Inputs'!AW228 -> 2028-10-01 | AX120: ='Operator Model Inputs'!AX228 -> 2029-04-01 | AY120: ='Operator Model Inputs'!AY228 -> 2029-10-01 | AZ120: ='Operator Model Inputs'!AZ228 -> 2030-04-01 | BA120: ='Operator Model Inputs'!BA228 -> 2030-10-01 | BB120: ='Operator Model Inputs'!BB228 -> 2031-04-01 | BC120: ='Operator Model Inputs'!BC228 -> 2031-10-01 | BD120: ='Operator Model Inputs'!BD228 -> 2032-04-01 | BE120: ='Operator Model Inputs'!BE228 -> 2032-10-01 | BF120: ='Operator Model Inputs'!BF228 -> 2033-04-01 | BG120: ='Operator Model Inputs'!BG228 -> 2033-10-01 | BH120: ='Operator Model Inputs'!BH228 -> 2034-04-01 | BI120: ='Operator Model Inputs'!BI228 -> 2034-10-01 | BJ120: ='Operator Model Inputs'!BJ228 -> 2035-04-01 | BK120: ='Operator Model Inputs'!BK228 -> 2035-10-01 | BL120: ='Operator Model Inputs'!BL228 -> 2036-04-01 | BM120: ='Operator Model Inputs'!BM228 -> 2036-10-01 | BN120: ='Operator Model Inputs'!BN228 -> 2037-04-01 | BO120: ='Operator Model Inputs'!BO228 -> 2037-10-01 | BP120: ='Operator Model Inputs'!BP228 -> 2038-04-01 | BQ120: ='Operator Model Inputs'!BQ228 -> 2038-10-01 | BR120: ='Operator Model Inputs'!BR228 -> 2039-04-01 | BS120: ='Operator Model Inputs'!BS228 -> 2039-10-01 | BT120: ='Operator Model Inputs'!BT228 -> 2040-04-01 | BU120: ='Operator Model Inputs'!BU228 -> 2040-10-01 | BV120: ='Operator Model Inputs'!BV228 -> 2041-04-01 | BW120: ='Operator Model Inputs'!BW228 -> 2041-10-01 | BX120: ='Operator Model Inputs'!BX228 -> 00:00:00 | BY120: ='Operator Model Inputs'!BY228 -> 00:00:00 | BZ120: ='Operator Model Inputs'!BZ228 -> 00:00:00 | CA120: ='Operator Model Inputs'!CA228 -> 00:00:00 | CB120: ='Operator Model Inputs'!CB228 -> 00:00:00 | CC120: ='Operator Model Inputs'!CC228 -> 00:00:00 | CD120: ='Operator Model Inputs'!CD228 -> 00:00:00 | CE120: ='Operator Model Inputs'!CE228 -> 00:00:00 | CF120: ='Operator Model Inputs'!CF228 -> 00:00:00 | CG120: ='Operator Model Inputs'!CG228 -> 00:00:00 | CH120: ='Operator Model Inputs'!CH228 -> 00:00:00 | CI120: ='Operator Model Inputs'!CI228 -> 00:00:00 | CJ120: ='Operator Model Inputs'!CJ228 -> 00:00:00 | CK120: ='Operator Model Inputs'!CK228 -> 00:00:00 | CL120: ='Operator Model Inputs'!CL228 -> 00:00:00 | CM120: ='Operator Model Inputs'!CM228 -> 00:00:00 | CN120: ='Operator Model Inputs'!CN228 -> 00:00:00 | CO120: ='Operator Model Inputs'!CO228 -> 00:00:00 | CP120: ='Operator Model Inputs'!CP228 -> 00:00:00 | CQ120: ='Operator Model Inputs'!CQ228 -> 00:00:00 | CR120: ='Operator Model Inputs'!CR228 -> 00:00:00
B121: Period end | F121: ='Operator Model Inputs'!F229 -> 00:00:00 | G121: ='Operator Model Inputs'!G229 -> 00:00:00 | H121: ='Operator Model Inputs'!H229 -> 00:00:00 | I121: ='Operator Model Inputs'!I229 -> 00:00:00 | J121: ='Operator Model Inputs'!J229 -> 00:00:00 | K121: ='Operator Model Inputs'!K229 -> 00:00:00 | L121: ='Operator Model Inputs'!L229 -> 2010-09-30 | M121: ='Operator Model Inputs'!M229 -> 2011-03-31 | N121: ='Operator Model Inputs'!N229 -> 2011-09-30 | O121: ='Operator Model Inputs'!O229 -> 2012-03-31 | P121: ='Operator Model Inputs'!P229 -> 2012-09-30 | Q121: ='Operator Model Inputs'!Q229 -> 2013-03-31 | R121: ='Operator Model Inputs'!R229 -> 2013-09-30 | S121: ='Operator Model Inputs'!S229 -> 2014-03-31 | T121: ='Operator Model Inputs'!T229 -> 2014-09-30 | U121: ='Operator Model Inputs'!U229 -> 2015-03-31 | V121: ='Operator Model Inputs'!V229 -> 2015-09-30 | W121: ='Operator Model Inputs'!W229 -> 2016-03-31 | X121: ='Operator Model Inputs'!X229 -> 2016-09-30 | Y121: ='Operator Model Inputs'!Y229 -> 2017-03-31 | Z121: ='Operator Model Inputs'!Z229 -> 2017-09-30 | AA121: ='Operator Model Inputs'!AA229 -> 2018-03-31 | AB121: ='Operator Model Inputs'!AB229 -> 2018-09-30 | AC121: ='Operator Model Inputs'!AC229 -> 2019-03-31 | AD121: ='Operator Model Inputs'!AD229 -> 2019-09-30 | AE121: ='Operator Model Inputs'!AE229 -> 2020-03-31 | AF121: ='Operator Model Inputs'!AF229 -> 2020-09-30 | AG121: ='Operator Model Inputs'!AG229 -> 2021-03-31 | AH121: ='Operator Model Inputs'!AH229 -> 2021-09-30 | AI121: ='Operator Model Inputs'!AI229 -> 2022-03-31 | AJ121: ='Operator Model Inputs'!AJ229 -> 2022-09-30 | AK121: ='Operator Model Inputs'!AK229 -> 2023-03-31 | AL121: ='Operator Model Inputs'!AL229 -> 2023-09-30 | AM121: ='Operator Model Inputs'!AM229 -> 2024-03-31 | AN121: ='Operator Model Inputs'!AN229 -> 2024-09-30 | AO121: ='Operator Model Inputs'!AO229 -> 2025-03-31 | AP121: ='Operator Model Inputs'!AP229 -> 2025-09-30 | AQ121: ='Operator Model Inputs'!AQ229 -> 2026-03-31 | AR121: ='Operator Model Inputs'!AR229 -> 2026-09-30 | AS121: ='Operator Model Inputs'!AS229 -> 2027-03-31 | AT121: ='Operator Model Inputs'!AT229 -> 2027-09-30 | AU121: ='Operator Model Inputs'!AU229 -> 2028-03-31 | AV121: ='Operator Model Inputs'!AV229 -> 2028-09-30 | AW121: ='Operator Model Inputs'!AW229 -> 2029-03-31 | AX121: ='Operator Model Inputs'!AX229 -> 2029-09-30 | AY121: ='Operator Model Inputs'!AY229 -> 2030-03-31 | AZ121: ='Operator Model Inputs'!AZ229 -> 2030-09-30 | BA121: ='Operator Model Inputs'!BA229 -> 2031-03-31 | BB121: ='Operator Model Inputs'!BB229 -> 2031-09-30 | BC121: ='Operator Model Inputs'!BC229 -> 2032-03-31 | BD121: ='Operator Model Inputs'!BD229 -> 2032-09-30 | BE121: ='Operator Model Inputs'!BE229 -> 2033-03-31 | BF121: ='Operator Model Inputs'!BF229 -> 2033-09-30 | BG121: ='Operator Model Inputs'!BG229 -> 2034-03-31 | BH121: ='Operator Model Inputs'!BH229 -> 2034-09-30 | BI121: ='Operator Model Inputs'!BI229 -> 2035-03-31 | BJ121: ='Operator Model Inputs'!BJ229 -> 2035-09-30 | BK121: ='Operator Model Inputs'!BK229 -> 2036-03-31 | BL121: ='Operator Model Inputs'!BL229 -> 2036-09-30 | BM121: ='Operator Model Inputs'!BM229 -> 2037-03-31 | BN121: ='Operator Model Inputs'!BN229 -> 2037-09-30 | BO121: ='Operator Model Inputs'!BO229 -> 2038-03-31 | BP121: ='Operator Model Inputs'!BP229 -> 2038-09-30 | BQ121: ='Operator Model Inputs'!BQ229 -> 2039-03-31 | BR121: ='Operator Model Inputs'!BR229 -> 2039-09-30 | BS121: ='Operator Model Inputs'!BS229 -> 2040-03-31 | BT121: ='Operator Model Inputs'!BT229 -> 2040-09-30 | BU121: ='Operator Model Inputs'!BU229 -> 2041-03-31 | BV121: ='Operator Model Inputs'!BV229 -> 2041-09-30 | BW121: ='Operator Model Inputs'!BW229 -> 2042-03-31 | BX121: ='Operator Model Inputs'!BX229 -> 00:00:00 | BY121: ='Operator Model Inputs'!BY229 -> 00:00:00 | BZ121: ='Operator Model Inputs'!BZ229 -> 00:00:00 | CA121: ='Operator Model Inputs'!CA229 -> 00:00:00 | CB121: ='Operator Model Inputs'!CB229 -> 00:00:00 | CC121: ='Operator Model Inputs'!CC229 -> 00:00:00 | CD121: ='Operator Model Inputs'!CD229 -> 00:00:00 | CE121: ='Operator Model Inputs'!CE229 -> 00:00:00 | CF121: ='Operator Model Inputs'!CF229 -> 00:00:00 | CG121: ='Operator Model Inputs'!CG229 -> 00:00:00 | CH121: ='Operator Model Inputs'!CH229 -> 00:00:00 | CI121: ='Operator Model Inputs'!CI229 -> 00:00:00 | CJ121: ='Operator Model Inputs'!CJ229 -> 00:00:00 | CK121: ='Operator Model Inputs'!CK229 -> 00:00:00 | CL121: ='Operator Model Inputs'!CL229 -> 00:00:00 | CM121: ='Operator Model Inputs'!CM229 -> 00:00:00 | CN121: ='Operator Model Inputs'!CN229 -> 00:00:00 | CO121: ='Operator Model Inputs'!CO229 -> 00:00:00 | CP121: ='Operator Model Inputs'!CP229 -> 00:00:00 | CQ121: ='Operator Model Inputs'!CQ229 -> 00:00:00 | CR121: ='Operator Model Inputs'!CR229 -> 00:00:00
A123: Scenario 1
A124: Proportion of lifecycle costs capitalised | F124: 0 | G124: 0 | H124: 0 | I124: 0 | J124: 0 | K124: 0 | L124: 0.6 | M124: 0.6 | N124: 0.6 | O124: 0.6 | P124: 0.6 | Q124: 0.6 | R124: 0.6 | S124: 0.6 | T124: 0.6 | U124: 0.6 | V124: 0.6 | W124: 0.6 | X124: 0.6 | Y124: 0.6 | Z124: 0.6 | AA124: 0.6 | AB124: 0.6 | AC124: 0.6 | AD124: 0.6 | AE124: 0.6 | AF124: 0.6 | AG124: 0.6 | AH124: 0.6 | AI124: 0.6 | AJ124: 0.6 | AK124: 0.6 | AL124: 0.6 | AM124: 0.6 | AN124: 0.6 | AO124: 0.6 | AP124: 0.6 | AQ124: 0.6 | AR124: 0.6 | AS124: 0.6 | AT124: 0.6 | AU124: 0.6 | AV124: 0.6 | AW124: 0.6 | AX124: 0.6 | AY124: 0.6 | AZ124: 0.6 | BA124: 0.6 | BB124: 0.6 | BC124: 0.6 | BD124: 0.6 | BE124: 0.6 | BF124: 0.6 | BG124: 0.6 | BH124: 0.6 | BI124: 0.6 | BJ124: 0.6 | BK124: 0.6 | BL124: 0.6 | BM124: 0.6 | BN124: 0.6 | BO124: 0.6 | BP124: 0.6 | BQ124: 0.6 | BR124: 0.6 | BS124: 0.6 | BT124: 0.6 | BU124: 0.6 | BV124: 0.6 | BW124: 0.6 | BX124: 0 | BY124: 0 | BZ124: 0 | CA124: 0 | CB124: 0 | CC124: 0 | CD124: 0 | CE124: 0 | CF124: 0 | CG124: 0 | CH124: 0 | CI124: 0 | CJ124: 0 | CK124: 0 | CL124: 0 | CM124: 0 | CN124: 0 | CO124: 0 | CP124: 0 | CQ124: 0 | CR124: 0 | CS124: 0
A125: Actual lifecycle asset additions - timing differences - nominal | F125: 0 | G125: 0 | H125: 0 | I125: 0 | J125: 0 | K125: 0 | L125: 0 | M125: 0 | N125: 0 | O125: 0 | P125: 0 | Q125: 0 | R125: 0 | S125: 0 | T125: 0 | U125: 0 | V125: 0 | W125: 0 | X125: 0 | Y125: 0 | Z125: 0 | AA125: 0 | AB125: 2000 | AC125: 0 | AD125: 0 | AE125: 0 | AF125: -1100 | AG125: -900 | AH125: 0 | AI125: 0 | AJ125: 0 | AK125: 0 | AL125: 0 | AM125: 0 | AN125: 0 | AO125: 0 | AP125: 0 | AQ125: 0 | AR125: 0 | AS125: 0 | AT125: 0 | AU125: 0 | AV125: 0 | AW125: 0 | AX125: 0 | AY125: 0 | AZ125: 0 | BA125: 0 | BB125: 0 | BC125: 0 | BD125: 0 | BE125: 0 | BF125: 0 | BG125: 0 | BH125: 0 | BI125: 0 | BJ125: 0 | BK125: 0 | BL125: 0 | BM125: 0 | BN125: 0 | BO125: 0 | BP125: 0 | BQ125: 0 | BR125: 4000 | BS125: 0 | BT125: -2900 | BU125: -1100 | BV125: 0 | BW125: 0 | BX125: 0 | BY125: 0 | BZ125: 0 | CA125: 0 | CB125: 0 | CC125: 0 | CD125: 0 | CE125: 0 | CF125: 0 | CG125: 0 | CH125: 0 | CI125: 0 | CJ125: 0 | CK125: 0 | CL125: 0 | CM125: 0 | CN125: 0 | CO125: 0 | CP125: 0 | CQ125: 0 | CR125: 0 | CS125: 0
A126: Actual lifecycle asset additions - value differences - nominal | F126: 0 | G126: 0 | H126: 0 | I126: 0 | J126: 0 | K126: 0 | L126: 0 | M126: 0 | N126: 0 | O126: 0 | P126: 0 | Q126: 0 | R126: 0 | S126: 0 | T126: 0 | U126: 0 | V126: 600 | W126: 0 | X126: 0 | Y126: 0 | Z126: 0 | AA126: 0 | AB126: 2000 | AC126: 0 | AD126: 0 | AE126: 0 | AF126: 0 | AG126: 0 | AH126: 0 | AI126: 0 | AJ126: 0 | AK126: 0 | AL126: 0 | AM126: 0 | AN126: 0 | AO126: 0 | AP126: 0 | AQ126: 0 | AR126: 0 | AS126: 0 | AT126: 0 | AU126: 0 | AV126: 0 | AW126: 0 | AX126: 0 | AY126: 0 | AZ126: 0 | BA126: 0 | BB126: 0 | BC126: 0 | BD126: 0 | BE126: 0 | BF126: 0 | BG126: 0 | BH126: 0 | BI126: 0 | BJ126: 0 | BK126: 0 | BL126: 0 | BM126: 0 | BN126: 0 | BO126: 0 | BP126: 0 | BQ126: 0 | BR126: 0 | BS126: 0 | BT126: 0 | BU126: 0 | BV126: 0 | BW126: 0 | BX126: 0 | BY126: 0 | BZ126: 0 | CA126: 0 | CB126: 0 | CC126: 0 | CD126: 0 | CE126: 0 | CF126: 0 | CG126: 0 | CH126: 0 | CI126: 0 | CJ126: 0 | CK126: 0 | CL126: 0 | CM126: 0 | CN126: 0 | CO126: 0 | CP126: 0 | CQ126: 0 | CR126: 0 | CS126: 0
A128: Scenario 2
A129: Proportion of lifecycle costs capitalised
A130: Actual lifecycle asset additions - timing differences - nominal
A131: Actual lifecycle asset additions - value differences - nominal
A133: Scenario 3
A134: Proportion of lifecycle costs capitalised
A135: Actual lifecycle asset additions - timing differences - nominal
A136: Actual lifecycle asset additions - value differences - nominal
A138: Scenario 4
A139: Proportion of lifecycle costs capitalised
A140: Actual lifecycle asset additions - timing differences - nominal
A141: Actual lifecycle asset additions - value differences - nominal
A143: Scenario 5
A144: Proportion of lifecycle costs capitalised
A145: Actual lifecycle asset additions - timing differences - nominal
A146: Actual lifecycle asset additions - value differences - nominal
A148: Total predicted real lifecycle profile | D148: =SUM(F148:CR148) -> 43135.83947 | F148: ='Operator Model Inputs'!F246 -> 0 | G148: ='Operator Model Inputs'!G246 -> 0 | H148: ='Operator Model Inputs'!H246 -> 0 | I148: ='Operator Model Inputs'!I246 -> 0 | J148: ='Operator Model Inputs'!J246 -> 0 | K148: ='Operator Model Inputs'!K246 -> 0 | L148: ='Operator Model Inputs'!L246 -> 0 | M148: ='Operator Model Inputs'!M246 -> 0 | N148: ='Operator Model Inputs'!N246 -> 0 | O148: ='Operator Model Inputs'!O246 -> 0 | P148: ='Operator Model Inputs'!P246 -> 0 | Q148: ='Operator Model Inputs'!Q246 -> 0 | R148: ='Operator Model Inputs'!R246 -> 60.64911771 | S148: ='Operator Model Inputs'!S246 -> 60.64911771 | T148: ='Operator Model Inputs'!T246 -> 77.17388217 | U148: ='Operator Model Inputs'!U246 -> 77.17388217 | V148: ='Operator Model Inputs'!V246 -> 347.1306067 | W148: ='Operator Model Inputs'!W246 -> 347.1306067 | X148: ='Operator Model Inputs'!X246 -> 182.910305 | Y148: ='Operator Model Inputs'!Y246 -> 182.910305 | Z148: ='Operator Model Inputs'!Z246 -> 290.1180527 | AA148: ='Operator Model Inputs'!AA246 -> 290.1180527 | AB148: ='Operator Model Inputs'!AB246 -> 497.4006062 | AC148: ='Operator Model Inputs'!AC246 -> 497.4006062 | AD148: ='Operator Model Inputs'!AD246 -> 184.3777427 | AE148: ='Operator Model Inputs'!AE246 -> 184.3777427 | AF148: ='Operator Model Inputs'!AF246 -> 1323.922762 | AG148: ='Operator Model Inputs'!AG246 -> 1323.922762 | AH148: ='Operator Model Inputs'!AH246 -> 398.5560976 | AI148: ='Operator Model Inputs'!AI246 -> 398.5560976 | AJ148: ='Operator Model Inputs'!AJ246 -> 801.4059521 | AK148: ='Operator Model Inputs'!AK246 -> 801.4059521 | AL148: ='Operator Model Inputs'!AL246 -> 392.7202791 | AM148: ='Operator Model Inputs'!AM246 -> 392.7202791 | AN148: ='Operator Model Inputs'!AN246 -> 461.7631131 | AO148: ='Operator Model Inputs'!AO246 -> 461.7631131 | AP148: ='Operator Model Inputs'!AP246 -> 1295.728699 | AQ148: ='Operator Model Inputs'!AQ246 -> 1295.728699 | AR148: ='Operator Model Inputs'!AR246 -> 1095.651397 | AS148: ='Operator Model Inputs'!AS246 -> 1095.651397 | AT148: ='Operator Model Inputs'!AT246 -> 506.9849587 | AU148: ='Operator Model Inputs'!AU246 -> 506.9849587 | AV148: ='Operator Model Inputs'!AV246 -> 1257.570372 | AW148: ='Operator Model Inputs'!AW246 -> 1257.570372 | AX148: ='Operator Model Inputs'!AX246 -> 1153.838109 | AY148: ='Operator Model Inputs'!AY246 -> 1153.838109 | AZ148: ='Operator Model Inputs'!AZ246 -> 1361.396496 | BA148: ='Operator Model Inputs'!BA246 -> 1361.396496 | BB148: ='Operator Model Inputs'!BB246 -> 1290.333795 | BC148: ='Operator Model Inputs'!BC246 -> 1290.333795 | BD148: ='Operator Model Inputs'!BD246 -> 1370.492251 | BE148: ='Operator Model Inputs'!BE246 -> 1370.492251 | BF148: ='Operator Model Inputs'!BF246 -> 551.282021 | BG148: ='Operator Model Inputs'!BG246 -> 551.282021 | BH148: ='Operator Model Inputs'!BH246 -> 1412.66521 | BI148: ='Operator Model Inputs'!BI246 -> 1412.66521 | BJ148: ='Operator Model Inputs'!BJ246 -> 1127.033909 | BK148: ='Operator Model Inputs'!BK246 -> 1127.033909 | BL148: ='Operator Model Inputs'!BL246 -> 687.9065997 | BM148: ='Operator Model Inputs'!BM246 -> 687.9065997 | BN148: ='Operator Model Inputs'!BN246 -> 476.2868656 | BO148: ='Operator Model Inputs'!BO246 -> 476.2868656 | BP148: ='Operator Model Inputs'!BP246 -> 328.6931759 | BQ148: ='Operator Model Inputs'!BQ246 -> 328.6931759 | BR148: ='Operator Model Inputs'!BR246 -> 343.1123613 | BS148: ='Operator Model Inputs'!BS246 -> 343.1123613 | BT148: ='Operator Model Inputs'!BT246 -> 2071.021333 | BU148: ='Operator Model Inputs'!BU246 -> 2071.021333 | BV148: ='Operator Model Inputs'!BV246 -> 219.7936667 | BW148: ='Operator Model Inputs'!BW246 -> 219.7936667 | BX148: ='Operator Model Inputs'!BX246 -> 0 | BY148: ='Operator Model Inputs'!BY246 -> 0 | BZ148: ='Operator Model Inputs'!BZ246 -> 0 | CA148: ='Operator Model Inputs'!CA246 -> 0 | CB148: ='Operator Model Inputs'!CB246 -> 0 | CC148: ='Operator Model Inputs'!CC246 -> 0 | CD148: ='Operator Model Inputs'!CD246 -> 0 | CE148: ='Operator Model Inputs'!CE246 -> 0 | CF148: ='Operator Model Inputs'!CF246 -> 0 | CG148: ='Operator Model Inputs'!CG246 -> 0 | CH148: ='Operator Model Inputs'!CH246 -> 0 | CI148: ='Operator Model Inputs'!CI246 -> 0 | CJ148: ='Operator Model Inputs'!CJ246 -> 0 | CK148: ='Operator Model Inputs'!CK246 -> 0 | CL148: ='Operator Model Inputs'!CL246 -> 0 | CM148: ='Operator Model Inputs'!CM246 -> 0 | CN148: ='Operator Model Inputs'!CN246 -> 0 | CO148: ='Operator Model Inputs'!CO246 -> 0 | CP148: ='Operator Model Inputs'!CP246 -> 0 | CQ148: ='Operator Model Inputs'!CQ246 -> 0 | CR148: ='Operator Model Inputs'!CR246 -> 0
A149: Predicted nominal capitalised lifecycle | D149: =SUM(F149:CR149) -> 46745.74999 | F149: =F148*F10*CHOOSE($B$4,F124,F129,F134,F139,F144) -> 0 | G149: 0 | H149: 0 | I149: 0 | J149: 0 | K149: 0 | L149: 0 | M149: 0 | N149: 0 | O149: 0 | P149: 0 | Q149: 0 | R149: 43.25564532 | S149: 43.25564532 | T149: 56.41732899 | U149: 56.41732899 | V149: 260.1111363 | W149: 260.1111363 | X149: 140.4843927 | Y149: 140.4843927 | Z149: 228.3960157 | AA149: 228.3960157 | AB149: 401.3691099 | AC149: 401.3691099 | AD149: 152.5000529 | AE149: 152.5000529 | AF149: 1122.400922 | AG149: 1122.400922 | AH149: 346.3368392 | AI149: 346.3368392 | AJ149: 713.8149842 | AK149: 713.8149842 | AL149: =AL148*AL10*CHOOSE($B$4,AL124,AL129,AL134,AL139,AL144) -> 358.5422089 | AM149: 358.5422089 | AN149: 432.1157189 | AO149: 432.1157189 | AP149: 1242.850156 | AQ149: 1242.850156 | AR149: 1077.211435 | AS149: 1077.211435 | AT149: 510.9136413 | AU149: 510.9136413 | AV149: 1298.998309 | AW149: 1298.998309 | AX149: 1221.645032 | AY149: 1221.645032 | AZ149: 1477.435902 | BA149: 1477.435902 | BB149: 1435.324034 | BC149: 1435.324034 | BD149: 1562.601852 | BE149: 1562.601852 | BF149: 644.2722784 | BG149: 644.2722784 | BH149: 1692.227433 | BI149: 1692.227433 | BJ149: 1383.822315 | BK149: 1383.822315 | BL149: 865.7583486 | BM149: 865.7583486 | BN149: 614.4119909 | BO149: 614.4119909 | BP149: 434.61592 | BQ149: 434.61592 | BR149: =BR148*BR10*CHOOSE($B$4,BR124,BR129,BR134,BR139,BR144) -> 465.0237917 | BS149: 465.0237917 | BT149: 2877.048918 | BU149: 2877.048918 | BV149: 312.9692818 | BW149: 312.9692818 | BX149: 0 | BY149: 0 | BZ149: 0 | CA149: 0 | CB149: 0 | CC149: 0 | CD149: 0 | CE149: 0 | CF149: 0 | CG149: 0 | CH149: 0 | CI149: 0 | CJ149: 0 | CK149: 0 | CL149: 0 | CM149: 0 | CN149: 0 | CO149: 0 | CP149: 0 | CQ149: 0 | CR149: 0
A150: Predicted nominal expensed lifecycle | D150: =SUM(F150:CR150) -> 31163.83332 | F150: =F148*F10*(1-CHOOSE($B$4,F124,F129,F134,F139,F144)) -> 0 | G150: 0 | H150: 0 | I150: 0 | J150: 0 | K150: 0 | L150: 0 | M150: 0 | N150: 0 | O150: 0 | P150: 0 | Q150: 0 | R150: 28.83709688 | S150: 28.83709688 | T150: 37.61155266 | U150: 37.61155266 | V150: 173.4074242 | W150: 173.4074242 | X150: 93.65626178 | Y150: 93.65626178 | Z150: 152.2640104 | AA150: 152.2640104 | AB150: 267.5794066 | AC150: 267.5794066 | AD150: 101.6667019 | AE150: 101.6667019 | AF150: 748.2672814 | AG150: 748.2672814 | AH150: 230.8912262 | AI150: 230.8912262 | AJ150: 475.8766561 | AK150: 475.8766561 | AL150: =AL148*AL10*(1-CHOOSE($B$4,AL124,AL129,AL134,AL139,AL144)) -> 239.0281393 | AM150: 239.0281393 | AN150: 288.077146 | AO150: 288.077146 | AP150: 828.5667704 | AQ150: 828.5667704 | AR150: 718.1409565 | AS150: 718.1409565 | AT150: 340.6090942 | AU150: 340.6090942 | AV150: 865.9988729 | AW150: 865.9988729 | AX150: 814.4300211 | AY150: 814.4300211 | AZ150: 984.9572679 | BA150: 984.9572679 | BB150: 956.8826896 | BC150: 956.8826896 | BD150: 1041.734568 | BE150: 1041.734568 | BF150: 429.5148523 | BG150: 429.5148523 | BH150: 1128.151622 | BI150: 1128.151622 | BJ150: 922.5482099 | BK150: 922.5482099 | BL150: 577.1722324 | BM150: 577.1722324 | BN150: 409.607994 | BO150: 409.607994 | BP150: 289.7439467 | BQ150: 289.7439467 | BR150: =BR148*BR10*(1-CHOOSE($B$4,BR124,BR129,BR134,BR139,BR144)) -> 310.0158611 | BS150: 310.0158611 | BT150: 1918.032612 | BU150: 1918.032612 | BV150: 208.6461878 | BW150: 208.6461878 | BX150: 0 | BY150: 0 | BZ150: 0 | CA150: 0 | CB150: 0 | CC150: 0 | CD150: 0 | CE150: 0 | CF150: 0 | CG150: 0 | CH150: 0 | CI150: 0 | CJ150: 0 | CK150: 0 | CL150: 0 | CM150: 0 | CN150: 0 | CO150: 0 | CP150: 0 | CQ150: 0 | CR150: 0
A151: Actual nominal capitalised lifecycle | D151: =SUM(F151:CR151) -> 47433.17655 | F151: =F148*F11*CHOOSE($B$4,F124,F129,F134,F139,F144) -> 0 | G151: 0 | H151: 0 | I151: 0 | J151: 0 | K151: 0 | L151: 0 | M151: 0 | N151: 0 | O151: 0 | P151: 0 | Q151: 0 | R151: 43.89174763 | S151: 43.89174763 | T151: 57.2469824 | U151: 57.2469824 | V151: 263.9362392 | W151: 263.9362392 | X151: 142.5503068 | Y151: 142.5503068 | Z151: 231.7547272 | AA151: 231.7547272 | AB151: 407.2715029 | AC151: 407.2715029 | AD151: 154.742665 | AE151: 154.742665 | AF151: 1138.906556 | AG151: 1138.906556 | AH151: 351.429947 | AI151: 351.429947 | AJ151: 724.3120964 | AK151: 724.3120964 | AL151: =AL148*AL11*CHOOSE($B$4,AL124,AL129,AL134,AL139,AL144) -> 363.8148046 | AM151: 363.8148046 | AN151: 438.4702608 | AO151: 438.4702608 | AP151: 1261.127073 | AQ151: 1261.127073 | AR151: 1093.052527 | AS151: 1093.052527 | AT151: 518.4269577 | AU151: 518.4269577 | AV151: 1318.100922 | AW151: 1318.100922 | AX151: 1239.610114 | AY151: 1239.610114 | AZ151: 1499.162555 | BA151: 1499.162555 | BB151: 1456.431405 | BC151: 1456.431405 | BD151: 1585.580926 | BE151: 1585.580926 | BF151: 653.74672 | BG151: 653.74672 | BH151: 1717.112735 | BI151: 1717.112735 | BJ151: 1404.172319 | BK151: 1404.172319 | BL151: 878.4898866 | BM151: 878.4898866 | BN151: 623.4473177 | BO151: 623.4473177 | BP151: 441.007229 | BQ151: 441.007229 | BR151: =BR148*BR11*CHOOSE($B$4,BR124,BR129,BR134,BR139,BR144) -> 471.8622681 | BS151: 471.8622681 | BT151: 2919.357788 | BU151: 2919.357788 | BV151: 317.571698 | BW151: 317.571698 | BX151: 0 | BY151: 0 | BZ151: 0 | CA151: 0 | CB151: 0 | CC151: 0 | CD151: 0 | CE151: 0 | CF151: 0 | CG151: 0 | CH151: 0 | CI151: 0 | CJ151: 0 | CK151: 0 | CL151: 0 | CM151: 0 | CN151: 0 | CO151: 0 | CP151: 0 | CQ151: 0 | CR151: 0
A152: Actual nominal expensed lifecycle | D152: =SUM(F152:CR152) -> 31622.1177 | F152: =F148*F11*(1-CHOOSE($B$4,F124,F129,F134,F139,F144)) -> 0 | G152: 0 | H152: 0 | I152: 0 | J152: 0 | K152: 0 | L152: 0 | M152: 0 | N152: 0 | O152: 0 | P152: 0 | Q152: 0 | R152: 29.26116509 | S152: 29.26116509 | T152: 38.16465493 | U152: 38.16465493 | V152: 175.9574928 | W152: 175.9574928 | X152: 95.03353785 | Y152: 95.03353785 | Z152: 154.5031515 | AA152: 154.5031515 | AB152: 271.5143353 | AC152: 271.5143353 | AD152: 103.1617767 | AE152: 103.1617767 | AF152: 759.271037 | AG152: 759.271037 | AH152: 234.2866314 | AI152: 234.2866314 | AJ152: 482.8747309 | AK152: 482.8747309 | AL152: =AL148*AL11*(1-CHOOSE($B$4,AL124,AL129,AL134,AL139,AL144)) -> 242.5432031 | AM152: 242.5432031 | AN152: 292.3135072 | AO152: 292.3135072 | AP152: 840.751382 | AQ152: 840.751382 | AR152: 728.7016849 | AS152: 728.7016849 | AT152: 345.6179718 | AU152: 345.6179718 | AV152: 878.7339479 | AW152: 878.7339479 | AX152: 826.4067427 | AY152: 826.4067427 | AZ152: 999.4417033 | BA152: 999.4417033 | BB152: 970.95427 | BC152: 970.95427 | BD152: 1057.053951 | BE152: 1057.053951 | BF152: 435.8311467 | BG152: 435.8311467 | BH152: 1144.741823 | BI152: 1144.741823 | BJ152: 936.1148796 | BK152: 936.1148796 | BL152: 585.6599244 | BM152: 585.6599244 | BN152: 415.6315451 | BO152: 415.6315451 | BP152: 294.0048193 | BQ152: 294.0048193 | BR152: =BR148*BR11*(1-CHOOSE($B$4,BR124,BR129,BR134,BR139,BR144)) -> 314.5748454 | BS152: 314.5748454 | BT152: 1946.238526 | BU152: 1946.238526 | BV152: 211.7144653 | BW152: 211.7144653 | BX152: 0 | BY152: 0 | BZ152: 0 | CA152: 0 | CB152: 0 | CC152: 0 | CD152: 0 | CE152: 0 | CF152: 0 | CG152: 0 | CH152: 0 | CI152: 0 | CJ152: 0 | CK152: 0 | CL152: 0 | CM152: 0 | CN152: 0 | CO152: 0 | CP152: 0 | CQ152: 0 | CR152: 0
A154: Nominal lifecycle costs - timing differences | D154: =SUM(F154:CR154) -> 0 | F154: =CHOOSE($B$4,F125,F130,F135,F140,F145) -> 0 | G154: 0 | H154: 0 | I154: 0 | J154: 0 | K154: 0 | L154: 0 | M154: 0 | N154: 0 | O154: 0 | P154: 0 | Q154: 0 | R154: 0 | S154: 0 | T154: 0 | U154: 0 | V154: 0 | W154: 0 | X154: 0 | Y154: 0 | Z154: 0 | AA154: 0 | AB154: 2000 | AC154: 0 | AD154: 0 | AE154: 0 | AF154: -1100 | AG154: -900 | AH154: 0 | AI154: 0 | AJ154: 0 | AK154: 0 | AL154: =CHOOSE($B$4,AL125,AL130,AL135,AL140,AL145) -> 0 | AM154: 0 | AN154: 0 | AO154: 0 | AP154: 0 | AQ154: 0 | AR154: 0 | AS154: 0 | AT154: 0 | AU154: 0 | AV154: 0 | AW154: 0 | AX154: 0 | AY154: 0 | AZ154: 0 | BA154: 0 | BB154: 0 | BC154: 0 | BD154: 0 | BE154: 0 | BF154: 0 | BG154: 0 | BH154: 0 | BI154: 0 | BJ154: 0 | BK154: 0 | BL154: 0 | BM154: 0 | BN154: 0 | BO154: 0 | BP154: 0 | BQ154: 0 | BR154: =CHOOSE($B$4,BR125,BR130,BR135,BR140,BR145) -> 4000 | BS154: 0 | BT154: -2900 | BU154: -1100 | BV154: 0 | BW154: 0 | BX154: 0 | BY154: 0 | BZ154: 0 | CA154: 0 | CB154: 0 | CC154: 0 | CD154: 0 | CE154: 0 | CF154: 0 | CG154: 0 | CH154: 0 | CI154: 0 | CJ154: 0 | CK154: 0 | CL154: 0 | CM154: 0 | CN154: 0 | CO154: 0 | CP154: 0 | CQ154: 0 | CR154: 0
A155: Nominal lifecycle costs - value additions | D155: =SUM(F155:CR155) -> 2600 | F155: =CHOOSE($B$4,F126,F131,F136,F141,F146) -> 0 | G155: 0 | H155: 0 | I155: 0 | J155: 0 | K155: 0 | L155: 0 | M155: 0 | N155: 0 | O155: 0 | P155: 0 | Q155: 0 | R155: 0 | S155: 0 | T155: 0 | U155: 0 | V155: 600 | W155: 0 | X155: 0 | Y155: 0 | Z155: 0 | AA155: 0 | AB155: 2000 | AC155: 0 | AD155: 0 | AE155: 0 | AF155: 0 | AG155: 0 | AH155: 0 | AI155: 0 | AJ155: 0 | AK155: 0 | AL155: =CHOOSE($B$4,AL126,AL131,AL136,AL141,AL146) -> 0 | AM155: 0 | AN155: 0 | AO155: 0 | AP155: 0 | AQ155: 0 | AR155: 0 | AS155: 0 | AT155: 0 | AU155: 0 | AV155: 0 | AW155: 0 | AX155: 0 | AY155: 0 | AZ155: 0 | BA155: 0 | BB155: 0 | BC155: 0 | BD155: 0 | BE155: 0 | BF155: 0 | BG155: 0 | BH155: 0 | BI155: 0 | BJ155: 0 | BK155: 0 | BL155: 0 | BM155: 0 | BN155: 0 | BO155: 0 | BP155: 0 | BQ155: 0 | BR155: =CHOOSE($B$4,BR126,BR131,BR136,BR141,BR146) -> 0 | BS155: 0 | BT155: 0 | BU155: 0 | BV155: 0 | BW155: 0 | BX155: 0 | BY155: 0 | BZ155: 0 | CA155: 0 | CB155: 0 | CC155: 0 | CD155: 0 | CE155: 0 | CF155: 0 | CG155: 0 | CH155: 0 | CI155: 0 | CJ155: 0 | CK155: 0 | CL155: 0 | CM155: 0 | CN155: 0 | CO155: 0 | CP155: 0 | CQ155: 0 | CR155: 0
A157: Total lifecycle for depreciation | C157: =IF(D301=D157,"OK","No") -> OK | D157: =SUM(F157:CR157) -> 50033.17655 | F157: =MAX(0,F151+F154+F155) -> 0 | G157: =MAX(0,G151+G154+G155) -> 0 | H157: 0 | I157: 0 | J157: 0 | K157: 0 | L157: 0 | M157: 0 | N157: 0 | O157: 0 | P157: 0 | Q157: 0 | R157: 43.89174763 | S157: 43.89174763 | T157: 57.2469824 | U157: 57.2469824 | V157: 863.9362392 | W157: 263.9362392 | X157: 142.5503068 | Y157: 142.5503068 | Z157: 231.7547272 | AA157: 231.7547272 | AB157: 4407.271503 | AC157: 407.2715029 | AD157: 154.742665 | AE157: 154.742665 | AF157: 38.90655555 | AG157: 238.9065555 | AH157: 351.429947 | AI157: 351.429947 | AJ157: 724.3120964 | AK157: 724.3120964 | AL157: 363.8148046 | AM157: 363.8148046 | AN157: 438.4702608 | AO157: 438.4702608 | AP157: 1261.127073 | AQ157: 1261.127073 | AR157: 1093.052527 | AS157: 1093.052527 | AT157: 518.4269577 | AU157: 518.4269577 | AV157: 1318.100922 | AW157: 1318.100922 | AX157: 1239.610114 | AY157: 1239.610114 | AZ157: 1499.162555 | BA157: 1499.162555 | BB157: 1456.431405 | BC157: 1456.431405 | BD157: 1585.580926 | BE157: 1585.580926 | BF157: 653.74672 | BG157: 653.74672 | BH157: 1717.112735 | BI157: 1717.112735 | BJ157: 1404.172319 | BK157: 1404.172319 | BL157: 878.4898866 | BM157: 878.4898866 | BN157: 623.4473177 | BO157: 623.4473177 | BP157: 441.007229 | BQ157: 441.007229 | BR157: 4471.862268 | BS157: =MAX(0,BS151+BS154+BS155) -> 471.8622681 | BT157: 19.35778837 | BU157: 1819.357788 | BV157: 317.571698 | BW157: 317.571698 | BX157: 0 | BY157: 0 | BZ157: 0 | CA157: 0 | CB157: 0 | CC157: 0 | CD157: 0 | CE157: 0 | CF157: 0 | CG157: 0 | CH157: 0 | CI157: 0 | CJ157: 0 | CK157: 0 | CL157: 0 | CM157: 0 | CN157: 0 | CO157: 0 | CP157: 0 | CQ157: 0 | CR157: 0
A159: Lifecycle asset class UELs and proportions
A161: Scenario 1 | F161: =IF(AND($B$4=1,F157>0),1,0) -> 0 | G161: =IF(AND($B$4=1,G157>0),1,0) -> 0 | H161: 0 | I161: 0 | J161: 0 | K161: 0 | L161: 0 | M161: 0 | N161: 0 | O161: 0 | P161: 0 | Q161: 0 | R161: 1 | S161: 1 | T161: 1 | U161: 1 | V161: 1 | W161: 1 | X161: 1 | Y161: 1 | Z161: 1 | AA161: 1 | AB161: 1 | AC161: 1 | AD161: 1 | AE161: 1 | AF161: 1 | AG161: 1 | AH161: 1 | AI161: 1 | AJ161: 1 | AK161: 1 | AL161: 1 | AM161: 1 | AN161: 1 | AO161: 1 | AP161: 1 | AQ161: 1 | AR161: 1 | AS161: 1 | AT161: 1 | AU161: 1 | AV161: 1 | AW161: 1 | AX161: 1 | AY161: 1 | AZ161: 1 | BA161: 1 | BB161: 1 | BC161: 1 | BD161: 1 | BE161: 1 | BF161: 1 | BG161: 1 | BH161: 1 | BI161: 1 | BJ161: 1 | BK161: 1 | BL161: 1 | BM161: 1 | BN161: 1 | BO161: 1 | BP161: 1 | BQ161: 1 | BR161: 1 | BS161: =IF(AND($B$4=1,BS157>0),1,0) -> 1 | BT161: 1 | BU161: 1 | BV161: 1 | BW161: 1 | BX161: 0 | BY161: 0 | BZ161: 0 | CA161: 0 | CB161: 0 | CC161: 0 | CD161: 0 | CE161: 0 | CF161: 0 | CG161: 0 | CH161: 0 | CI161: 0 | CJ161: 0 | CK161: 0 | CL161: 0 | CM161: 0 | CN161: 0 | CO161: 0 | CP161: 0 | CQ161: 0 | CR161: 0
D162: UELs
D163: 1 | F163: 0 | G163: 0 | H163: 0 | I163: 0 | J163: 0 | K163: 0 | L163: 0 | M163: 0 | N163: 0 | O163: 0 | P163: 0 | Q163: 0 | R163: 0 | S163: 0 | T163: 0 | U163: 0 | V163: 0 | W163: 0 | X163: 0 | Y163: 0 | Z163: 0 | AA163: 0 | AB163: 0 | AC163: 0 | AD163: 0 | AE163: 0 | AF163: 0 | AG163: 0 | AH163: 0 | AI163: 0 | AJ163: 0 | AK163: 0 | AL163: 0 | AM163: 0 | AN163: 0 | AO163: 0 | AP163: 0 | AQ163: 0 | AR163: 0 | AS163: 0 | AT163: 0 | AU163: 0 | AV163: 0 | AW163: 0 | AX163: 0 | AY163: 0 | AZ163: 0 | BA163: 0 | BB163: 0 | BC163: 0 | BD163: 0 | BE163: 0 | BF163: 0 | BG163: 0 | BH163: 0 | BI163: 0 | BJ163: 0 | BK163: 0 | BL163: 0 | BM163: 0 | BN163: 0 | BO163: 0 | BP163: 0 | BQ163: 0 | BR163: 0 | BS163: 0 | BT163: 0 | BU163: 0 | BV163: 0 | BW163: 0 | BX163: 0 | BY163: 0 | BZ163: 0 | CA163: 0 | CB163: 0 | CC163: 0 | CD163: 0 | CE163: 0 | CF163: 0 | CG163: 0 | CH163: 0 | CI163: 0 | CJ163: 0 | CK163: 0 | CL163: 0 | CM163: 0 | CN163: 0 | CO163: 0 | CP163: 0 | CQ163: 0 | CR163: 0 | CS163: 0
D164: 2 | F164: 0 | G164: 0 | H164: 0 | I164: 0 | J164: 0 | K164: 0 | L164: 0 | M164: 0 | N164: 0 | O164: 0 | P164: 0 | Q164: 0 | R164: 0 | S164: 0 | T164: 0 | U164: 0 | V164: 0 | W164: 0 | X164: 0 | Y164: 0 | Z164: 0 | AA164: 0 | AB164: 0 | AC164: 0 | AD164: 0 | AE164: 0 | AF164: 0 | AG164: 0 | AH164: 0 | AI164: 0 | AJ164: 0 | AK164: 0 | AL164: 0 | AM164: 0 | AN164: 0 | AO164: 0 | AP164: 0 | AQ164: 0 | AR164: 0 | AS164: 0 | AT164: 0 | AU164: 0 | AV164: 0 | AW164: 0 | AX164: 0 | AY164: 0 | AZ164: 0 | BA164: 0 | BB164: 0 | BC164: 0 | BD164: 0 | BE164: 0 | BF164: 0 | BG164: 0 | BH164: 0 | BI164: 0 | BJ164: 0 | BK164: 0 | BL164: 0 | BM164: 0 | BN164: 0 | BO164: 0 | BP164: 0 | BQ164: 0 | BR164: 0 | BS164: 0 | BT164: 0 | BU164: 0 | BV164: 0 | BW164: 0 | BX164: 0 | BY164: 0 | BZ164: 0 | CA164: 0 | CB164: 0 | CC164: 0 | CD164: 0 | CE164: 0 | CF164: 0 | CG164: 0 | CH164: 0 | CI164: 0 | CJ164: 0 | CK164: 0 | CL164: 0 | CM164: 0 | CN164: 0 | CO164: 0 | CP164: 0 | CQ164: 0 | CR164: 0 | CS164: 0
D165: 3 | F165: 0 | G165: 0 | H165: 0 | I165: 0 | J165: 0 | K165: 0 | L165: 0 | M165: 0 | N165: 0 | O165: 0 | P165: 0 | Q165: 0 | R165: 0 | S165: 0 | T165: 0 | U165: 0 | V165: 0 | W165: 0 | X165: 0 | Y165: 0 | Z165: 0 | AA165: 0 | AB165: 0 | AC165: 0 | AD165: 0 | AE165: 0 | AF165: 0 | AG165: 0 | AH165: 0 | AI165: 0 | AJ165: 0 | AK165: 0 | AL165: 0 | AM165: 0 | AN165: 0 | AO165: 0 | AP165: 0 | AQ165: 0 | AR165: 0 | AS165: 0 | AT165: 0 | AU165: 0 | AV165: 0 | AW165: 0 | AX165: 0 | AY165: 0 | AZ165: 0 | BA165: 0 | BB165: 0 | BC165: 0 | BD165: 0 | BE165: 0 | BF165: 0 | BG165: 0 | BH165: 0 | BI165: 0 | BJ165: 0 | BK165: 0 | BL165: 0 | BM165: 0 | BN165: 0 | BO165: 0 | BP165: 0 | BQ165: 0 | BR165: 0 | BS165: 0 | BT165: 0 | BU165: 0 | BV165: 0 | BW165: 0 | BX165: 0 | BY165: 0 | BZ165: 0 | CA165: 0 | CB165: 0 | CC165: 0 | CD165: 0 | CE165: 0 | CF165: 0 | CG165: 0 | CH165: 0 | CI165: 0 | CJ165: 0 | CK165: 0 | CL165: 0 | CM165: 0 | CN165: 0 | CO165: 0 | CP165: 0 | CQ165: 0 | CR165: 0 | CS165: 0
D166: 4 | F166: 0 | G166: 0 | H166: 0 | I166: 0 | J166: 0 | K166: 0 | L166: 0 | M166: 0 | N166: 0 | O166: 0 | P166: 0 | Q166: 0 | R166: 0 | S166: 0 | T166: 0 | U166: 0 | V166: 0 | W166: 0 | X166: 0 | Y166: 0 | Z166: 0 | AA166: 0 | AB166: 0 | AC166: 0 | AD166: 0 | AE166: 0 | AF166: 0 | AG166: 0 | AH166: 0 | AI166: 0 | AJ166: 0 | AK166: 0 | AL166: 0 | AM166: 0 | AN166: 0 | AO166: 0 | AP166: 0 | AQ166: 0 | AR166: 0 | AS166: 0 | AT166: 0 | AU166: 0 | AV166: 0 | AW166: 0 | AX166: 0 | AY166: 0 | AZ166: 0 | BA166: 0 | BB166: 0 | BC166: 0 | BD166: 0 | BE166: 0 | BF166: 0 | BG166: 0 | BH166: 0 | BI166: 0 | BJ166: 0 | BK166: 0 | BL166: 0 | BM166: 0 | BN166: 0 | BO166: 0 | BP166: 0 | BQ166: 0 | BR166: 0 | BS166: 0 | BT166: 0 | BU166: 0 | BV166: 0 | BW166: 0 | BX166: 0 | BY166: 0 | BZ166: 0 | CA166: 0 | CB166: 0 | CC166: 0 | CD166: 0 | CE166: 0 | CF166: 0 | CG166: 0 | CH166: 0 | CI166: 0 | CJ166: 0 | CK166: 0 | CL166: 0 | CM166: 0 | CN166: 0 | CO166: 0 | CP166: 0 | CQ166: 0 | CR166: 0 | CS166: 0
D167: 5 | F167: 0 | G167: 0 | H167: 0 | I167: 0 | J167: 0 | K167: 0 | L167: 0 | M167: 0 | N167: 0 | O167: 0 | P167: 0 | Q167: 0 | R167: 43.89174763 | S167: 43.89174763 | T167: 57.2469824 | U167: 57.2469824 | V167: 126.722831 | W167: 126.722831 | X167: 129.8909018 | Y167: 129.8909018 | Z167: 133.1381743 | AA167: 133.1381743 | AB167: 136.4666287 | AC167: 136.4666287 | AD167: 139.8782944 | AE167: 139.8782944 | AF167: 38.90655555 | AG167: 143.3752517 | AH167: 146.959633 | AI167: 146.959633 | AJ167: 150.6336239 | AK167: 150.6336239 | AL167: 154.3994644 | AM167: 154.3994644 | AN167: 158.2594511 | AO167: 158.2594511 | AP167: 162.2159373 | AQ167: 162.2159373 | AR167: 166.2713358 | AS167: 166.2713358 | AT167: 170.4281192 | AU167: 170.4281192 | AV167: 174.6888221 | AW167: 174.6888221 | AX167: 179.0560427 | AY167: 179.0560427 | AZ167: 183.5324438 | BA167: 183.5324438 | BB167: 188.1207549 | BC167: 188.1207549 | BD167: 192.8237737 | BE167: 192.8237737 | BF167: 197.6443681 | BG167: 197.6443681 | BH167: 202.5854773 | BI167: 202.5854773 | BJ167: 207.6501142 | BK167: 207.6501142 | BL167: 212.8413671 | BM167: 212.8413671 | BN167: 218.1624012 | BO167: 218.1624012 | BP167: 223.6164613 | BQ167: 223.6164613 | BR167: 229.2068728 | BS167: 229.2068728 | BT167: 19.35778837 | BU167: 234.9370446 | BV167: 240.8104707 | BW167: 240.8104707 | BX167: 0 | BY167: 0 | BZ167: 0 | CA167: 0 | CB167: 0 | CC167: 0 | CD167: 0 | CE167: 0 | CF167: 0 | CG167: 0 | CH167: 0 | CI167: 0 | CJ167: 0 | CK167: 0 | CL167: 0 | CM167: 0 | CN167: 0 | CO167: 0 | CP167: 0 | CQ167: 0 | CR167: 0 | CS167: 0
D168: 6 | F168: 0 | G168: 0 | H168: 0 | I168: 0 | J168: 0 | K168: 0 | L168: 0 | M168: 0 | N168: 0 | O168: 0 | P168: 0 | Q168: 0 | R168: 0 | S168: 0 | T168: 0 | U168: 0 | V168: 0 | W168: 0 | X168: 0 | Y168: 0 | Z168: 0 | AA168: 0 | AB168: 0 | AC168: 0 | AD168: 0 | AE168: 0 | AF168: 0 | AG168: 0 | AH168: 0 | AI168: 0 | AJ168: 0 | AK168: 0 | AL168: 0 | AM168: 0 | AN168: 0 | AO168: 0 | AP168: 0 | AQ168: 0 | AR168: 0 | AS168: 0 | AT168: 0 | AU168: 0 | AV168: 0 | AW168: 0 | AX168: 0 | AY168: 0 | AZ168: 0 | BA168: 0 | BB168: 0 | BC168: 0 | BD168: 0 | BE168: 0 | BF168: 0 | BG168: 0 | BH168: 0 | BI168: 0 | BJ168: 0 | BK168: 0 | BL168: 0 | BM168: 0 | BN168: 0 | BO168: 0 | BP168: 0 | BQ168: 0 | BR168: 0 | BS168: 0 | BT168: 0 | BU168: 0 | BV168: 0 | BW168: 0 | BX168: 0 | BY168: 0 | BZ168: 0 | CA168: 0 | CB168: 0 | CC168: 0 | CD168: 0 | CE168: 0 | CF168: 0 | CG168: 0 | CH168: 0 | CI168: 0 | CJ168: 0 | CK168: 0 | CL168: 0 | CM168: 0 | CN168: 0 | CO168: 0 | CP168: 0 | CQ168: 0 | CR168: 0 | CS168: 0
D169: 7 | F169: 0 | G169: 0 | H169: 0 | I169: 0 | J169: 0 | K169: 0 | L169: 0 | M169: 0 | N169: 0 | O169: 0 | P169: 0 | Q169: 0 | R169: 0 | S169: 0 | T169: 0 | U169: 0 | V169: 0 | W169: 0 | X169: 0 | Y169: 0 | Z169: 0 | AA169: 0 | AB169: 0 | AC169: 0 | AD169: 0 | AE169: 0 | AF169: 0 | AG169: 0 | AH169: 0 | AI169: 0 | AJ169: 0 | AK169: 0 | AL169: 0 | AM169: 0 | AN169: 0 | AO169: 0 | AP169: 0 | AQ169: 0 | AR169: 0 | AS169: 0 | AT169: 0 | AU169: 0 | AV169: 0 | AW169: 0 | AX169: 0 | AY169: 0 | AZ169: 0 | BA169: 0 | BB169: 0 | BC169: 0 | BD169: 0 | BE169: 0 | BF169: 0 | BG169: 0 | BH169: 0 | BI169: 0 | BJ169: 0 | BK169: 0 | BL169: 0 | BM169: 0 | BN169: 0 | BO169: 0 | BP169: 0 | BQ169: 0 | BR169: 0 | BS169: 0 | BT169: 0 | BU169: 0 | BV169: 0 | BW169: 0 | BX169: 0 | BY169: 0 | BZ169: 0 | CA169: 0 | CB169: 0 | CC169: 0 | CD169: 0 | CE169: 0 | CF169: 0 | CG169: 0 | CH169: 0 | CI169: 0 | CJ169: 0 | CK169: 0 | CL169: 0 | CM169: 0 | CN169: 0 | CO169: 0 | CP169: 0 | CQ169: 0 | CR169: 0 | CS169: 0
D170: 8 | F170: 0 | G170: 0 | H170: 0 | I170: 0 | J170: 0 | K170: 0 | L170: 0 | M170: 0 | N170: 0 | O170: 0 | P170: 0 | Q170: 0 | R170: 0 | S170: 0 | T170: 0 | U170: 0 | V170: 0 | W170: 0 | X170: 0 | Y170: 0 | Z170: 0 | AA170: 0 | AB170: 0 | AC170: 0 | AD170: 0 | AE170: 0 | AF170: 0 | AG170: 0 | AH170: 0 | AI170: 0 | AJ170: 0 | AK170: 0 | AL170: 0 | AM170: 0 | AN170: 0 | AO170: 0 | AP170: 0 | AQ170: 0 | AR170: 0 | AS170: 0 | AT170: 0 | AU170: 0 | AV170: 0 | AW170: 0 | AX170: 0 | AY170: 0 | AZ170: 0 | BA170: 0 | BB170: 0 | BC170: 0 | BD170: 0 | BE170: 0 | BF170: 0 | BG170: 0 | BH170: 0 | BI170: 0 | BJ170: 0 | BK170: 0 | BL170: 0 | BM170: 0 | BN170: 0 | BO170: 0 | BP170: 0 | BQ170: 0 | BR170: 0 | BS170: 0 | BT170: 0 | BU170: 0 | BV170: 0 | BW170: 0 | BX170: 0 | BY170: 0 | BZ170: 0 | CA170: 0 | CB170: 0 | CC170: 0 | CD170: 0 | CE170: 0 | CF170: 0 | CG170: 0 | CH170: 0 | CI170: 0 | CJ170: 0 | CK170: 0 | CL170: 0 | CM170: 0 | CN170: 0 | CO170: 0 | CP170: 0 | CQ170: 0 | CR170: 0 | CS170: 0
D171: 9 | F171: 0 | G171: 0 | H171: 0 | I171: 0 | J171: 0 | K171: 0 | L171: 0 | M171: 0 | N171: 0 | O171: 0 | P171: 0 | Q171: 0 | R171: 0 | S171: 0 | T171: 0 | U171: 0 | V171: 0 | W171: 0 | X171: 0 | Y171: 0 | Z171: 0 | AA171: 0 | AB171: 0 | AC171: 0 | AD171: 0 | AE171: 0 | AF171: 0 | AG171: 0 | AH171: 0 | AI171: 0 | AJ171: 0 | AK171: 0 | AL171: 0 | AM171: 0 | AN171: 0 | AO171: 0 | AP171: 0 | AQ171: 0 | AR171: 0 | AS171: 0 | AT171: 0 | AU171: 0 | AV171: 0 | AW171: 0 | AX171: 0 | AY171: 0 | AZ171: 0 | BA171: 0 | BB171: 0 | BC171: 0 | BD171: 0 | BE171: 0 | BF171: 0 | BG171: 0 | BH171: 0 | BI171: 0 | BJ171: 0 | BK171: 0 | BL171: 0 | BM171: 0 | BN171: 0 | BO171: 0 | BP171: 0 | BQ171: 0 | BR171: 0 | BS171: 0 | BT171: 0 | BU171: 0 | BV171: 0 | BW171: 0 | BX171: 0 | BY171: 0 | BZ171: 0 | CA171: 0 | CB171: 0 | CC171: 0 | CD171: 0 | CE171: 0 | CF171: 0 | CG171: 0 | CH171: 0 | CI171: 0 | CJ171: 0 | CK171: 0 | CL171: 0 | CM171: 0 | CN171: 0 | CO171: 0 | CP171: 0 | CQ171: 0 | CR171: 0 | CS171: 0
D172: 10 | F172: 0 | G172: 0 | H172: 0 | I172: 0 | J172: 0 | K172: 0 | L172: 0 | M172: 0 | N172: 0 | O172: 0 | P172: 0 | Q172: 0 | R172: 0 | S172: 0 | T172: 0 | U172: 0 | V172: 633.6141549 | W172: 137.2134083 | X172: 12.65940502 | Y172: 12.65940502 | Z172: 98.61655288 | AA172: 98.61655288 | AB172: 682.3331433 | AC172: 270.8048742 | AD172: 14.86437068 | AE172: 14.86437068 | AF172: 0 | AG172: 95.53130381 | AH172: 204.470314 | AI172: 204.470314 | AJ172: 573.6784726 | AK172: 573.6784726 | AL172: 209.4153402 | AM172: 209.4153402 | AN172: 280.2108098 | AO172: 280.2108098 | AP172: 811.0796867 | AQ172: 811.0796867 | AR172: 831.3566788 | AS172: 831.3566788 | AT172: 347.9988385 | AU172: 347.9988385 | AV172: 873.4441107 | AW172: 873.4441107 | AX172: 895.2802135 | AY172: 895.2802135 | AZ172: 917.6622188 | BA172: 917.6622188 | BB172: 940.6037743 | BC172: 940.6037743 | BD172: 964.1188686 | BE172: 964.1188686 | BF172: 456.102352 | BG172: 456.102352 | BH172: 1012.927386 | BI172: 1012.927386 | BJ172: 1038.250571 | BK172: 1038.250571 | BL172: 665.6485195 | BM172: 665.6485195 | BN172: 405.2849165 | BO172: 405.2849165 | BP172: 217.3907677 | BQ172: 217.3907677 | BR172: 1146.034364 | BS172: 242.6553953 | BT172: 0 | BU172: 1174.685223 | BV172: 76.76122727 | BW172: 76.76122727 | BX172: 0 | BY172: 0 | BZ172: 0 | CA172: 0 | CB172: 0 | CC172: 0 | CD172: 0 | CE172: 0 | CF172: 0 | CG172: 0 | CH172: 0 | CI172: 0 | CJ172: 0 | CK172: 0 | CL172: 0 | CM172: 0 | CN172: 0 | CO172: 0 | CP172: 0 | CQ172: 0 | CR172: 0 | CS172: 0
D173: 15 | F173: 0 | G173: 0 | H173: 0 | I173: 0 | J173: 0 | K173: 0 | L173: 0 | M173: 0 | N173: 0 | O173: 0 | P173: 0 | Q173: 0 | R173: 0 | S173: 0 | T173: 0 | U173: 0 | V173: 0 | W173: 0 | X173: 0 | Y173: 0 | Z173: 0 | AA173: 0 | AB173: 0 | AC173: 0 | AD173: 0 | AE173: 0 | AF173: 0 | AG173: 0 | AH173: 0 | AI173: 0 | AJ173: 0 | AK173: 0 | AL173: 0 | AM173: 0 | AN173: 0 | AO173: 0 | AP173: 0 | AQ173: 0 | AR173: 0 | AS173: 0 | AT173: 0 | AU173: 0 | AV173: 0 | AW173: 0 | AX173: 0 | AY173: 0 | AZ173: 0 | BA173: 0 | BB173: 0 | BC173: 0 | BD173: 0 | BE173: 0 | BF173: 0 | BG173: 0 | BH173: 0 | BI173: 0 | BJ173: 0 | BK173: 0 | BL173: 0 | BM173: 0 | BN173: 0 | BO173: 0 | BP173: 0 | BQ173: 0 | BR173: 0 | BS173: 0 | BT173: 0 | BU173: 0 | BV173: 0 | BW173: 0 | BX173: 0 | BY173: 0 | BZ173: 0 | CA173: 0 | CB173: 0 | CC173: 0 | CD173: 0 | CE173: 0 | CF173: 0 | CG173: 0 | CH173: 0 | CI173: 0 | CJ173: 0 | CK173: 0 | CL173: 0 | CM173: 0 | CN173: 0 | CO173: 0 | CP173: 0 | CQ173: 0 | CR173: 0 | CS173: 0
D174: 20 | F174: 0 | G174: 0 | H174: 0 | I174: 0 | J174: 0 | K174: 0 | L174: 0 | M174: 0 | N174: 0 | O174: 0 | P174: 0 | Q174: 0 | R174: 0 | S174: 0 | T174: 0 | U174: 0 | V174: 103.5992534 | W174: 0 | X174: 0 | Y174: 0 | Z174: 0 | AA174: 0 | AB174: 3588.471731 | AC174: 0 | AD174: 0 | AE174: 0 | AF174: 0 | AG174: 0 | AH174: 0 | AI174: 0 | AJ174: 0 | AK174: 0 | AL174: 0 | AM174: 0 | AN174: 0 | AO174: 0 | AP174: 287.8314491 | AQ174: 287.8314491 | AR174: 95.42451279 | AS174: 95.42451279 | AT174: 0 | AU174: 0 | AV174: 269.967989 | AW174: 269.967989 | AX174: 165.2738578 | AY174: 165.2738578 | AZ174: 397.9678923 | BA174: 397.9678923 | BB174: 327.7068759 | BC174: 327.7068759 | BD174: 428.6382834 | BE174: 428.6382834 | BF174: 0 | BG174: 0 | BH174: 501.5998709 | BI174: 501.5998709 | BJ174: 158.2716342 | BK174: 158.2716342 | BL174: 0 | BM174: 0 | BN174: 0 | BO174: 0 | BP174: 0 | BQ174: 0 | BR174: 3096.621031 | BS174: 0 | BT174: 0 | BU174: 409.7355207 | BV174: 0 | BW174: 0 | BX174: 0 | BY174: 0 | BZ174: 0 | CA174: 0 | CB174: 0 | CC174: 0 | CD174: 0 | CE174: 0 | CF174: 0 | CG174: 0 | CH174: 0 | CI174: 0 | CJ174: 0 | CK174: 0 | CL174: 0 | CM174: 0 | CN174: 0 | CO174: 0 | CP174: 0 | CQ174: 0 | CR174: 0 | CS174: 0
D175: 25 | F175: 0 | G175: 0 | H175: 0 | I175: 0 | J175: 0 | K175: 0 | L175: 0 | M175: 0 | N175: 0 | O175: 0 | P175: 0 | Q175: 0 | R175: 0 | S175: 0 | T175: 0 | U175: 0 | V175: 0 | W175: 0 | X175: 0 | Y175: 0 | Z175: 0 | AA175: 0 | AB175: 0 | AC175: 0 | AD175: 0 | AE175: 0 | AF175: 0 | AG175: 0 | AH175: 0 | AI175: 0 | AJ175: 0 | AK175: 0 | AL175: 0 | AM175: 0 | AN175: 0 | AO175: 0 | AP175: 0 | AQ175: 0 | AR175: 0 | AS175: 0 | AT175: 0 | AU175: 0 | AV175: 0 | AW175: 0 | AX175: 0 | AY175: 0 | AZ175: 0 | BA175: 0 | BB175: 0 | BC175: 0 | BD175: 0 | BE175: 0 | BF175: 0 | BG175: 0 | BH175: 0 | BI175: 0 | BJ175: 0 | BK175: 0 | BL175: 0 | BM175: 0 | BN175: 0 | BO175: 0 | BP175: 0 | BQ175: 0 | BR175: 0 | BS175: 0 | BT175: 0 | BU175: 0 | BV175: 0 | BW175: 0 | BX175: 0 | BY175: 0 | BZ175: 0 | CA175: 0 | CB175: 0 | CC175: 0 | CD175: 0 | CE175: 0 | CF175: 0 | CG175: 0 | CH175: 0 | CI175: 0 | CJ175: 0 | CK175: 0 | CL175: 0 | CM175: 0 | CN175: 0 | CO175: 0 | CP175: 0 | CQ175: 0 | CR175: 0 | CS175: 0
D176: 30 | F176: 0 | G176: 0 | H176: 0 | I176: 0 | J176: 0 | K176: 0 | L176: 0 | M176: 0 | N176: 0 | O176: 0 | P176: 0 | Q176: 0 | R176: 0 | S176: 0 | T176: 0 | U176: 0 | V176: 0 | W176: 0 | X176: 0 | Y176: 0 | Z176: 0 | AA176: 0 | AB176: 0 | AC176: 0 | AD176: 0 | AE176: 0 | AF176: 0 | AG176: 0 | AH176: 0 | AI176: 0 | AJ176: 0 | AK176: 0 | AL176: 0 | AM176: 0 | AN176: 0 | AO176: 0 | AP176: 0 | AQ176: 0 | AR176: 0 | AS176: 0 | AT176: 0 | AU176: 0 | AV176: 0 | AW176: 0 | AX176: 0 | AY176: 0 | AZ176: 0 | BA176: 0 | BB176: 0 | BC176: 0 | BD176: 0 | BE176: 0 | BF176: 0 | BG176: 0 | BH176: 0 | BI176: 0 | BJ176: 0 | BK176: 0 | BL176: 0 | BM176: 0 | BN176: 0 | BO176: 0 | BP176: 0 | BQ176: 0 | BR176: 0 | BS176: 0 | BT176: 0 | BU176: 0 | BV176: 0 | BW176: 0 | BX176: 0 | BY176: 0 | BZ176: 0 | CA176: 0 | CB176: 0 | CC176: 0 | CD176: 0 | CE176: 0 | CF176: 0 | CG176: 0 | CH176: 0 | CI176: 0 | CJ176: 0 | CK176: 0 | CL176: 0 | CM176: 0 | CN176: 0 | CO176: 0 | CP176: 0 | CQ176: 0 | CR176: 0 | CS176: 0
